{"text_format":"1","workbook":"xlsx","n_sheets":9,"sheets":["Instructions","LeaseDetails","PaymentSchedule","RenewalOptions","NonIndexEscalations","IndexEscalations","DropDowns","BlankRows","Release Notes"],"not_rendered":{"charts":0,"images":3,"macros":1,"external_links":0,"defined_names":30,"comments":1,"pivot_tables":0},"unopened":[],"bounds":{"document_bytes":16777216,"sheet_cells":100000,"rows_first":2000,"rows_last":500,"rows_between":2000,"halvings":0,"cell_chars":16384,"cell_head_chars":4096},"cells_cut":0,"cells_raw":0,"read":"whole","date_system":"1900"}

{"sheet":"Instructions","index":0,"n_rows":32,"n_cols":11,"rows_kept":32,"cut":false,"hidden":false,"merged":[[19,9,19,10],[14,9,14,10],[15,9,15,10],[16,9,16,10],[17,9,17,10],[18,9,18,10],[1,0,1,1],[4,9,4,10],[12,9,12,10],[13,9,13,10],[2,9,2,10],[1,4,1,7]]}
[]
["INSTRUCTIONS",null,null,null,"MODIFICATIONS TEMPLATE VERSION: 8.2.1"]
[1,"DO NOT INSERT OR DELETE COLUMNS",null,null,null,null,null,null,null,"GASB 96 (SBITA) Modification Upload Template"]
[2,"DO NOT CHANGE VALUES IN ROWS 1 - 8"]
[3,"LeaseID should always be populated in column A for each record. DO NOT LEAVE IT BLANK.",null,null,null,null,null,null,null,"VALIDATION ANALYTICS"]
[4,"Do not populate cells with variants of \"N.A.\" or \"Not Applicable\"",null,null,null,null,null,null,null,"Tab","Count of Rows with Errors"]
[5,"Row 2 shows what is expected in each column - whether the value should be a Date, Amount, Text, etc. Boolean means Yes or No. Sign means $ or %",null,null,null,null,null,null,null,"LeasesDetails",0]
[6,"Row 5 shows what the default value is. Fill in all required fields and leave all cells blank/empty if no data is available.",null,null,null,null,null,null,null,"PaymentSchedule",0]
[7,"If Row 4 displays 'YES / NO' or  a 'Dropdownlist', only those values will be accepted.  ",null,null,null,null,null,null,null,"RenewalOptions ",0]
[8,"Please populate payment schedule on the PaymentSchedule worksheet with the correct LeaseID",null,null,null,null,null,null,null,"NonIndexEscalation",0]
[9,"If there are Renewal Options, NonIndex Escalations, or Index Escalations please populate them in the corresponding tabs with the correct LeaseIDs",null,null,null,null,null,null,null,"IndexEscalation",0]
[10,"Click Validate button below before submitting. If any cell in column A is highlighted Red, then some issue has been detected in that row. Please investigate and fix the issue and again click Validate."]
[11,"If the entire row is highlighted in Red, then it means the LeaseID is missing. Please enter the value of the appropriate LeaseID and again click Validate",null,null,null,null,null,null,null,"LEGEND"]
[12,"Make sure the Upload template is of version 8.0.1 or higher",null,null,null,null,null,null,null,"Required Field *"]
[13,{"$f":"_xlfn.CONCAT(SUBSTITUTE($E$2,\"VERSION: \",\"\"), \" is the latest version of the Upload template. Please submit a request for the updated template, if required. (\",SUBSTITUTE($E$2,\"VERSION: \",\"\"),\" version or higher still works)\")","v":"MODIFICATIONS TEMPLATE 8.2.1 is the latest version of the Upload template. Please submit a request for the updated template, if required. (MODIFICATIONS TEMPLATE 8.2.1 version or higher still works)"},null,null,null,null,null,null,null,"Optional / Not Required Field"]
[14,"Use Add Rows button on all the tabs to populate rows with pre-filled default values, before adding the data, and then add data to the populated rows",null,null,null,null,null,null,null,"Required Parent Field *"]
[15,"#N/A values not permitted in LeaseID field",null,null,null,null,null,null,null,"Required Child Field *"]
[16,"Do not add values for fields that are not configured for the client",null,null,null,null,null,null,null,"Optional / Not Required Child Field"]
[17,"Add data for Entity_UID, Intercompany_UID, RVGIntercompanyUID,  LeasedAssetClassification_UID, Attributes, LeaseType, IndexType in ID ~ Description format (Please check the hidden tab – Dropdowns for configured values)",null,null,null,null,null,null,null,"Required Grandchild Field *"]
[18,"Do not add formulas to populate data",null,null,null,null,null,null,null,"Optional / Not Required Grandchild Field"]
[19,"Date must be added in YYYY-MM-DD format"]
[20,"For adding asset address, please refer to Asset Country-State-City combination file"]
[21,"Add data corresponding to appropriate fields as per Row 8"]
[22,"This template is for uploading new leases only PaymentSchedule/RenewalOptions/IndexEscalations/NonIndexEscalations data cannot be added to already existing leases using this template. So make sure LeaseID in any of these tabs exists in LeaseDetails tab as well"]
[23,"Special characters not allowed in Custom Fields"]
[24,"Keep the length of comments less than 4000 characters"]
[25,"After the template is filled completely, click on Validate button in Instructions tab, and check if there are any errors (number of errors in Validation Analytics field in Instructions tab, and fields highlighted in Red in respective tabs)"]
[26,"Please make sure to clear out all validation errors before submitting the template for upload"]
[27,"The turn-around time for lease uploads to Production is 6-8 business days if the data is clean without Upload errors"]
[28,"Lease upload process has to go through multiple iterations (Test upload1 – Errors fix (if any) – Test upload2.. – Errors fix (if any) – Upload to Production – Mass validation – Re-script of LeaseClassification overrides), a clean template will expedite the process"]
[29,"If a column has number in the third row, it is considered a child column. The number is its parent column. If the parent column is set to yes, the children columns must be populated"]
[30,"No spaces to the left or the right of the Lease ID"]

{"sheet":"LeaseDetails","index":1,"n_rows":10,"n_cols":161,"rows_kept":10,"cut":false,"hidden":false,"merged":[[6,148,6,159],[6,0,6,21],[6,69,6,89],[6,122,6,147],[6,22,6,41],[6,90,6,93],[6,42,6,63],[6,97,6,121],[6,94,6,96]]}
[]
["LeaseID","LeaseCategoryID","LeaseDesc","Entity_UID","LeasedAssetClassificationID","isLeaseGASB96","isLeaseGASB96Comm","AssetID","StoreID","LessorName","LessorAddress","VendorID","LanguageID","CancelableYesNo","SrcSys","Comments","AssetAddress1","AssetAddress2","AssetCountry","AssetState","AssetCity","AssetPostalCode","LeaseAgreementDateOrig","LeaseStartDateOrig","LeaseAgreementDate","LeaseStartDate","LeaseEndDate","MonthtoMonth","MtMFrequencyID","MtMExpectedDate","MtMComment","EarlyTermLessorOnly","EarlyTermLessorOnlyDate","EarlyTermLessorOnlyPayment","EarlyTermLessorOnlyReasonableGASB87","EarlyTermOption","EarlyTermComm","EarlyTermAgreementPayment","EarlyTermExpected","EarlyTermExpectedPayment","EarlyTermPaymentDate","RenewalOptions","LeaseCurrencyID","PaymentPeriodID","PaymentDueID","GASB96InterestRate","GASB96InterestRateTrans","GASB96Exchange_LeaseEntity","GASB96Exchange_LeaseEntity_Trans","PriorDefRentBal","OthAdjROUA_DRI","OthAdjROUA_DRIComment","IncentivesYesNo","IncentivesAmount","InstallationFeeYesNo","InstallationAmount","SecurityDeposits","SecurityDepositsRefund","SecurityDepositsNonRefund","DisposalFeeYesNo","DisposalFeeAmount","PenaltyYesNo","PenaltyAmount","PenaltyExpectYesNo","LegacySysConYN","LegacyGASB96LiabilityBal","LegacyGASB96AccrInterestBal","LegacyGASB96ROUACostBal","LegacyGASB96ROUAAccumAmortBal","NonIndexEscalationClause","IndexEscalationClause","CPIYN","CPIMonthID","CPILastIndex","CurrentCPI","CPISeriesID","CPIBasePeriod","CPIArea","IndexMinimumPercent","IndexMaximumPercent","IndexPercent","EscalationOther","EscalationOtherDesc","EscalationOtherComm","FreeRent","NonLeaseAllocatedYN","NonLeaseAllocatedComm","InSubstanceYN","InSubstanceComment","InSubstanceAmount","HoldoverOption","HoldoverTerms","RelatedParty","RelatedPartyDesc","PriorPayments","GASB96LeaseClassificationClientID","GASB96FinalComment","Custom01","Custom02","Custom03","Custom04","Custom05","Custom06","Custom07","Custom08","Custom09","Custom10","Custom11","Custom12","Custom13","Custom14","Custom15","Custom16","Custom17","Custom18","Custom19","Custom20","Custom21","Custom22","Custom23","Custom24","Custom25","Attribute_1","Attribute_2","Attribute_3","Attribute_4","Attribute_5","Attribute_6","Attribute_7","Attribute_8","Attribute_9","Attribute_10","Attribute_11","Attribute_12","Attribute_13","Attribute_14","Attribute_15","Attribute_16","Attribute_17","Attribute_18","Attribute_19","Attribute_20","Attribute_21","Attribute_22","Attribute_23","Attribute_24","Attribute_25","IndexTypeID","IntMod_ModDate","IntMod_ModComm","IntMod_Mod1YN","IntMod_Mod2YN","IntMod_Mod2_PenaltyAmt","IntMod_Mod2_RefundAmt","IntMod_Mod3YN","IntMod_Mod3_PenaltyAmt","IntMod_Mod3_RefundAmt","IntMod_Mod4YN","IntMod_Mod4_ImpAmtGASB96","IntMod_Mod10YN","End"]
["Text Required","Text Required","Text","Text Required","Text Required","Boolean Required Reversed","Text Required Reversed","Text","Text","Text","Text","Text","Text Required","Boolean Required","Text","Text","Text","Text","Text","Text","Text","Text","Date","Date","Date Required","Date Required","Date Required","Boolean Required","Text Required","Date Required","Text Required","Boolean Required","Date Required","Amount Required","Boolean Required","Boolean Required","Text Required","Amount Required","Boolean Required","Amount Required","Date Required","Boolean","Text Required","Text Required","Text Required","Amount Required","Amount Required","Amount Required","Amount Required","Amount","Number","Text","Boolean Required","Amount Required","Boolean Required","Amount Required","Boolean Required","Amount Required","Amount Required","Boolean Required","Amount Required","Boolean Required","Amount Required","Boolean Required","Boolean Required","Amount ","Amount ","Amount ","Amount ","Boolean","Boolean Required","Boolean Required","Text Required","Number Required","Number Required","Text Required","Text Required","Text Required","Number Required","Number Required","Number Required","Boolean Required","Text Required","Text Required","Boolean Required","Boolean Required","Text Required","Boolean Required","Text Required","Amount Required","Boolean Required","Text Required","Boolean Required","Text Required","Amount Required","Text Required","Text","Text","Text","Text","Text","Text","Text","Text","Text","Text","Text","Text","Text","Text","Text","Text","Text","Text","Text","Text","Text","Text","Text","Text","Text","Text","Text","Text","Text","Text","Text","Text","Text","Text","Text","Text","Text","Text","Text","Text","Text","Text","Text","Text","Text","Text","Text","Text","Text","Text","Text","Text","Date Required","Text","Boolean Required","Boolean Required","Amount Required","Amount Required","Boolean Required","Amount Required","Amount Required","Boolean Required","Amount Required","Boolean Required"]
[null,null,null,null,"",null,{"$f":"F8","v":6},"","",null,null,null,"","",null,"",null,null,null,null,null,null,"","","","","",null,{"$f":"$AB$8","v":28},{"$f":"$AB$8","v":28},{"$f":"$AB$8","v":28},null,{"$f":"$AF$8","v":32},{"$f":"$AF$8","v":32},{"$f":"$AF$8","v":32},null,{"$f":"$AJ$8","v":36},{"$f":"$AJ$8","v":36},{"$f":"$AJ$8","v":36},{"$f":"$AM$8","v":39},{"$f":"$AM$8","v":39},"","","","",null,null,null,null,null,null,null,null,{"$f":"$BA$8","v":53},null,{"$f":"$BC$8","v":55},null,{"$f":"$BE$8","v":57},{"$f":"$BE$8","v":57},null,{"$f":"$BH$8","v":60},null,{"$f":"$BJ$8","v":62},{"$f":"$BJ$8","v":62},null,{"$f":"$BM$8","v":65},{"$f":"$BM$8","v":65},{"$f":"$BM$8","v":65},{"$f":"$BM$8","v":65},null,null,{"$f":"BS8","v":71},{"$f":"$BT$8","v":72},72,72,72,72,72,{"$f":"$BS$8","v":71},{"$f":"$BS$8","v":71},{"$f":"$BS$8","v":71},null,{"$f":"$CD$8","v":82},{"$f":"$CD$8","v":82},"",null,{"$f":"$CH$8","v":86},null,{"$f":"$CJ$8","v":88},{"$f":"$CJ$8","v":88},null,{"$f":"$CM$8","v":91},null,{"$f":"$CO$8","v":93},null,null,null,null,null,null,null,null,null,null,null,null,null,null,null,null,null,null,null,null,null,null,null,null,null,null,null,null,"AgreementType","BusinessUnit","COADepartment","Multiple Funds Used",null,null,null,null,null,null,null,null,null,null,null,null,null,null,null,null,null,null,null,null,null,{"$f":"$BT$8","v":72},null,null,null,null,{"$f":"$EV$8","v":152},{"$f":"$EV$8","v":152},null,{"$f":"$EY$8","v":155},{"$f":"$EY$8","v":155},null,{"$f":"$FB$8","v":158}]
[null,"DropdownList",null,"DropdownList","DropdownList","YES / NO",null,null,null,null,null,null,"DropdownList","YES / NO",null,null,null,null,"Dropdownlist","Dropdownlist","Dropdownlist",null,null,null,null,null,null,"YES / NO","DropdownList",null,null,"YES / NO",null,null,"YES / NO","YES / NO",null,null,"YES / NO",null,null,"YES / NO","DropdownList","DropdownList","DropdownList",null,null,null,null,null,null,null,"YES / NO",null,"YES / NO",null,"YES / NO",null,null,"YES / NO",null,"YES / NO",null,"YES / NO","YES / NO",null,null,null,null,"YES / NO","YES / NO","YES / NO","DropdownList",null,null,null,null,null,null,null,null,"YES / NO",null,null,"YES / NO","YES / NO",null,"YES / NO",null,null,"YES / NO",null,"YES / NO",null,null,"DropdownList",null,null,null,null,null,null,null,null,null,null,null,null,null,null,null,null,null,null,null,null,null,null,null,null,null,null,"Dropdownlist","Dropdownlist","Dropdownlist","Dropdownlist","Dropdownlist","Dropdownlist","Dropdownlist","Dropdownlist","Dropdownlist","Dropdownlist","Dropdownlist","Dropdownlist","Dropdownlist","Dropdownlist","Dropdownlist","Dropdownlist","Dropdownlist","Dropdownlist","Dropdownlist","Dropdownlist","Dropdownlist","Dropdownlist","Dropdownlist","Dropdownlist","Dropdownlist","Dropdownlist",null,null,"YES / NO","YES / NO",null,null,"YES / NO",null,null,"YES / NO",null,"YES / NO"]
[null,"Dropdown",null,"Dropdown","Dropdown","YES",null,null,null,null,null,null,"Dropdown","NO","Upload Template",null,null,null,"Dropdown","Dropdown","Dropdown",null,null,null,null,null,null,"NO","Dropdown",null,null,"NO",null,null,"NO","NO",null,0,"NO",0,null,"NO","Dropdown","Dropdown","Dropdown",null,null,null,null,null,null,null,"NO",0,"NO",0,"NO",0,0,"NO",0,"NO",0,"NO","NO",null,null,null,null,"NO","NO","NO","Dropdown",null,null,null,null,null,null,null,null,"NO",null,null,"NO","NO",null,"NO",null,0,"NO",null,"NO",null,null,"Dropdown",null,null,null,null,null,null,null,null,null,null,null,null,null,null,null,null,null,null,null,null,null,null,null,null,null,null,"Dropdown","Dropdown","Dropdown","Dropdown","Dropdown","Dropdown","Dropdown","Dropdown","Dropdown","Dropdown","Dropdown","Dropdown","Dropdown","Dropdown","Dropdown","Dropdown","Dropdown","Dropdown","Dropdown","Dropdown","Dropdown","Dropdown","Dropdown","Dropdown","Dropdown","Dropdown",null,null,"NO","NO",null,null,"NO",null,null,"NO",null,"NO"]
["GENERAL INFO",null,null,null,null,null,null,null,null,null,null,null,null,null,null,null,null,null,null,null,null,null,"SBITA TERM",null,null,null,null,null,null,null,null,null,null,null,null,null,null,null,null,null,null,null,"CRITICAL PAYMENTS",null,null,null,null,null,null,null,null,null,null,null,null,null,null,null,null,null,null,null,null,null,null,null,null,null,null,"OTHER PAYMENT INFO",null,null,null,null,null,null,null,null,null,null,null,null,null,null,null,null,null,null,null,null,"ADDITIONAL INFO",null,null,null,"SBITA CLASSIFICATION",null,null,"CUSTOM INFO",null,null,null,null,null,null,null,null,null,null,null,null,null,null,null,null,null,null,null,null,null,null,null,null,"ATTRIBUTES"]
["1",{"$f":"A8+1","v":2},3,4,5,6,7,8,9,10,11,12,13,14,15,16,17,18,19,20,21,22,23,24,25,26,27,28,29,30,31,32,33,{"$f":"AG8+1","v":34},35,36,37,38,39,40,41,42,43,44,45,46,47,48,49,50,51,52,53,54,55,56,57,58,59,60,61,62,63,64,65,{"$f":"BM8+1","v":66},67,68,69,70,71,72,73,74,75,76,77,78,79,80,81,82,83,84,85,86,87,88,89,90,91,92,93,94,95,96,97,{"$f":"CS8+1","v":98},99,100,101,102,103,104,105,106,107,108,109,110,111,112,113,114,115,116,117,118,119,120,121,122,123,124,125,126,127,128,129,{"$f":"DY8+1","v":130},131,132,133,134,135,136,137,138,139,140,141,142,143,144,145,146,147,148,149,150,151,152,153,154,155,156,157,158,159,160]
["SBITA ID*\nENTER the Procurement Contract NYS Contract                                          (SBITA = Subscription Based IT Arrangement)","Lease Type *\nEnter the Value \"SBITA\"","SBITA Description","Legal Entity *\nEnter your SFS GL BU ID Value","Subscription Asset Classification *\n Enter \"4000 ` SBITA\"","Does this contract meet the definition of a SBITA under GASB96?*\n Value \"YES\"","GASB96 Comment *\nIf Parent Question in column 6, 'isLeaseGASB96' is 'NO', Please provide evidence of why this contract is not considered SBITA under GASB 96","SBITA ID","Location ID ","Vendor Name","Vendor Address\n\nENTER VENDOR ADDRESS FROM CONTRACT","Vendor ID\n\nENTER VENDOR ID # FROM CONTRACT","Language of the SBITA *\n\nEnter Value \"English\"","Is this SBITA cancellable ? *\nYES/NO","Source System\nEnter  Value \"UPLOAD TEMPLATE\"","Comments","Address Line 1\nLocation of Asset ","Address Line 2\nLocation of Asset","Country\nEnter Location of Asset - Typical Value \"UNITED STATES\"","State/Province (Country required if State field is filled)","City (State/Province required if City is filled)","Postal Code","Original SBITA Agreement Date","Original SBITA Commencement Date","Current SBITA Agreement Date *","Current SBITA Commencement Date *","Current SBITA End Date *","Is this an evergreen SBITA (e.g. month-to-month)? *\nYES/NO - If YES, Contact OSC","Enter the renewal frequency *\nChild question to Parent question 28 'MonthtoMonth'","What date do you expect to ultimately terminate the SBITA? *","Enter terms of evergreen renewal process *","Does the vendor have the ability to terminate the SBITA? *\nYES/NO","If you expect the vendor to exercise this option, enter the expected date of exercise; otherwise, enter the last date of the termination option (YYYY-MM-DD). *","What is the amount of the penalty the vendor pays if the option is exercised? *","Is it reasonably certain that the vendor will exercise this option? (GASB96) *","Does the subscriber have the ability to terminate the SBITA? *\nYES/NO","Enter terms of early termination *","Early termination payment amount as per the SBITA *","Are you reasonably certain to exercise this option? *","Expected early termination payment amount *","Expected date of early termination payment *","Does this SBITA contain Renewal Options? *\nYES/NO","SBITA Currency *\nEnter Value \"USD\"","Payment Period *","Payment Due *","Implicit Interest Rate or Incremental Borrowing Rate on SBITA Commencement (GASB96) *\nEnter \"0\" Unless the Interest Rate is Stated in the Contract","Implicit Interest Rate or Incremental Borrowing Rate on Transition date (GASB96) *\nEnter \"0\" Unless the Interest Rate is Stated in the Contract","Exchange rate from SBITA Currency to Entity Functional Currency on the SBITA Commencement Date (GASB96 Historical Rate) *\nEnter \"1\"","Exchange rate from SBITA Currency to Entity Functional Currency on the Transition Date (GASB96 Historical Rate) *\nEnter \"1\"","Prior prepaid/accrued expense balance that needs to be amortized as part of subscription expense","Other adjustments to initial subscription asset","Comment","Were SBITA incentives received? *\nYES/NO","Incentive Amount *","Are there any implementation costs that were incurred? *\nYES/NO","Total implementation costs incurred *","Are there any security deposits/prepayments associated with the SBITA? *\nYES/NO","Refundable Security Deposit Amount *","Non-Refundable Security Deposit/Prepayment Amount *","Is there a disposal/removal fee? *\nYES/NO","Disposal/removal fee amount *","Is there a penalty or fee upon returning any associated tangible capital asset? *\nYES/NO","Penalty Amount *","Do you expect to pay this amount? *","Does this SBITA need to incorporate legacy system carrying amounts? (If yes, all commencement transactions will be ignored and only legacy carrying amounts will be utilized for calculations.) *\nYES/NO","Carrying amount of legacy system subscription liability (excluding accrued interest) on conversion date","Carrying amount of legacy system accrued interest on conversion date","Carrying amount of legacy system subscription asset cost on conversion date","Carrying amount of legacy system subscription asset accumulated amortization on conversion date","Does this SBITA contain a Non Index based Escalation Clause? *\nYES/NO","Does this SBITA contain an Index based Escalation Clause? *\nYES/NO","Does the Escalation Clause have an Index type of CPI? * \nYES/NO","CPI base month of determination *","Last CPI Index *","Current CPI *","CPI series ID *","CPI base period (year) *","CPI Area *","Minimum Percentage *","Maximum Percentage *","Index Percentage On Current Date *","Does this SBITA contain variable SBITA payments other than index based? *\nYES/NO","Enter type of variable SBITA payments *","Variable SBITA payment terms/comments *","Does this SBITA contain free subscription periods? *\nYES/NO","Does this SBITA have non-SBITA components that need to be allocated? *\nYES/NO","Describe the non-SBITA components *","Does this SBITA contain a fixed, in-substance minimum payment? *\nYES/NO","In-substance payment comment *","What is the amount of in-substance payment? *","Does this SBITA contain a holdover provision? *\nYES/NO if YES contact OSC","Enter terms of holdover payments *","Is this SBITA with a Related Party? *\nYES/NO if YES contact OSC","Identify Related party *","Net payment made prior to the commencement of subscription term *","GASB96 SBITA Classification Selected *\nENTER 'SBITA'","Comments","Procurement Agreement Start Date *","Procurement Agreement End Date *","Procurement Business Unit *","NYS Contract ID Number *","Procurement Dept ID  *","COA Fund *","Is this Lease Embedded in SBITA? *","Is this Lease Embedded in Another Agreement? *","Related Agreement NYS Contract ID *","Financed by Debt *","Fair Market Value *","Is there a lease embedded in this agreement? *","Is this SBITA embedded in another agreement? *","Is this agreement part of an Umbrella Contract? *","What is the Contract ID or Sharepoint ID for the Umbrella Contract? *","Custom16","Custom17","Custom18","Custom19","Custom20","Custom21","Custom22","Custom23","Custom24","Custom25","AgreementType*","BusinessUnit*","COADepartment*","Multiple Funds Used*",null,null,null,null,null,null,null,null,null,null,null,null,null,null,null,null,null,null,null,null,null,"Index Type","Modification Date*","Modification Comment","Is the SBITA entered in error?*","Is the SBITA terminated early?*","Penalty Amount (cash outflow)*","Refund Amount  (cash inflow)*","Is the SBITA partially terminated?*","Penalty Amount (cash outflow)*","Refund Amount  (cash inflow)*","Is the subscription asset impaired?*","Impairment Amount Under GASB96*","Is there any other modification/ remeasurement event (such as change in SBITA term, change in the SBITA consideration, grant of additional Right of Use Asset)?*"]
["The SBITA ID is the unique ID assigned to a particular SBITA.","Only Lease Type of 'SBITA' accepted for this upload template","Enter a brief description of the SBITA i.e. the name of the parties and the asset details. (Ex: SBITA (AXXXX) between XYZ Limited and ABC Limited)","Entity ID associated to a lease","Type of Subscription Asset Classification","Select Yes if this contract is considered a SBITA","Please provide evidence of why this contract is not considered a SBITA","The SBITA ID is the unique ID for a particular asset in the company's system. ","If asset is associated with a particular location, this is the unique ID for the particular location.","Enter the Vendor name","Enter the Vendor address","Select the Vendor ID (Supplier/Customer) which corresponds to the Vendor/Customer ID in the GL system","Select the appropriate option","Determine whether or not the SBITA can be cancelled","Populated with the name of the system or Manual if no system was used.","This is a free text box for additional information that may be useful to have documented such as notes on contacts for the SBITA, notes on parties involved, specific SBITA wording/details, etc.","Address Line 1","Address Line 2","Country/State/City combination must match. If state is not found in country or city is not found in state, record will fail. Fields are cascading. Country must be present to enter a state. State must be present to enter a city. ","Country/State/City combination must match. If state is not found in country or city is not found in state, record will fail. Fields are cascading. Country must be present to enter a state. State must be present to enter a city. ","Country/State/City combination must match. If state is not found in country or city is not found in state, record will fail. Fields are cascading. Country must be present to enter a state. State must be present to enter a city. \n\nOnly cities with a population greater than 1000 are present in template due to number of cities in the world. If your city is not found, it must be added via LeaseController site. ","Postal Code","This is the date on which the main agreement was signed by both the parties. Enter the details if you have the original agreement. Otherwise, leave it blank.","This is the SBITA commencement date based on the original SBITA. Enter the details if you have the original agreement. Otherwise, leave it blank.","The current SBITA date is the date of the initial (or) the renewal agreement that is currently in effect as of the evaluation date.","The current commencement date is either the commencement of the original SBITA or renewal agreement whichever is in effect as of the evaluation date.","This is the end date of the term that is currently active.  For example, if a SBITA was signed on 1/1/2012 with an expiration of 3/31/2013 with a one year renewal option, the end of the current term is 3/31/2013.  However, if a SBITA was signed on 1/1/2012 with an expiration of 12/31/2012 and a one year renewal option (and SBITA was renewed), the end date would be 12/31/2013.","Select the appropriate option i.e. Yes or No. In a month to month SBITA there will be no specified SBITA term and the SBITA will automatically be renewed each month unless terminated by giving some specific days notice.","Choose from dropdown provided to select renewal frequency of month to month","Unless otherwise specified, this end date for a month to month SBITA will be determined based on the minimum notice date. For example if a 60 days notice is required to terminate a month to month SBITA, then the term of the month to month SBITA will include 60 days and accordingly the end date will be derived.","Enter the terms of the evergreen SBITA (i.e. the payment amount, notice etc.)","Answer Yes if only the SBITA vendor has the ability to terminate the SBITA","Enter the expected or last known date the SBITA vendor may terminate the SBITA\n\nChild question to Parent question 32 : EarlyTermLessorOnly","Enter as a positive number the amount paid when the termination option is exercised\n\nChild question to Parent question 32 : EarlyTermLessorOnly","Input 'YES' if it is reasonably certain that the lessor will exercise the option\n","Select Yes if the early termination option is available generally (not in the case of default and an option with the mutual consent)","Enter a brief description of the terms of early termination, notice period, etc.\n\nChild question to Parent question 36 : EarlyTermOption","Enter the early termination amount if mentioned in the agreement.\n\nChild question to Parent question 36 : EarlyTermOption","Select the appropriate option i.e. YES/NO\n\nChild question to Parent question 36 : EarlyTermOption","Expected Early Termination Payment Amount\n\nChild question to Parent question 38 : EarlyTermOption","Expected Date of early termination payment\n\nChild question to Parent question 38 : EarlyTermOption","Select Yes if there is any prospective renewal option available to the government user. For example, if the agreement has 5 renewal options out of which the government user has exercised 2 renewal options then we need to enter the remaining 3 SBITA renewal options.\n\nIf 'YES', Enter the renewal options details on the 'RenewalOptions' Tab","Select the appropriate option. This would be the currency in which the SBITA payments are discussed in the agreement.","Select the appropriate option (i.e. whether payments are made monthly, quarterly, half-yearly and yearly)","Select the appropriate option (i.e. whether the SBITA payments are due at the beginning of the payment period or at the end of the payment period)","Implicit Interest Rate or Incremental Borrowing Rate on SBITA Commencement (GASB96)","Implicit Interest Rate or Incremental Borrowing Rate on Transition date (GASB96)","Exchange rate from SBITA Currency to Entity Functional Currency on the SBITA Commencement Date (GASB96 Historical Rate)","Exchange rate from SBITA Currency to Entity Functional Currency on the Transition Date (GASB96 Historical Rate)","As part of reassessment, prior deferred balances need to be amortized","Enter a value for other adjustment to the initial ROU SBITA","Enter any comments for Other adjustment to the initial ROU SBITA","Select the appropriate option. A SBITA incentive is an  incentive for the government user to sign the SBITA, such as an up-front cash payment to the government user, payment of costs for the government user, or the assumption by the vendor of the government's preexisting SBITA with a third party.","Enter the incentive amount given by the SBITA vendor to the government\n\nChild question to Parent question 53 : IncentivesYesNo","Answer Yes if implementation costs were incurred","Enter the total implementation costs incurred\n\nChild question to Parent question 55 : InstallationFeeYesNo","A security deposit is an amount that a subscriber is required to pay to the vendor at the commencement of the SBITA to secure any associated tangible capital assets.  These deposits can be both refundable/non-refundable. ","Enter the amount of the refundable security deposit.\n\nChild question to Parent question 57 : SecurityDeposits","Enter the amount of the non-refundable security deposit/prepayment amount\n\nChild question to Parent question 57 : SecurityDeposits","Select Yes if there is any disposal/removal fee","Enter the disposal/removal fee amount\n\nChild question to Parent question 60 : DisposalFeeYesNo","Select Yes if there is a penalty or fee upon returning any associated tangible capital asset","Enter the amount of the penalty\n\nChild question to Parent question 62 : PenaltyYesNo","Select Yes if you expect to pay this amount\n\nChild question to Parent question 62 : PenaltyYesNo","Select Yes if there are legacy system carrying amounts to incorporate","Enter amount of legacy system liability","Enter amount of legacy system accrued interest","Enter amount of legacy system ROU asset cost","Enter amount of legacy system ROU asset accumulated amortization","Select the appropriate option. This is applicable only for minimum SBITA payment. Contingent rentals are not considered when responding to this question.  A simple example would be a SBITA with a fixed percentage/amount increase periodically during the SBITA term.\n\nIf 'YES', enter data in 'NonIndexEscalations' tab","This is applicable only in cases where the escalation is linked to an index such as LIBOR or the Consumer Price Index (CPI)\n\nIf 'YES', enter escalation data on 'IndexEscalations' tab","Select the appropriate option.\n\nChild question to Parent question 71 : IndexEscalationClause","Select the  month base for which the CPI will be considered to be Zero (i.e. baseline CPI month)\n\nChild question to Parent question 72 : CPIYN","Enter the last CPI index that was applied for rent adjustment.","Current CPI\n\nChild question to Parent question 72 : CPIYN","Enter the CPI Index identifier\n\nChild question to Parent question 72 : CPIYN","Select the  base year for which the CPI will be considered to be Zero\n\nChild question to Parent question 72 : CPIYN","Identify the State/Country/sub-index of the related CPI index\n\nChild question to Parent question 72 : CPIYN","Enter the index based minimum percentage increase in SBITA rentals\n\nChild question to Parent question 71 : IndexEscalationClause","Enter the index based maximum percentage increase in SBITA rentals\n\nChild question to Parent question 71 : IndexEscalationClause","Enter the index percentage used for the current SBITA commencement date\n\nChild question to Parent question 71 : IndexEscalationClause","Consider only the variable SBITA payments. These include any payments made to the lessor in addition to the minimum SBITA payments (such as charges based on the usage)","Enter a name for the variable SBITA payments. \n\nChild question to Parent question 82 : EscalationOther","Enter a brief description of the variable SBITA payments including amounts\n\nChild question to Parent question 82 : EscalationOther","Select the appropriate option. Equivalent to Rent Holiday and is a period when no rent is paid.  Typically identified between the SBITA commencement date and the first payment date when payment is due at beginning of the period","Identify if this SBITA contains other components such as services that do not meet the definition of a SBITA","Add a description of any non-SBITA components\n\nChild question to Parent question 86 : NonLeaseAllocatedYN","Select the appropriate option. Does the SBITA agreement contain a fixed, in-substance minimum payment?","Enter the relevant provisions of the in-substance payment from the agreement\n\nChild question to Parent question 88 : InSubstanceYN","Enter the amount of the in-substance payment in the SBITA agreement\n\nChild question to Parent question 88 : InSubstanceYN","The SBITA contract may provide that after the SBITA term, if the lessee does not vacate the SBITAd premises or does not deliver the SBITAd asset back to the lessor then a holdover rent will be required to be paid by the lessee. Populate as Yes if such clause is there in the agreement.","Enter the terms of the holdover provision from the agreement.\n\nChild question to Parent question 91 : HoldoverOption","Select the appropriate option. If the response is Yes, then mention the related party name. ","Identify the related party (if applicable) that is the counter-party of the SBITA\n\nChild question to Parent question 93 : RelatedParty","Payments made prior to SBITA commencement","Field allows for override of the system classification.  This can be used if a qualitative or extenuating circumstance triggers a different classification.","This is a free text box for additional information that may be useful to have documented such as notes on contacts for the SBITA, notes on parties involved, specific SBITA wording/details, etc.","Current Contract Start Date","Current Contract End Date","The Procurement Contract BU ID from the Contract","The Procurement Contract ID from the Contract","The Procurement Contract BU ID from the Contract","The Fund for your BU from Provided List","Enter \"NO\" as this is not applicable for SBITA","Enter \"NO\" as this is not applicable for SBITA","Child Question to 104/105/109/110:  If Embedded Lease Enter the Contract Number it is embedded within","YES/NO","Fair Market Value of Leased Asset","If YES, please provide the lease contract number in column 106","If YES, please provide the contract number in column 106","Enter YES/NO.  If YES provide the information in column 112","The contract ID, Sharepoint ID or identifying number for the Umbrella Contract or Agreement",null,null,null,null,null,null,null,null,null,null,null,null,null,null,null,null,null,null,null,null,null,null,null,null,null,null,null,null,null,null,null,null,null,null,null,"Select the appropriate option. (Libor/CPI)","Date of Modification","Comment","Select 'Yes' if applicable","Select 'Yes' if applicable","Enter Penalty Amount","Enter Refund Amount","Select 'Yes' if applicable","Enter Penalty Amount","Enter Refund Amount","Select 'Yes' if applicable","Impairment Amount Under GASB96","Select 'Yes' if applicable"]

{"sheet":"PaymentSchedule","index":2,"n_rows":10,"n_cols":7,"rows_kept":10,"cut":false,"hidden":false,"merged":[[6,0,6,5]]}
[]
["LeaseID","StreamTypeID","StreamComm","StartDate","EndDate","PaymentAmount","End"]
["Text Required","Text Required","Text","Date Required","Date Required","Amount Required"]
[]
[null,"Dropdownlist"]
[null,"Dropdown"]
["LEASE PAYMENT SCHEDULE"]
[1,2,3,4,5,6]
["Lease ID *","Stream Type *","Stream Comment","Payment Start Date (YYYY-MM-DD) *","Payment End Date (YYYY-MM-DD) *","Payment Amount per Period *"]
["The lease ID is the unique ID assigned to a particular lease.","Select type of payment stream (Minimum Lease Payments, ASC842 / IFRS16 Renewal Term Payments, ASC840 / IAS17 Renewal Term Payments, Non-Allocated Lease Payments, ASC842 Executory Costs, Evergreen Payments)\n\nUse \"Minimum Lease Payments\" for the base period and \"ASC842 / IFRS16 Renewal Term Payments\" for renewal terms","Enter a comment for each payment stream type entered","Start date of the payment stream","End date of the payment stream","Amount of the payment stream"]

{"sheet":"RenewalOptions","index":3,"n_rows":10,"n_cols":7,"rows_kept":10,"cut":false,"hidden":false,"merged":[[6,0,6,5]]}
[]
["LeaseID","TermLengthY","TermLengthM","RenewalNoticeDate","PlanToExercise","Comment842","End"]
["Text Required","Number Required","Number Required","Date","Boolean Required","Text"]
[]
[null,null,null,null,"YES / NO"]
[]
["RENEWAL OPTIONS"]
[1,2,3,4,5,6]
["LeaseID *","Renewal Option Term Length (Years) *","Renewal Option Term Length (Months) *","Renewal Option Renewal Notice Date (YYYY-MM-DD)","Is the subscriber reasonably certain to exercise this option? *","GASB96 Considerations Comments"]
["The lease ID is the unique ID assigned to a particular lease.","Renewal Option Length in Years","Renewal Option Length in Months",null,"Select the appropriate option i.e. Yes/No"]

{"sheet":"NonIndexEscalations","index":4,"n_rows":10,"n_cols":5,"rows_kept":10,"cut":false,"hidden":false,"merged":[[6,0,6,3]]}
[]
["LeaseID","NonIndexEscalationType","NonIndexEscalationDate","NonIndexEscalationAmount","End"]
["Text Required","Sign Required","Date Required","Amount Required"]
[]
[null,"Dropdownlist"]
[null,"Dropdown"]
["NonIndex Escalations"]
[1,2,3,4]
["LeaseID *","Non Index Escalation Type ($ or %) *","Non Index Escalation Start Date (YYYY-MM-DD) *","Non Index Escalation Amount/Percentage (If Payment, enter updated payment post escalation date)  *"]
["The lease ID is the unique ID assigned to a particular lease.","Type of Non Index Escalation ($ or %)","Non Index Escalation Start Date","Non Index Escalation Amount/Percentage"]

{"sheet":"IndexEscalations","index":5,"n_rows":10,"n_cols":3,"rows_kept":10,"cut":false,"hidden":false,"merged":[]}
[]
["LeaseID","IndexEscalationDate","End"]
["Text Required","Date Required"]
[]
[]
[]
[null,"Index Escalations"]
[1,2]
["LeaseID *","Escalation Date (YYYY-MM-DD) *"]
["The lease ID is the unique ID assigned to a particular lease.","Index Escalation Start Date"]

{"sheet":"DropDowns","index":6,"n_rows":91423,"n_cols":44,"rows_kept":4500,"cut":true,"hidden":true,"merged":[],"bounds":{"rows_first":2000,"rows_last":500,"rows_between":2000,"halvings":0}}
["YESNO","LanguageID","MtMFrequencyID","LeaseCategoryID","LeaseCurrencyID","PaymentPeriodID","PaymentDueID","LeaseClassificationClientID","EDClassificationID","GASB96LeaseClassificationClientID","StreamTypeID","NonIndexEscalationType","CPIMonthID","AssetCountry","AssetState","AssetCity","Entity_UID","LeasedAssetClassificationID","AgreementType","BusinessUnit","COADepartment","Multiple Funds Used","Attribute_5","Attribute_6","Attribute_7","Attribute_8","Attribute_9","Attribute_10","Attribute_11","Attribute_12","Attribute_13","Attribute_14","Attribute_15","Attribute_16","Attribute_17","Attribute_18","Attribute_19","Attribute_20","Attribute_21","Attribute_22","Attribute_23","Attribute_24","Attribute_25","IndexTypeID"]
["YES","English","Daily","Lessor","USD","Month","Beginning of Payment Period","Operating Lease","Operating Lease","SBITA","Minimum Lease Payments","$","January","Andorra","Sant Julia de Loria","`Abasan al Jadidah","ABC11 ~ Alcoholic Beverage Control","1001 ~ Real Estate","Embedded Lease","ABC01 ~ Alcoholic Beverage Control","1000200 ~ APA01, Dept Code for","NO ~ Will Use only One Fund",null,null,null,null,null,null,null,null,null,null,null,null,null,null,null,null,null,null,null,null,null,"LIBOR"]
["NO","Mandarin Chinese","Weekly","Lessee","EUR","Quarter","End of Payment Period","Capital Lease","Finance Lease","Short-Term SBITA","ASC842 / IFRS16 Renewal Term Payments","%","February","United Arab Emirates","Ordino","`Abasan al Kabirah","AGM11 ~ Agriculture & Markets","1002 ~ Vehicle","Lease","AGM01 ~ Ag & Markets","1010200 ~ OFA01, Dept Code for","YES ~ Lease will Use MORE than ONE Fund"]
[null,"French","Monthly","SBITA","GBP","Half-Year",null,null,"Short-Term Lease",null,"ASC840 / IAS17 Renewal Term Payments",null,"March","Afghanistan","La Massana","`Abud","APA11 ~ Adirondack Park Agency","1003 ~ Equipment","Master Agreement","APA01 ~ Adirondack Park Agency","1020200 ~ ABC01, Dept Code for"]
[null,"Arabic","Yearly",null,"CAD","Year",null,null,null,null,"Non-Allocated Lease Payments",null,"April","Antigua and Barbuda","Encamp","`Afif","ART11 ~ Council on the Arts","2000 ~ Other Leased Asset","SBITA","ART01 ~ Council on the Arts","1030200 ~ ART01, Dept Code for"]
[null,"Spanish",null,null,"CHF",null,null,null,null,null,"ASC842 Executory Costs",null,"May","Anguilla","Canillo","`Afrin","ASM11 ~ Assembly","3000 ~ Other Asset - Private Public Partnership",null,"ASM01 ~ Assembly","1040200 ~ FOB01, Dept Code for"]
[null,"Russian",null,null,"NZD",null,null,null,null,null,"Evergreen Payments",null,"June","Albania","Andorra la Vella","`Ain el Hadjel","BOE11 ~ Board of Elections","4000 ~ SBITA",null,"BOE01 ~ Board of Elections","1050200 ~ DOB01, Dept Code for"]
[null,"Portuguese",null,null,"AUD",null,null,null,null,null,"Indexed Payment Increases",null,"July","Armenia","Escaldes-Engordany","`Ajab Shir","CFS11 ~ Office of Child & Family Services",null,null,"CFS01 ~ Child & Family Services","1070200 ~ COC01, Dept Code for"]
[null,"Japanese",null,null,"JPY",null,null,null,null,null,"SFFAS54 Renewal Term Payments",null,"August","Angola","Umm al Qaywayn","`Ajjah","CJC11 ~ Commission on Judicial Conduct",null,null,"CJC01 ~ Commission on Judicial Conduct","1080200 ~ OVS01, Dept Code for"]
[null,"German",null,null,"SEK",null,null,null,null,null,null,null,"September","Antarctica","Ra's al Khaymah","`Ajjul","COC11 ~ Commission on Corrections",null,null,"COC01 ~ Commission on Corrections","1090200 ~ DCJ01, Dept Code for"]
[null,"Italian",null,null,"NOK",null,null,null,null,null,null,null,"October","Argentina","Dubai","`Alaqahdari Dishu","COR11 ~ Corcraft",null,null,"COR01 ~ Corcraft","1100200 ~ DDP01, Dept Code for"]
[null,"Korean",null,null,"HKD",null,null,null,null,null,null,null,"November","American Samoa","Ash Shariqah","`Anabta","CPI11 ~ Joint Commission on Public Ethics",null,null,"CPI01 ~ Joint Commission on Public Ethics","1110200 ~ BOE01, Dept Code for"]
[null,"Turkish",null,null,"MXN",null,null,null,null,null,null,null,"December","Austria","Al Fujayrah","`Anata","DCJ11 ~ Criminal Justice Services",null,null,"DCJ01 ~ Criminal Justice Services","1120200 ~ OER01, Dept Code for"]
[null,"Dutch",null,null,"SGD",null,null,null,null,null,null,null,null,"Australia","Ajman","`Anin","DCS11 ~ Civil Service",null,null,"DCS01 ~ Civil Service","1130200 ~ EXC01, Dept Code for"]
[null,"Polish",null,null,"KRW",null,null,null,null,null,null,null,null,"Aruba","Abu Dhabi","`Anjarah","DDP11 ~ Disabilities Planning",null,null,"DDP01 ~ Disabilities Planning","1140200 ~ OGS01, Dept Code for"]
[null,"Norwegian",null,null,"NGN",null,null,null,null,null,null,null,null,"Aland Islands","Zabul","`Anzah","DEC11 ~ Environmental Conservation",null,null,"DEC01 ~ Environmental Conservation","1150200 ~ GHC01, Dept Code for"]
[null,"Swedish",null,null,"TTD",null,null,null,null,null,null,null,null,"Azerbaijan","Vardak","`Aqraba","DED11 ~ Economic Development",null,null,"DED01 ~ Economic Development","1160200 ~ DHS01, Dept Code for"]
[null,"Thai",null,null,"ARS",null,null,null,null,null,null,null,null,"Bosnia and Herzegovina","Takhar","`Arab ar Rashaydah","DFS11 ~ Financial Services",null,null,"DFS01 ~ Financial Services","1170200 ~ HCR01, Dept Code for"]
[null,"Other",null,null,"BRL",null,null,null,null,null,null,null,null,"Barbados","Sar-e Pol","`Arrabah","DHR11 ~ Human Rights",null,null,"DHR01 ~ Human Rights","1180200 ~ HRV01, Dept Code for"]
[null,null,null,null,"CNY",null,null,null,null,null,null,null,null,"Bangladesh","Samangan","`Arranah","DHS11 ~ Homeland Security",null,null,"DHS01 ~ Homeland Security","1190231 ~ DHR01, Dept Code for"]
[null,null,null,null,"COP",null,null,null,null,null,null,null,null,"Belgium","Parwan","`Arta","DMN11 ~ Military & Naval Affairs",null,null,"DMN01 ~ Military & Naval Affairs","1200200 ~ OIG01, Dept Code for"]
[null,null,null,null,"DKK",null,null,null,null,null,null,null,null,"Burkina Faso","Paktika","`Asirah al Qibliyah","DMV11 ~ Motor Vehicles",null,null,"DMV01 ~ Motor Vehicles","1210200 ~ IOL01, Dept Code for"]
[null,null,null,null,"MYR",null,null,null,null,null,null,null,null,"Bulgaria","Paktia","`Asirah ash Shamaliyah","DOB11 ~ Division of Budget",null,null,"DOB01 ~ Division of Budget","1220200 ~ CJC01, Dept Code for"]
[null,null,null,null,"AED",null,null,null,null,null,null,null,null,"Bahrain","Oruzgan","`Atarah","DOC11 ~ Corrections",null,null,"DOC01 ~ Corrections","1230200 ~ CJN01, Dept Code for"]
[null,null,null,null,"ANG",null,null,null,null,null,null,null,null,"Burundi","Nimroz","`Atlit","DOH11 ~ Health",null,null,"DOH01 ~ Health","1240200 ~ CJS01, Dept Code for"]
[null,null,null,null,"BBD",null,null,null,null,null,null,null,null,"Benin","Nangarhar","`Attil","DOL11 ~ Labor",null,null,"DOL01 ~ Labor","1250200 ~ LTG01, Dept Code for"]
[null,null,null,null,"BGN",null,null,null,null,null,null,null,null,"Saint Barthelemy","Logar","`Awarta","DOS11 ~ State",null,null,"DOS01 ~ State","1260200 ~ DMN01, Dept Code for"]
[null,null,null,null,"BSD",null,null,null,null,null,null,null,null,"Bermuda","Laghman","`Ayn `Arik","DOT11 ~ Transportation",null,null,"DOT01 ~ Transportation","1270200 ~ NCS01, Dept Code for"]
[null,null,null,null,"CLP",null,null,null,null,null,null,null,null,"Brunei","Kunduz","`Ayn al Bayda","DPS11 ~ Public Service",null,null,"DPS01 ~ Public Service","1290200 ~ PRK01, Dept Code for"]
[null,null,null,null,"CRC",null,null,null,null,null,null,null,null,"Bolivia","Kunar","`Ayn Jannah","DSP11 ~ State Police",null,null,"DSP01 ~ State Police","1310200 ~ PDV01, Dept Code for"]
[null,null,null,null,"CUC",null,null,null,null,null,null,null,null,"Bonaire, Saint Eustatius and Saba ","Kapisa","`Ayn Yabrud","DTA11 ~ Tax Appeals",null,null,"DTA01 ~ Tax Appeals","1320200 ~ SFS01, Dept Code for"]
[null,null,null,null,"CUP",null,null,null,null,null,null,null,null,"Brazil","Kandahar","`Aynabus","DVA11 ~ Veterans' Affairs",null,null,"DVA01 ~ Veterans' Affairs","1330200 ~ CQC01, Dept Code for"]
[null,null,null,null,"CZK",null,null,null,null,null,null,null,null,"Bahamas","Kabul","`Ayy","EXC11 ~ Executive Chamber",null,null,"EXC01 ~ Executive Chamber","1340200 ~ RWB01, Dept Code for"]
[null,null,null,null,"DOP",null,null,null,null,null,null,null,null,"Bhutan","Jowzjan","`Azmut","FCB11 ~ Financial Control Board NYC",null,null,"FCB01 ~ Financial Control Board NYC","1350200 ~ OLS01, Dept Code for"]
[null,null,null,null,"FJD",null,null,null,null,null,null,null,null,"Bouvet Island","Herat","`Azzun","GAM11 ~ Gaming",null,null,"GAM01 ~ Gaming","1360200 ~ GOR01, Dept Code for"]
[null,null,null,null,"GTQ",null,null,null,null,null,null,null,null,"Botswana","Helmand","`Eilabun","GTS11 ~ Governor's Traffic Safety Committee",null,null,"GTS01 ~ Governor's Traffic Safety Committee","1370200 ~ DSP01, Dept Code for"]
[null,null,null,null,"HRK",null,null,null,null,null,null,null,null,"Belarus","Ghowr","`En Boqeq","HCR11 ~ Housing & Community Renewal",null,null,"HCR01 ~ Housing & Community Renewal","1380200 ~ OFT01, Dept Code for"]
[null,null,null,null,"HUF",null,null,null,null,null,null,null,null,"Belize","Ghazni","`Ibri","ILS11 ~ Indigent Legal Services",null,null,"ILS01 ~ Indigent Legal Services","1390200 ~ DVA01, Dept Code for"]
[null,null,null,null,"IDR",null,null,null,null,null,null,null,null,"Canada","Faryab","`Ibwayn","IOL11 ~ Interest on Lawyer Account",null,null,"IOL01 ~ Interest on Lawyer Account","1400200 ~ FCB01, Dept Code for"]
[null,null,null,null,"ILS",null,null,null,null,null,null,null,null,"Cocos Islands","Farah","`Illar","JOL11 ~ Joint Operations - Legislature",null,null,"JOL01 ~ Joint Operations - Legislature","1410200 ~ GAM01, Dept Code for"]
[null,null,null,null,"INR",null,null,null,null,null,null,null,null,"Democratic Republic of the Congo","Bamyan","`Irbin","JUS11 ~ Justice Center for the Protection of People with Special Needs",null,null,"JUS01 ~ Justice Center for the Protection of People with Special Needs","1420200 ~ JUS01, Dept Code for"]
[null,null,null,null,"IQD",null,null,null,null,null,null,null,null,"Central African Republic","Balkh","`Izbat al Burj","LAW11 ~ Dept of Law",null,null,"LAW01 ~ Dept of Law","1500200 ~ DST01, Dept Code for"]
[null,null,null,null,"IRR",null,null,null,null,null,null,null,null,"Republic of the Congo","Baghlan","`Izra","LGP11 ~ Lake George Park Commision",null,null,"LGP01 ~ Lake George Park","3000200 ~ AGM01, Dept Code for"]
[null,null,null,null,"ISK",null,null,null,null,null,null,null,null,"Switzerland","Badghis","`Ohonua","MIG11 ~ Medicaid Inspector General",null,null,"MIG01 ~ Medicaid Inspector General","3050200 ~ OSC01, Dept Code for"]
[null,null,null,null,"JMD",null,null,null,null,null,null,null,null,"Ivory Coast","Badakhshan","`Urif","OAS11 ~ Alcoholism & Substance Abuse",null,null,"OAS01 ~ Alcoholism & Substance Abuse","3150200 ~ DCS01, Dept Code for"]
[null,null,null,null,"NIO",null,null,null,null,null,null,null,null,"Cook Islands","Khowst","`Uzeir","OER11 ~ Gov Office Employee Relations",null,null,"OER01 ~ GOER","3160200 ~ PER01, Dept Code for"]
[null,null,null,null,"QAR",null,null,null,null,null,null,null,null,"Chile","Nuristan","1 Decembrie","OFA11 ~ Office for the Aging",null,null,"OFA01 ~ Office for the Aging","3200200 ~ DED01, Dept Code for"]
[null,null,null,null,"THB",null,null,null,null,null,null,null,null,"Cameroon","Daykundi","10 de Abril","OFT11 ~ Office for Technology Services (ITS)",null,null,"OFT01 ~ Office for Technology Services (ITS)","3250200 ~ DOC01, Dept Code for"]
[null,null,null,null,"TRY",null,null,null,null,null,null,null,null,"China","Panjshir","18 de Marzo","OGS11 ~ General Services",null,null,"OGS01 ~ General Services","3260200 ~ COR01, Dept Code for"]
[null,null,null,null,"TWD",null,null,null,null,null,null,null,null,"Colombia","Saint Philip","1ra. Seccion de Izapa","OIG11 ~ State Inspector General",null,null,"OIG01 ~ State Inspector General","3300200 ~ SED01, Dept Code for"]
[null,null,null,null,"UYU",null,null,null,null,null,null,null,null,"Costa Rica","Saint Peter","23 August","OMH11 ~ Mental Health",null,null,"OMH01 ~ Mental Health","3310200 ~ HES01, Dept Code for"]
[null,null,null,null,"ZAR",null,null,null,null,null,null,null,null,"Cuba","Saint Paul","25 de Agosto","OPD11 ~ People with Developmental Disabilities",null,null,"OPD01 ~ People with Developmental Disabilities","3320200 ~ SNY01, Dept Code for"]
[null,null,null,null,"AOA",null,null,null,null,null,null,null,null,"Cape Verde","Saint Mary","25 de Mayo","OSC11 ~ Office State Comptroller",null,null,"OSC01 ~ Comptroller","3330200 ~ CNY01, Dept Code for"]
[null,null,null,null,"AZN",null,null,null,null,null,null,null,null,"Curacao","Saint John","28 de Noviembre","OVS11 ~ Office of Victim Services",null,null,"OVS01 ~ Office of Victim Services","3350200 ~ DEC01, Dept Code for"]
[null,null,null,null,"BAM",null,null,null,null,null,null,null,null,"Christmas Island","Saint George","2da. Seccion de Medio Monte","PDV11 ~ Prevention of Domestic Violence",null,null,"PDV01 ~ Prevention of Domestic Violence","3360200 ~ LGP01, Dept Code for"]
[null,null,null,null,"BDT",null,null,null,null,null,null,null,null,"Cyprus","Redonda","31 de Octubre","PER11 ~ Public Employment Relations Board",null,null,"PER01 ~ Public Employment Relations Board","3400200 ~ CFS01, Dept Code for"]
[null,null,null,null,"BHD",null,null,null,null,null,null,null,null,"Czechia","Barbuda","A Coruna","PRK11 ~ Parks, Recreation & Historic Preservation",null,null,"PRK01 ~ Parks, Recreation & Historic Preservation","3410200 ~ TDA01, Dept Code for"]
[null,null,null,null,"BIF",null,null,null,null,null,null,null,null,"Germany","Blowing Point","A dos Cunhados","SED11 ~ State Education Dept",null,null,"SED01 ~ State Education Dept","3450200 ~ DOH01, Dept Code for"]
[null,null,null,null,"BND",null,null,null,null,null,null,null,null,"Djibouti","Sandy Ground","A Estrada","SEN11 ~ Senate",null,null,"SEN01 ~ Senate","3460200 ~ MIG01, Dept Code for"]
[null,null,null,null,"BOB",null,null,null,null,null,null,null,null,"Denmark","Sandy Hill","A i Afjord","SFS11 ~ Statewide Financial System",null,null,"SFS01 ~ SFS","3500200 ~ DFS01, Dept Code for"]
[null,null,null,null,"BWP",null,null,null,null,null,null,null,null,"Dominica","The Valley","A Pobra do Brollon","TAX11 ~ Dept Taxation and Finance",null,null,"TAX01 ~ DTF","3550200 ~ DOL01, Dept Code for"]
[null,null,null,null,"BYR",null,null,null,null,null,null,null,null,"Dominican Republic","East End","A Rua","TDA11 ~ Temporary & Disability Assistance - G/L",null,null,"TDA01 ~ Temporary \\u0026 Disability Assistance - G/L","3560200 ~ WCB01, Dept Code for"]
[null,null,null,null,"BZD",null,null,null,null,null,null,null,null,"Algeria","North Hill","Aabenraa","UCS11 ~ Unified Court System - G/L",null,null,"TUG01 ~ TugHill Commission","3600200 ~ LAW01, Dept Code for"]
[null,null,null,null,"CLF",null,null,null,null,null,null,null,null,"Ecuador","West End","Aach","WCB11 ~ Workers' Compensation Board",null,null,"UCS01 ~ Unified Court System - G/L","3610200 ~ WIG01, Dept Code for"]
[null,null,null,null,"CYP",null,null,null,null,null,null,null,null,"Estonia","South Hill","Aachen",null,null,null,"WCB01 ~ Workers' Compensation Board","3650200 ~ OMH01, Dept Code for"]
[null,null,null,null,"DJF",null,null,null,null,null,null,null,null,"Egypt","The Quarter","Aadorf",null,null,null,null,"3660034 ~ OPD01, Dept Code for"]
[null,null,null,null,"DZD",null,null,null,null,null,null,null,null,"Western Sahara","North Side","Aagtekerke",null,null,null,null,"3670200 ~ OAS01, Dept Code for"]
[null,null,null,null,"EEK",null,null,null,null,null,null,null,null,"Eritrea","Island Harbour","Aalborg",null,null,null,null,"3700200 ~ DMV01, Dept Code for"]
[null,null,null,null,"EGP",null,null,null,null,null,null,null,null,"Spain","George Hill","Aalburg",null,null,null,null,"3750200 ~ DPS01, Dept Code for"]
[null,null,null,null,"ETB",null,null,null,null,null,null,null,null,"Ethiopia","Stoney Ground","Aalden",null,null,null,null,"3800200 ~ DOS01, Dept Code for"]
[null,null,null,null,"GEL",null,null,null,null,null,null,null,null,"Finland","The Farrington","Aalen",null,null,null,null,"3810200 ~ CPI01, Dept Code for"]
[null,null,null,null,"GHS",null,null,null,null,null,null,null,null,"Fiji","Berat","Aalsmeer",null,null,null,null,"3850200 ~ TAX01, Dept Code for"]
[null,null,null,null,"GYD",null,null,null,null,null,null,null,null,"Falkland Islands","Diber","Aalst",null,null,null,null,"3860200 ~ DTA01, Dept Code for"]
[null,null,null,null,"HNL",null,null,null,null,null,null,null,null,"Micronesia","Elbasan","Aalten",null,null,null,null,"3870200 ~ LTY01, Dept Code for"]
[null,null,null,null,"HTG",null,null,null,null,null,null,null,null,"Faroe Islands","Gjirokaster","Aalter",null,null,null,null,"3900200 ~ DOT01, Dept Code for"]
[null,null,null,null,"JOD",null,null,null,null,null,null,null,null,"France","Korce","Aanislag",null,null,null,null,"4000200 ~ ASM01, Dept Code for"]
[null,null,null,null,"KES",null,null,null,null,null,null,null,null,"Gabon","Kukes","Aanjar",null,null,null,null,"4010200 ~ SEN01, Dept Code for"]
[null,null,null,null,"KWD",null,null,null,null,null,null,null,null,"United Kingdom","Durres","Aarau",null,null,null,null,"4020200 ~ JOL01, Dept Code for"]
[null,null,null,null,"KZT",null,null,null,null,null,null,null,null,"Grenada","Fier","Aarberg",null,null,null,null,"4030200 ~ LTG01_LEG, Dept Code for"]
[null,null,null,null,"LAK",null,null,null,null,null,null,null,null,"Georgia","Lezhe","Aarburg",null,null,null,null,"5000200 ~ UCS01, Dept Code for"]
[null,null,null,null,"LKR",null,null,null,null,null,null,null,null,"French Guiana","Shkoder","Aardenburg",null,null,null,null,"6001200 ~ PBC01, Dept Code for"]
[null,null,null,null,"LTL",null,null,null,null,null,null,null,null,"Guernsey","Tirane","Aarle-Rixtel",null,null,null,null,"6009200 ~ LGAC1, Dept Code for"]
[null,null,null,null,"LVL",null,null,null,null,null,null,null,null,"Ghana","Vlore","Aars",null,null,null,null,"6170200 ~ SCF01, Dept Code for"]
[null,null,null,null,"LYD",null,null,null,null,null,null,null,null,"Gibraltar","Ararat","Aarschot",null,null,null,null,"6180200 ~ CCF01, Dept Code for"]
[null,null,null,null,"MAD",null,null,null,null,null,null,null,null,"Greenland","Syunik","Aartselaar",null,null,null,null,"7000201 ~ MSC01, Dept Code for"]
[null,null,null,null,"MGA",null,null,null,null,null,null,null,null,"Gambia","Vayots Dzor","Aarwangen"]
[null,null,null,null,"MMK",null,null,null,null,null,null,null,null,"Guinea","Yerevan","Aasiaat"]
[null,null,null,null,"MNT",null,null,null,null,null,null,null,null,"Guadeloupe","Aragatsotn","Aba"]
[null,null,null,null,"MRO",null,null,null,null,null,null,null,null,"Equatorial Guinea","Armavir","Abaca"]
[null,null,null,null,"MUR",null,null,null,null,null,null,null,null,"Greece","Gegharkunik","Abadan"]
[null,null,null,null,"MWK",null,null,null,null,null,null,null,null,"South Georgia and the South Sandwich Islands","Kotayk","Abadeh"]
[null,null,null,null,"MZN",null,null,null,null,null,null,null,null,"Guatemala","Lori","Abadiania"]
[null,null,null,null,"NPR",null,null,null,null,null,null,null,null,"Guam","Shirak","Abadin"]
[null,null,null,null,"OMR",null,null,null,null,null,null,null,null,"Guinea-Bissau","Tavush","Abadszalok"]
[null,null,null,null,"PAB",null,null,null,null,null,null,null,null,"Guyana","Lunda Sul","Abadzekhskaya"]
[null,null,null,null,"PEN",null,null,null,null,null,null,null,null,"Hong Kong","Luanda Norte","Abaete"]
[null,null,null,null,"PGK",null,null,null,null,null,null,null,null,"Heard Island and McDonald Islands","Moxico","Abaetetuba"]
[null,null,null,null,"PHP",null,null,null,null,null,null,null,null,"Honduras","Cuando Cobango","Abagur"]
[null,null,null,null,"PKR",null,null,null,null,null,null,null,null,"Croatia","Zaire","Abai"]
[null,null,null,null,"PLN",null,null,null,null,null,null,null,null,"Haiti","Uige","Abak"]
[null,null,null,null,"PYG",null,null,null,null,null,null,null,null,"Hungary","Malanje","Abakaliki"]
[null,null,null,null,"RON",null,null,null,null,null,null,null,null,"Indonesia","Luanda","Abakan"]
[null,null,null,null,"RSD",null,null,null,null,null,null,null,null,"Ireland","Cuanza Norte","Abalak"]
[null,null,null,null,"RUB",null,null,null,null,null,null,null,null,"Israel","Cabinda","Aban"]
[null,null,null,null,"SAR",null,null,null,null,null,null,null,null,"Isle of Man","Bengo","Abana"]
[null,null,null,null,"SBD",null,null,null,null,null,null,null,null,"India","Namibe","Abancay"]
[null,null,null,null,"SDG",null,null,null,null,null,null,null,null,"British Indian Ocean Territory","Huila","Abangay"]
[null,null,null,null,"SIT",null,null,null,null,null,null,null,null,"Iraq","Huambo","Abanilla"]
[null,null,null,null,"SKK",null,null,null,null,null,null,null,null,"Iran","Cunene","Abano Terme"]
[null,null,null,null,"SLL",null,null,null,null,null,null,null,null,"Iceland","Kwanza Sul","Abapo"]
[null,null,null,null,"SOS",null,null,null,null,null,null,null,null,"Italy","Bie","Abaran"]
[null,null,null,null,"SRD",null,null,null,null,null,null,null,null,"Jersey","Benguela","Abasar"]
[null,null,null,null,"SVC",null,null,null,null,null,null,null,null,"Jamaica","Misiones","Abasha"]
[null,null,null,null,"SYP",null,null,null,null,null,null,null,null,"Jordan","Formosa","Abashiri"]
[null,null,null,null,"TMT",null,null,null,null,null,null,null,null,"Japan","Buenos Aires F.D.","Abasolo"]
[null,null,null,null,"TND",null,null,null,null,null,null,null,null,"Kenya","Entre Rios","Abasolo del Valle"]
[null,null,null,null,"TZS",null,null,null,null,null,null,null,null,"Kyrgyzstan","Corrientes","Abastumani"]
[null,null,null,null,"UAH",null,null,null,null,null,null,null,null,"Cambodia","Buenos Aires","Abatskoye"]
[null,null,null,null,"UGX",null,null,null,null,null,null,null,null,"Kiribati","Tucuman","Abaujszanto"]
[null,null,null,null,"UZS",null,null,null,null,null,null,null,null,"Comoros","Tierra del Fuego","Abay"]
[null,null,null,null,"VEF",null,null,null,null,null,null,null,null,"Saint Kitts and Nevis","Santiago del Estero","Abaza"]
[null,null,null,null,"VND",null,null,null,null,null,null,null,null,"North Korea","Santa Fe","Abbadia Lariana"]
[null,null,null,null,"XAF",null,null,null,null,null,null,null,null,"South Korea","Santa Cruz","Abbadia San Salvatore"]
[null,null,null,null,"XOF",null,null,null,null,null,null,null,null,"Kosovo","San Luis","Abbaretz"]
[null,null,null,null,"XPF",null,null,null,null,null,null,null,null,"Kuwait","San Juan","Abbasanta"]
[null,null,null,null,"YER",null,null,null,null,null,null,null,null,"Cayman Islands","Salta","Abbazia"]
[null,null,null,null,"ZMK",null,null,null,null,null,null,null,null,"Kazakhstan","Rio Negro","Abbazia Pisani"]
[null,null,null,null,"NAD",null,null,null,null,null,null,null,null,"Laos","Neuquen","Abbekerk"]
[null,null,null,null,"AFN",null,null,null,null,null,null,null,null,"Lebanon","Mendoza","Abbesbuettel"]
[null,null,null,null,"ALL",null,null,null,null,null,null,null,null,"Saint Lucia","La Rioja","Abbeville"]
[null,null,null,null,"XCD",null,null,null,null,null,null,null,null,"Liechtenstein","La Pampa","Abbey Wood"]
[null,null,null,null,"AMD",null,null,null,null,null,null,null,null,"Sri Lanka","Jujuy","Abbeyfeale"]
[null,null,null,null,"AWG",null,null,null,null,null,null,null,null,"Liberia","Cordoba","Abbeyleix"]
[null,null,null,null,"BYN",null,null,null,null,null,null,null,null,"Lesotho","Chubut","Abbiategrasso"]
[null,null,null,null,"BMD",null,null,null,null,null,null,null,null,"Lithuania","Chaco","Abborrberget"]
[null,null,null,null,"BTN",null,null,null,null,null,null,null,null,"Luxembourg","Catamarca","Abbots Bromley"]
[null,null,null,null,"BOV",null,null,null,null,null,null,null,null,"Latvia","Western District","Abbots Langley"]
[null,null,null,null,"CVE",null,null,null,null,null,null,null,null,"Libya","Swains Island","Abbotsford"]
[null,null,null,null,"KHR",null,null,null,null,null,null,null,null,"Morocco","Eastern District","Abbotskerswell"]
[null,null,null,null,"KYD",null,null,null,null,null,null,null,null,"Monaco","Manu'a","Abbottabad"]
[null,null,null,null,"COU",null,null,null,null,null,null,null,null,"Moldova","Rose Island","Abbotts Ann"]
[null,null,null,null,"KMF",null,null,null,null,null,null,null,null,"Montenegro","Vienna","Abbottstown"]
[null,null,null,null,"CDF",null,null,null,null,null,null,null,null,"Saint Martin","Vorarlberg","Abcoude"]
[null,null,null,null,"ERN",null,null,null,null,null,null,null,null,"Madagascar","Tyrol","Abcoven"]
[null,null,null,null,"FKP",null,null,null,null,null,null,null,null,"Marshall Islands","Styria","Abda"]
[null,null,null,null,"GMD",null,null,null,null,null,null,null,null,"Macedonia","Salzburg","Abdanan"]
[null,null,null,null,"GIP",null,null,null,null,null,null,null,null,"Mali","Upper Austria","Abdissenbosch"]
[null,null,null,null,"GNF",null,null,null,null,null,null,null,null,"Myanmar","Lower Austria","Abdulino"]
[null,null,null,null,"XDR",null,null,null,null,null,null,null,null,"Mongolia","Carinthia","Abdurahmoni Jomi"]
[null,null,null,null,"KPW",null,null,null,null,null,null,null,null,"Macao","Burgenland","Abeche"]
[null,null,null,null,"KGS",null,null,null,null,null,null,null,null,"Northern Mariana Islands","Western Australia","Abegondo"]
[null,null,null,null,"LBP",null,null,null,null,null,null,null,null,"Martinique","South Australia","Abeilhan"]
[null,null,null,null,"LSL",null,null,null,null,null,null,null,null,"Mauritania","Northern Territory","Abejorral"]
[null,null,null,null,"LRD",null,null,null,null,null,null,null,null,"Montserrat","Victoria","Abelardo L. Rodriguez"]
[null,null,null,null,"MOP",null,null,null,null,null,null,null,null,"Malta","Tasmania","Abenberg"]
[null,null,null,null,"MKD",null,null,null,null,null,null,null,null,"Mauritius","Queensland","Abengourou"]
[null,null,null,null,"MVR",null,null,null,null,null,null,null,null,"Maldives","New South Wales","Abenojar"]
[null,null,null,null,"XUA",null,null,null,null,null,null,null,null,"Malawi","ACT","Abensberg"]
[null,null,null,null,"MXV",null,null,null,null,null,null,null,null,"Mexico","Mariehamns stad","Abeokuta"]
[null,null,null,null,"MDL",null,null,null,null,null,null,null,null,"Malaysia","Alands landsbygd","Abepura"]
[null,null,null,null,"RWF",null,null,null,null,null,null,null,null,"Mozambique","Alands skaergard","Aberaeron"]
[null,null,null,null,"SHP",null,null,null,null,null,null,null,null,"Namibia","Beylaqan","Abercanaid"]
[null,null,null,null,"WST",null,null,null,null,null,null,null,null,"New Caledonia","Zangilan Rayon","Abercarn"]
[null,null,null,null,"STD",null,null,null,null,null,null,null,null,"Niger","Yardimli","Aberchirder"]
[null,null,null,null,"SCR",null,null,null,null,null,null,null,null,"Norfolk Island","Susa","Abercynon"]
[null,null,null,null,"XSU",null,null,null,null,null,null,null,null,"Nigeria","Salyan","Aberdare"]
[null,null,null,null,"SSP",null,null,null,null,null,null,null,null,"Nicaragua","Sabirabad","Aberdeen"]
[null,null,null,null,"SZL",null,null,null,null,null,null,null,null,"Netherlands","Saatli","Aberdeen Proving Ground"]
[null,null,null,null,"CHE",null,null,null,null,null,null,null,null,"Norway","Bilasuvar Rayon","Aberdour"]
[null,null,null,null,"CHW",null,null,null,null,null,null,null,null,"Nepal","Neftcala","Aberfan"]
[null,null,null,null,"TJS",null,null,null,null,null,null,null,null,"Nauru","Nakhichevan","Aberfeldy"]
[null,null,null,null,"TOP",null,null,null,null,null,null,null,null,"Niue","Masally","Aberford"]
[null,null,null,null,"USN",null,null,null,null,null,null,null,null,"New Zealand","Lerik","Abergavenny"]
[null,null,null,null,"UYI",null,null,null,null,null,null,null,null,"Oman","Lankaran","Abergele"]
[null,null,null,null,"VUV",null,null,null,null,null,null,null,null,"Panama","Lacin","Aberkenfig"]
[null,null,null,null,"ZWL",null,null,null,null,null,null,null,null,"Peru","Qubadli","Aberlady"]
[null,null,null,null,"VES",null,null,null,null,null,null,null,null,"French Polynesia","Imisli","Aberlour"]
[null,null,null,null,null,null,null,null,null,null,null,null,null,"Papua New Guinea","Fuezuli","Abernathy"]
[null,null,null,null,null,null,null,null,null,null,null,null,null,"Philippines","Jabrayil","Abernethy"]
[null,null,null,null,null,null,null,null,null,null,null,null,null,"Pakistan","Jalilabad","Aberporth"]
[null,null,null,null,null,null,null,null,null,null,null,null,null,"Poland","Astara","Abertamy"]
[null,null,null,null,null,null,null,null,null,null,null,null,null,"Saint Pierre and Miquelon","Xocali","Abertillery"]
[null,null,null,null,null,null,null,null,null,null,null,null,null,"Pitcairn","Aghjabadi Rayon","Abertridwr"]
[null,null,null,null,null,null,null,null,null,null,null,null,null,"Puerto Rico","Agdam","Aberystwyth"]
[null,null,null,null,null,null,null,null,null,null,null,null,null,"Palestinian Territory","Shirvan","Abha"]
[null,null,null,null,null,null,null,null,null,null,null,null,null,"Portugal","Lankaran Sahari","Abhaneri"]
[null,null,null,null,null,null,null,null,null,null,null,null,null,"Palau","Shusha","Abhar"]
[null,null,null,null,null,null,null,null,null,null,null,null,null,"Paraguay","Tartar Rayon","Abhayapuri"]
[null,null,null,null,null,null,null,null,null,null,null,null,null,"Qatar","Xankandi Sahari","Abidjan"]
[null,null,null,null,null,null,null,null,null,null,null,null,null,"Reunion","Khojavend","Abiera"]
[null,null,null,null,null,null,null,null,null,null,null,null,null,"Romania","Zardab","Abiko"]
[null,null,null,null,null,null,null,null,null,null,null,null,null,"Serbia","Zaqatala","Abilay"]
[null,null,null,null,null,null,null,null,null,null,null,null,null,"Russia","Yevlax","Abilene"]
[null,null,null,null,null,null,null,null,null,null,null,null,null,"Rwanda","Oguz","Abilly"]
[null,null,null,null,null,null,null,null,null,null,null,null,null,"Saudi Arabia","Ucar","Abingdon"]
[null,null,null,null,null,null,null,null,null,null,null,null,null,"Solomon Islands","Tovuz","Abington"]
[null,null,null,null,null,null,null,null,null,null,null,null,null,"Seychelles","Samaxi","Abinsk"]
[null,null,null,null,null,null,null,null,null,null,null,null,null,"Sudan","Shaki Rayon","Abiramam"]
[null,null,null,null,null,null,null,null,null,null,null,null,null,"South Sudan","Shamkir Rayon","Abis"]
[null,null,null,null,null,null,null,null,null,null,null,null,null,"Sweden","Kurdamir Rayon","Abita Springs"]
[null,null,null,null,null,null,null,null,null,null,null,null,null,"Singapore","Qabala Rayon","Abja-Paluoja"]
[null,null,null,null,null,null,null,null,null,null,null,null,null,"Saint Helena","Qusar","Abla"]
[null,null,null,null,null,null,null,null,null,null,null,null,null,"Slovenia","Quba","Ablain-Saint-Nazaire"]
[null,null,null,null,null,null,null,null,null,null,null,null,null,"Svalbard and Jan Mayen","Goygol Rayon","Ableiges"]
[null,null,null,null,null,null,null,null,null,null,null,null,null,"Slovakia","Xacmaz","Ablis"]
[null,null,null,null,null,null,null,null,null,null,null,null,null,"Sierra Leone","Kalbajar","Ablon"]
[null,null,null,null,null,null,null,null,null,null,null,null,null,"San Marino","Qazax","Ablon-sur-Seine"]
[null,null,null,null,null,null,null,null,null,null,null,null,null,"Senegal","Goranboy","Abnub"]
[null,null,null,null,null,null,null,null,null,null,null,null,null,"Somalia","Qakh Rayon","Abobo"]
[null,null,null,null,null,null,null,null,null,null,null,null,null,"Suriname","Ismayilli","Abocho"]
[null,null,null,null,null,null,null,null,null,null,null,null,null,"Sao Tome and Principe","Goeycay","Abohar"]
[null,null,null,null,null,null,null,null,null,null,null,null,null,"El Salvador","Shabran","Aboisso"]
[null,null,null,null,null,null,null,null,null,null,null,null,null,"Sint Maarten","Dashkasan Rayon","Abomey"]
[null,null,null,null,null,null,null,null,null,null,null,null,null,"Syria","Balakan Rayon","Abomey-Calavi"]
[null,null,null,null,null,null,null,null,null,null,null,null,null,"Swaziland","Barda Rayon","Abomsa"]
[null,null,null,null,null,null,null,null,null,null,null,null,null,"Turks and Caicos Islands","Baki","Abondance"]
[null,null,null,null,null,null,null,null,null,null,null,null,null,"Chad","Abseron","Abondant"]
[null,null,null,null,null,null,null,null,null,null,null,null,null,"French Southern Territories","Agsu","Abong Mbang"]
[null,null,null,null,null,null,null,null,null,null,null,null,null,"Togo","Agdas","Abony"]
[null,null,null,null,null,null,null,null,null,null,null,null,null,"Thailand","Gadabay Rayon","Aborlan"]
[null,null,null,null,null,null,null,null,null,null,null,null,null,"Tajikistan","Agstafa","Aboso"]
[null,null,null,null,null,null,null,null,null,null,null,null,null,"Tokelau","Ganja City","Abou el Hassan"]
[null,null,null,null,null,null,null,null,null,null,null,null,null,"East Timor","Mingacevir City","Abovyan"]
[null,null,null,null,null,null,null,null,null,null,null,null,null,"Turkmenistan","Naftalan","Aboyne"]
[null,null,null,null,null,null,null,null,null,null,null,null,null,"Tunisia","Qobustan","Abqaiq"]
[null,null,null,null,null,null,null,null,null,null,null,null,null,"Tonga","Samux","Abra de Ilog"]
[null,null,null,null,null,null,null,null,null,null,null,null,null,"Turkey","Shaki City","Abra Pampa"]
[null,null,null,null,null,null,null,null,null,null,null,null,null,"Trinidad and Tobago","Siazan Rayon","Abraka"]
[null,null,null,null,null,null,null,null,null,null,null,null,null,"Tuvalu","Sumqayit","Abram"]
[null,null,null,null,null,null,null,null,null,null,null,null,null,"Taiwan","Xizi","Abram Mys"]
[null,null,null,null,null,null,null,null,null,null,null,null,null,"Tanzania","Yevlax City","Abrama"]
[null,null,null,null,null,null,null,null,null,null,null,null,null,"Ukraine","Haciqabul","Abramovka"]
[null,null,null,null,null,null,null,null,null,null,null,null,null,"Uganda","Nakhchivan","Abramut"]
[null,null,null,null,null,null,null,null,null,null,null,null,null,"United States Minor Outlying Islands","Federation of B&H","Abrantes"]
[null,null,null,null,null,null,null,null,null,null,null,null,null,"United States","Srspka","Abrau-Dyurso"]
[null,null,null,null,null,null,null,null,null,null,null,null,null,"Uruguay","Brcko","Abraveses"]
[null,null,null,null,null,null,null,null,null,null,null,null,null,"Uzbekistan","Saint Thomas","Abrego"]
[null,null,null,null,null,null,null,null,null,null,null,null,null,"Vatican","Saint Michael","Abrera"]
[null,null,null,null,null,null,null,null,null,null,null,null,null,"Saint Vincent and the Grenadines","Saint Lucy","Abreschviller"]
[null,null,null,null,null,null,null,null,null,null,null,null,null,"Venezuela","Saint Joseph","Abrest"]
[null,null,null,null,null,null,null,null,null,null,null,null,null,"British Virgin Islands","Saint James","Abreu e Lima"]
[null,null,null,null,null,null,null,null,null,null,null,null,null,"U.S. Virgin Islands","Saint Andrew","Abreus"]
[null,null,null,null,null,null,null,null,null,null,null,null,null,"Vietnam","Christ Church","Abrevadero"]
[null,null,null,null,null,null,null,null,null,null,null,null,null,"Vanuatu","Rajshahi Division","Abriaqui"]
[null,null,null,null,null,null,null,null,null,null,null,null,null,"Wallis and Futuna","Dhaka","Abridge"]
[null,null,null,null,null,null,null,null,null,null,null,null,null,"Samoa","Chittagong","Abrikosovka"]
[null,null,null,null,null,null,null,null,null,null,null,null,null,"Yemen","Khulna","Abriola"]
[null,null,null,null,null,null,null,null,null,null,null,null,null,"Mayotte","Barisal","Abrucena"]
[null,null,null,null,null,null,null,null,null,null,null,null,null,"South Africa","Sylhet","Abrud"]
[null,null,null,null,null,null,null,null,null,null,null,null,null,"Zambia","Rangpur Division","Abrud-Sat"]
[null,null,null,null,null,null,null,null,null,null,null,null,null,"Zimbabwe","Mymensingh Division","Absam"]
[null,null,null,null,null,null,null,null,null,null,null,null,null,"Serbia and Montenegro","Brussels Capital","Absarokee"]
[null,null,null,null,null,null,null,null,null,null,null,null,null,"Netherlands Antilles","Wallonia","Absberg"]
[null,null,null,null,null,null,null,null,null,null,null,null,null,null,"Flanders","Abscon"]
[null,null,null,null,null,null,null,null,null,null,null,null,null,null,"Boucle du Mouhoun","Absecon"]
[null,null,null,null,null,null,null,null,null,null,null,null,null,null,"Cascades","Abstatt"]
[null,null,null,null,null,null,null,null,null,null,null,null,null,null,"Centre","Abtenau"]
[null,null,null,null,null,null,null,null,null,null,null,null,null,null,"Centre-Est","Abtsdorf"]
[null,null,null,null,null,null,null,null,null,null,null,null,null,null,"Centre-Nord","Abtsgmund"]
[null,null,null,null,null,null,null,null,null,null,null,null,null,null,"Centre-Ouest","Abu"]
[null,null,null,null,null,null,null,null,null,null,null,null,null,null,"Centre-Sud","Abu `Arish"]
[null,null,null,null,null,null,null,null,null,null,null,null,null,null,"Est","Abu Al Hasaniya"]
[null,null,null,null,null,null,null,null,null,null,null,null,null,null,"Hauts-Bassins","Abu al Matamir"]
[null,null,null,null,null,null,null,null,null,null,null,null,null,null,"Nord","Abu Dhabi"]
[null,null,null,null,null,null,null,null,null,null,null,null,null,null,"Plateau-Central","Abu Dis"]
[null,null,null,null,null,null,null,null,null,null,null,null,null,null,"Sahel","Abu Fatira"]
[null,null,null,null,null,null,null,null,null,null,null,null,null,null,"Sud-Ouest","Abu Ghaush"]
[null,null,null,null,null,null,null,null,null,null,null,null,null,null,"Razgrad","Abu Ghurayb"]
[null,null,null,null,null,null,null,null,null,null,null,null,null,null,"Montana","Abu Jibeha"]
[null,null,null,null,null,null,null,null,null,null,null,null,null,null,"Vratsa","Abu Kabir"]
[null,null,null,null,null,null,null,null,null,null,null,null,null,null,"Varna","Abu Qashsh"]
[null,null,null,null,null,null,null,null,null,null,null,null,null,null,"Dobrich","Abu Qurqas"]
[null,null,null,null,null,null,null,null,null,null,null,null,null,null,"Sofia","Abu Road"]
[null,null,null,null,null,null,null,null,null,null,null,null,null,null,"Ruse","Abu Simbel"]
[null,null,null,null,null,null,null,null,null,null,null,null,null,null,"Plovdiv","Abu Tij"]
[null,null,null,null,null,null,null,null,null,null,null,null,null,null,"Pleven","Abu Zabad"]
[null,null,null,null,null,null,null,null,null,null,null,null,null,null,"Pernik","Abucay"]
[null,null,null,null,null,null,null,null,null,null,null,null,null,null,"Pazardzhik","Abucayan"]
[null,null,null,null,null,null,null,null,null,null,null,null,null,null,"Lovech","Abuja"]
[null,null,null,null,null,null,null,null,null,null,null,null,null,null,"Khaskovo","Abuko"]
[null,null,null,null,null,null,null,null,null,null,null,null,null,null,"Sofia-Capital","Abulug"]
[null,null,null,null,null,null,null,null,null,null,null,null,null,null,"Burgas","Aburi"]
[null,null,null,null,null,null,null,null,null,null,null,null,null,null,"Blagoevgrad","Abut"]
[null,null,null,null,null,null,null,null,null,null,null,null,null,null,"Gabrovo","Abuyog"]
[null,null,null,null,null,null,null,null,null,null,null,null,null,null,"Kurdzhali","Abuyon"]
[null,null,null,null,null,null,null,null,null,null,null,null,null,null,"Kyustendil","Aby"]
[null,null,null,null,null,null,null,null,null,null,null,null,null,null,"Shumen","Abybro"]
[null,null,null,null,null,null,null,null,null,null,null,null,null,null,"Silistra","Abyek"]
[null,null,null,null,null,null,null,null,null,null,null,null,null,null,"Sliven","Abzac"]
[null,null,null,null,null,null,null,null,null,null,null,null,null,null,"Smolyan","Abzakovo"]
[null,null,null,null,null,null,null,null,null,null,null,null,null,null,"Stara Zagora","Acachapan y Colmena 3ra. Seccion"]
[null,null,null,null,null,null,null,null,null,null,null,null,null,null,"Turgovishte","Acacias"]
[null,null,null,null,null,null,null,null,null,null,null,null,null,null,"Veliko Turnovo","Acacoyagua"]
[null,null,null,null,null,null,null,null,null,null,null,null,null,null,"Vidin","Acahay"]
[null,null,null,null,null,null,null,null,null,null,null,null,null,null,"Yambol","Acahuizotla"]
[null,null,null,null,null,null,null,null,null,null,null,null,null,null,"Muharraq","Acajete"]
[null,null,null,null,null,null,null,null,null,null,null,null,null,null,"Manama","Acajutiba"]
[null,null,null,null,null,null,null,null,null,null,null,null,null,null,"Southern Governorate","Acajutla"]
[null,null,null,null,null,null,null,null,null,null,null,null,null,null,"Northern","Acala"]
[null,null,null,null,null,null,null,null,null,null,null,null,null,null,"Makamba","Acala del Rio"]
[null,null,null,null,null,null,null,null,null,null,null,null,null,null,"Bururi","Acalanes Ridge"]
[null,null,null,null,null,null,null,null,null,null,null,null,null,null,"Muramvya","Acambaro"]
[null,null,null,null,null,null,null,null,null,null,null,null,null,null,"Gitega","Acambay"]
[null,null,null,null,null,null,null,null,null,null,null,null,null,null,"Ruyigi","Acamixtla"]
[null,null,null,null,null,null,null,null,null,null,null,null,null,null,"Cankuzo","Acanceh"]
[null,null,null,null,null,null,null,null,null,null,null,null,null,null,"Karuzi","Acandi"]
[null,null,null,null,null,null,null,null,null,null,null,null,null,null,"Bubanza","Acao"]
[null,null,null,null,null,null,null,null,null,null,null,null,null,null,"Cibitoke","Acapetahua"]
[null,null,null,null,null,null,null,null,null,null,null,null,null,null,"Ngozi","Acaponeta"]
[null,null,null,null,null,null,null,null,null,null,null,null,null,null,"Kayanza","Acapulco de Juarez"]
[null,null,null,null,null,null,null,null,null,null,null,null,null,null,"Muyinga","Acara"]
[null,null,null,null,null,null,null,null,null,null,null,null,null,null,"Kirundo","Acarau"]
[null,null,null,null,null,null,null,null,null,null,null,null,null,null,"Rutana","Acari"]
[null,null,null,null,null,null,null,null,null,null,null,null,null,null,"Mwaro","Acarigua"]
[null,null,null,null,null,null,null,null,null,null,null,null,null,null,"Bujumbura Mairie","Acarlar"]
[null,null,null,null,null,null,null,null,null,null,null,null,null,null,"Bujumbura Rural","Acatari"]
[null,null,null,null,null,null,null,null,null,null,null,null,null,null,"Rumonge","Acate"]
[null,null,null,null,null,null,null,null,null,null,null,null,null,null,"Zou","Acatempa"]
[null,null,null,null,null,null,null,null,null,null,null,null,null,null,"Oueme","Acatempan"]
[null,null,null,null,null,null,null,null,null,null,null,null,null,null,"Mono","Acatenango"]
[null,null,null,null,null,null,null,null,null,null,null,null,null,null,"Borgou","Acatepec"]
[null,null,null,null,null,null,null,null,null,null,null,null,null,null,"Atlantique","Acatic"]
[null,null,null,null,null,null,null,null,null,null,null,null,null,null,"Atakora","Acatla"]
[null,null,null,null,null,null,null,null,null,null,null,null,null,null,"Alibori","Acatlan de Osorio"]
[null,null,null,null,null,null,null,null,null,null,null,null,null,null,"Collines","Acatlan de Perez Figueroa"]
[null,null,null,null,null,null,null,null,null,null,null,null,null,null,"Kouffo","Acatzingo"]
[null,null,null,null,null,null,null,null,null,null,null,null,null,null,"Donga","Acatzingo (Acatzingo de la Piedra)"]
[null,null,null,null,null,null,null,null,null,null,null,null,null,null,"Littoral","Acaxochitlan"]
[null,null,null,null,null,null,null,null,null,null,null,null,null,null,"Plateau","Acaxtlahuacan de Albino Zertuche"]
[null,null,null,null,null,null,null,null,null,null,null,null,null,null,"Warwick","Acayuca"]
[null,null,null,null,null,null,null,null,null,null,null,null,null,null,"Southampton","Acayucan"]
[null,null,null,null,null,null,null,null,null,null,null,null,null,null,"Smith's Parish","Accadia"]
[null,null,null,null,null,null,null,null,null,null,null,null,null,null,"Sandys","Accettura"]
[null,null,null,null,null,null,null,null,null,null,null,null,null,null,"Saint George's Parish","Accokeek"]
[null,null,null,null,null,null,null,null,null,null,null,null,null,null,"Pembroke","Acconia"]
[null,null,null,null,null,null,null,null,null,null,null,null,null,null,"Paget","Accra"]
[null,null,null,null,null,null,null,null,null,null,null,null,null,null,"Hamilton","Accrington"]
[null,null,null,null,null,null,null,null,null,null,null,null,null,null,"Hamilton city","Accusilian"]
[null,null,null,null,null,null,null,null,null,null,null,null,null,null,"Devonshire","Acegua"]
[null,null,null,null,null,null,null,null,null,null,null,null,null,null,"Tutong","Aceitunas"]
[null,null,null,null,null,null,null,null,null,null,null,null,null,null,"Temburong","Acerenza"]
[null,null,null,null,null,null,null,null,null,null,null,null,null,null,"Brunei and Muara","Acerno"]
[null,null,null,null,null,null,null,null,null,null,null,null,null,null,"Belait","Acerra"]
[null,null,null,null,null,null,null,null,null,null,null,null,null,null,"Tarija","Aceuchal"]
[null,null,null,null,null,null,null,null,null,null,null,null,null,null,"Potosi","Acevedo"]
[null,null,null,null,null,null,null,null,null,null,null,null,null,null,"Pando","Achacachi"]
[null,null,null,null,null,null,null,null,null,null,null,null,null,null,"Oruro","Achalpur"]
[null,null,null,null,null,null,null,null,null,null,null,null,null,null,"La Paz","Acharavi"]
[null,null,null,null,null,null,null,null,null,null,null,null,null,null,"Cochabamba","Acharnes"]
[null,null,null,null,null,null,null,null,null,null,null,null,null,null,"Chuquisaca","Acheng"]
[null,null,null,null,null,null,null,null,null,null,null,null,null,null,"El Beni","Achenheim"]
[null,null,null,null,null,null,null,null,null,null,null,null,null,null,"Bonaire","Acheres"]
[null,null,null,null,null,null,null,null,null,null,null,null,null,null,"Saba","Acheres-la-Foret"]
[null,null,null,null,null,null,null,null,null,null,null,null,null,null,"Sint Eustatius","Acheritou"]
[null,null,null,null,null,null,null,null,null,null,null,null,null,null,"Rio Grande do Norte","Achern"]
[null,null,null,null,null,null,null,null,null,null,null,null,null,null,"Piaui","Achhnera"]
[null,null,null,null,null,null,null,null,null,null,null,null,null,null,"Pernambuco","Achi"]
[null,null,null,null,null,null,null,null,null,null,null,null,null,null,"Paraiba","Achichipico"]
[null,null,null,null,null,null,null,null,null,null,null,null,null,null,"Para","Achicourt"]
[null,null,null,null,null,null,null,null,null,null,null,null,null,null,"Maranhao","Achiet-le-Grand"]
[null,null,null,null,null,null,null,null,null,null,null,null,null,null,"Ceara","Achikulak"]
[null,null,null,null,null,null,null,null,null,null,null,null,null,null,"Amapa","Achim"]
[null,null,null,null,null,null,null,null,null,null,null,null,null,null,"Alagoas","Achinsk"]
[null,null,null,null,null,null,null,null,null,null,null,null,null,null,"Sergipe","Achiras"]
[null,null,null,null,null,null,null,null,null,null,null,null,null,null,"Sao Paulo","Achisu"]
[null,null,null,null,null,null,null,null,null,null,null,null,null,null,"Santa Catarina","Achit"]
[null,null,null,null,null,null,null,null,null,null,null,null,null,null,"Rio Grande do Sul","Achkhoy-Martan"]
[null,null,null,null,null,null,null,null,null,null,null,null,null,null,"Rio de Janeiro","Achna"]
[null,null,null,null,null,null,null,null,null,null,null,null,null,null,"Parana","Achslach"]
[null,null,null,null,null,null,null,null,null,null,null,null,null,null,"Minas Gerais","Achstetten"]
[null,null,null,null,null,null,null,null,null,null,null,null,null,null,"Mato Grosso do Sul","Achtrup"]
[null,null,null,null,null,null,null,null,null,null,null,null,null,null,"Mato Grosso","Achuapa"]
[null,null,null,null,null,null,null,null,null,null,null,null,null,null,"Goias","Achutupo"]
[null,null,null,null,null,null,null,null,null,null,null,null,null,null,"Federal District","Aci Bonaccorsi"]
[null,null,null,null,null,null,null,null,null,null,null,null,null,null,"Espirito Santo","Aci Castello"]
[null,null,null,null,null,null,null,null,null,null,null,null,null,null,"Bahia","Aci Catena"]
[null,null,null,null,null,null,null,null,null,null,null,null,null,null,"Tocantins","Aci Sant'Antonio"]
[null,null,null,null,null,null,null,null,null,null,null,null,null,null,"Roraima","Aci Trezza"]
[null,null,null,null,null,null,null,null,null,null,null,null,null,null,"Amazonas","Acigne"]
[null,null,null,null,null,null,null,null,null,null,null,null,null,null,"Acre","Acigoel"]
[null,null,null,null,null,null,null,null,null,null,null,null,null,null,"Rondonia","Acikdere"]
[null,null,null,null,null,null,null,null,null,null,null,null,null,null,"San Salvador","Acilia-Castel Fusano-Ostia Antica"]
[null,null,null,null,null,null,null,null,null,null,null,null,null,null,"Ragged Island","Acipayam"]
[null,null,null,null,null,null,null,null,null,null,null,null,null,null,"Berry Islands","Acireale"]
[null,null,null,null,null,null,null,null,null,null,null,null,null,null,"New Providence","Acirli"]
[null,null,null,null,null,null,null,null,null,null,null,null,null,null,"Mayaguana","Acitrezza"]
[null,null,null,null,null,null,null,null,null,null,null,null,null,null,"Long Island","Ackerman"]
[null,null,null,null,null,null,null,null,null,null,null,null,null,null,"Inagua","Ackley"]
[null,null,null,null,null,null,null,null,null,null,null,null,null,null,"Harbour Island","Acle"]
[null,null,null,null,null,null,null,null,null,null,null,null,null,null,"Freeport","Acli"]
[null,null,null,null,null,null,null,null,null,null,null,null,null,null,"Exuma","Acocks Green"]
[null,null,null,null,null,null,null,null,null,null,null,null,null,null,"Cat Island","Acolla"]
[null,null,null,null,null,null,null,null,null,null,null,null,null,null,"Bimini","Acolman"]
[null,null,null,null,null,null,null,null,null,null,null,null,null,null,"Acklins","Acomb"]
[null,null,null,null,null,null,null,null,null,null,null,null,null,null,"Black Point","Aconibe"]
[null,null,null,null,null,null,null,null,null,null,null,null,null,null,"Central Abaco","Acopiara"]
[null,null,null,null,null,null,null,null,null,null,null,null,null,null,"Central Andros","Acoua"]
[null,null,null,null,null,null,null,null,null,null,null,null,null,null,"Central Eleuthera","Acoyapa"]
[null,null,null,null,null,null,null,null,null,null,null,null,null,null,"Crooked Island and Long Cay","Acoyotla"]
[null,null,null,null,null,null,null,null,null,null,null,null,null,null,"East Grand Bahama","Acquaformosa"]
[null,null,null,null,null,null,null,null,null,null,null,null,null,null,"Grand Cay","Acquafredda"]
[null,null,null,null,null,null,null,null,null,null,null,null,null,null,"Hope Town","Acqualagna"]
[null,null,null,null,null,null,null,null,null,null,null,null,null,null,"Mangrove Cay","Acquanegra sul Chiese"]
[null,null,null,null,null,null,null,null,null,null,null,null,null,null,"Moore's Island","Acquapendente"]
[null,null,null,null,null,null,null,null,null,null,null,null,null,null,"North Abaco","Acquarica del Capo"]
[null,null,null,null,null,null,null,null,null,null,null,null,null,null,"North Andros","Acquaro"]
[null,null,null,null,null,null,null,null,null,null,null,null,null,null,"North Eleuthera","Acquarossa"]
[null,null,null,null,null,null,null,null,null,null,null,null,null,null,"Rum Cay","Acquasparta"]
[null,null,null,null,null,null,null,null,null,null,null,null,null,null,"South Abaco","Acquaviva"]
[null,null,null,null,null,null,null,null,null,null,null,null,null,null,"South Andros","Acquaviva delle Fonti"]
[null,null,null,null,null,null,null,null,null,null,null,null,null,null,"South Eleuthera","Acquaviva Picena"]
[null,null,null,null,null,null,null,null,null,null,null,null,null,null,"Spanish Wells","Acquedolci"]
[null,null,null,null,null,null,null,null,null,null,null,null,null,null,"West Grand Bahama","Acqui Terme"]
[null,null,null,null,null,null,null,null,null,null,null,null,null,null,"Bumthang","Acquigny"]
[null,null,null,null,null,null,null,null,null,null,null,null,null,null,"Chukha","Acre"]
[null,null,null,null,null,null,null,null,null,null,null,null,null,null,"Dagana","Acres Green"]
[null,null,null,null,null,null,null,null,null,null,null,null,null,null,"Chirang","Acri"]
[null,null,null,null,null,null,null,null,null,null,null,null,null,null,"Geylegphug","Acris"]
[null,null,null,null,null,null,null,null,null,null,null,null,null,null,"Haa","Acs"]
[null,null,null,null,null,null,null,null,null,null,null,null,null,null,"Lhuntse","Acsa"]
[null,null,null,null,null,null,null,null,null,null,null,null,null,null,"Mongar","Actipan de Morelos"]
[null,null,null,null,null,null,null,null,null,null,null,null,null,null,"Paro","Acton"]
[null,null,null,null,null,null,null,null,null,null,null,null,null,null,"Pemagatshel","Acton Park"]
[null,null,null,null,null,null,null,null,null,null,null,null,null,null,"Punakha","Acton Vale"]
[null,null,null,null,null,null,null,null,null,null,null,null,null,null,"Samchi","Actopan"]
[null,null,null,null,null,null,null,null,null,null,null,null,null,null,"Samdrup Jongkhar","Acu"]
[null,null,null,null,null,null,null,null,null,null,null,null,null,null,"Shemgang","Acuaco"]
[null,null,null,null,null,null,null,null,null,null,null,null,null,null,"Tashigang","Acuamanala"]
[null,null,null,null,null,null,null,null,null,null,null,null,null,null,"Thimphu","Acucena"]
[null,null,null,null,null,null,null,null,null,null,null,null,null,null,"Tongsa","Acuexcomac"]
[null,null,null,null,null,null,null,null,null,null,null,null,null,null,"Wangdi Phodrang","Acuitzio del Canje"]
[null,null,null,null,null,null,null,null,null,null,null,null,null,null,"Gasa","Acul du Nord"]
[null,null,null,null,null,null,null,null,null,null,null,null,null,null,"Trashi Yangste","Acultzingo"]
[null,null,null,null,null,null,null,null,null,null,null,null,null,null,"Ngwaketsi","Acurenam"]
[null,null,null,null,null,null,null,null,null,null,null,null,null,null,"South-East","Acushnet"]
[null,null,null,null,null,null,null,null,null,null,null,null,null,null,"North-East","Acushnet Center"]
[null,null,null,null,null,null,null,null,null,null,null,null,null,null,"North-West","Acuto"]
[null,null,null,null,null,null,null,null,null,null,null,null,null,null,"Kweneng","Acworth"]
[null,null,null,null,null,null,null,null,null,null,null,null,null,null,"Kgatleng","Acxotla del Rio"]
[null,null,null,null,null,null,null,null,null,null,null,null,null,null,"Kgalagadi","Ad Dabbah"]
[null,null,null,null,null,null,null,null,null,null,null,null,null,null,"Ghanzi","Ad Dana"]
[null,null,null,null,null,null,null,null,null,null,null,null,null,null,"Central","Ad Darb"]
[null,null,null,null,null,null,null,null,null,null,null,null,null,null,"Vitebsk","Ad Darbasiyah"]
[null,null,null,null,null,null,null,null,null,null,null,null,null,null,"Mogilev","Ad Dasmah"]
[null,null,null,null,null,null,null,null,null,null,null,null,null,null,"Minsk","Ad Dawadimi"]
[null,null,null,null,null,null,null,null,null,null,null,null,null,null,"Minsk City","Ad Dawhah"]
[null,null,null,null,null,null,null,null,null,null,null,null,null,null,"Grodnenskaya","Ad Dilam"]
[null,null,null,null,null,null,null,null,null,null,null,null,null,null,"Gomel","Ad Dilinjat"]
[null,null,null,null,null,null,null,null,null,null,null,null,null,null,"Brest","Ad Dindar"]
[null,null,null,null,null,null,null,null,null,null,null,null,null,null,"Toledo","Ad Diwaniyah"]
[null,null,null,null,null,null,null,null,null,null,null,null,null,null,"Stann Creek","Ad Douiem"]
[null,null,null,null,null,null,null,null,null,null,null,null,null,null,"Orange Walk","Ad Dujayl"]
[null,null,null,null,null,null,null,null,null,null,null,null,null,null,"Corozal","Ad Duraykish"]
[null,null,null,null,null,null,null,null,null,null,null,null,null,null,"Cayo","Ada"]
[null,null,null,null,null,null,null,null,null,null,null,null,null,null,"Belize","Adacs"]
[null,null,null,null,null,null,null,null,null,null,null,null,null,null,"Alberta","Adairsville"]
[null,null,null,null,null,null,null,null,null,null,null,null,null,null,"British Columbia","Adalaj"]
[null,null,null,null,null,null,null,null,null,null,null,null,null,null,"Manitoba","Adalan"]
[null,null,null,null,null,null,null,null,null,null,null,null,null,null,"New Brunswick","Adalar"]
[null,null,null,null,null,null,null,null,null,null,null,null,null,null,"Northwest Territories","Adam"]
[null,null,null,null,null,null,null,null,null,null,null,null,null,null,"Nova Scotia","Adamantina"]
[null,null,null,null,null,null,null,null,null,null,null,null,null,null,"Nunavut","Adamas"]
[null,null,null,null,null,null,null,null,null,null,null,null,null,null,"Ontario","Adamclisi"]
[null,null,null,null,null,null,null,null,null,null,null,null,null,null,"Prince Edward Island","Adamov"]
[null,null,null,null,null,null,null,null,null,null,null,null,null,null,"Quebec","Adamovka"]
[null,null,null,null,null,null,null,null,null,null,null,null,null,null,"Saskatchewan","Adamow"]
[null,null,null,null,null,null,null,null,null,null,null,null,null,null,"Yukon","Adamowka"]
[null,null,null,null,null,null,null,null,null,null,null,null,null,null,"Newfoundland and Labrador","Adampur"]
[null,null,null,null,null,null,null,null,null,null,null,null,null,null,"Tshuapa","Adams"]
[null,null,null,null,null,null,null,null,null,null,null,null,null,null,"Tshopo","Adams Center"]
[null,null,null,null,null,null,null,null,null,null,null,null,null,null,"Tanganika","Adamstown"]
[null,null,null,null,null,null,null,null,null,null,null,null,null,null,"South Kivu","Adamsville"]
[null,null,null,null,null,null,null,null,null,null,null,null,null,null,"Sankuru","Adamus"]
[null,null,null,null,null,null,null,null,null,null,null,null,null,null,"Nord Kivu","Adamuz"]
[null,null,null,null,null,null,null,null,null,null,null,null,null,null,"Mongala","Adana"]
[null,null,null,null,null,null,null,null,null,null,null,null,null,null,"Maniema","Adanca"]
[null,null,null,null,null,null,null,null,null,null,null,null,null,null,"Kasai-Central","Adancata"]
[null,null,null,null,null,null,null,null,null,null,null,null,null,null,"Kasai-Oriental","Adand"]
[null,null,null,null,null,null,null,null,null,null,null,null,null,null,"Kasai","Adani"]
[null,null,null,null,null,null,null,null,null,null,null,null,null,null,"Ituri","Adapazari"]
[null,null,null,null,null,null,null,null,null,null,null,null,null,null,"Haut Uele","Adare"]
[null,null,null,null,null,null,null,null,null,null,null,null,null,null,"Haut-Lomani","Adaseni"]
[null,null,null,null,null,null,null,null,null,null,null,null,null,null,"Equateur","Adaufe"]
[null,null,null,null,null,null,null,null,null,null,null,null,null,null,"Bas Uele","Adda-Doueni"]
[null,null,null,null,null,null,null,null,null,null,null,null,null,null,"Lualaba","Ad-Damazin"]
[null,null,null,null,null,null,null,null,null,null,null,null,null,null,"Mai Ndombe","Addanki"]
[null,null,null,null,null,null,null,null,null,null,null,null,null,null,"Kwilu","Adderbury"]
[null,null,null,null,null,null,null,null,null,null,null,null,null,null,"Kwango","Addiebrownhill"]
[null,null,null,null,null,null,null,null,null,null,null,null,null,null,"Kinshasa","Addiet Canna"]
[null,null,null,null,null,null,null,null,null,null,null,null,null,null,"Bas-Congo","Addingham"]
[null,null,null,null,null,null,null,null,null,null,null,null,null,null,"Haut-Katanga","Addis"]
[null,null,null,null,null,null,null,null,null,null,null,null,null,null,"Lomami","Addis Ababa"]
[null,null,null,null,null,null,null,null,null,null,null,null,null,null,"Nord-Ubangi","Addison"]
[null,null,null,null,null,null,null,null,null,null,null,null,null,null,"Sud-Ubangi","Addlestone"]
[null,null,null,null,null,null,null,null,null,null,null,null,null,null,"Vakaga","Adea"]
[null,null,null,null,null,null,null,null,null,null,null,null,null,null,"Ouaka","Adeane"]
[null,null,null,null,null,null,null,null,null,null,null,null,null,null,"Mbomou","Adegeest"]
[null,null,null,null,null,null,null,null,null,null,null,null,null,null,"Haut-Mbomou","Adeje"]
[null,null,null,null,null,null,null,null,null,null,null,null,null,null,"Haute-Kotto","Adel"]
[null,null,null,null,null,null,null,null,null,null,null,null,null,null,"Basse-Kotto","Adela"]
[null,null,null,null,null,null,null,null,null,null,null,null,null,null,"Bamingui-Bangoran","Adelaide"]
[null,null,null,null,null,null,null,null,null,null,null,null,null,null,"Sangha-Mbaere","Adelaide Hills"]
[null,null,null,null,null,null,null,null,null,null,null,null,null,null,"Ouham-Pende","Adelanto"]
[null,null,null,null,null,null,null,null,null,null,null,null,null,null,"Ouham","Adelberg"]
[null,null,null,null,null,null,null,null,null,null,null,null,null,null,"Ombella-M'Poko","Adelboden"]
[null,null,null,null,null,null,null,null,null,null,null,null,null,null,"Nana-Mambere","Adelebsen"]
[null,null,null,null,null,null,null,null,null,null,null,null,null,null,"Lobaye","Adelfia"]
[null,null,null,null,null,null,null,null,null,null,null,null,null,null,"Kemo","Adelheidsdorf"]
[null,null,null,null,null,null,null,null,null,null,null,null,null,null,"Mambere-Kadei","Adelia Maria"]
[null,null,null,null,null,null,null,null,null,null,null,null,null,null,"Nana-Grebizi","Adelmannsfelden"]
[null,null,null,null,null,null,null,null,null,null,null,null,null,null,"Bangui","Adelphi"]
[null,null,null,null,null,null,null,null,null,null,null,null,null,null,"Sangha","Adelsdorf"]
[null,null,null,null,null,null,null,null,null,null,null,null,null,null,"Pool","Adelsheim"]
[null,null,null,null,null,null,null,null,null,null,null,null,null,null,"Plateaux","Adelshofen"]
[null,null,null,null,null,null,null,null,null,null,null,null,null,null,"Niari","Adelsried"]
[null,null,null,null,null,null,null,null,null,null,null,null,null,null,"Likouala","Adelzhausen"]
[null,null,null,null,null,null,null,null,null,null,null,null,null,null,"Lekoumou","Ademuz"]
[null,null,null,null,null,null,null,null,null,null,null,null,null,null,"Kouilou","Aden"]
[null,null,null,null,null,null,null,null,null,null,null,null,null,null,"Cuvette","Adenau"]
[null,null,null,null,null,null,null,null,null,null,null,null,null,null,"Bouenza","Adenbuettel"]
[null,null,null,null,null,null,null,null,null,null,null,null,null,null,"Brazzaville","Adendorf"]
[null,null,null,null,null,null,null,null,null,null,null,null,null,null,"Cuvette-Ouest","Adendro"]
[null,null,null,null,null,null,null,null,null,null,null,null,null,null,"Pointe-Noire","Adenstedt"]
[null,null,null,null,null,null,null,null,null,null,null,null,null,null,"Zurich","Adh Dhayd"]
[null,null,null,null,null,null,null,null,null,null,null,null,null,null,"Zug","Adi Keyh"]
[null,null,null,null,null,null,null,null,null,null,null,null,null,null,"Vaud","Adiake"]
[null,null,null,null,null,null,null,null,null,null,null,null,null,null,"Valais","Adigeni"]
[null,null,null,null,null,null,null,null,null,null,null,null,null,null,"Uri","Adigrat"]
[null,null,null,null,null,null,null,null,null,null,null,null,null,null,"Ticino","Adilabad"]
[null,null,null,null,null,null,null,null,null,null,null,null,null,null,"Thurgau","Adilcevaz"]
[null,null,null,null,null,null,null,null,null,null,null,null,null,null,"Solothurn","Adilpur"]
[null,null,null,null,null,null,null,null,null,null,null,null,null,null,"Schwyz","Adil'-Yangiyurt"]
[null,null,null,null,null,null,null,null,null,null,null,null,null,null,"Schaffhausen","Adir"]
[null,null,null,null,null,null,null,null,null,null,null,null,null,null,"Saint Gallen","Adirampattinam"]
[null,null,null,null,null,null,null,null,null,null,null,null,null,null,"Obwalden","Adis `Alem"]
[null,null,null,null,null,null,null,null,null,null,null,null,null,null,"Nidwalden","Adis Zemen"]
[null,null,null,null,null,null,null,null,null,null,null,null,null,null,"Neuchatel","Adiwerna"]
[null,null,null,null,null,null,null,null,null,null,null,null,null,null,"Lucerne","Adiyaman"]
[null,null,null,null,null,null,null,null,null,null,null,null,null,null,"Jura","Adjud"]
[null,null,null,null,null,null,null,null,null,null,null,null,null,null,"Grisons","Adjudeni"]
[null,null,null,null,null,null,null,null,null,null,null,null,null,null,"Glarus","Adjudu Vechi"]
[null,null,null,null,null,null,null,null,null,null,null,null,null,null,"Geneva","Adjumani"]
[null,null,null,null,null,null,null,null,null,null,null,null,null,null,"Fribourg","Adjuntas"]
[null,null,null,null,null,null,null,null,null,null,null,null,null,null,"Bern","Adjuntas del Rio"]
[null,null,null,null,null,null,null,null,null,null,null,null,null,null,"Basel-City","Adlaon"]
[null,null,null,null,null,null,null,null,null,null,null,null,null,null,"Basel-Landschaft","Adlay"]
[null,null,null,null,null,null,null,null,null,null,null,null,null,null,"Appenzell Ausserrhoden","Adler"]
[null,null,null,null,null,null,null,null,null,null,null,null,null,null,"Appenzell Innerrhoden","Adlershof"]
[null,null,null,null,null,null,null,null,null,null,null,null,null,null,"Aargau","Adligenswil"]
[null,null,null,null,null,null,null,null,null,null,null,null,null,null,"Yamoussoukro Autonomous District","Adlington"]
[null,null,null,null,null,null,null,null,null,null,null,null,null,null,"Bas-Sassandra","Adliswil"]
[null,null,null,null,null,null,null,null,null,null,null,null,null,null,"Comoe","Adliswil / Adliswil (Stadtkern)"]
[null,null,null,null,null,null,null,null,null,null,null,null,null,null,"Denguele","Adliswil / Huendli-Zopf"]
[null,null,null,null,null,null,null,null,null,null,null,null,null,null,"Goh-Djiboua","Adliswil / Oberleimbach"]
[null,null,null,null,null,null,null,null,null,null,null,null,null,null,"Lacs","Adliswil / Sonnenberg"]
[null,null,null,null,null,null,null,null,null,null,null,null,null,null,"Lagunes","Adliswil / Sood"]
[null,null,null,null,null,null,null,null,null,null,null,null,null,null,"Montagnes","Adliswil / Tal"]
[null,null,null,null,null,null,null,null,null,null,null,null,null,null,"Sassandra-Marahoue","Adlkofen"]
[null,null,null,null,null,null,null,null,null,null,null,null,null,null,"Savanes","Admannshagen-Bargeshagen"]
[null,null,null,null,null,null,null,null,null,null,null,null,null,null,"Vallee du Bandama","Admiralteisky"]
[null,null,null,null,null,null,null,null,null,null,null,null,null,null,"Woroba","Ado Odo"]
[null,null,null,null,null,null,null,null,null,null,null,null,null,null,"Zanzan","Ado-Ekiti"]
[null,null,null,null,null,null,null,null,null,null,null,null,null,null,"Abidjan","Adolfo Lopez Mateos"]
[null,null,null,null,null,null,null,null,null,null,null,null,null,null,"Aitutaki","Adolfo Lopez Mateos (El Tamarindo)"]
[null,null,null,null,null,null,null,null,null,null,null,null,null,null,"Atiu","Adolfo Moreno"]
[null,null,null,null,null,null,null,null,null,null,null,null,null,null,"Mangaia","Adolfo Ruiz Cortines"]
[null,null,null,null,null,null,null,null,null,null,null,null,null,null,"Manihiki","Adoni"]
[null,null,null,null,null,null,null,null,null,null,null,null,null,null,"Ma'uke","Adony"]
[null,null,null,null,null,null,null,null,null,null,null,null,null,null,"Mitiaro","Ador"]
[null,null,null,null,null,null,null,null,null,null,null,null,null,null,"Palmerston","Adorf"]
[null,null,null,null,null,null,null,null,null,null,null,null,null,null,"Penrhyn","Adorjan"]
[null,null,null,null,null,null,null,null,null,null,null,null,null,null,"Pukapuka","Adoru"]
[null,null,null,null,null,null,null,null,null,null,null,null,null,null,"Rakahanga","Adra"]
[null,null,null,null,null,null,null,null,null,null,null,null,null,null,"Rarotonga","Adrano"]
[null,null,null,null,null,null,null,null,null,null,null,null,null,null,"Valparaiso","Adrar"]
[null,null,null,null,null,null,null,null,null,null,null,null,null,null,"Tarapaca","Adrara San Martino"]
[null,null,null,null,null,null,null,null,null,null,null,null,null,null,"Santiago Metropolitan","Adrasmon"]
[null,null,null,null,null,null,null,null,null,null,null,null,null,null,"Maule","Adre"]
[null,null,null,null,null,null,null,null,null,null,null,null,null,null,"Los Lagos","Adria"]
[null,null,null,null,null,null,null,null,null,null,null,null,null,null,"O'Higgins","Adrian"]
[null,null,null,null,null,null,null,null,null,null,null,null,null,null,"Coquimbo","Adro"]
[null,null,null,null,null,null,null,null,null,null,null,null,null,null,"Biobio","Adrogue"]
[null,null,null,null,null,null,null,null,null,null,null,null,null,null,"Atacama","Adstock"]
[null,null,null,null,null,null,null,null,null,null,null,null,null,null,"Araucania","Adtugan"]
[null,null,null,null,null,null,null,null,null,null,null,null,null,null,"Antofagasta","Aduard"]
[null,null,null,null,null,null,null,null,null,null,null,null,null,null,"Aisen","Adunati"]
[null,null,null,null,null,null,null,null,null,null,null,null,null,null,"Magallanes","Adunatii-Copaceni"]
[null,null,null,null,null,null,null,null,null,null,null,null,null,null,"Arica y Parinacota","Adur"]
[null,null,null,null,null,null,null,null,null,null,null,null,null,null,"Los Rios","Aduthurai"]
[null,null,null,null,null,null,null,null,null,null,null,null,null,null,"South-West","Advance"]
[null,null,null,null,null,null,null,null,null,null,null,null,null,null,"South","Adwick le Street"]
[null,null,null,null,null,null,null,null,null,null,null,null,null,null,"West","Adwolf"]
[null,null,null,null,null,null,null,null,null,null,null,null,null,null,"North","Adyge-Khabl'"]
[null,null,null,null,null,null,null,null,null,null,null,null,null,null,"Far North","Adygeysk"]
[null,null,null,null,null,null,null,null,null,null,null,null,null,null,"East","Adzaneta"]
[null,null,null,null,null,null,null,null,null,null,null,null,null,null,"Adamaoua","Adzhamka"]
[null,null,null,null,null,null,null,null,null,null,null,null,null,null,"Tibet","Adzope"]
[null,null,null,null,null,null,null,null,null,null,null,null,null,null,"Qinghai","AEaenekoski"]
[null,null,null,null,null,null,null,null,null,null,null,null,null,null,"Xinjiang","AEetsae"]
[null,null,null,null,null,null,null,null,null,null,null,null,null,null,"Zhejiang","Aegina"]
[null,null,null,null,null,null,null,null,null,null,null,null,null,null,"Yunnan","AEhtaeri"]
[null,null,null,null,null,null,null,null,null,null,null,null,null,null,"Tianjin","AElajaervi"]
[null,null,null,null,null,null,null,null,null,null,null,null,null,null,"Sichuan","AElmhult"]
[null,null,null,null,null,null,null,null,null,null,null,null,null,null,"Shanxi","AElmsta"]
[null,null,null,null,null,null,null,null,null,null,null,null,null,null,"Shanghai","AElvaengen"]
[null,null,null,null,null,null,null,null,null,null,null,null,null,null,"Shandong","AElvdalen"]
[null,null,null,null,null,null,null,null,null,null,null,null,null,null,"Shaanxi","AElvkarleby"]
[null,null,null,null,null,null,null,null,null,null,null,null,null,null,"Ningsia Hui Autonomous Region","AElvsbyn"]
[null,null,null,null,null,null,null,null,null,null,null,null,null,null,"Jiangxi","AEngelholm"]
[null,null,null,null,null,null,null,null,null,null,null,null,null,null,"Jiangsu","AErla"]
[null,null,null,null,null,null,null,null,null,null,null,null,null,null,"Hunan","Aeroflotskiy"]
[null,null,null,null,null,null,null,null,null,null,null,null,null,null,"Hubei","Aerzen"]
[null,null,null,null,null,null,null,null,null,null,null,null,null,null,"Henan","Aesch"]
[null,null,null,null,null,null,null,null,null,null,null,null,null,null,"Hebei","Aeschi"]
[null,null,null,null,null,null,null,null,null,null,null,null,null,null,"Hainan","Afa"]
[null,null,null,null,null,null,null,null,null,null,null,null,null,null,"Guizhou","Afaahiti"]
[null,null,null,null,null,null,null,null,null,null,null,null,null,null,"Guangxi","'Afak"]
[null,null,null,null,null,null,null,null,null,null,null,null,null,null,"Guangdong","Afanas'yeva"]
[null,null,null,null,null,null,null,null,null,null,null,null,null,null,"Gansu","Afantou"]
[null,null,null,null,null,null,null,null,null,null,null,null,null,null,"Fujian","Afareaitu"]
[null,null,null,null,null,null,null,null,null,null,null,null,null,null,"Chongqing","Afega"]
[null,null,null,null,null,null,null,null,null,null,null,null,null,null,"Anhui","Affalterbach"]
[null,null,null,null,null,null,null,null,null,null,null,null,null,null,"Inner Mongolia","Affeltrangen"]
[null,null,null,null,null,null,null,null,null,null,null,null,null,null,"Liaoning","Afferden"]
[null,null,null,null,null,null,null,null,null,null,null,null,null,null,"Jilin","Affery"]
[null,null,null,null,null,null,null,null,null,null,null,null,null,null,"Heilongjiang","Affi"]
[null,null,null,null,null,null,null,null,null,null,null,null,null,null,"Beijing","Affile"]
[null,null,null,null,null,null,null,null,null,null,null,null,null,null,"Vichada","Affing"]
[null,null,null,null,null,null,null,null,null,null,null,null,null,null,"Vaupes","Affoltern / Hasenbueel"]
[null,null,null,null,null,null,null,null,null,null,null,null,null,null,"Valle del Cauca","Affoltern / Oberdorf"]
[null,null,null,null,null,null,null,null,null,null,null,null,null,null,"Tolima","Affoltern / Sonnenberg"]
[null,null,null,null,null,null,null,null,null,null,null,null,null,null,"Sucre","Affoltern / Unterdorf"]
[null,null,null,null,null,null,null,null,null,null,null,null,null,null,"Santander","Affoltern am Albis"]
[null,null,null,null,null,null,null,null,null,null,null,null,null,null,"San Andres y Providencia","Affton"]
[null,null,null,null,null,null,null,null,null,null,null,null,null,null,"Risaralda","Afgooye"]
[null,null,null,null,null,null,null,null,null,null,null,null,null,null,"Quindio","Afidnes"]
[null,null,null,null,null,null,null,null,null,null,null,null,null,null,"Putumayo","Afikpo"]
[null,null,null,null,null,null,null,null,null,null,null,null,null,null,"Norte de Santander","Afipskiy"]
[null,null,null,null,null,null,null,null,null,null,null,null,null,null,"Narino","Aflou"]
[null,null,null,null,null,null,null,null,null,null,null,null,null,null,"Meta","Afogados da Ingazeira"]
[null,null,null,null,null,null,null,null,null,null,null,null,null,null,"Magdalena","Afonino"]
[null,null,null,null,null,null,null,null,null,null,null,null,null,null,"La Guajira","Afonso Bezerra"]
[null,null,null,null,null,null,null,null,null,null,null,null,null,null,"Guaviare","Afonso Claudio"]
[null,null,null,null,null,null,null,null,null,null,null,null,null,null,"Guainia","Afragola"]
[null,null,null,null,null,null,null,null,null,null,null,null,null,null,"Cundinamarca","Afration"]
[null,null,null,null,null,null,null,null,null,null,null,null,null,null,"Choco","Africo Nuovo"]
[null,null,null,null,null,null,null,null,null,null,null,null,null,null,"Cesar","Africo Vecchio"]
[null,null,null,null,null,null,null,null,null,null,null,null,null,null,"Cauca","Afrikanda"]
[null,null,null,null,null,null,null,null,null,null,null,null,null,null,"Casanare","Afsin"]
[null,null,null,null,null,null,null,null,null,null,null,null,null,null,"Caqueta","Afton"]
[null,null,null,null,null,null,null,null,null,null,null,null,null,null,"Caldas","Afua"]
[null,null,null,null,null,null,null,null,null,null,null,null,null,null,"Boyaca","Afula"]
[null,null,null,null,null,null,null,null,null,null,null,null,null,null,"Bolivar","Afumati"]
[null,null,null,null,null,null,null,null,null,null,null,null,null,null,"Bogota D.C.","Afusing Centro"]
[null,null,null,null,null,null,null,null,null,null,null,null,null,null,"Atlantico","Afyonkarahisar"]
[null,null,null,null,null,null,null,null,null,null,null,null,null,null,"Arauca","Afytos"]
[null,null,null,null,null,null,null,null,null,null,null,null,null,null,"Antioquia","Afzalgarh"]
[null,null,null,null,null,null,null,null,null,null,null,null,null,null,"San Jose","Afzalpur"]
[null,null,null,null,null,null,null,null,null,null,null,null,null,null,"Puntarenas","Aga"]
[null,null,null,null,null,null,null,null,null,null,null,null,null,null,"Limon","Agacoren"]
[null,null,null,null,null,null,null,null,null,null,null,null,null,null,"Heredia","Agadez"]
[null,null,null,null,null,null,null,null,null,null,null,null,null,null,"Guanacaste","Agadir"]
[null,null,null,null,null,null,null,null,null,null,null,null,null,null,"Cartago","Agaete"]
[null,null,null,null,null,null,null,null,null,null,null,null,null,null,"Alajuela","Agaie"]
[null,null,null,null,null,null,null,null,null,null,null,null,null,null,"Villa Clara","Agalatovo"]
[null,null,null,null,null,null,null,null,null,null,null,null,null,null,"Santiago de Cuba","Agalteca"]
[null,null,null,null,null,null,null,null,null,null,null,null,null,null,"Sancti Spiritus","Ag-ambulong"]
[null,null,null,null,null,null,null,null,null,null,null,null,null,null,"Pinar del Rio","Agana Heights Village"]
[null,null,null,null,null,null,null,null,null,null,null,null,null,null,"Matanzas","Aganan"]
[null,null,null,null,null,null,null,null,null,null,null,null,null,null,"Las Tunas","Agapia"]
[null,null,null,null,null,null,null,null,null,null,null,null,null,null,"Isla de la Juventud","Agapovka"]
[null,null,null,null,null,null,null,null,null,null,null,null,null,null,"Holguin","Agar"]
[null,null,null,null,null,null,null,null,null,null,null,null,null,null,"Guantanamo","Agara"]
[null,null,null,null,null,null,null,null,null,null,null,null,null,null,"Granma","Agarak"]
[null,null,null,null,null,null,null,null,null,null,null,null,null,null,"La Habana","Agarakadzor"]
[null,null,null,null,null,null,null,null,null,null,null,null,null,null,"Cienfuegos","Agarakavan"]
[null,null,null,null,null,null,null,null,null,null,null,null,null,null,"Ciego de Avila","Agarbiciu"]
[null,null,null,null,null,null,null,null,null,null,null,null,null,null,"Camaguey","Agaro"]
[null,null,null,null,null,null,null,null,null,null,null,null,null,null,"Artemisa","Agartala"]
[null,null,null,null,null,null,null,null,null,null,null,null,null,null,"Mayabeque","Agas"]
[null,null,null,null,null,null,null,null,null,null,null,null,null,null,"Tarrafal","Agasegyhaza"]
[null,null,null,null,null,null,null,null,null,null,null,null,null,null,"Sao Vicente","Agassiz"]
[null,null,null,null,null,null,null,null,null,null,null,null,null,null,"Sal","Agat Village"]
[null,null,null,null,null,null,null,null,null,null,null,null,null,null,"Ribeira Grande","Agathenburg"]
[null,null,null,null,null,null,null,null,null,null,null,null,null,null,"Praia","Agawam"]
[null,null,null,null,null,null,null,null,null,null,null,null,null,null,"Paul","Agay"]
[null,null,null,null,null,null,null,null,null,null,null,null,null,null,"Maio","Agazzano"]
[null,null,null,null,null,null,null,null,null,null,null,null,null,null,"Brava","Agbabu"]
[null,null,null,null,null,null,null,null,null,null,null,null,null,null,"Boa Vista","Agbannawag"]
[null,null,null,null,null,null,null,null,null,null,null,null,null,null,"Mosteiros","Agbor"]
[null,null,null,null,null,null,null,null,null,null,null,null,null,null,"Sao Domingos","Agboville"]
[null,null,null,null,null,null,null,null,null,null,null,null,null,null,"Sao Filipe","Agcogon"]
[null,null,null,null,null,null,null,null,null,null,null,null,null,null,"Sao Miguel","Agdam"]
[null,null,null,null,null,null,null,null,null,null,null,null,null,null,"Porto Novo","Agdangan"]
[null,null,null,null,null,null,null,null,null,null,null,null,null,null,"Ribeira Brava","Agdas"]
[null,null,null,null,null,null,null,null,null,null,null,null,null,null,"Santa Catarina do Fogo","Agde"]
[null,null,null,null,null,null,null,null,null,null,null,null,null,null,"Sao Salvador do Mundo","Agdzhabedy"]
[null,null,null,null,null,null,null,null,null,null,null,null,null,null,"Tarrafal de Sao Nicolau","Agen"]
[null,null,null,null,null,null,null,null,null,null,null,null,null,null,"Sao Lourenco dos Orgaos","Agenebode"]
[null,null,null,null,null,null,null,null,null,null,null,null,null,null,"Ribeira Grande de Santiago","Ageoshimo"]
[null,null,null,null,null,null,null,null,null,null,null,null,null,null,"Pafos","Agerola"]
[null,null,null,null,null,null,null,null,null,null,null,null,null,null,"Nicosia","Ageyevo"]
[null,null,null,null,null,null,null,null,null,null,null,null,null,null,"Limassol","Agfalva"]
[null,null,null,null,null,null,null,null,null,null,null,null,null,null,"Larnaka","Aggius"]
[null,null,null,null,null,null,null,null,null,null,null,null,null,null,"Keryneia","Aggugaddah"]
[null,null,null,null,null,null,null,null,null,null,null,null,null,null,"Ammochostos","Aghada"]
[null,null,null,null,null,null,null,null,null,null,null,null,null,null,"Praha","Aghajari"]
[null,null,null,null,null,null,null,null,null,null,null,null,null,null,"South Moravian","Aghavnadzor"]
[null,null,null,null,null,null,null,null,null,null,null,null,null,null,"Jihocesky","Aghavnatun"]
[null,null,null,null,null,null,null,null,null,null,null,null,null,null,"Vysocina","Aghios Panteleimon"]
[null,null,null,null,null,null,null,null,null,null,null,null,null,null,"Karlovarsky","Aghires"]
[null,null,null,null,null,null,null,null,null,null,null,null,null,null,"Kralovehradecky","Aghiresu"]
[null,null,null,null,null,null,null,null,null,null,null,null,null,null,"Liberecky","Aghiresu-Fabrici"]
[null,null,null,null,null,null,null,null,null,null,null,null,null,null,"Olomoucky","Aghstafa"]
[null,null,null,null,null,null,null,null,null,null,null,null,null,null,"Moravskoslezsky","Aghsu"]
[null,null,null,null,null,null,null,null,null,null,null,null,null,null,"Pardubicky","Agia"]
[null,null,null,null,null,null,null,null,null,null,null,null,null,null,"Plzensky","Agia Galini"]
[null,null,null,null,null,null,null,null,null,null,null,null,null,null,"Central Bohemia","Agia Marina"]
[null,null,null,null,null,null,null,null,null,null,null,null,null,null,"Ustecky","Agia Paraskevi"]
[null,null,null,null,null,null,null,null,null,null,null,null,null,null,"Zlin","Agia Triada"]
[null,null,null,null,null,null,null,null,null,null,null,null,null,null,"Thuringia","Agia Varvara"]
[null,null,null,null,null,null,null,null,null,null,null,null,null,null,"Schleswig-Holstein","Agiabampo Uno"]
[null,null,null,null,null,null,null,null,null,null,null,null,null,null,"Saxony-Anhalt","Agiasos"]
[null,null,null,null,null,null,null,null,null,null,null,null,null,null,"Saxony","Agidel'"]
[null,null,null,null,null,null,null,null,null,null,null,null,null,null,"Saarland","Agigea"]
[null,null,null,null,null,null,null,null,null,null,null,null,null,null,"Rheinland-Pfalz","Agighiol"]
[null,null,null,null,null,null,null,null,null,null,null,null,null,null,"North Rhine-Westphalia","Agin"]
[null,null,null,null,null,null,null,null,null,null,null,null,null,null,"Lower Saxony","Aginskoye"]
[null,null,null,null,null,null,null,null,null,null,null,null,null,null,"Mecklenburg-Vorpommern","Agio Pnevma"]
[null,null,null,null,null,null,null,null,null,null,null,null,null,null,"Hesse","Agioi Anargyroi"]
[null,null,null,null,null,null,null,null,null,null,null,null,null,null,"Hamburg","Agioi Theodoroi"]
[null,null,null,null,null,null,null,null,null,null,null,null,null,null,"Bremen","Agios Andreas"]
[null,null,null,null,null,null,null,null,null,null,null,null,null,null,"Brandenburg","Agios Athanasios"]
[null,null,null,null,null,null,null,null,null,null,null,null,null,null,"Berlin","Agios Dimitrios"]
[null,null,null,null,null,null,null,null,null,null,null,null,null,null,"Bavaria","Agios Dimitrios Kropias"]
[null,null,null,null,null,null,null,null,null,null,null,null,null,null,"Baden-Wuerttemberg","Agios Georgios"]
[null,null,null,null,null,null,null,null,null,null,null,null,null,null,"Tadjourah","Agios Georgis"]
[null,null,null,null,null,null,null,null,null,null,null,null,null,null,"Obock","Agios Ioannis Rentis"]
[null,null,null,null,null,null,null,null,null,null,null,null,null,null,"Djibouti","Agios Kirykos"]
[null,null,null,null,null,null,null,null,null,null,null,null,null,null,"Dikhil","Agios Loukas"]
[null,null,null,null,null,null,null,null,null,null,null,null,null,null,"Ali Sabieh","Agios Matthaios"]
[null,null,null,null,null,null,null,null,null,null,null,null,null,null,"Arta","Agios Nikolaos"]
[null,null,null,null,null,null,null,null,null,null,null,null,null,null,"Capital Region","Agios Pavlos"]
[null,null,null,null,null,null,null,null,null,null,null,null,null,null,"Central Jutland","Agios Petros"]
[null,null,null,null,null,null,null,null,null,null,null,null,null,null,"North Denmark","Agios Spyridon"]
[null,null,null,null,null,null,null,null,null,null,null,null,null,null,"Zealand","Agios Stefanos"]
[null,null,null,null,null,null,null,null,null,null,null,null,null,null,"South Denmark","Agios Tychon"]
[null,null,null,null,null,null,null,null,null,null,null,null,null,null,"Saint Patrick","Agios Vasileios"]
[null,null,null,null,null,null,null,null,null,null,null,null,null,null,"Saint Mark","Agira"]
[null,null,null,null,null,null,null,null,null,null,null,null,null,null,"Saint Luke","Agirish"]
[null,null,null,null,null,null,null,null,null,null,null,null,null,null,"Saint David","Agkathia"]
[null,null,null,null,null,null,null,null,null,null,null,null,null,null,"Valverde","Aglalana"]
[null,null,null,null,null,null,null,null,null,null,null,null,null,null,"Santiago Rodriguez","Aglasterhausen"]
[null,null,null,null,null,null,null,null,null,null,null,null,null,null,"Santiago","Aglasun"]
[null,null,null,null,null,null,null,null,null,null,null,null,null,null,"San Pedro de Macoris","Aglayan"]
[null,null,null,null,null,null,null,null,null,null,null,null,null,null,"San Cristobal","Agliana"]
[null,null,null,null,null,null,null,null,null,null,null,null,null,null,"Sanchez Ramirez","Agliandroni-Paternella"]
[null,null,null,null,null,null,null,null,null,null,null,null,null,null,"Samana","Agliano Terme"]
[null,null,null,null,null,null,null,null,null,null,null,null,null,null,"Hermanas Mirabal","Aglie"]
[null,null,null,null,null,null,null,null,null,null,null,null,null,null,"Puerto Plata","Agna"]
[null,null,null,null,null,null,null,null,null,null,null,null,null,null,"Peravia","Agnadello"]
[null,null,null,null,null,null,null,null,null,null,null,null,null,null,"Pedernales","Agnantero"]
[null,null,null,null,null,null,null,null,null,null,null,null,null,null,"Nacional","Agneaux"]
[null,null,null,null,null,null,null,null,null,null,null,null,null,null,"Monte Plata","Agnetz"]
[null,null,null,null,null,null,null,null,null,null,null,null,null,null,"Monte Cristi","Agnibilekrou"]
[null,null,null,null,null,null,null,null,null,null,null,null,null,null,"Monsenor Nouel","Agnita"]
[null,null,null,null,null,null,null,null,null,null,null,null,null,null,"Maria Trinidad Sanchez","Agno"]
[null,null,null,null,null,null,null,null,null,null,null,null,null,null,"La Vega","Agnone"]
[null,null,null,null,null,null,null,null,null,null,null,null,null,null,"La Romana","Agnosine"]
[null,null,null,null,null,null,null,null,null,null,null,null,null,null,"La Altagracia","Agny"]
[null,null,null,null,null,null,null,null,null,null,null,null,null,null,"Independencia","Ago Are"]
[null,null,null,null,null,null,null,null,null,null,null,null,null,null,"Hato Mayor","Agogo"]
[null,null,null,null,null,null,null,null,null,null,null,null,null,null,"Espaillat","Agonac"]
[null,null,null,null,null,null,null,null,null,null,null,null,null,null,"El Seibo","Agoo"]
[null,null,null,null,null,null,null,null,null,null,null,null,null,null,"Elias Pina","Agordo"]
[null,null,null,null,null,null,null,null,null,null,null,null,null,null,"Duarte","Agos"]
[null,null,null,null,null,null,null,null,null,null,null,null,null,null,"Dajabon","Agost"]
[null,null,null,null,null,null,null,null,null,null,null,null,null,null,"Barahona","Agosta"]
[null,null,null,null,null,null,null,null,null,null,null,null,null,null,"Baoruco","Agotnes"]
[null,null,null,null,null,null,null,null,null,null,null,null,null,null,"Azua","Agoura"]
[null,null,null,null,null,null,null,null,null,null,null,null,null,null,"San Jose de Ocoa","Agoura Hills"]
[null,null,null,null,null,null,null,null,null,null,null,null,null,null,"Santo Domingo","Agoy"]
[null,null,null,null,null,null,null,null,null,null,null,null,null,null,"Tlemcen","Agpangi"]
[null,null,null,null,null,null,null,null,null,null,null,null,null,null,"Tizi Ouzou","Agra"]
[null,null,null,null,null,null,null,null,null,null,null,null,null,null,"Tissemsilt","Agrado"]
[null,null,null,null,null,null,null,null,null,null,null,null,null,null,"Tipaza","Agramunt"]
[null,null,null,null,null,null,null,null,null,null,null,null,null,null,"Tindouf","Agrarnoye"]
[null,null,null,null,null,null,null,null,null,null,null,null,null,null,"Tiaret","Agrate"]
[null,null,null,null,null,null,null,null,null,null,null,null,null,null,"Tebessa","Agrate Brianza"]
[null,null,null,null,null,null,null,null,null,null,null,null,null,null,"Tamanrasset","Agrate Conturbia"]
[null,null,null,null,null,null,null,null,null,null,null,null,null,null,"Souk Ahras","Agreda"]
[null,null,null,null,null,null,null,null,null,null,null,null,null,null,"Skikda","Agrestina"]
[null,null,null,null,null,null,null,null,null,null,null,null,null,null,"Sidi Bel Abbes","Agri"]
[null,null,null,null,null,null,null,null,null,null,null,null,null,null,"Setif","Agria"]
[null,null,null,null,null,null,null,null,null,null,null,null,null,null,"Saida","Agricola Lazaro Cardenas"]
[null,null,null,null,null,null,null,null,null,null,null,null,null,null,"Relizane","Agries"]
[null,null,null,null,null,null,null,null,null,null,null,null,null,null,"Oum el Bouaghi","Agrigento"]
[null,null,null,null,null,null,null,null,null,null,null,null,null,null,"Ouargla","Agrij"]
[null,null,null,null,null,null,null,null,null,null,null,null,null,null,"Oran","Agrinio"]
[null,null,null,null,null,null,null,null,null,null,null,null,null,null,"Naama","Agris"]
[null,null,null,null,null,null,null,null,null,null,null,null,null,null,"M'Sila","Agrisu Mare"]
[null,null,null,null,null,null,null,null,null,null,null,null,null,null,"Mostaganem","Agronom"]
[null,null,null,null,null,null,null,null,null,null,null,null,null,null,"Mila","Agronomos Mexicanos"]
[null,null,null,null,null,null,null,null,null,null,null,null,null,null,"Medea","Agropoli"]
[null,null,null,null,null,null,null,null,null,null,null,null,null,null,"Mascara","Agryz"]
[null,null,null,null,null,null,null,null,null,null,null,null,null,null,"Laghouat","Agsungot"]
[null,null,null,null,null,null,null,null,null,null,null,null,null,null,"Khenchela","Agua Azul"]
[null,null,null,null,null,null,null,null,null,null,null,null,null,null,"Jijel","Agua Azul Rancho"]
[null,null,null,null,null,null,null,null,null,null,null,null,null,null,"Illizi","Agua Blanca"]
[null,null,null,null,null,null,null,null,null,null,null,null,null,null,"Guelma","Agua Blanca Sur"]
[null,null,null,null,null,null,null,null,null,null,null,null,null,null,"Ghardaia","Agua Branca"]
[null,null,null,null,null,null,null,null,null,null,null,null,null,null,"El Tarf","Agua Buena"]
[null,null,null,null,null,null,null,null,null,null,null,null,null,null,"El Oued","Agua Caliente"]
[null,null,null,null,null,null,null,null,null,null,null,null,null,null,"El Bayadh","Agua Caliente Grande (De Gastelum)"]
[null,null,null,null,null,null,null,null,null,null,null,null,null,null,"Djelfa","Agua de Dios"]
[null,null,null,null,null,null,null,null,null,null,null,null,null,null,"Constantine","Agua de Oro"]
[null,null,null,null,null,null,null,null,null,null,null,null,null,null,"Chlef","Agua de Pena"]
[null,null,null,null,null,null,null,null,null,null,null,null,null,null,"Boumerdes","Agua Dulce"]
[null,null,null,null,null,null,null,null,null,null,null,null,null,null,"Bouira","Agua Fria"]
[null,null,null,null,null,null,null,null,null,null,null,null,null,null,"Bordj Bou Arreridj","Agua Preta"]
[null,null,null,null,null,null,null,null,null,null,null,null,null,null,"Blida","Agua Prieta"]
[null,null,null,null,null,null,null,null,null,null,null,null,null,null,"Biskra","Agua Santa del Yuna"]
[null,null,null,null,null,null,null,null,null,null,null,null,null,null,"Bejaia","Agua Senora"]
[null,null,null,null,null,null,null,null,null,null,null,null,null,null,"Bechar","Agua Verde"]
[null,null,null,null,null,null,null,null,null,null,null,null,null,null,"Batna","Agua Zarca"]
[null,null,null,null,null,null,null,null,null,null,null,null,null,null,"Annaba","Aguacatan"]
[null,null,null,null,null,null,null,null,null,null,null,null,null,null,"Algiers","Aguachica"]
[null,null,null,null,null,null,null,null,null,null,null,null,null,null,"Ain Temouchent","Aguada"]
[null,null,null,null,null,null,null,null,null,null,null,null,null,null,"Ain Defla","Aguada de Cima"]
[null,null,null,null,null,null,null,null,null,null,null,null,null,null,"Adrar","Aguada de Pasajeros"]
[null,null,null,null,null,null,null,null,null,null,null,null,null,null,"Zamora-Chinchipe","Aguadas"]
[null,null,null,null,null,null,null,null,null,null,null,null,null,null,"Tungurahua","Aguadilla"]
[null,null,null,null,null,null,null,null,null,null,null,null,null,null,"Pichincha","Aguadulce"]
[null,null,null,null,null,null,null,null,null,null,null,null,null,null,"Pastaza","Aguai"]
[null,null,null,null,null,null,null,null,null,null,null,null,null,null,"Napo","Agualote"]
[null,null,null,null,null,null,null,null,null,null,null,null,null,null,"Morona-Santiago","Aguanga"]
[null,null,null,null,null,null,null,null,null,null,null,null,null,null,"Manabi","Aguas Belas"]
[null,null,null,null,null,null,null,null,null,null,null,null,null,null,"Loja","Aguas Blancas"]
[null,null,null,null,null,null,null,null,null,null,null,null,null,null,"Imbabura","Aguas Buenas"]
[null,null,null,null,null,null,null,null,null,null,null,null,null,null,"Guayas","Aguas Calientes"]
[null,null,null,null,null,null,null,null,null,null,null,null,null,null,"Galapagos","Aguas Claras"]
[null,null,null,null,null,null,null,null,null,null,null,null,null,null,"Esmeraldas","Aguas Corrientes"]
[null,null,null,null,null,null,null,null,null,null,null,null,null,null,"El Oro","Aguas de Lindoia"]
[null,null,null,null,null,null,null,null,null,null,null,null,null,null,"Cotopaxi","Aguas del Padre"]
[null,null,null,null,null,null,null,null,null,null,null,null,null,null,"Chimborazo","Aguas Formosas"]
[null,null,null,null,null,null,null,null,null,null,null,null,null,null,"Carchi","Aguas Santas"]
[null,null,null,null,null,null,null,null,null,null,null,null,null,null,"Canar","Aguas Verdes"]
[null,null,null,null,null,null,null,null,null,null,null,null,null,null,"Azuay","Aguas Vermelhas"]
[null,null,null,null,null,null,null,null,null,null,null,null,null,null,"Sucumbios","Aguascalientes"]
[null,null,null,null,null,null,null,null,null,null,null,null,null,null,"Orellana","Aguazul"]
[null,null,null,null,null,null,null,null,null,null,null,null,null,null,"Santo Domingo de los Tsachilas","Agucadoura"]
[null,null,null,null,null,null,null,null,null,null,null,null,null,null,"Santa Elena","Agudos"]
[null,null,null,null,null,null,null,null,null,null,null,null,null,null,"Vorumaa","Agueda"]
[null,null,null,null,null,null,null,null,null,null,null,null,null,null,"Viljandimaa","Agugliano"]
[null,null,null,null,null,null,null,null,null,null,null,null,null,null,"Valgamaa","Aguia Branca"]
[null,null,null,null,null,null,null,null,null,null,null,null,null,null,"Tartu","Aguie"]
[null,null,null,null,null,null,null,null,null,null,null,null,null,null,"Saare","Aguilar"]
[null,null,null,null,null,null,null,null,null,null,null,null,null,null,"Raplamaa","Aguilar de Campoo"]
[null,null,null,null,null,null,null,null,null,null,null,null,null,null,"Polvamaa","Aguilares"]
[null,null,null,null,null,null,null,null,null,null,null,null,null,null,"Paernumaa","Aguilas"]
[null,null,null,null,null,null,null,null,null,null,null,null,null,null,"Laeaene-Virumaa","Aguilera"]
[null,null,null,null,null,null,null,null,null,null,null,null,null,null,"Laeaene","Aguililla"]
[null,null,null,null,null,null,null,null,null,null,null,null,null,null,"Jogevamaa","Aguilita"]
[null,null,null,null,null,null,null,null,null,null,null,null,null,null,"Jaervamaa","Aguimes"]
[null,null,null,null,null,null,null,null,null,null,null,null,null,null,"Ida-Virumaa","Aguining"]
[null,null,null,null,null,null,null,null,null,null,null,null,null,null,"Hiiumaa","Aguisan"]
[null,null,null,null,null,null,null,null,null,null,null,null,null,null,"Harjumaa","Agullent"]
[null,null,null,null,null,null,null,null,null,null,null,null,null,null,"Sohag","Agulo"]
[null,null,null,null,null,null,null,null,null,null,null,null,null,null,"North Sinai","Agulu"]
[null,null,null,null,null,null,null,null,null,null,null,null,null,null,"Qena","Agupit"]
[null,null,null,null,null,null,null,null,null,null,null,null,null,null,"Matruh","Agusan"]
[null,null,null,null,null,null,null,null,null,null,null,null,null,null,"Kafr el-Sheikh","Agustin Codazzi"]
[null,null,null,null,null,null,null,null,null,null,null,null,null,null,"South Sinai","Agutaya"]
[null,null,null,null,null,null,null,null,null,null,null,null,null,null,"Damietta","Agvali"]
[null,null,null,null,null,null,null,null,null,null,null,null,null,null,"Port Said","Aham"]
[null,null,null,null,null,null,null,null,null,null,null,null,null,null,"Beni Suweif","Ahar"]
[null,null,null,null,null,null,null,null,null,null,null,null,null,null,"Asyut","Ahaus"]
[null,null,null,null,null,null,null,null,null,null,null,null,null,null,"Aswan","Ahausen"]
[null,null,null,null,null,null,null,null,null,null,null,null,null,null,"Suez","Aheloy"]
[null,null,null,null,null,null,null,null,null,null,null,null,null,null,"Sharqia","Ahero"]
[null,null,null,null,null,null,null,null,null,null,null,null,null,null,"New Valley","Ahetze"]
[null,null,null,null,null,null,null,null,null,null,null,null,null,null,"Qalyubia","Ahfir"]
[null,null,null,null,null,null,null,null,null,null,null,null,null,null,"Cairo","Ahigal"]
[null,null,null,null,null,null,null,null,null,null,null,null,null,null,"Minya","Ahillones"]
[null,null,null,null,null,null,null,null,null,null,null,null,null,null,"Monufia","Ahipara"]
[null,null,null,null,null,null,null,null,null,null,null,null,null,null,"Giza","Ahiri"]
[null,null,null,null,null,null,null,null,null,null,null,null,null,null,"Ismailia","Ahlat"]
[null,null,null,null,null,null,null,null,null,null,null,null,null,null,"Alexandria","Ahlbeck"]
[null,null,null,null,null,null,null,null,null,null,null,null,null,null,"Gharbia","Ahlden"]
[null,null,null,null,null,null,null,null,null,null,null,null,null,null,"Faiyum","Ahlen"]
[null,null,null,null,null,null,null,null,null,null,null,null,null,null,"Beheira","Ahlerstedt"]
[null,null,null,null,null,null,null,null,null,null,null,null,null,null,"Red Sea","Ahlsdorf"]
[null,null,null,null,null,null,null,null,null,null,null,null,null,null,"Dakahlia","Ahmadbayli"]
[null,null,null,null,null,null,null,null,null,null,null,null,null,null,"Luxor","Ahmadnagar"]
[null,null,null,null,null,null,null,null,null,null,null,null,null,null,"Anseba","Ahmadpur"]
[null,null,null,null,null,null,null,null,null,null,null,null,null,null,"Debub","Ahmadpur East"]
[null,null,null,null,null,null,null,null,null,null,null,null,null,null,"Southern Red Sea","Ahmadpur Sial"]
[null,null,null,null,null,null,null,null,null,null,null,null,null,null,"Gash-Barka","Ahmedabad"]
[null,null,null,null,null,null,null,null,null,null,null,null,null,null,"Maekel","Ahmetli"]
[null,null,null,null,null,null,null,null,null,null,null,null,null,null,"Northern Red Sea","Ahnsbeck"]
[null,null,null,null,null,null,null,null,null,null,null,null,null,null,"Murcia","Ahnsen"]
[null,null,null,null,null,null,null,null,null,null,null,null,null,null,"Ceuta","Ahoada"]
[null,null,null,null,null,null,null,null,null,null,null,null,null,null,"Balearic Islands","Ahoghill"]
[null,null,null,null,null,null,null,null,null,null,null,null,null,null,"Andalusia","Aholfing"]
[null,null,null,null,null,null,null,null,null,null,null,null,null,null,"Canary Islands","Aholming"]
[null,null,null,null,null,null,null,null,null,null,null,null,null,null,"Castille-La Mancha","Ahome"]
[null,null,null,null,null,null,null,null,null,null,null,null,null,null,"Extremadura","Ahorn"]
[null,null,null,null,null,null,null,null,null,null,null,null,null,null,"Valencia","Ahoskie"]
[null,null,null,null,null,null,null,null,null,null,null,null,null,null,"Asturias","Ahraura"]
[null,null,null,null,null,null,null,null,null,null,null,null,null,null,"Navarre","Ahrbrueck"]
[null,null,null,null,null,null,null,null,null,null,null,null,null,null,"Madrid","Ahrensbok"]
[null,null,null,null,null,null,null,null,null,null,null,null,null,null,"Cantabria","Ahrensburg"]
[null,null,null,null,null,null,null,null,null,null,null,null,null,null,"Aragon","Ahsen-Oetzen"]
[null,null,null,null,null,null,null,null,null,null,null,null,null,null,"Castille and Leon","Ahtanum"]
[null,null,null,null,null,null,null,null,null,null,null,null,null,null,"Catalonia","Ahtopol"]
[null,null,null,null,null,null,null,null,null,null,null,null,null,null,"Galicia","Ahuacachahue (Ndog'yo Itun Tichi)"]
[null,null,null,null,null,null,null,null,null,null,null,null,null,null,"Basque Country","Ahuacatitlan Cuarto y Quinto Cuartel"]
[null,null,null,null,null,null,null,null,null,null,null,null,null,null,"Melilla","Ahuacatlan"]
[null,null,null,null,null,null,null,null,null,null,null,null,null,null,"Addis Ababa","Ahuacatlan de Guadalupe"]
[null,null,null,null,null,null,null,null,null,null,null,null,null,null,"Afar","Ahuachapan"]
[null,null,null,null,null,null,null,null,null,null,null,null,null,null,"Amhara","Ahualulco"]
[null,null,null,null,null,null,null,null,null,null,null,null,null,null,"Binshangul Gumuz","Ahualulco de Mercado"]
[null,null,null,null,null,null,null,null,null,null,null,null,null,null,"Dire Dawa","Ahuatempan"]
[null,null,null,null,null,null,null,null,null,null,null,null,null,null,"Gambela","Ahuatlan"]
[null,null,null,null,null,null,null,null,null,null,null,null,null,null,"Harari","Ahuaxintitla"]
[null,null,null,null,null,null,null,null,null,null,null,null,null,null,"Oromiya","Ahuehuetitla"]
[null,null,null,null,null,null,null,null,null,null,null,null,null,null,"Somali","Ahuehuetzingo"]
[null,null,null,null,null,null,null,null,null,null,null,null,null,null,"Tigray","Ahuehueyo Primero Centro"]
[null,null,null,null,null,null,null,null,null,null,null,null,null,null,"SNNPR","Ahuexotitlan"]
[null,null,null,null,null,null,null,null,null,null,null,null,null,null,"Lapland","Ahuihuiyuco"]
[null,null,null,null,null,null,null,null,null,null,null,null,null,null,"Kainuu","Ahuille"]
[null,null,null,null,null,null,null,null,null,null,null,null,null,null,"Northern Ostrobothnia","'Ahuimanu"]
[null,null,null,null,null,null,null,null,null,null,null,null,null,null,"Central Ostrobothnia","Ahuiran"]
[null,null,null,null,null,null,null,null,null,null,null,null,null,null,"Ostrobothnia","Ahun"]
[null,null,null,null,null,null,null,null,null,null,null,null,null,null,"Southern Ostrobothnia","Ahus"]
[null,null,null,null,null,null,null,null,null,null,null,null,null,null,"Central Finland","Ahuy"]
[null,null,null,null,null,null,null,null,null,null,null,null,null,null,"North Karelia","Ahvaz"]
[null,null,null,null,null,null,null,null,null,null,null,null,null,null,"Northern Savo","Ahwa"]
[null,null,null,null,null,null,null,null,null,null,null,null,null,null,"Southern Savonia","Ahwahnee"]
[null,null,null,null,null,null,null,null,null,null,null,null,null,null,"South Karelia","Aiani"]
[null,null,null,null,null,null,null,null,null,null,null,null,null,null,"Kymenlaakso","Aianteio"]
[null,null,null,null,null,null,null,null,null,null,null,null,null,null,"Pirkanmaa","Aibak"]
[null,null,null,null,null,null,null,null,null,null,null,null,null,null,"Tavastia Proper","Aibonito"]
[null,null,null,null,null,null,null,null,null,null,null,null,null,null,"Finland Proper","Aichach"]
[null,null,null,null,null,null,null,null,null,null,null,null,null,null,"Uusimaa","Aichelberg"]
[null,null,null,null,null,null,null,null,null,null,null,null,null,null,"Paijanne Tavastia","Aichen"]
[null,null,null,null,null,null,null,null,null,null,null,null,null,null,"Satakunta","Aichhalden"]
[null,null,null,null,null,null,null,null,null,null,null,null,null,null,"Western","Aichstetten"]
[null,null,null,null,null,null,null,null,null,null,null,null,null,null,"Eastern","Aicurzio"]
[null,null,null,null,null,null,null,null,null,null,null,null,null,null,"Rotuma","Aidenbach"]
[null,null,null,null,null,null,null,null,null,null,null,null,null,null,"Yap","Aidhausen"]
[null,null,null,null,null,null,null,null,null,null,null,null,null,null,"Pohnpei","Aidipsos"]
[null,null,null,null,null,null,null,null,null,null,null,null,null,null,"Kosrae","Aidlingen"]
[null,null,null,null,null,null,null,null,null,null,null,null,null,null,"Chuuk","Aidone"]
[null,null,null,null,null,null,null,null,null,null,null,null,null,null,"Vagar","'Aiea"]
[null,null,null,null,null,null,null,null,null,null,null,null,null,null,"Suduroy","Aiello del Friuli"]
[null,null,null,null,null,null,null,null,null,null,null,null,null,null,"Streymoy","Aiello del Sabato"]
[null,null,null,null,null,null,null,null,null,null,null,null,null,null,"Sandoy","Aielo de Malferit"]
[null,null,null,null,null,null,null,null,null,null,null,null,null,null,"Nordoyar","Aiffres"]
[null,null,null,null,null,null,null,null,null,null,null,null,null,null,"Eysturoy","Aigaleo"]
[null,null,null,null,null,null,null,null,null,null,null,null,null,null,"Provence-Alpes-Cote d'Azur","Aigen im Muehlkreis"]
[null,null,null,null,null,null,null,null,null,null,null,null,null,null,"Pays de la Loire","Aiginio"]
[null,null,null,null,null,null,null,null,null,null,null,null,null,null,"Ile-de-France","Aigio"]
[null,null,null,null,null,null,null,null,null,null,null,null,null,null,"Corsica","Aigle"]
[null,null,null,null,null,null,null,null,null,null,null,null,null,null,"Brittany","Aiglemont"]
[null,null,null,null,null,null,null,null,null,null,null,null,null,null,"Bourgogne-Franche-Comte","Aiglsbach"]
[null,null,null,null,null,null,null,null,null,null,null,null,null,null,"Nouvelle-Aquitaine","Aigne"]
[null,null,null,null,null,null,null,null,null,null,null,null,null,null,"Normandy","Aigre"]
[null,null,null,null,null,null,null,null,null,null,null,null,null,null,"Grand Est","Aigrefeuille-sur-Maine"]
[null,null,null,null,null,null,null,null,null,null,null,null,null,null,"Occitanie","Aigua"]
[null,null,null,null,null,null,null,null,null,null,null,null,null,null,"Hauts-de-France","Aiguafreda"]
[null,null,null,null,null,null,null,null,null,null,null,null,null,null,"Auvergne-Rhone-Alpes","Aigueblanche"]
[null,null,null,null,null,null,null,null,null,null,null,null,null,null,"Woleu-Ntem","Aiguefonde"]
[null,null,null,null,null,null,null,null,null,null,null,null,null,null,"Ogooue-Maritime","Aigueperse"]
[null,null,null,null,null,null,null,null,null,null,null,null,null,null,"Ogooue-Lolo","Aigues-Mortes"]
[null,null,null,null,null,null,null,null,null,null,null,null,null,null,"Ogooue-Ivindo","Aigues-Vives"]
[null,null,null,null,null,null,null,null,null,null,null,null,null,null,"Nyanga","Aiguillon"]
[null,null,null,null,null,null,null,null,null,null,null,null,null,null,"Ngouni","Aigurande"]
[null,null,null,null,null,null,null,null,null,null,null,null,null,null,"Moyen-Ogooue","Aiken"]
[null,null,null,null,null,null,null,null,null,null,null,null,null,null,"Haut-Ogooue","Aileu"]
[null,null,null,null,null,null,null,null,null,null,null,null,null,null,"Estuaire","Ailigandi"]
[null,null,null,null,null,null,null,null,null,null,null,null,null,null,"Wales","Aillant-sur-Tholon"]
[null,null,null,null,null,null,null,null,null,null,null,null,null,null,"Scotland","Aillevillers-et-Lyaumont"]
[null,null,null,null,null,null,null,null,null,null,null,null,null,null,"Northern Ireland","Ailly-sur-Noye"]
[null,null,null,null,null,null,null,null,null,null,null,null,null,null,"England","Ailly-sur-Somme"]
[null,null,null,null,null,null,null,null,null,null,null,null,null,null,"Carriacou and Petite Martinique","Aimargues"]
[null,null,null,null,null,null,null,null,null,null,null,null,null,null,"T'bilisi","Aime"]
[null,null,null,null,null,null,null,null,null,null,null,null,null,null,"Ajaria","Aimores"]
[null,null,null,null,null,null,null,null,null,null,null,null,null,null,"Kvemo Kartli","'Ain Abid"]
[null,null,null,null,null,null,null,null,null,null,null,null,null,null,"Kakheti","Ain AlBaraha"]
[null,null,null,null,null,null,null,null,null,null,null,null,null,null,"Guria","Ain Arnat"]
[null,null,null,null,null,null,null,null,null,null,null,null,null,null,"Imereti","Ain Beida"]
[null,null,null,null,null,null,null,null,null,null,null,null,null,null,"Shida Kartli","'Ain Benian"]
[null,null,null,null,null,null,null,null,null,null,null,null,null,null,"Mtskheta-Mtianeti","Ain Bessem"]
[null,null,null,null,null,null,null,null,null,null,null,null,null,null,"Racha-Lechkhumi and Kvemo Svaneti","'Ain Boucif"]
[null,null,null,null,null,null,null,null,null,null,null,null,null,null,"Samegrelo and Zemo Svaneti","Ain Defla"]
[null,null,null,null,null,null,null,null,null,null,null,null,null,null,"Samtskhe-Javakheti","'Ain Deheb"]
[null,null,null,null,null,null,null,null,null,null,null,null,null,null,"Abkhazia","Ain Ebel"]
[null,null,null,null,null,null,null,null,null,null,null,null,null,null,"Guyane","'Ain el Bell"]
[null,null,null,null,null,null,null,null,null,null,null,null,null,null,"St Pierre du Bois","'Ain el Berd"]
[null,null,null,null,null,null,null,null,null,null,null,null,null,null,"Torteval","Ain el Bya"]
[null,null,null,null,null,null,null,null,null,null,null,null,null,null,"Saint Saviour","'Ain el Hadjar"]
[null,null,null,null,null,null,null,null,null,null,null,null,null,null,"Forest","'Ain el Hammam"]
[null,null,null,null,null,null,null,null,null,null,null,null,null,null,"St Martin","'Ain el Melh"]
[null,null,null,null,null,null,null,null,null,null,null,null,null,null,"St Peter Port","'Ain el Turk"]
[null,null,null,null,null,null,null,null,null,null,null,null,null,null,"Castel","Ain Fakroun"]
[null,null,null,null,null,null,null,null,null,null,null,null,null,null,"Vale","Ain Kercha"]
[null,null,null,null,null,null,null,null,null,null,null,null,null,null,"St Sampson","'Ain Merane"]
[null,null,null,null,null,null,null,null,null,null,null,null,null,null,"Alderney","Ain Oussera"]
[null,null,null,null,null,null,null,null,null,null,null,null,null,null,"Volta","Ain Sefra"]
[null,null,null,null,null,null,null,null,null,null,null,null,null,null,"Upper West","Ain Smara"]
[null,null,null,null,null,null,null,null,null,null,null,null,null,null,"Upper East","Ain Sukhna"]
[null,null,null,null,null,null,null,null,null,null,null,null,null,null,"Greater Accra","Ain Taya"]
[null,null,null,null,null,null,null,null,null,null,null,null,null,null,"Brong-Ahafo","Ain Temouchent"]
[null,null,null,null,null,null,null,null,null,null,null,null,null,null,"Ashanti","Ain Touta"]
[null,null,null,null,null,null,null,null,null,null,null,null,null,null,"Qaasuitsup","Ainaloa"]
[null,null,null,null,null,null,null,null,null,null,null,null,null,null,"Kujalleq","Ainaro"]
[null,null,null,null,null,null,null,null,null,null,null,null,null,null,"Qeqqata","Ainay-le-Chateau"]
[null,null,null,null,null,null,null,null,null,null,null,null,null,null,"Sermersooq","Ainazi"]
[null,null,null,null,null,null,null,null,null,null,null,null,null,null,"Upper River","Aindling"]
[null,null,null,null,null,null,null,null,null,null,null,null,null,null,"North Bank","Ainring"]
[null,null,null,null,null,null,null,null,null,null,null,null,null,null,"Central River","Ainsa"]
[null,null,null,null,null,null,null,null,null,null,null,null,null,null,"Lower River","Ainsworth"]
[null,null,null,null,null,null,null,null,null,null,null,null,null,null,"Banjul","Ainzon"]
[null,null,null,null,null,null,null,null,null,null,null,null,null,null,"Conakry","Aioi"]
[null,null,null,null,null,null,null,null,null,null,null,null,null,null,"Boke","Aioun"]
[null,null,null,null,null,null,null,null,null,null,null,null,null,null,"Faranah","Aipe"]
[null,null,null,null,null,null,null,null,null,null,null,null,null,null,"Kankan","Aiquile"]
[null,null,null,null,null,null,null,null,null,null,null,null,null,null,"Kindia","Air Force Academy"]
[null,null,null,null,null,null,null,null,null,null,null,null,null,null,"Labe","Airaines"]
[null,null,null,null,null,null,null,null,null,null,null,null,null,null,"Mamou","Airali"]
[null,null,null,null,null,null,null,null,null,null,null,null,null,null,"Nzerekore","Airasca"]
[null,null,null,null,null,null,null,null,null,null,null,null,null,null,"Guadeloupe","Airdrie"]
[null,null,null,null,null,null,null,null,null,null,null,null,null,null,"Annobon","Aire-la-Ville"]
[null,null,null,null,null,null,null,null,null,null,null,null,null,null,"Bioko Norte","Aire-sur-la-Lys"]
[null,null,null,null,null,null,null,null,null,null,null,null,null,null,"Bioko Sur","Airmont"]
[null,null,null,null,null,null,null,null,null,null,null,null,null,null,"Centro Sur","Airola"]
[null,null,null,null,null,null,null,null,null,null,null,null,null,null,"Kie-Ntem","Airoli"]
[null,null,null,null,null,null,null,null,null,null,null,null,null,null,"Litoral","Airolo"]
[null,null,null,null,null,null,null,null,null,null,null,null,null,null,"Wele-Nzas","Airport West"]
[null,null,null,null,null,null,null,null,null,null,null,null,null,null,"Mount Athos","Airth"]
[null,null,null,null,null,null,null,null,null,null,null,null,null,null,"Attica","Airuno"]
[null,null,null,null,null,null,null,null,null,null,null,null,null,null,"Central Greece","Airvault"]
[null,null,null,null,null,null,null,null,null,null,null,null,null,null,"Central Macedonia","Airway Heights"]
[null,null,null,null,null,null,null,null,null,null,null,null,null,null,"Crete","Aiseau"]
[null,null,null,null,null,null,null,null,null,null,null,null,null,null,"East Macedonia and Thrace","Aiserey"]
[null,null,null,null,null,null,null,null,null,null,null,null,null,null,"Epirus","Aislingen"]
[null,null,null,null,null,null,null,null,null,null,null,null,null,null,"Ionian Islands","Aistala"]
[null,null,null,null,null,null,null,null,null,null,null,null,null,null,"North Aegean","Aita Mare"]
[null,null,null,null,null,null,null,null,null,null,null,null,null,null,"Peloponnese","Aitape"]
[null,null,null,null,null,null,null,null,null,null,null,null,null,null,"South Aegean","Aitkin"]
[null,null,null,null,null,null,null,null,null,null,null,null,null,null,"Thessaly","Aitoliko"]
[null,null,null,null,null,null,null,null,null,null,null,null,null,null,"West Greece","Aiton"]
[null,null,null,null,null,null,null,null,null,null,null,null,null,null,"West Macedonia","Aitona"]
[null,null,null,null,null,null,null,null,null,null,null,null,null,null,"Zacapa","Aitrach"]
[null,null,null,null,null,null,null,null,null,null,null,null,null,null,"Totonicapan","Aitrang"]
[null,null,null,null,null,null,null,null,null,null,null,null,null,null,"Suchitepeque","Aiud"]
[null,null,null,null,null,null,null,null,null,null,null,null,null,null,"Solola","Aiudul de Sus"]
[null,null,null,null,null,null,null,null,null,null,null,null,null,null,"Santa Rosa","Aix-en-Othe"]
[null,null,null,null,null,null,null,null,null,null,null,null,null,null,"San Marcos","Aix-en-Provence"]
[null,null,null,null,null,null,null,null,null,null,null,null,null,null,"Sacatepequez","Aixe-sur-Vienne"]
[null,null,null,null,null,null,null,null,null,null,null,null,null,null,"Retalhuleu","Aix-les-Bains"]
[null,null,null,null,null,null,null,null,null,null,null,null,null,null,"Quiche","Aix-Noulette"]
[null,null,null,null,null,null,null,null,null,null,null,null,null,null,"Quetzaltenango","Aiyira"]
[null,null,null,null,null,null,null,null,null,null,null,null,null,null,"Peten","Aizawl"]
[null,null,null,null,null,null,null,null,null,null,null,null,null,null,"Jutiapa","Aizenay"]
[null,null,null,null,null,null,null,null,null,null,null,null,null,null,"Jalapa","Aizkraukle"]
[null,null,null,null,null,null,null,null,null,null,null,null,null,null,"Izabal","Aizpute"]
[null,null,null,null,null,null,null,null,null,null,null,null,null,null,"Huehuetenango","Aja"]
[null,null,null,null,null,null,null,null,null,null,null,null,null,null,"Guatemala","Ajaccio"]
[null,null,null,null,null,null,null,null,null,null,null,null,null,null,"Escuintla","Ajacuba"]
[null,null,null,null,null,null,null,null,null,null,null,null,null,null,"El Progreso","Ajaigarh"]
[null,null,null,null,null,null,null,null,null,null,null,null,null,null,"Chiquimula","Ajain"]
[null,null,null,null,null,null,null,null,null,null,null,null,null,null,"Chimaltenango","Ajak"]
[null,null,null,null,null,null,null,null,null,null,null,null,null,null,"Baja Verapaz","Ajalpan"]
[null,null,null,null,null,null,null,null,null,null,null,null,null,null,"Alta Verapaz","Ajalvir"]
[null,null,null,null,null,null,null,null,null,null,null,null,null,null,"Piti","Ajaokuta"]
[null,null,null,null,null,null,null,null,null,null,null,null,null,null,"Santa Rita","Ajasse Ipo"]
[null,null,null,null,null,null,null,null,null,null,null,null,null,null,"Sinajana","Ajax"]
[null,null,null,null,null,null,null,null,null,null,null,null,null,null,"Talofofo","Ajdabiya"]
[null,null,null,null,null,null,null,null,null,null,null,null,null,null,"Tamuning","Ajdovscina"]
[null,null,null,null,null,null,null,null,null,null,null,null,null,null,"Umatac","Ajijic"]
[null,null,null,null,null,null,null,null,null,null,null,null,null,null,"Yigo","Ajjampur"]
[null,null,null,null,null,null,null,null,null,null,null,null,null,null,"Yona","Ajka"]
[null,null,null,null,null,null,null,null,null,null,null,null,null,null,"Merizo","'Ajlun"]
[null,null,null,null,null,null,null,null,null,null,null,null,null,null,"Mangilao","Ajman"]
[null,null,null,null,null,null,null,null,null,null,null,null,null,null,"Agana Heights","Ajmer"]
[null,null,null,null,null,null,null,null,null,null,null,null,null,null,"Chalan Pago-Ordot","Ajnala"]
[null,null,null,null,null,null,null,null,null,null,null,null,null,null,"Asan","Ajo"]
[null,null,null,null,null,null,null,null,null,null,null,null,null,null,"Agat","Ajodhya"]
[null,null,null,null,null,null,null,null,null,null,null,null,null,null,"Dededo","Ajofrin"]
[null,null,null,null,null,null,null,null,null,null,null,null,null,null,"Barrigada","Ajra"]
[null,null,null,null,null,null,null,null,null,null,null,null,null,null,"Hagatna","Ajuchitlan"]
[null,null,null,null,null,null,null,null,null,null,null,null,null,null,"Inarajan","Ajuchitlan del Progreso"]
[null,null,null,null,null,null,null,null,null,null,null,null,null,null,"Mongmong-Toto-Maite","Ajuterique"]
[null,null,null,null,null,null,null,null,null,null,null,null,null,null,"Tombali","Ajuy"]
[null,null,null,null,null,null,null,null,null,null,null,null,null,null,"Quinara","Akaa"]
[null,null,null,null,null,null,null,null,null,null,null,null,null,null,"Oio","Akabira"]
[null,null,null,null,null,null,null,null,null,null,null,null,null,null,"Gabu","Akademgorodok"]
[null,null,null,null,null,null,null,null,null,null,null,null,null,null,"Cacheu","Akademicheskoe"]
[null,null,null,null,null,null,null,null,null,null,null,null,null,null,"Bolama and Bijagos","Akademija (Kaunas)"]
[null,null,null,null,null,null,null,null,null,null,null,null,null,null,"Bissau","Akaki"]
[null,null,null,null,null,null,null,null,null,null,null,null,null,null,"Biombo","Akalgarh"]
[null,null,null,null,null,null,null,null,null,null,null,null,null,null,"Bafata","Akalkot"]
[null,null,null,null,null,null,null,null,null,null,null,null,null,null,"Upper Takutu-Upper Essequibo","Akaltara"]
[null,null,null,null,null,null,null,null,null,null,null,null,null,null,"Upper Demerara-Berbice","Akankpa"]
[null,null,null,null,null,null,null,null,null,null,null,null,null,null,"Potaro-Siparuni","Akarp"]
[null,null,null,null,null,null,null,null,null,null,null,null,null,null,"Pomeroon-Supenaam","Akarsu"]
[null,null,null,null,null,null,null,null,null,null,null,null,null,null,"Mahaica-Berbice","Akasahebpet"]
[null,null,null,null,null,null,null,null,null,null,null,null,null,null,"Essequibo Islands-West Demerara","Akashi"]
[null,null,null,null,null,null,null,null,null,null,null,null,null,null,"East Berbice-Corentyne","Akaszto"]
[null,null,null,null,null,null,null,null,null,null,null,null,null,null,"Demerara-Mahaica","Akbarabad"]
[null,null,null,null,null,null,null,null,null,null,null,null,null,null,"Cuyuni-Mazaruni","Akbarpur"]
[null,null,null,null,null,null,null,null,null,null,null,null,null,null,"Barima-Waini","Akbou"]
[null,null,null,null,null,null,null,null,null,null,null,null,null,null,"Yuen Long","Akcaabat"]
[null,null,null,null,null,null,null,null,null,null,null,null,null,null,"Tsuen Wan","Akcadag"]
[null,null,null,null,null,null,null,null,null,null,null,null,null,null,"Tai Po","Akcakale"]
[null,null,null,null,null,null,null,null,null,null,null,null,null,null,"Sai Kung","Akcakoca"]
[null,null,null,null,null,null,null,null,null,null,null,null,null,null,"Islands","Akdagmadeni"]
[null,null,null,null,null,null,null,null,null,null,null,null,null,null,"Central and Western","Akdepe"]
[null,null,null,null,null,null,null,null,null,null,null,null,null,null,"Wanchai","Akdere"]
[null,null,null,null,null,null,null,null,null,null,null,null,null,null,"Southern","Akdiken"]
[null,null,null,null,null,null,null,null,null,null,null,null,null,null,"Yau Tsim Mong","Ak-Dovurak"]
[null,null,null,null,null,null,null,null,null,null,null,null,null,null,"Sham Shui Po","Ake-Eze"]
[null,null,null,null,null,null,null,null,null,null,null,null,null,null,"Kowloon City","Aken"]
[null,null,null,null,null,null,null,null,null,null,null,null,null,null,"Wong Tai Sin","Akers Styckebruk"]
[null,null,null,null,null,null,null,null,null,null,null,null,null,null,"Kwun Tong","Akersberga"]
[null,null,null,null,null,null,null,null,null,null,null,null,null,null,"Kwai Tsing","Akert"]
[null,null,null,null,null,null,null,null,null,null,null,null,null,null,"Tuen Mun","Aketi"]
[null,null,null,null,null,null,null,null,null,null,null,null,null,null,"Sha Tin","Akhaldaba"]
[null,null,null,null,null,null,null,null,null,null,null,null,null,null,"Yoro","Akhalgori"]
[null,null,null,null,null,null,null,null,null,null,null,null,null,null,"Valle","Akhalk'alak'i"]
[null,null,null,null,null,null,null,null,null,null,null,null,null,null,"Santa Barbara","Akhaltsikhe"]
[null,null,null,null,null,null,null,null,null,null,null,null,null,null,"Olancho","Akhfennir"]
[null,null,null,null,null,null,null,null,null,null,null,null,null,null,"Ocotepeque","Akhisar"]
[null,null,null,null,null,null,null,null,null,null,null,null,null,null,"Lempira","Akhmet'a"]
[null,null,null,null,null,null,null,null,null,null,null,null,null,null,"Bay Islands","Akhmim"]
[null,null,null,null,null,null,null,null,null,null,null,null,null,null,"Intibuca","Akhnur"]
[null,null,null,null,null,null,null,null,null,null,null,null,null,null,"Gracias a Dios","Akht'ala"]
[null,null,null,null,null,null,null,null,null,null,null,null,null,null,"Francisco Morazan","Akhtanizovskaya"]
[null,null,null,null,null,null,null,null,null,null,null,null,null,null,"El Paraiso","Akhtubinsk"]
[null,null,null,null,null,null,null,null,null,null,null,null,null,null,"Cortes","Akhty"]
[null,null,null,null,null,null,null,null,null,null,null,null,null,null,"Copan","Akhtyrskiy"]
[null,null,null,null,null,null,null,null,null,null,null,null,null,null,"Comayagua","Akhunovo"]
[null,null,null,null,null,null,null,null,null,null,null,null,null,null,"Colon","Akhuryan"]
[null,null,null,null,null,null,null,null,null,null,null,null,null,null,"Choluteca","Aki"]
[null,null,null,null,null,null,null,null,null,null,null,null,null,null,"Atlantida","Akil"]
[null,null,null,null,null,null,null,null,null,null,null,null,null,null,"Bjelovarsko-Bilogorska","Akim Oda"]
[null,null,null,null,null,null,null,null,null,null,null,null,null,null,"Slavonski Brod-Posavina","Akim Swedru"]
[null,null,null,null,null,null,null,null,null,null,null,null,null,null,"Dubrovacko-Neretvanska","Akimovka"]
[null,null,null,null,null,null,null,null,null,null,null,null,null,null,"Istria","Akincilar"]
[null,null,null,null,null,null,null,null,null,null,null,null,null,null,"Karlovacka","Akirkeby"]
[null,null,null,null,null,null,null,null,null,null,null,null,null,null,"Koprivnicko-Krizevacka","Akita"]
[null,null,null,null,null,null,null,null,null,null,null,null,null,null,"Krapinsko-Zagorska","Akividu"]
[null,null,null,null,null,null,null,null,null,null,null,null,null,null,"Licko-Senjska","Akjoujt"]
[null,null,null,null,null,null,null,null,null,null,null,null,null,null,"Medimurska","Akkarampalle"]
[null,null,null,null,null,null,null,null,null,null,null,null,null,null,"Osjecko-Baranjska","Akkent"]
[null,null,null,null,null,null,null,null,null,null,null,null,null,null,"Pozesko-Slavonska","Akkisla"]
[null,null,null,null,null,null,null,null,null,null,null,null,null,null,"Primorsko-Goranska","Akko"]
[null,null,null,null,null,null,null,null,null,null,null,null,null,null,"Sibensko-Kniniska","Akkol'"]
[null,null,null,null,null,null,null,null,null,null,null,null,null,null,"Sisacko-Moslavacka","Akkoy"]
[null,null,null,null,null,null,null,null,null,null,null,null,null,null,"Split-Dalmatia","Akkrum"]
[null,null,null,null,null,null,null,null,null,null,null,null,null,null,"Varazdinska","Akkus"]
[null,null,null,null,null,null,null,null,null,null,null,null,null,null,"Vukovar-Sirmium","Akle"]
[null,null,null,null,null,null,null,null,null,null,null,null,null,null,"Zadarska","Aklera"]
[null,null,null,null,null,null,null,null,null,null,null,null,null,null,"Zagrebacka","Akmene"]
[null,null,null,null,null,null,null,null,null,null,null,null,null,null,"City of Zagreb","Aknada"]
[null,null,null,null,null,null,null,null,null,null,null,null,null,null,"Virovitick-Podravska","Aknalich"]
[null,null,null,null,null,null,null,null,null,null,null,null,null,null,"Sud-Est","Aknashen"]
[null,null,null,null,null,null,null,null,null,null,null,null,null,null,"Sud","Akner"]
[null,null,null,null,null,null,null,null,null,null,null,null,null,null,"Ouest","Akniste"]
[null,null,null,null,null,null,null,null,null,null,null,null,null,null,"Nord-Ouest","Akodia"]
[null,null,null,null,null,null,null,null,null,null,null,null,null,null,"Nord-Est","Akola"]
[null,null,null,null,null,null,null,null,null,null,null,null,null,null,"Grandans","Akom II"]
[null,null,null,null,null,null,null,null,null,null,null,null,null,null,"Artibonite","Akono"]
[null,null,null,null,null,null,null,null,null,null,null,null,null,null,"Nippes","Akonolinga"]
[null,null,null,null,null,null,null,null,null,null,null,null,null,null,"Szabolcs-Szatmar-Bereg","Akora"]
[null,null,null,null,null,null,null,null,null,null,null,null,null,null,"Jasz-Nagykun-Szolnok","Ak'ordat"]
[null,null,null,null,null,null,null,null,null,null,null,null,null,null,"Heves","Akot"]
[null,null,null,null,null,null,null,null,null,null,null,null,null,null,"Hajdu-Bihar","Akouda"]
[null,null,null,null,null,null,null,null,null,null,null,null,null,null,"Csongrad","Akoupe"]
[null,null,null,null,null,null,null,null,null,null,null,null,null,null,"Borsod-Abauj-Zemplen","Akraifnia"]
[null,null,null,null,null,null,null,null,null,null,null,null,null,null,"Bekes","Akranes"]
[null,null,null,null,null,null,null,null,null,null,null,null,null,null,"Zala","Akrata"]
[null,null,null,null,null,null,null,null,null,null,null,null,null,null,"Veszprem","Akrehamn"]
[null,null,null,null,null,null,null,null,null,null,null,null,null,null,"Vas","Akrini"]
[null,null,null,null,null,null,null,null,null,null,null,null,null,null,"Tolna","Akrolimni"]
[null,null,null,null,null,null,null,null,null,null,null,null,null,null,"Somogy","Akron"]
[null,null,null,null,null,null,null,null,null,null,null,null,null,null,"Pest","Akropong"]
[null,null,null,null,null,null,null,null,null,null,null,null,null,null,"Nograd","Aksakovo"]
[null,null,null,null,null,null,null,null,null,null,null,null,null,null,"Komarom-Esztergom","Aksaray"]
[null,null,null,null,null,null,null,null,null,null,null,null,null,null,"Gyor-Moson-Sopron","Aksarayskiy"]
[null,null,null,null,null,null,null,null,null,null,null,null,null,null,"Fejer","Aksarka"]
[null,null,null,null,null,null,null,null,null,null,null,null,null,null,"Budapest","Aksay"]
[null,null,null,null,null,null,null,null,null,null,null,null,null,null,"Baranya","Aksehir"]
[null,null,null,null,null,null,null,null,null,null,null,null,null,null,"Bacs-Kiskun","Akseki"]
[null,null,null,null,null,null,null,null,null,null,null,null,null,null,"North Sumatra","Aksha"]
[null,null,null,null,null,null,null,null,null,null,null,null,null,null,"Aceh","Aksu"]
[null,null,null,null,null,null,null,null,null,null,null,null,null,null,"Yogyakarta","Aksuat"]
[null,null,null,null,null,null,null,null,null,null,null,null,null,null,"South Sumatra","Aksu-Ayuly"]
[null,null,null,null,null,null,null,null,null,null,null,null,null,null,"West Sumatra","Ak-Suu"]
[null,null,null,null,null,null,null,null,null,null,null,null,null,null,"North Sulawesi","Aktaio"]
[null,null,null,null,null,null,null,null,null,null,null,null,null,null,"Southeast Sulawesi","Aktanysh"]
[null,null,null,null,null,null,null,null,null,null,null,null,null,null,"Central Sulawesi","Aktas"]
[null,null,null,null,null,null,null,null,null,null,null,null,null,null,"South Sulawesi","Aktash"]
[null,null,null,null,null,null,null,null,null,null,null,null,null,null,"Riau","Aktau"]
[null,null,null,null,null,null,null,null,null,null,null,null,null,null,"East Nusa Tenggara","Aktogay"]
[null,null,null,null,null,null,null,null,null,null,null,null,null,null,"West Nusa Tenggara","Aktyubinskiy"]
[null,null,null,null,null,null,null,null,null,null,null,null,null,null,"Maluku","Aku"]
[null,null,null,null,null,null,null,null,null,null,null,null,null,null,"Lampung","Akune"]
[null,null,null,null,null,null,null,null,null,null,null,null,null,null,"East Kalimantan","Akunk'"]
[null,null,null,null,null,null,null,null,null,null,null,null,null,null,"Central Kalimantan","Akure"]
[null,null,null,null,null,null,null,null,null,null,null,null,null,null,"South Kalimantan","Akureyri"]
[null,null,null,null,null,null,null,null,null,null,null,null,null,null,"West Kalimantan","Akusha"]
[null,null,null,null,null,null,null,null,null,null,null,null,null,null,"East Java","Akutan"]
[null,null,null,null,null,null,null,null,null,null,null,null,null,null,"Central Java","Akwanga"]
[null,null,null,null,null,null,null,null,null,null,null,null,null,null,"West Java","Akwatia"]
[null,null,null,null,null,null,null,null,null,null,null,null,null,null,"Jambi","Akyazi"]
[null,null,null,null,null,null,null,null,null,null,null,null,null,null,"Jakarta","Akyurt"]
[null,null,null,null,null,null,null,null,null,null,null,null,null,null,"Papua","Al"]
[null,null,null,null,null,null,null,null,null,null,null,null,null,null,"Bengkulu","Al `Alamayn"]
[null,null,null,null,null,null,null,null,null,null,null,null,null,null,"Bali","Al `Araqa"]
[null,null,null,null,null,null,null,null,null,null,null,null,null,null,"Banten","Al `Attarah"]
[null,null,null,null,null,null,null,null,null,null,null,null,null,null,"Gorontalo","Al `Awja"]
[null,null,null,null,null,null,null,null,null,null,null,null,null,null,"Bangka-Belitung Islands","Al `Ayyat"]
[null,null,null,null,null,null,null,null,null,null,null,null,null,null,"North Maluku","Al `Ayzariyah"]
[null,null,null,null,null,null,null,null,null,null,null,null,null,null,"West Papua","Al `Ubaydiyah"]
[null,null,null,null,null,null,null,null,null,null,null,null,null,null,"West Sulawesi","Al Abyar"]
[null,null,null,null,null,null,null,null,null,null,null,null,null,null,"Riau Islands","Al Ahmadi"]
[null,null,null,null,null,null,null,null,null,null,null,null,null,null,"North Kalimantan","Al Ain"]
[null,null,null,null,null,null,null,null,null,null,null,null,null,null,"Connaught","Al 'Amarah"]
[null,null,null,null,null,null,null,null,null,null,null,null,null,null,"Leinster","Al Artawiyah"]
[null,null,null,null,null,null,null,null,null,null,null,null,null,null,"Munster","Al Awjam"]
[null,null,null,null,null,null,null,null,null,null,null,null,null,null,"Ulster","Al 'Aziziyah"]
[null,null,null,null,null,null,null,null,null,null,null,null,null,null,"Jerusalem","Al Azraq ash Shamali"]
[null,null,null,null,null,null,null,null,null,null,null,null,null,null,"Tel Aviv","Al Bab"]
[null,null,null,null,null,null,null,null,null,null,null,null,null,null,"Haifa","Al Badari"]
[null,null,null,null,null,null,null,null,null,null,null,null,null,null,"Northern District","Al Badhan"]
[null,null,null,null,null,null,null,null,null,null,null,null,null,null,"Central District","Al Bahah"]
[null,null,null,null,null,null,null,null,null,null,null,null,null,null,"Southern District","Al Bajur"]
[null,null,null,null,null,null,null,null,null,null,null,null,null,null,"Andreas","Al Balyana"]
[null,null,null,null,null,null,null,null,null,null,null,null,null,null,"Arbory","Al Basrah al Qadimah"]
[null,null,null,null,null,null,null,null,null,null,null,null,null,null,"Ballaugh","Al Battaliyah"]
[null,null,null,null,null,null,null,null,null,null,null,null,null,null,"Braddan","Al Bawiti"]
[null,null,null,null,null,null,null,null,null,null,null,null,null,null,"Bride","Al Bayda"]
[null,null,null,null,null,null,null,null,null,null,null,null,null,null,"Castletown","Al Bayda'"]
[null,null,null,null,null,null,null,null,null,null,null,null,null,null,"Douglas","Al Birah"]
[null,null,null,null,null,null,null,null,null,null,null,null,null,null,"German","Al Bukayriyah"]
[null,null,null,null,null,null,null,null,null,null,null,null,null,null,"Jurby","Al Buq`ah"]
[null,null,null,null,null,null,null,null,null,null,null,null,null,null,"Laxey","Al Burayj"]
[null,null,null,null,null,null,null,null,null,null,null,null,null,null,"Lezayre","Al Buraymi"]
[null,null,null,null,null,null,null,null,null,null,null,null,null,null,"Lonan","Al Burayqah"]
[null,null,null,null,null,null,null,null,null,null,null,null,null,null,"Malew","Al Burj"]
[null,null,null,null,null,null,null,null,null,null,null,null,null,null,"Marown","Al Fahahil"]
[null,null,null,null,null,null,null,null,null,null,null,null,null,null,"Maughold","Al Fallujah"]
[null,null,null,null,null,null,null,null,null,null,null,null,null,null,"Michael","Al Fandaqumiyah"]
[null,null,null,null,null,null,null,null,null,null,null,null,null,null,"Onchan","Al Farwaniyah"]
[null,null,null,null,null,null,null,null,null,null,null,null,null,null,"Patrick","Al Fasayil"]
[null,null,null,null,null,null,null,null,null,null,null,null,null,null,"Peel","Al Fashn"]
[null,null,null,null,null,null,null,null,null,null,null,null,null,null,"Port Erin","Al Faw"]
[null,null,null,null,null,null,null,null,null,null,null,null,null,null,"Port St Mary","Al Fayyum"]
[null,null,null,null,null,null,null,null,null,null,null,null,null,null,"Ramsey","Al Fintas"]
[null,null,null,null,null,null,null,null,null,null,null,null,null,null,"Rushen","Al Fqih Ben Calah"]
[null,null,null,null,null,null,null,null,null,null,null,null,null,null,"Santon","Al Fujayrah"]
[null,null,null,null,null,null,null,null,null,null,null,null,null,null,"West Bengal","Al Fukhkhari"]
[null,null,null,null,null,null,null,null,null,null,null,null,null,null,"Uttar Pradesh","Al Fulah"]
[null,null,null,null,null,null,null,null,null,null,null,null,null,null,"Tripura","Al Funaytis"]
[null,null,null,null,null,null,null,null,null,null,null,null,null,null,"Telangana","Al Fuwayliq"]
[null,null,null,null,null,null,null,null,null,null,null,null,null,null,"Tamil Nadu","Al Ghantu"]
[null,null,null,null,null,null,null,null,null,null,null,null,null,null,"Sikkim","Al Ghayzah"]
[null,null,null,null,null,null,null,null,null,null,null,null,null,null,"Rajasthan","Al Ghuwayriyah"]
[null,null,null,null,null,null,null,null,null,null,null,null,null,null,"Punjab","Al Hada"]
[null,null,null,null,null,null,null,null,null,null,null,null,null,null,"Puducherry","Al Hadd"]
[null,null,null,null,null,null,null,null,null,null,null,null,null,null,"Odisha","Al Hamdi"]
[null,null,null,null,null,null,null,null,null,null,null,null,null,null,"Nagaland","Al Hamra'"]
[null,null,null,null,null,null,null,null,null,null,null,null,null,null,"Mizoram","Al Hamul"]
[null,null,null,null,null,null,null,null,null,null,null,null,null,null,"Meghalaya","Al Harak"]
[null,null,null,null,null,null,null,null,null,null,null,null,null,null,"Manipur","Al Harithah"]
[null,null,null,null,null,null,null,null,null,null,null,null,null,null,"Maharashtra","Al Hasaheisa"]
[null,null,null,null,null,null,null,null,null,null,null,null,null,null,"Madhya Pradesh","Al Hasakah"]
[null,null,null,null,null,null,null,null,null,null,null,null,null,null,"Laccadives","Al Hashimiyah"]
[null,null,null,null,null,null,null,null,null,null,null,null,null,null,"Kerala","Al Hawamidiyah"]
[null,null,null,null,null,null,null,null,null,null,null,null,null,null,"Karnataka","Al Hawatah"]
[null,null,null,null,null,null,null,null,null,null,null,null,null,null,"Jammu and Kashmir","Al Hayy"]
[null,null,null,null,null,null,null,null,null,null,null,null,null,null,"Himachal Pradesh","Al Hazm"]
[null,null,null,null,null,null,null,null,null,null,null,null,null,null,"Haryana","Al Hilah"]
[null,null,null,null,null,null,null,null,null,null,null,null,null,null,"Gujarat","Al Hilaliyya"]
[null,null,null,null,null,null,null,null,null,null,null,null,null,null,"Daman and Diu","Al Hillah"]
[null,null,null,null,null,null,null,null,null,null,null,null,null,null,"Goa","Al Hindiyah"]
[null,null,null,null,null,null,null,null,null,null,null,null,null,null,"NCT","Al Hoceima"]
[null,null,null,null,null,null,null,null,null,null,null,null,null,null,"Dadra and Nagar Haveli","Al Hudaydah"]
[null,null,null,null,null,null,null,null,null,null,null,null,null,null,"Chandigarh","Al Hufuf"]
[null,null,null,null,null,null,null,null,null,null,null,null,null,null,"Bihar","Al Ibrahimiyah"]
[null,null,null,null,null,null,null,null,null,null,null,null,null,null,"Assam","Al Ittihad"]
[null,null,null,null,null,null,null,null,null,null,null,null,null,null,"Arunachal Pradesh","Al Jadid"]
[null,null,null,null,null,null,null,null,null,null,null,null,null,null,"Andhra Pradesh","Al Jafr"]
[null,null,null,null,null,null,null,null,null,null,null,null,null,null,"Andaman and Nicobar","Al Jaghbub"]
[null,null,null,null,null,null,null,null,null,null,null,null,null,null,"Chhattisgarh","Al Jahra'"]
[null,null,null,null,null,null,null,null,null,null,null,null,null,null,"Jharkhand","Al Jalamah"]
[null,null,null,null,null,null,null,null,null,null,null,null,null,null,"Uttarakhand","Al Jammaliyah"]
[null,null,null,null,null,null,null,null,null,null,null,null,null,null,"Basra","Al Janiyah"]
[null,null,null,null,null,null,null,null,null,null,null,null,null,null,"Wasit","Al Jaradiyah"]
[null,null,null,null,null,null,null,null,null,null,null,null,null,null,"Salah ad Din","Al Jawf"]
[null,null,null,null,null,null,null,null,null,null,null,null,null,null,"Ninawa","Al Jib"]
[null,null,null,null,null,null,null,null,null,null,null,null,null,null,"Maysan","Al Jiftlik"]
[null,null,null,null,null,null,null,null,null,null,null,null,null,null,"Muhafazat Karbala'","Al Jizah"]
[null,null,null,null,null,null,null,null,null,null,null,null,null,null,"Arbil","Al Jubayhah"]
[null,null,null,null,null,null,null,null,null,null,null,null,null,null,"Diyala","Al Jubayl"]
[null,null,null,null,null,null,null,null,null,null,null,null,null,null,"Dhi Qar","Al Judayrah"]
[null,null,null,null,null,null,null,null,null,null,null,null,null,null,"Dahuk","Al Judayyidah"]
[null,null,null,null,null,null,null,null,null,null,null,null,null,null,"Baghdad","Al Jumayliyah"]
[null,null,null,null,null,null,null,null,null,null,null,null,null,null,"Babil","Al Jumum"]
[null,null,null,null,null,null,null,null,null,null,null,null,null,null,"Kirkuk","Al Karamah"]
[null,null,null,null,null,null,null,null,null,null,null,null,null,null,"As Sulaymaniyah","Al Karmil"]
[null,null,null,null,null,null,null,null,null,null,null,null,null,null,"An Najaf","Al Kawa"]
[null,null,null,null,null,null,null,null,null,null,null,null,null,null,"Al Qadisiyah","Al Khaburah"]
[null,null,null,null,null,null,null,null,null,null,null,null,null,null,"Al Muthanna","Al Khadir"]
[null,null,null,null,null,null,null,null,null,null,null,null,null,null,"Anbar","Al Khafji"]
[null,null,null,null,null,null,null,null,null,null,null,null,null,null,"Tehran","Al Khankah"]
[null,null,null,null,null,null,null,null,null,null,null,null,null,null,"Zanjan","Al Kharijah"]
[null,null,null,null,null,null,null,null,null,null,null,null,null,null,"Yazd","Al Kharj"]
[null,null,null,null,null,null,null,null,null,null,null,null,null,null,"Semnan","Al Khawr"]
[null,null,null,null,null,null,null,null,null,null,null,null,null,null,"Mazandaran","Al Khinzirah"]
[null,null,null,null,null,null,null,null,null,null,null,null,null,null,"Markazi","Al Khums"]
[null,null,null,null,null,null,null,null,null,null,null,null,null,null,"Lorestan","Al Kiremit al `Arakiyyin"]
[null,null,null,null,null,null,null,null,null,null,null,null,null,null,"Kordestan","Al Kiswah"]
[null,null,null,null,null,null,null,null,null,null,null,null,null,null,"Kohgiluyeh va Buyer Ahmad","Al Kittah"]
[null,null,null,null,null,null,null,null,null,null,null,null,null,null,"Khuzestan","Al Kut"]
[null,null,null,null,null,null,null,null,null,null,null,null,null,null,"Kermanshah","Al Lagowa"]
[null,null,null,null,null,null,null,null,null,null,null,null,null,null,"Kerman","Al Liwa'"]
[null,null,null,null,null,null,null,null,null,null,null,null,null,null,"Ilam","Al Lubban al Gharbi"]
[null,null,null,null,null,null,null,null,null,null,null,null,null,null,"Hormozgan","Al Lubban ash Sharqiyah"]
[null,null,null,null,null,null,null,null,null,null,null,null,null,null,"Hamadan","Al Mahallah al Kubra"]
[null,null,null,null,null,null,null,null,null,null,null,null,null,null,"Gilan","Al Mahbulah"]
[null,null,null,null,null,null,null,null,null,null,null,null,null,null,"Fars","Al Mahwit"]
[null,null,null,null,null,null,null,null,null,null,null,null,null,null,"Chaharmahal and Bakhtiari","Al Majaridah"]
[null,null,null,null,null,null,null,null,null,null,null,null,null,null,"Bushehr","Al Majd"]
[null,null,null,null,null,null,null,null,null,null,null,null,null,null,"East Azerbaijan","Al Manaqil"]
[null,null,null,null,null,null,null,null,null,null,null,null,null,null,"Azarbayjan-e Gharbi","Al Manqaf"]
[null,null,null,null,null,null,null,null,null,null,null,null,null,null,"Ardabil","Al Manshah"]
[null,null,null,null,null,null,null,null,null,null,null,null,null,null,"Isfahan","Al Mansurah"]
[null,null,null,null,null,null,null,null,null,null,null,null,null,null,"Golestan","Al Manzalah"]
[null,null,null,null,null,null,null,null,null,null,null,null,null,null,"Qazvin","Al Marj"]
[null,null,null,null,null,null,null,null,null,null,null,null,null,null,"Qom","Al Markaz"]
[null,null,null,null,null,null,null,null,null,null,null,null,null,null,"Sistan and Baluchestan","Al Marsa"]
[null,null,null,null,null,null,null,null,null,null,null,null,null,null,"Khorasan-e Jonubi","Al Masallamiyya"]
[null,null,null,null,null,null,null,null,null,null,null,null,null,null,"Razavi Khorasan","Al Matariyah"]
[null,null,null,null,null,null,null,null,null,null,null,null,null,null,"Khorasan-e Shomali","Al Matlin"]
[null,null,null,null,null,null,null,null,null,null,null,null,null,null,"Alborz","Al Mawsil al Jadidah"]
[null,null,null,null,null,null,null,null,null,null,null,null,null,null,"Northwest","Al Mayadin"]
[null,null,null,null,null,null,null,null,null,null,null,null,null,null,"Northeast","Al Mazar al Janubi"]
[null,null,null,null,null,null,null,null,null,null,null,null,null,null,"Southern Peninsula","Al Mazra`ah ash Sharqiyah"]
[null,null,null,null,null,null,null,null,null,null,null,null,null,null,"Westfjords","Al Midyah"]
[null,null,null,null,null,null,null,null,null,null,null,null,null,null,"Sicily","Al Mijlad"]
[null,null,null,null,null,null,null,null,null,null,null,null,null,null,"Sardinia","Al Mindak"]
[null,null,null,null,null,null,null,null,null,null,null,null,null,null,"Calabria","Al Minya"]
[null,null,null,null,null,null,null,null,null,null,null,null,null,null,"Veneto","Al Miqdadiyah"]
[null,null,null,null,null,null,null,null,null,null,null,null,null,null,"Aosta Valley","Al Mishkhab"]
[null,null,null,null,null,null,null,null,null,null,null,null,null,null,"Umbria","Al Mithnab"]
[null,null,null,null,null,null,null,null,null,null,null,null,null,null,"Trentino-Alto Adige","Al Mubarraz"]
[null,null,null,null,null,null,null,null,null,null,null,null,null,null,"Tuscany","Al Mughayyir"]
[null,null,null,null,null,null,null,null,null,null,null,null,null,null,"Apulia","Al Mughraqah"]
[null,null,null,null,null,null,null,null,null,null,null,null,null,null,"Piedmont","Al Muharraq"]
[null,null,null,null,null,null,null,null,null,null,null,null,null,null,"Molise","Al Mukalla"]
[null,null,null,null,null,null,null,null,null,null,null,null,null,null,"The Marches","Al Munayzilah"]
[null,null,null,null,null,null,null,null,null,null,null,null,null,null,"Lombardy","Al Musaddar"]
[null,null,null,null,null,null,null,null,null,null,null,null,null,null,"Liguria","Al Musayyib"]
[null,null,null,null,null,null,null,null,null,null,null,null,null,null,"Latium","Al Mutayrifi"]
[null,null,null,null,null,null,null,null,null,null,null,null,null,null,"Friuli Venezia Giulia","Al Muwayh"]
[null,null,null,null,null,null,null,null,null,null,null,null,null,null,"Emilia-Romagna","Al Qabil"]
[null,null,null,null,null,null,null,null,null,null,null,null,null,null,"Campania","Al Qadarif"]
[null,null,null,null,null,null,null,null,null,null,null,null,null,null,"Basilicate","Al Qanatir al Khayriyah"]
[null,null,null,null,null,null,null,null,null,null,null,null,null,null,"Abruzzo","Al Qanayat"]
[null,null,null,null,null,null,null,null,null,null,null,null,null,null,"St Clement","Al Qarah"]
[null,null,null,null,null,null,null,null,null,null,null,null,null,null,"St Saviour","Al Qararah"]
[null,null,null,null,null,null,null,null,null,null,null,null,null,null,"St. Brelade","Al Qaryatayn"]
[null,null,null,null,null,null,null,null,null,null,null,null,null,null,"Grouville","Al Qasr"]
[null,null,null,null,null,null,null,null,null,null,null,null,null,null,"St Mary","Al Qatif"]
[null,null,null,null,null,null,null,null,null,null,null,null,null,null,"St Lawrence","Al Qatrun"]
[null,null,null,null,null,null,null,null,null,null,null,null,null,null,"St Peter","Al Qitena"]
[null,null,null,null,null,null,null,null,null,null,null,null,null,null,"St Ouen","Al Qubaybah"]
[null,null,null,null,null,null,null,null,null,null,null,null,null,null,"St John","Al Qubbah"]
[null,null,null,null,null,null,null,null,null,null,null,null,null,null,"Trinity","Al Qunaytirah"]
[null,null,null,null,null,null,null,null,null,null,null,null,null,null,"St Helier","Al Qurayn"]
[null,null,null,null,null,null,null,null,null,null,null,null,null,null,"Westmoreland","Al Qusayr"]
[null,null,null,null,null,null,null,null,null,null,null,null,null,null,"Trelawny","Al Qusiyah"]
[null,null,null,null,null,null,null,null,null,null,null,null,null,null,"St. Thomas","Al Qutayfah"]
[null,null,null,null,null,null,null,null,null,null,null,null,null,null,"St. Mary","Al Quwayrah"]
[null,null,null,null,null,null,null,null,null,null,null,null,null,null,"St. James","Al Wafrah"]
[null,null,null,null,null,null,null,null,null,null,null,null,null,null,"St. Elizabeth","Al Wajh"]
[null,null,null,null,null,null,null,null,null,null,null,null,null,null,"Saint Catherine","Al Wakrah"]
[null,null,null,null,null,null,null,null,null,null,null,null,null,null,"St Ann","Al Wasitah"]
[null,null,null,null,null,null,null,null,null,null,null,null,null,null,"St. Andrew","Al Wukayr"]
[null,null,null,null,null,null,null,null,null,null,null,null,null,null,"Portland","Al Yamun"]
[null,null,null,null,null,null,null,null,null,null,null,null,null,null,"Manchester","Al-`Ula"]
[null,null,null,null,null,null,null,null,null,null,null,null,null,null,"Kingston","Ala"]
[null,null,null,null,null,null,null,null,null,null,null,null,null,null,"Hanover","Ala dei Sardi"]
[null,null,null,null,null,null,null,null,null,null,null,null,null,null,"Clarendon","Alabama"]
[null,null,null,null,null,null,null,null,null,null,null,null,null,null,"Ma'an","Alabaster"]
[null,null,null,null,null,null,null,null,null,null,null,null,null,null,"Irbid","Alabat"]
[null,null,null,null,null,null,null,null,null,null,null,null,null,null,"Zarqa","Alabel"]
[null,null,null,null,null,null,null,null,null,null,null,null,null,null,"Tafielah","Alabug"]
[null,null,null,null,null,null,null,null,null,null,null,null,null,null,"Amman","Alabushevo"]
[null,null,null,null,null,null,null,null,null,null,null,null,null,null,"Mafraq","Alac"]
[null,null,null,null,null,null,null,null,null,null,null,null,null,null,"Karak","Alaca"]
[null,null,null,null,null,null,null,null,null,null,null,null,null,null,"Balqa","Alacati"]
[null,null,null,null,null,null,null,null,null,null,null,null,null,null,"Ajlun","Alacaygan"]
[null,null,null,null,null,null,null,null,null,null,null,null,null,null,"Jerash","Alachua"]
[null,null,null,null,null,null,null,null,null,null,null,null,null,null,"Aqaba","Alacranes"]
[null,null,null,null,null,null,null,null,null,null,null,null,null,null,"Madaba","Alad"]
[null,null,null,null,null,null,null,null,null,null,null,null,null,null,"Yamanashi","Aladag"]
[null,null,null,null,null,null,null,null,null,null,null,null,null,null,"Yamaguchi","Alae"]
[null,null,null,null,null,null,null,null,null,null,null,null,null,null,"Wakayama","Alaejos"]
[null,null,null,null,null,null,null,null,null,null,null,null,null,null,"Toyama","Alafaya"]
[null,null,null,null,null,null,null,null,null,null,null,null,null,null,"Tottori","Alagapuram"]
[null,null,null,null,null,null,null,null,null,null,null,null,null,null,"Tokyo","Alaghsas"]
[null,null,null,null,null,null,null,null,null,null,null,null,null,null,"Tokushima","Alagir"]
[null,null,null,null,null,null,null,null,null,null,null,null,null,null,"Tochigi","Alagoa Grande"]
[null,null,null,null,null,null,null,null,null,null,null,null,null,null,"Shizuoka","Alagoa Nova"]
[null,null,null,null,null,null,null,null,null,null,null,null,null,null,"Shimane","Alagoinha"]
[null,null,null,null,null,null,null,null,null,null,null,null,null,null,"Shiga","Alagoinhas"]
[null,null,null,null,null,null,null,null,null,null,null,null,null,null,"Saitama","Alagon"]
[null,null,null,null,null,null,null,null,null,null,null,null,null,null,"Saga","Alahaermae"]
[null,null,null,null,null,null,null,null,null,null,null,null,null,null,"Osaka","Alaili Dadda`"]
[null,null,null,null,null,null,null,null,null,null,null,null,null,null,"Okinawa","Alaior"]
[null,null,null,null,null,null,null,null,null,null,null,null,null,null,"Okayama","Alajaervi"]
[null,null,null,null,null,null,null,null,null,null,null,null,null,null,"Oita","Alajero"]
[null,null,null,null,null,null,null,null,null,null,null,null,null,null,"Niigata","Alajuela"]
[null,null,null,null,null,null,null,null,null,null,null,null,null,null,"Nara","Alajuelita"]
[null,null,null,null,null,null,null,null,null,null,null,null,null,null,"Nagasaki","Alakamis"]
[null,null,null,null,null,null,null,null,null,null,null,null,null,null,"Nagano","Alakurtti"]
[null,null,null,null,null,null,null,null,null,null,null,null,null,null,"Miyazaki","Alamada"]
[null,null,null,null,null,null,null,null,null,null,null,null,null,null,"Mie","Alamar"]
[null,null,null,null,null,null,null,null,null,null,null,null,null,null,"Kyoto","Alameda"]
[null,null,null,null,null,null,null,null,null,null,null,null,null,null,"Kumamoto","Alaminos"]
[null,null,null,null,null,null,null,null,null,null,null,null,null,null,"Kochi","Alamo"]
[null,null,null,null,null,null,null,null,null,null,null,null,null,null,"Kanagawa","Alamo Heights"]
[null,null,null,null,null,null,null,null,null,null,null,null,null,null,"Kagoshima","Alamogordo"]
[null,null,null,null,null,null,null,null,null,null,null,null,null,null,"Kagawa","Alamor"]
[null,null,null,null,null,null,null,null,null,null,null,null,null,null,"Ishikawa","Alamos"]
[null,null,null,null,null,null,null,null,null,null,null,null,null,null,"Hyogo","Alamos Tepetitlan"]
[null,null,null,null,null,null,null,null,null,null,null,null,null,null,"Hiroshima","Alamosa"]
[null,null,null,null,null,null,null,null,null,null,null,null,null,null,"Gunma","Alamosa East"]
[null,null,null,null,null,null,null,null,null,null,null,null,null,null,"Gifu","Alampra"]
[null,null,null,null,null,null,null,null,null,null,null,null,null,null,"Fukuoka","Alampur"]
[null,null,null,null,null,null,null,null,null,null,null,null,null,null,"Fukui","Aland"]
[null,null,null,null,null,null,null,null,null,null,null,null,null,null,"Ehime","Alandi"]
[null,null,null,null,null,null,null,null,null,null,null,null,null,null,"Aichi","Alandur"]
[null,null,null,null,null,null,null,null,null,null,null,null,null,null,"Yamagata","Alangalang"]
[null,null,null,null,null,null,null,null,null,null,null,null,null,null,"Miyagi","Alanganallur"]
[null,null,null,null,null,null,null,null,null,null,null,null,null,null,"Iwate","Alangayam"]
[null,null,null,null,null,null,null,null,null,null,null,null,null,null,"Ibaraki","Alange"]
[null,null,null,null,null,null,null,null,null,null,null,null,null,null,"Fukushima","Alangilan"]
[null,null,null,null,null,null,null,null,null,null,null,null,null,null,"Chiba","Alangilanan"]
[null,null,null,null,null,null,null,null,null,null,null,null,null,null,"Akita","Alangudi"]
[null,null,null,null,null,null,null,null,null,null,null,null,null,null,"Hokkaido","Alangulam"]
[null,null,null,null,null,null,null,null,null,null,null,null,null,null,"Aomori","Alanib"]
[null,null,null,null,null,null,null,null,null,null,null,null,null,null,"West Pokot","Alanje"]
[null,null,null,null,null,null,null,null,null,null,null,null,null,null,"Wajir","Alannay"]
[null,null,null,null,null,null,null,null,null,null,null,null,null,null,"Uasin Gishu","Alano di Piave"]
[null,null,null,null,null,null,null,null,null,null,null,null,null,null,"Turkana","Alanya"]
[null,null,null,null,null,null,null,null,null,null,null,null,null,null,"Trans Nzoia","Alanyurt"]
[null,null,null,null,null,null,null,null,null,null,null,null,null,null,"Tharaka District","Alap"]
[null,null,null,null,null,null,null,null,null,null,null,null,null,null,"Tana River","Alapa"]
[null,null,null,null,null,null,null,null,null,null,null,null,null,null,"Siaya","Alapayevsk"]
[null,null,null,null,null,null,null,null,null,null,null,null,null,null,"Samburu","Alapi Village"]
[null,null,null,null,null,null,null,null,null,null,null,null,null,null,"Nairobi Area","Alapli"]
[null,null,null,null,null,null,null,null,null,null,null,null,null,null,"Murang'a District","Alappakkam"]
[null,null,null,null,null,null,null,null,null,null,null,null,null,null,"Mombasa","Alaquas"]
[null,null,null,null,null,null,null,null,null,null,null,null,null,null,"Meru","Alaquines"]
[null,null,null,null,null,null,null,null,null,null,null,null,null,null,"Marsabit","Alar del Rey"]
[null,null,null,null,null,null,null,null,null,null,null,null,null,null,"Mandera","Alaro"]
[null,null,null,null,null,null,null,null,null,null,null,null,null,null,"Laikipia","Alarobia"]
[null,null,null,null,null,null,null,null,null,null,null,null,null,null,"Kwale","Alas i Cerc"]
[null,null,null,null,null,null,null,null,null,null,null,null,null,null,"Kitui","Alasehir"]
[null,null,null,null,null,null,null,null,null,null,null,null,null,null,"Kisumu","Alashkert"]
[null,null,null,null,null,null,null,null,null,null,null,null,null,null,"Kisii","Alassio"]
[null,null,null,null,null,null,null,null,null,null,null,null,null,null,"Kirinyaga","Alata"]
[null,null,null,null,null,null,null,null,null,null,null,null,null,null,"Kilifi","Alatri"]
[null,null,null,null,null,null,null,null,null,null,null,null,null,null,"Kiambu","Alattyan"]
[null,null,null,null,null,null,null,null,null,null,null,null,null,null,"Kericho","Alatyr'"]
[null,null,null,null,null,null,null,null,null,null,null,null,null,null,"Kakamega","Alausi"]
[null,null,null,null,null,null,null,null,null,null,null,null,null,null,"Isiolo","Alaverdi"]
[null,null,null,null,null,null,null,null,null,null,null,null,null,null,"Garissa","Alavieska"]
[null,null,null,null,null,null,null,null,null,null,null,null,null,null,"Embu","Alavus"]
[null,null,null,null,null,null,null,null,null,null,null,null,null,null,"Busia","Alawalpur"]
[null,null,null,null,null,null,null,null,null,null,null,null,null,null,"Bungoma","Alayao"]
[null,null,null,null,null,null,null,null,null,null,null,null,null,null,"Baringo","Alba"]
[null,null,null,null,null,null,null,null,null,null,null,null,null,null,"Nyandarua","Alba Adriatica"]
[null,null,null,null,null,null,null,null,null,null,null,null,null,null,"Vihiga","Alba de Tormes"]
[null,null,null,null,null,null,null,null,null,null,null,null,null,null,"Lamu","Alba Iulia"]
[null,null,null,null,null,null,null,null,null,null,null,null,null,null,"Machakos","Alba Posse"]
[null,null,null,null,null,null,null,null,null,null,null,null,null,null,"Makueni","Albac"]
[null,null,null,null,null,null,null,null,null,null,null,null,null,null,"Marakwet District","Albacete"]
[null,null,null,null,null,null,null,null,null,null,null,null,null,null,"Taita Taveta","Albaching"]
[null,null,null,null,null,null,null,null,null,null,null,null,null,null,"Kajiado","Albaida"]
[null,null,null,null,null,null,null,null,null,null,null,null,null,null,"Nyeri","Albaida del Aljarafe"]
[null,null,null,null,null,null,null,null,null,null,null,null,null,null,"Homa Bay","Albairate"]
[null,null,null,null,null,null,null,null,null,null,null,null,null,null,"Bomet","Albal"]
[null,null,null,null,null,null,null,null,null,null,null,null,null,null,"Migori","Albaladejo"]
[null,null,null,null,null,null,null,null,null,null,null,null,null,null,"Nakuru","Alba-la-Romaine"]
[null,null,null,null,null,null,null,null,null,null,null,null,null,null,"Narok","Albalat de la Ribera"]
[null,null,null,null,null,null,null,null,null,null,null,null,null,null,"Nyamira District","Albalat dels Sorells"]
[null,null,null,null,null,null,null,null,null,null,null,null,null,null,"Nandi","Albalate de Cinca"]
[null,null,null,null,null,null,null,null,null,null,null,null,null,null,"Osh","Albalate del Arzobispo"]
[null,null,null,null,null,null,null,null,null,null,null,null,null,null,"Batken","Alban"]
[null,null,null,null,null,null,null,null,null,null,null,null,null,null,"Talas","Albanel"]
[null,null,null,null,null,null,null,null,null,null,null,null,null,null,"Naryn","Albanella"]
[null,null,null,null,null,null,null,null,null,null,null,null,null,null,"Issyk-Kul","Albania"]
[null,null,null,null,null,null,null,null,null,null,null,null,null,null,"Bishkek","Albano di Lucania"]
[null,null,null,null,null,null,null,null,null,null,null,null,null,null,"Jalal-Abad","Albano Laziale"]
[null,null,null,null,null,null,null,null,null,null,null,null,null,null,"Chuy","Albano Sant'Alessandro"]
[null,null,null,null,null,null,null,null,null,null,null,null,null,null,"Osh City","Albany"]
[null,null,null,null,null,null,null,null,null,null,null,null,null,null,"Pursat","Albardon"]
[null,null,null,null,null,null,null,null,null,null,null,null,null,null,"Battambang","Albaredo"]
[null,null,null,null,null,null,null,null,null,null,null,null,null,null,"Takeo","Albaredo d'Adige"]
[null,null,null,null,null,null,null,null,null,null,null,null,null,null,"Svay Rieng","Albareto"]
[null,null,null,null,null,null,null,null,null,null,null,null,null,null,"Stung Treng","Albarracin"]
[null,null,null,null,null,null,null,null,null,null,null,null,null,null,"Otar Meanchey","Albatera"]
[null,null,null,null,null,null,null,null,null,null,null,null,null,null,"Siem Reap","Albavilla"]
[null,null,null,null,null,null,null,null,null,null,null,null,null,null,"Ratanakiri","Albbruck"]
[null,null,null,null,null,null,null,null,null,null,null,null,null,null,"Prey Veng","Albelda de Iregua"]
[null,null,null,null,null,null,null,null,null,null,null,null,null,null,"Preah Vihear","Albemarle"]
[null,null,null,null,null,null,null,null,null,null,null,null,null,null,"Phnom Penh","Albenga"]
[null,null,null,null,null,null,null,null,null,null,null,null,null,null,"Pailin","Albeni"]
[null,null,null,null,null,null,null,null,null,null,null,null,null,null,"Mondolkiri","Albens"]
[null,null,null,null,null,null,null,null,null,null,null,null,null,null,"Kratie","Albergaria-a-Velha"]
[null,null,null,null,null,null,null,null,null,null,null,null,null,null,"Kep","Alberi"]
[null,null,null,null,null,null,null,null,null,null,null,null,null,null,"Koh Kong","Alberic"]
[null,null,null,null,null,null,null,null,null,null,null,null,null,null,"Kandal","Alberite"]
[null,null,null,null,null,null,null,null,null,null,null,null,null,null,"Kampot","Alberobello"]
[null,null,null,null,null,null,null,null,null,null,null,null,null,null,"Kampong Thom","Albers"]
[null,null,null,null,null,null,null,null,null,null,null,null,null,null,"Kampong Speu","Albersdorf"]
[null,null,null,null,null,null,null,null,null,null,null,null,null,null,"Kampong Chhnang","Albershausen"]
[null,null,null,null,null,null,null,null,null,null,null,null,null,null,"Kampong Cham","Albersweiler"]
[null,null,null,null,null,null,null,null,null,null,null,null,null,null,"Preah Sihanouk","Albert"]
[null,null,null,null,null,null,null,null,null,null,null,null,null,null,"Banteay Meanchey","Albert Lea"]
[null,null,null,null,null,null,null,null,null,null,null,null,null,null,"Tboung Khmum","Albert Park"]
[null,null,null,null,null,null,null,null,null,null,null,null,null,null,"Gilbert Islands","Albert Town"]
[null,null,null,null,null,null,null,null,null,null,null,null,null,null,"Line Islands","Albertina"]
[null,null,null,null,null,null,null,null,null,null,null,null,null,null,"Phoenix Islands","Albertirsa"]
[null,null,null,null,null,null,null,null,null,null,null,null,null,null,"Moheli","Alberton"]
[null,null,null,null,null,null,null,null,null,null,null,null,null,null,"Grande Comore","Albertshofen"]
[null,null,null,null,null,null,null,null,null,null,null,null,null,null,"Anjouan","Albertslund"]
[null,null,null,null,null,null,null,null,null,null,null,null,null,null,"Trinity Palmetto Point","Albertson"]
[null,null,null,null,null,null,null,null,null,null,null,null,null,null,"Middle Island","Albertstadt"]
[null,null,null,null,null,null,null,null,null,null,null,null,null,null,"Saint Thomas Lowland","Albertville"]
[null,null,null,null,null,null,null,null,null,null,null,null,null,null,"Saint Peter Basseterre","Albesa"]
[null,null,null,null,null,null,null,null,null,null,null,null,null,null,"Saint Paul Charlestown","Albese Con Cassano"]
[null,null,null,null,null,null,null,null,null,null,null,null,null,null,"Saint Paul Capesterre","Albesti"]
[null,null,null,null,null,null,null,null,null,null,null,null,null,null,"Saint Mary Cayon","Albestii Pamanteni"]
[null,null,null,null,null,null,null,null,null,null,null,null,null,null,"Saint John Figtree","Albestii Ungureni"]
[null,null,null,null,null,null,null,null,null,null,null,null,null,null,"Saint John Capesterre","Albesti-Muru"]
[null,null,null,null,null,null,null,null,null,null,null,null,null,null,"Saint James Windwa","Albesti-Paleologu"]
[null,null,null,null,null,null,null,null,null,null,null,null,null,null,"Saint George Gingerland","Albi"]
[null,null,null,null,null,null,null,null,null,null,null,null,null,null,"Saint George Basseterre","Albia"]
[null,null,null,null,null,null,null,null,null,null,null,null,null,null,"Saint Anne Sandy Point","Albiano"]
[null,null,null,null,null,null,null,null,null,null,null,null,null,null,"Christ Church Nichola Town","Albiano d'Ivrea"]
[null,null,null,null,null,null,null,null,null,null,null,null,null,null,"Pyongyang","Albiano Magra"]
[null,null,null,null,null,null,null,null,null,null,null,null,null,null,"South Pyongan","Albias"]
[null,null,null,null,null,null,null,null,null,null,null,null,null,null,"P'yongan-bukto","Albiate"]
[null,null,null,null,null,null,null,null,null,null,null,null,null,null,"Kangwon-do","Albidona"]
[null,null,null,null,null,null,null,null,null,null,null,null,null,null,"Hwanghae-namdo","Albig"]
[null,null,null,null,null,null,null,null,null,null,null,null,null,null,"Hwanghae-bukto","Albignano"]
[null,null,null,null,null,null,null,null,null,null,null,null,null,null,"Hamgyong-namdo","Albignasego"]
[null,null,null,null,null,null,null,null,null,null,null,null,null,null,"Yanggang-do","Albigny-sur-Saone"]
[null,null,null,null,null,null,null,null,null,null,null,null,null,null,"Hamgyong-bukto","Albigowa"]
[null,null,null,null,null,null,null,null,null,null,null,null,null,null,"Chagang-do","Albina"]
[null,null,null,null,null,null,null,null,null,null,null,null,null,null,"Rason","Albinea"]
[null,null,null,null,null,null,null,null,null,null,null,null,null,null,"Ulsan","Albinia"]
[null,null,null,null,null,null,null,null,null,null,null,null,null,null,"Daejeon","Albino"]
[null,null,null,null,null,null,null,null,null,null,null,null,null,null,"Daegu","Albiolo"]
[null,null,null,null,null,null,null,null,null,null,null,null,null,null,"Seoul","Albion"]
[null,null,null,null,null,null,null,null,null,null,null,null,null,null,"Busan","Albion Park Rail"]
[null,null,null,null,null,null,null,null,null,null,null,null,null,null,"Gyeongsangbuk-do","Albis"]
[null,null,null,null,null,null,null,null,null,null,null,null,null,null,"Gyeonggi-do","Albisheim"]
[null,null,null,null,null,null,null,null,null,null,null,null,null,null,"Gwangju","Albisola Marina"]
[null,null,null,null,null,null,null,null,null,null,null,null,null,null,"Gangwon-do","Albisola Superiore"]
[null,null,null,null,null,null,null,null,null,null,null,null,null,null,"Incheon","Albitreccia"]
[null,null,null,null,null,null,null,null,null,null,null,null,null,null,"Chungcheongnam-do","Albizzate"]
[null,null,null,null,null,null,null,null,null,null,null,null,null,null,"North Chungcheong","Alblasserdam"]
[null,null,null,null,null,null,null,null,null,null,null,null,null,null,"Jeollanam-do","Albocasser"]
[null,null,null,null,null,null,null,null,null,null,null,null,null,null,"Jeollabuk-do","Albolote"]
[null,null,null,null,null,null,null,null,null,null,null,null,null,null,"Jeju-do","Alborada Jaltenco"]
[null,null,null,null,null,null,null,null,null,null,null,null,null,null,"Gyeongsangnam-do","Alboraya"]
[null,null,null,null,null,null,null,null,null,null,null,null,null,null,"Sejong-si","Albota"]
[null,null,null,null,null,null,null,null,null,null,null,null,null,null,"Hawalli","Albota de Jos"]
[null,null,null,null,null,null,null,null,null,null,null,null,null,null,"Al Asimah","Albox"]
[null,null,null,null,null,null,null,null,null,null,null,null,null,null,"Muhafazat al Jahra'","Albrechtice"]
[null,null,null,null,null,null,null,null,null,null,null,null,null,null,"Al Farwaniyah","Albrechtice nad Orlici"]
[null,null,null,null,null,null,null,null,null,null,null,null,null,null,"Al Ahmadi","Albrighton"]
[null,null,null,null,null,null,null,null,null,null,null,null,null,null,"Mubarak al Kabir","Albshausen"]
[null,null,null,null,null,null,null,null,null,null,null,null,null,null,"George Town","Albstadt"]
[null,null,null,null,null,null,null,null,null,null,null,null,null,null,"West Bay","Albu Kamal"]
[null,null,null,null,null,null,null,null,null,null,null,null,null,null,"Bodden Town","Albuccione"]
[null,null,null,null,null,null,null,null,null,null,null,null,null,null,"Sister Island","Albudeite"]
[null,null,null,null,null,null,null,null,null,null,null,null,null,null,"Batys Qazaqstan","Albuera"]
[null,null,null,null,null,null,null,null,null,null,null,null,null,null,"Mangghystau","Albufeira"]
[null,null,null,null,null,null,null,null,null,null,null,null,null,null,"Atyrau","Albuixech"]
[null,null,null,null,null,null,null,null,null,null,null,null,null,null,"Aqtoebe","Albunol"]
[null,null,null,null,null,null,null,null,null,null,null,null,null,null,"East Kazakhstan","Albunuelas"]
[null,null,null,null,null,null,null,null,null,null,null,null,null,null,"Aqmola","Albuquerque"]
[null,null,null,null,null,null,null,null,null,null,null,null,null,null,"Soltustik Qazaqstan","Alburquerque"]
[null,null,null,null,null,null,null,null,null,null,null,null,null,null,"Pavlodar","Alburtis"]
[null,null,null,null,null,null,null,null,null,null,null,null,null,null,"Qyzylorda","Albury"]
[null,null,null,null,null,null,null,null,null,null,null,null,null,null,"Qostanay","Albuzzano"]
[null,null,null,null,null,null,null,null,null,null,null,null,null,null,"Qaraghandy","Alby"]
[null,null,null,null,null,null,null,null,null,null,null,null,null,null,"Zhambyl","Alby-sur-Cheran"]
[null,null,null,null,null,null,null,null,null,null,null,null,null,null,"Ongtustik Qazaqstan","Alcabideche"]
[null,null,null,null,null,null,null,null,null,null,null,null,null,null,"Almaty Qalasy","Alcacer do Sal"]
[null,null,null,null,null,null,null,null,null,null,null,null,null,null,"Almaty Oblysy","Alcains"]
[null,null,null,null,null,null,null,null,null,null,null,null,null,null,"Baikonur","Alcala"]
[null,null,null,null,null,null,null,null,null,null,null,null,null,null,"Astana Qalasy","Alcala de Guadaira"]
[null,null,null,null,null,null,null,null,null,null,null,null,null,null,"Xiangkhoang","Alcala de Henares"]
[null,null,null,null,null,null,null,null,null,null,null,null,null,null,"Xiagnabouli","Alcala de los Gazules"]
[null,null,null,null,null,null,null,null,null,null,null,null,null,null,"Vientiane","Alcala de Xivert"]
[null,null,null,null,null,null,null,null,null,null,null,null,null,null,"Savannahkhet","Alcala del Jucar"]
[null,null,null,null,null,null,null,null,null,null,null,null,null,null,"Salavan","Alcala del Valle"]
[null,null,null,null,null,null,null,null,null,null,null,null,null,null,"Phongsali","Alcala la Real"]
[null,null,null,null,null,null,null,null,null,null,null,null,null,null,"Oudomxai","Alcalali"]
[null,null,null,null,null,null,null,null,null,null,null,null,null,null,"Louangphabang","Alcalde Diaz"]
[null,null,null,null,null,null,null,null,null,null,null,null,null,null,"Loungnamtha","Alcamo"]
[null,null,null,null,null,null,null,null,null,null,null,null,null,null,"Khammouan","Alcanar"]
[null,null,null,null,null,null,null,null,null,null,null,null,null,null,"Houaphan","Alcanede"]
[null,null,null,null,null,null,null,null,null,null,null,null,null,null,"Champasak","Alcanena"]
[null,null,null,null,null,null,null,null,null,null,null,null,null,null,"Attapu","Alcanices"]
[null,null,null,null,null,null,null,null,null,null,null,null,null,null,"Xekong","Alcaniz"]
[null,null,null,null,null,null,null,null,null,null,null,null,null,null,"Bokeo","Alcantara"]
[null,null,null,null,null,null,null,null,null,null,null,null,null,null,"Bolikhamsai","Alcantarilla"]
[null,null,null,null,null,null,null,null,null,null,null,null,null,null,"Vientiane Prefecture","Alcantera de Xuquer"]
[null,null,null,null,null,null,null,null,null,null,null,null,null,null,"Xaisomboun","Alcara Li Fusi"]
[null,null,null,null,null,null,null,null,null,null,null,null,null,null,"Mont-Liban","Alcaracejos"]
[null,null,null,null,null,null,null,null,null,null,null,null,null,null,"Beyrouth","Alcaraz"]
[null,null,null,null,null,null,null,null,null,null,null,null,null,null,"Liban-Nord","Alcarras"]
[null,null,null,null,null,null,null,null,null,null,null,null,null,null,"South Governorate","Alcasser"]
[null,null,null,null,null,null,null,null,null,null,null,null,null,null,"Beqaa","Alcaucin"]
[null,null,null,null,null,null,null,null,null,null,null,null,null,null,"Nabatiye","Alcaudete"]
[null,null,null,null,null,null,null,null,null,null,null,null,null,null,"Aakkar","Alcazar de San Juan"]
[null,null,null,null,null,null,null,null,null,null,null,null,null,null,"Baalbek-Hermel","Alcester"]
[null,null,null,null,null,null,null,null,null,null,null,null,null,null,"Vieux-Fort","Alchevs'k"]
[null,null,null,null,null,null,null,null,null,null,null,null,null,null,"Soufriere","Alcoa"]
[null,null,null,null,null,null,null,null,null,null,null,null,null,null,"Micoud","Alcobaca"]
[null,null,null,null,null,null,null,null,null,null,null,null,null,null,"Laborie","Alcobendas"]
[null,null,null,null,null,null,null,null,null,null,null,null,null,null,"Gros-Islet","Alcoceber"]
[null,null,null,null,null,null,null,null,null,null,null,null,null,null,"Dennery","Alcocer"]
[null,null,null,null,null,null,null,null,null,null,null,null,null,null,"Choiseul","Alcochete"]
[null,null,null,null,null,null,null,null,null,null,null,null,null,null,"Castries","Alcoentre"]
[null,null,null,null,null,null,null,null,null,null,null,null,null,null,"Anse-la-Raye","Alcolea"]
[null,null,null,null,null,null,null,null,null,null,null,null,null,null,"Canaries","Alcolea de Calatrava"]
[null,null,null,null,null,null,null,null,null,null,null,null,null,null,"Vaduz","Alcolea de Cinca"]
[null,null,null,null,null,null,null,null,null,null,null,null,null,null,"Triesenberg","Alcolea del Rio"]
[null,null,null,null,null,null,null,null,null,null,null,null,null,null,"Triesen","Alcoletge"]
[null,null,null,null,null,null,null,null,null,null,null,null,null,null,"Schellenberg","Alconbury"]
[null,null,null,null,null,null,null,null,null,null,null,null,null,null,"Schaan","Alconchel"]
[null,null,null,null,null,null,null,null,null,null,null,null,null,null,"Ruggell","Alcorcon"]
[null,null,null,null,null,null,null,null,null,null,null,null,null,null,"Planken","Alcorisa"]
[null,null,null,null,null,null,null,null,null,null,null,null,null,null,"Mauren","Alcover"]
[null,null,null,null,null,null,null,null,null,null,null,null,null,null,"Gamprin","Alcoy"]
[null,null,null,null,null,null,null,null,null,null,null,null,null,null,"Eschen","Alcozacan"]
[null,null,null,null,null,null,null,null,null,null,null,null,null,null,"Balzers","Alcudia"]
[null,null,null,null,null,null,null,null,null,null,null,null,null,null,"Uva","Alcuescar"]
[null,null,null,null,null,null,null,null,null,null,null,null,null,null,"Sabaragamuwa","Aldaia"]
[null,null,null,null,null,null,null,null,null,null,null,null,null,null,"North Western","Aldama"]
[null,null,null,null,null,null,null,null,null,null,null,null,null,null,"North Central","Aldan"]
[null,null,null,null,null,null,null,null,null,null,null,null,null,null,"Northern Province","Aldana"]
[null,null,null,null,null,null,null,null,null,null,null,null,null,null,"Eastern Province","Aldbourne"]
[null,null,null,null,null,null,null,null,null,null,null,null,null,null,"Sinoe","Aldbrough"]
[null,null,null,null,null,null,null,null,null,null,null,null,null,null,"Nimba","Aldea del Fresno"]
[null,null,null,null,null,null,null,null,null,null,null,null,null,null,"Montserrado","Aldea del Rey"]
[null,null,null,null,null,null,null,null,null,null,null,null,null,null,"Maryland","Aldea San Antonio"]
[null,null,null,null,null,null,null,null,null,null,null,null,null,null,"Lofa","Aldeadavila de la Ribera"]
[null,null,null,null,null,null,null,null,null,null,null,null,null,null,"Grand Gedeh","Aldeamayor de San Martin"]
[null,null,null,null,null,null,null,null,null,null,null,null,null,null,"Grand Cape Mount","Aldeanueva de Ebro"]
[null,null,null,null,null,null,null,null,null,null,null,null,null,null,"Grand Bassa","Aldeanueva de la Vera"]
[null,null,null,null,null,null,null,null,null,null,null,null,null,null,"Bong","Aldeboarn"]
[null,null,null,null,null,null,null,null,null,null,null,null,null,null,"Bomi","Aldeburgh"]
[null,null,null,null,null,null,null,null,null,null,null,null,null,null,"Grand Kru","Aldeia de Joanes"]
[null,null,null,null,null,null,null,null,null,null,null,null,null,null,"Margibi","Aldeia de Paio Pires"]
[null,null,null,null,null,null,null,null,null,null,null,null,null,null,"River Cess","Alden"]
[null,null,null,null,null,null,null,null,null,null,null,null,null,null,"Gbarpolu","Aldenhoven"]
[null,null,null,null,null,null,null,null,null,null,null,null,null,null,"River Gee","Aldeno"]
[null,null,null,null,null,null,null,null,null,null,null,null,null,null,"Thaba-Tseka","Alderbury"]
[null,null,null,null,null,null,null,null,null,null,null,null,null,null,"Quthing","Alderetes"]
[null,null,null,null,null,null,null,null,null,null,null,null,null,null,"Qacha's Nek","Aldergrove"]
[null,null,null,null,null,null,null,null,null,null,null,null,null,null,"Mokhotlong","Alderholt"]
[null,null,null,null,null,null,null,null,null,null,null,null,null,null,"Mohale's Hoek District","Alderley Edge"]
[null,null,null,null,null,null,null,null,null,null,null,null,null,null,"Maseru","Aldersbach"]
[null,null,null,null,null,null,null,null,null,null,null,null,null,null,"Mafeteng","Aldershot"]
[null,null,null,null,null,null,null,null,null,null,null,null,null,null,"Leribe","Alderson"]
[null,null,null,null,null,null,null,null,null,null,null,null,null,null,"Butha-Buthe","Alderton"]
[null,null,null,null,null,null,null,null,null,null,null,null,null,null,"Berea","Alderwood Manor"]
[null,null,null,null,null,null,null,null,null,null,null,null,null,null,"Alytus","Aldgate"]
[null,null,null,null,null,null,null,null,null,null,null,null,null,null,"Kaunas","Aldine"]
[null,null,null,null,null,null,null,null,null,null,null,null,null,null,"Klaipeda County","Aldinga"]
[null,null,null,null,null,null,null,null,null,null,null,null,null,null,"Marijampole County","Aldingen"]
[null,null,null,null,null,null,null,null,null,null,null,null,null,null,"Panevezys","Aldino"]
[null,null,null,null,null,null,null,null,null,null,null,null,null,null,"Siauliai","Aldlan-Oost"]
[null,null,null,null,null,null,null,null,null,null,null,null,null,null,"Taurage County","Aldona"]
[null,null,null,null,null,null,null,null,null,null,null,null,null,null,"Telsiai","Aldridge"]
[null,null,null,null,null,null,null,null,null,null,null,null,null,null,"Utena","Aled"]
[null,null,null,null,null,null,null,null,null,null,null,null,null,null,"Vilnius","Aledo"]
[null,null,null,null,null,null,null,null,null,null,null,null,null,null,"Wiltz","Aleg"]
[null,null,null,null,null,null,null,null,null,null,null,null,null,null,"Vianden","Alegre"]
[null,null,null,null,null,null,null,null,null,null,null,null,null,null,"Remich","Alegrete"]
[null,null,null,null,null,null,null,null,null,null,null,null,null,null,"Redange","Alegria"]
[null,null,null,null,null,null,null,null,null,null,null,null,null,null,"Mersch","Alejal"]
[null,null,null,null,null,null,null,null,null,null,null,null,null,null,"Luxembourg","Alejandro Gallinal"]
[null,null,null,null,null,null,null,null,null,null,null,null,null,null,"Grevenmacher","Alejandro Roca"]
[null,null,null,null,null,null,null,null,null,null,null,null,null,null,"Esch-sur-Alzette","Alejo Gonzalez (Bilbao)"]
[null,null,null,null,null,null,null,null,null,null,null,null,null,null,"Echternach","Alejo Ledesma"]
[null,null,null,null,null,null,null,null,null,null,null,null,null,null,"Diekirch","Aleksandriya"]
[null,null,null,null,null,null,null,null,null,null,null,null,null,null,"Clervaux","Aleksandriyskaya"]
[null,null,null,null,null,null,null,null,null,null,null,null,null,null,"Capellen","Aleksandro-Nevskiy"]
[null,null,null,null,null,null,null,null,null,null,null,null,null,null,"Ventspils Rajons","Aleksandrov"]
[null,null,null,null,null,null,null,null,null,null,null,null,null,null,"Ventspils","Aleksandrov Gay"]
[null,null,null,null,null,null,null,null,null,null,null,null,null,null,"Valmieras Rajons","Aleksandrovka"]
[null,null,null,null,null,null,null,null,null,null,null,null,null,null,"Valka","Aleksandrovo"]
[null,null,null,null,null,null,null,null,null,null,null,null,null,null,"Tukuma Rajons","Aleksandrovsk"]
[null,null,null,null,null,null,null,null,null,null,null,null,null,null,"Talsi Municipality","Aleksandrovskaya"]
[null,null,null,null,null,null,null,null,null,null,null,null,null,null,"Saldus Rajons","Aleksandrovskiy Zavod"]
[null,null,null,null,null,null,null,null,null,null,null,null,null,null,"Riga","Aleksandrovskoye"]
[null,null,null,null,null,null,null,null,null,null,null,null,null,null,"Rezeknes Rajons","Aleksandrovsk-Sakhalinskiy"]
[null,null,null,null,null,null,null,null,null,null,null,null,null,null,"Rezekne","Aleksandrow"]
[null,null,null,null,null,null,null,null,null,null,null,null,null,null,"Preilu novads","Aleksandrow Kujawski"]
[null,null,null,null,null,null,null,null,null,null,null,null,null,null,"Ogre","Aleksandrow Lodzki"]
[null,null,null,null,null,null,null,null,null,null,null,null,null,null,"Madona Municipality","Alekseyevka"]
[null,null,null,null,null,null,null,null,null,null,null,null,null,null,"Ludzas Rajons","Alekseyevskaya"]
[null,null,null,null,null,null,null,null,null,null,null,null,null,null,"Limbazu Rajons","Alekseyevskoye"]
[null,null,null,null,null,null,null,null,null,null,null,null,null,null,"Liepaja","Aleksin"]
[null,null,null,null,null,null,null,null,null,null,null,null,null,null,"Kuldigas Rajons","Aleksotas"]
[null,null,null,null,null,null,null,null,null,null,null,null,null,null,"Kraslavas Rajons","Alella"]
[null,null,null,null,null,null,null,null,null,null,null,null,null,null,"Jurmala","Alem Paraiba"]
[null,null,null,null,null,null,null,null,null,null,null,null,null,null,"Jelgavas Rajons","Alemanguan"]
[null,null,null,null,null,null,null,null,null,null,null,null,null,null,"Jelgava","Alencon"]
[null,null,null,null,null,null,null,null,null,null,null,null,null,null,"Jekabpils Municipality","Alenquer"]
[null,null,null,null,null,null,null,null,null,null,null,null,null,null,"Gulbenes Rajons","Alenya"]
[null,null,null,null,null,null,null,null,null,null,null,null,null,null,"Dobeles Rajons","Alepou"]
[null,null,null,null,null,null,null,null,null,null,null,null,null,null,"Daugavpils municipality","Aleppo"]
[null,null,null,null,null,null,null,null,null,null,null,null,null,null,"Daugavpils","Alerheim"]
[null,null,null,null,null,null,null,null,null,null,null,null,null,null,"Cesu Rajons","Aleria"]
[null,null,null,null,null,null,null,null,null,null,null,null,null,null,"Bauskas Rajons","Ales"]
[null,null,null,null,null,null,null,null,null,null,null,null,null,null,"Balvu Rajons","Alesd"]
[null,null,null,null,null,null,null,null,null,null,null,null,null,null,"Aluksnes Novads","Alesheim"]
[null,null,null,null,null,null,null,null,null,null,null,null,null,null,"Aizkraukles Rajons","Aleshtar"]
[null,null,null,null,null,null,null,null,null,null,null,null,null,null,"Dundaga","Alessandria"]
[null,null,null,null,null,null,null,null,null,null,null,null,null,null,"Alsunga","Alessandria della Rocca"]
[null,null,null,null,null,null,null,null,null,null,null,null,null,null,"Pavilostas","Alessano"]
[null,null,null,null,null,null,null,null,null,null,null,null,null,null,"Nica","Alestrup"]
[null,null,null,null,null,null,null,null,null,null,null,null,null,null,"Rucavas","Alesund"]
[null,null,null,null,null,null,null,null,null,null,null,null,null,null,"Grobina","Aletshausen"]
[null,null,null,null,null,null,null,null,null,null,null,null,null,null,"Durbe","Alexander"]
[null,null,null,null,null,null,null,null,null,null,null,null,null,null,"Aizpute","Alexander City"]
[null,null,null,null,null,null,null,null,null,null,null,null,null,null,"Priekule","Alexander Heights"]
[null,null,null,null,null,null,null,null,null,null,null,null,null,null,"Vainode","Alexandra"]
[null,null,null,null,null,null,null,null,null,null,null,null,null,null,"Skrunda","Alexandreia"]
[null,null,null,null,null,null,null,null,null,null,null,null,null,null,"Broceni","Alexandria"]
[null,null,null,null,null,null,null,null,null,null,null,null,null,null,"Rojas","Alexandria Bay"]
[null,null,null,null,null,null,null,null,null,null,null,null,null,null,"Kandava","Alexandroupoli"]
[null,null,null,null,null,null,null,null,null,null,null,null,null,null,"Auces","Alexandru Odobescu"]
[null,null,null,null,null,null,null,null,null,null,null,null,null,null,"Jaunpils","Alexandru Vlahuta"]
[null,null,null,null,null,null,null,null,null,null,null,null,null,null,"Engure","Alexeni"]
[null,null,null,null,null,null,null,null,null,null,null,null,null,null,"Tervete","Aleysk"]
[null,null,null,null,null,null,null,null,null,null,null,null,null,null,"Ozolnieku","Alezio"]
[null,null,null,null,null,null,null,null,null,null,null,null,null,null,"Rundales","Alfacar"]
[null,null,null,null,null,null,null,null,null,null,null,null,null,null,"Babite","Alfafar"]
[null,null,null,null,null,null,null,null,null,null,null,null,null,null,"Marupe","Alfajarin"]
[null,null,null,null,null,null,null,null,null,null,null,null,null,null,"Olaine","Alfamen"]
[null,null,null,null,null,null,null,null,null,null,null,null,null,null,"Lecava","Alfano"]
[null,null,null,null,null,null,null,null,null,null,null,null,null,null,"Kekava","Alfara del Patriarca"]
[null,null,null,null,null,null,null,null,null,null,null,null,null,null,"Salaspils","Alfarelos"]
[null,null,null,null,null,null,null,null,null,null,null,null,null,null,"Baldone","Alfarnate"]
[null,null,null,null,null,null,null,null,null,null,null,null,null,null,"Stopini","Alfaro"]
[null,null,null,null,null,null,null,null,null,null,null,null,null,null,"Carnikava","Alfarp"]
[null,null,null,null,null,null,null,null,null,null,null,null,null,null,"Adazi","Alfarras"]
[null,null,null,null,null,null,null,null,null,null,null,null,null,null,"Garkalne","Alfarrasi"]
[null,null,null,null,null,null,null,null,null,null,null,null,null,null,"Vecumnieki","Alfatar"]
[null,null,null,null,null,null,null,null,null,null,null,null,null,null,"Kegums","Alfdorf"]
[null,null,null,null,null,null,null,null,null,null,null,null,null,null,"Lielvarde","Alfeiousa"]
[null,null,null,null,null,null,null,null,null,null,null,null,null,null,"Skriveri","Alfeld"]
[null,null,null,null,null,null,null,null,null,null,null,null,null,null,"Jaunjelgava","Alfena"]
[null,null,null,null,null,null,null,null,null,null,null,null,null,null,"Nereta","Alfenas"]
[null,null,null,null,null,null,null,null,null,null,null,null,null,null,"Viesite","Alferrarede"]
[null,null,null,null,null,null,null,null,null,null,null,null,null,null,"Salas","Alfhausen"]
[null,null,null,null,null,null,null,null,null,null,null,null,null,null,"Jekabpils","Alfianello"]
[null,null,null,null,null,null,null,null,null,null,null,null,null,null,"Akniste","Alfonsine"]
[null,null,null,null,null,null,null,null,null,null,null,null,null,null,"Ilukste","Alfonso"]
[null,null,null,null,null,null,null,null,null,null,null,null,null,null,"Varkava","Alfonso G. Calderon (Poblado Siete)"]
[null,null,null,null,null,null,null,null,null,null,null,null,null,null,"Livani","Alfonso G. Calderon Velarde"]
[null,null,null,null,null,null,null,null,null,null,null,null,null,null,"Varaklani","Alfonso Garzon [Granjas Familiares]"]
[null,null,null,null,null,null,null,null,null,null,null,null,null,null,"Vilanu","Alfonso Moguel"]
[null,null,null,null,null,null,null,null,null,null,null,null,null,null,"Riebinu","Alford"]
[null,null,null,null,null,null,null,null,null,null,null,null,null,null,"Aglona","Alforja"]
[null,null,null,null,null,null,null,null,null,null,null,null,null,null,"Cibla","Alfortville"]
[null,null,null,null,null,null,null,null,null,null,null,null,null,null,"Zilupes","Alfred"]
[null,null,null,null,null,null,null,null,null,null,null,null,null,null,"Vilaka","Alfred Cove"]
[null,null,null,null,null,null,null,null,null,null,null,null,null,null,"Baltinava","Alfredo Baquerizo Moreno"]
[null,null,null,null,null,null,null,null,null,null,null,null,null,null,"Dagda","Alfredo Chaves"]
[null,null,null,null,null,null,null,null,null,null,null,null,null,null,"Karsava","Alfredo V. Bonfil"]
[null,null,null,null,null,null,null,null,null,null,null,null,null,null,"Rugaju","Alfredo V. Bonfil (Chacampalco)"]
[null,null,null,null,null,null,null,null,null,null,null,null,null,null,"Cesvaine","Alfredo V. Bonfil (Siete Ejidos)"]
[null,null,null,null,null,null,null,null,null,null,null,null,null,null,"Lubana","Alfreton"]
[null,null,null,null,null,null,null,null,null,null,null,null,null,null,"Krustpils","Alfta"]
[null,null,null,null,null,null,null,null,null,null,null,null,null,null,"Plavinu","Alftanes"]
[null,null,null,null,null,null,null,null,null,null,null,null,null,null,"Koknese","Alfter"]
[null,null,null,null,null,null,null,null,null,null,null,null,null,null,"Ikskile","Algaida"]
[null,null,null,null,null,null,null,null,null,null,null,null,null,null,"Ropazu","Algamitas"]
[null,null,null,null,null,null,null,null,null,null,null,null,null,null,"Incukalns","Algar"]
[null,null,null,null,null,null,null,null,null,null,null,null,null,null,"Krimulda","Algarinejo"]
[null,null,null,null,null,null,null,null,null,null,null,null,null,null,"Sigulda","Algarrobo"]
[null,null,null,null,null,null,null,null,null,null,null,null,null,null,"Ligatne","Algarrobos Arriba"]
[null,null,null,null,null,null,null,null,null,null,null,null,null,null,"Malpils","Algatuy"]
[null,null,null,null,null,null,null,null,null,null,null,null,null,null,"Seja","Algeciras"]
[null,null,null,null,null,null,null,null,null,null,null,null,null,null,"Saulkrastu","Algemesi"]
[null,null,null,null,null,null,null,null,null,null,null,null,null,null,"Salacgrivas","Algermissen"]
[null,null,null,null,null,null,null,null,null,null,null,null,null,null,"Aloja","Alges"]
[null,null,null,null,null,null,null,null,null,null,null,null,null,null,"Naukseni","Algete"]
[null,null,null,null,null,null,null,null,null,null,null,null,null,null,"Rujienas","Alghero"]
[null,null,null,null,null,null,null,null,null,null,null,null,null,null,"Mazsalaca","Algiers"]
[null,null,null,null,null,null,null,null,null,null,null,null,null,null,"Burtnieki","Alginet"]
[null,null,null,null,null,null,null,null,null,null,null,null,null,null,"Pargaujas","Algodonales"]
[null,null,null,null,null,null,null,null,null,null,null,null,null,null,"Koceni","Algolsheim"]
[null,null,null,null,null,null,null,null,null,null,null,null,null,null,"Amatas","Algoma"]
[null,null,null,null,null,null,null,null,null,null,null,null,null,null,"Priekuli","Algona"]
[null,null,null,null,null,null,null,null,null,null,null,null,null,null,"Raunas","Algonac"]
[null,null,null,null,null,null,null,null,null,null,null,null,null,null,"Strenci","Algonquin"]
[null,null,null,null,null,null,null,null,null,null,null,null,null,null,"Beverina","Algood"]
[null,null,null,null,null,null,null,null,null,null,null,null,null,null,"Smiltene","Algorfa"]
[null,null,null,null,null,null,null,null,null,null,null,null,null,null,"Jaunpiebalga","Algorta"]
[null,null,null,null,null,null,null,null,null,null,null,null,null,null,"Ergli","Algrange"]
[null,null,null,null,null,null,null,null,null,null,null,null,null,null,"Vecpiebalga","Alguaire"]
[null,null,null,null,null,null,null,null,null,null,null,null,null,null,"Apes","Alguazas"]
[null,null,null,null,null,null,null,null,null,null,null,null,null,null,"Mesraga","Alguena"]
[null,null,null,null,null,null,null,null,null,null,null,null,null,null,"Darnah","Algyo"]
[null,null,null,null,null,null,null,null,null,null,null,null,null,null,"Banghazi","Alhadas"]
[null,null,null,null,null,null,null,null,null,null,null,null,null,null,"Al Marj","Alhama de Almeria"]
[null,null,null,null,null,null,null,null,null,null,null,null,null,null,"Al Kufrah","Alhama de Aragon"]
[null,null,null,null,null,null,null,null,null,null,null,null,null,null,"Al Jabal al Akhdar","Alhama de Granada"]
[null,null,null,null,null,null,null,null,null,null,null,null,null,null,"Tripoli","Alhama de Murcia"]
[null,null,null,null,null,null,null,null,null,null,null,null,null,null,"Surt","Alhambra"]
[null,null,null,null,null,null,null,null,null,null,null,null,null,null,"Sabha","Al-Hamdaniya"]
[null,null,null,null,null,null,null,null,null,null,null,null,null,null,"Sha`biyat Nalut","Alhandra"]
[null,null,null,null,null,null,null,null,null,null,null,null,null,null,"Murzuq","Alhaurin de la Torre"]
[null,null,null,null,null,null,null,null,null,null,null,null,null,null,"Misratah","Alhaurin el Grande"]
[null,null,null,null,null,null,null,null,null,null,null,null,null,null,"Sha`biyat Ghat","Alheim"]
[null,null,null,null,null,null,null,null,null,null,null,null,null,null,"Az Zawiyah","Alhendin"]
[null,null,null,null,null,null,null,null,null,null,null,null,null,null,"Sha'biyat Wadi ash Shati'","Alhos Vedros"]
[null,null,null,null,null,null,null,null,null,null,null,null,null,null,"Al Jufrah","Alhuey"]
[null,null,null,null,null,null,null,null,null,null,null,null,null,null,"An Nuqat al Khams","'Ali al Gharbi"]
[null,null,null,null,null,null,null,null,null,null,null,null,null,null,"Sha`biyat al Butnan","'Ali Sabieh"]
[null,null,null,null,null,null,null,null,null,null,null,null,null,null,"Jabal al Gharbi","Ali Terme"]
[null,null,null,null,null,null,null,null,null,null,null,null,null,null,"Sha`biyat al Jafarah","Alia"]
[null,null,null,null,null,null,null,null,null,null,null,null,null,null,"Al Marqab","Aliabad"]
[null,null,null,null,null,null,null,null,null,null,null,null,null,null,"Sha`biyat al Wahat","Aliade"]
[null,null,null,null,null,null,null,null,null,null,null,null,null,null,"Sha`biyat Wadi al Hayat","Aliaga"]
[null,null,null,null,null,null,null,null,null,null,null,null,null,null,"Tanger-Tetouan-Al Hoceima","Aliang"]
[null,null,null,null,null,null,null,null,null,null,null,null,null,null,"Oriental","Alianza Real"]
[null,null,null,null,null,null,null,null,null,null,null,null,null,null,"Fes-Meknes","Aliartos"]
[null,null,null,null,null,null,null,null,null,null,null,null,null,null,"Rabat-Sale-Kenitra","Alibag"]
[null,null,null,null,null,null,null,null,null,null,null,null,null,null,"Beni Mellal-Khenifra","Alibago"]
[null,null,null,null,null,null,null,null,null,null,null,null,null,null,"Casablanca-Settat","Ali-Berdukovskiy"]
[null,null,null,null,null,null,null,null,null,null,null,null,null,null,"Marrakesh-Safi","Alibug"]
[null,null,null,null,null,null,null,null,null,null,null,null,null,null,"Draa-Tafilalet","Alibunan"]
[null,null,null,null,null,null,null,null,null,null,null,null,null,null,"Souss-Massa","Alibunar"]
[null,null,null,null,null,null,null,null,null,null,null,null,null,null,"Guelmim-Oued Noun","Alicante"]
[null,null,null,null,null,null,null,null,null,null,null,null,null,null,"Laayoune-Sakia El Hamra","Alice"]
[null,null,null,null,null,null,null,null,null,null,null,null,null,null,"Dakhla-Oued Ed-Dahab","Alice Castello"]
[null,null,null,null,null,null,null,null,null,null,null,null,null,null,"Commune de Monaco","Alice Springs"]
[null,null,null,null,null,null,null,null,null,null,null,null,null,null,"Raionul Edinet","Aliceville"]
[null,null,null,null,null,null,null,null,null,null,null,null,null,null,"Ungheni","Alicia"]
[null,null,null,null,null,null,null,null,null,null,null,null,null,null,"Telenesti","Alife"]
[null,null,null,null,null,null,null,null,null,null,null,null,null,null,"Taraclia","Aliganj"]
[null,null,null,null,null,null,null,null,null,null,null,null,null,null,"Stefan-Voda","Aligarh"]
[null,null,null,null,null,null,null,null,null,null,null,null,null,null,"Straseni","Alignan-du-Vent"]
[null,null,null,null,null,null,null,null,null,null,null,null,null,null,"Raionul Soroca","Aligudarz"]
[null,null,null,null,null,null,null,null,null,null,null,null,null,null,"Riscani","Alijis"]
[null,null,null,null,null,null,null,null,null,null,null,null,null,null,"Rezina","Alik Ghund"]
[null,null,null,null,null,null,null,null,null,null,null,null,null,null,"Orhei","Alikalia"]
[null,null,null,null,null,null,null,null,null,null,null,null,null,null,"Raionul Ocnita","Alikovo"]
[null,null,null,null,null,null,null,null,null,null,null,null,null,null,"Anenii Noi","Alim"]
[null,null,null,null,null,null,null,null,null,null,null,null,null,null,"Nisporeni","Aliman"]
[null,null,null,null,null,null,null,null,null,null,null,null,null,null,"Leova","Alimanesti"]
[null,null,null,null,null,null,null,null,null,null,null,null,null,null,"Singerei","Alimena"]
[null,null,null,null,null,null,null,null,null,null,null,null,null,null,"Criuleni","Aliminusa"]
[null,null,null,null,null,null,null,null,null,null,null,null,null,null,"Ialoveni","Alimodian"]
[null,null,null,null,null,null,null,null,null,null,null,null,null,null,"Chisinau Municipality","Alimono"]
[null,null,null,null,null,null,null,null,null,null,null,null,null,null,"Causeni","Alimos"]
[null,null,null,null,null,null,null,null,null,null,null,null,null,null,"Cantemir","Alimpesti"]
[null,null,null,null,null,null,null,null,null,null,null,null,null,null,"Calarasi","Alindao"]
[null,null,null,null,null,null,null,null,null,null,null,null,null,null,"Cahul","Alingsas"]
[null,null,null,null,null,null,null,null,null,null,null,null,null,null,"Glodeni","Alipur"]
[null,null,null,null,null,null,null,null,null,null,null,null,null,null,"Floresti","Alipur Duar"]
[null,null,null,null,null,null,null,null,null,null,null,null,null,null,"Falesti","Aliquippa"]
[null,null,null,null,null,null,null,null,null,null,null,null,null,null,"Dubasari","Aliseda"]
[null,null,null,null,null,null,null,null,null,null,null,null,null,null,"Drochia","Aliso Viejo"]
[null,null,null,null,null,null,null,null,null,null,null,null,null,null,"Donduseni","Alissas"]
[null,null,null,null,null,null,null,null,null,null,null,null,null,null,"Cimislia","Alista"]
[null,null,null,null,null,null,null,null,null,null,null,null,null,null,"Briceni","Alistrati"]
[null,null,null,null,null,null,null,null,null,null,null,null,null,null,"Basarabeasca","Alitagtag"]
[null,null,null,null,null,null,null,null,null,null,null,null,null,null,"Hincesti","Aliveri"]
[null,null,null,null,null,null,null,null,null,null,null,null,null,null,"Soldanesti","Aliwal North"]
[null,null,null,null,null,null,null,null,null,null,null,null,null,null,"Stinga Nistrului","Alixan"]
[null,null,null,null,null,null,null,null,null,null,null,null,null,null,"Gagauzia","Ali-Yurt"]
[null,null,null,null,null,null,null,null,null,null,null,null,null,null,"Bender Municipality","Alizai"]
[null,null,null,null,null,null,null,null,null,null,null,null,null,null,"Balti","Alizay"]
[null,null,null,null,null,null,null,null,null,null,null,null,null,null,"Opstina Rozaje","Aljaraque"]
[null,null,null,null,null,null,null,null,null,null,null,null,null,null,"Opstina Zabljak","Aljezur"]
[null,null,null,null,null,null,null,null,null,null,null,null,null,null,"Ulcinj","Aljojuca"]
[null,null,null,null,null,null,null,null,null,null,null,null,null,null,"Tivat","Aljubarrota"]
[null,null,null,null,null,null,null,null,null,null,null,null,null,null,"Podgorica","Aljustrel"]
[null,null,null,null,null,null,null,null,null,null,null,null,null,null,"Opstina Savnik","Alken"]
[null,null,null,null,null,null,null,null,null,null,null,null,null,null,"Opstina Pluzine","Alkhan-Churt"]
[null,null,null,null,null,null,null,null,null,null,null,null,null,null,"Pljevlja","Alkhan-Kala"]
[null,null,null,null,null,null,null,null,null,null,null,null,null,null,"Opstina Plav","Alkhan-Yurt"]
[null,null,null,null,null,null,null,null,null,null,null,null,null,null,"Opstina Niksic","AL-khasha upper"]
[null,null,null,null,null,null,null,null,null,null,null,null,null,null,"Mojkovac","Alkhazurovo"]
[null,null,null,null,null,null,null,null,null,null,null,null,null,null,"Kotor","Alkmaar"]
[null,null,null,null,null,null,null,null,null,null,null,null,null,null,"Opstina Kolasin","al-Kum"]
[null,null,null,null,null,null,null,null,null,null,null,null,null,null,"Berane","All Saints"]
[null,null,null,null,null,null,null,null,null,null,null,null,null,null,"Herceg Novi","Allacapan"]
[null,null,null,null,null,null,null,null,null,null,null,null,null,null,"Danilovgrad","Allada"]
[null,null,null,null,null,null,null,null,null,null,null,null,null,null,"Cetinje","Allahabad"]
[null,null,null,null,null,null,null,null,null,null,null,null,null,null,"Budva","Allahganj"]
[null,null,null,null,null,null,null,null,null,null,null,null,null,null,"Bijelo Polje","Allaire"]
[null,null,null,null,null,null,null,null,null,null,null,null,null,null,"Bar","Allambie Heights"]
[null,null,null,null,null,null,null,null,null,null,null,null,null,null,"Andrijevica","Allan"]
[null,null,null,null,null,null,null,null,null,null,null,null,null,null,"Gusinje","Allanche"]
[null,null,null,null,null,null,null,null,null,null,null,null,null,null,"Petnjica","Allangigan Primero"]
[null,null,null,null,null,null,null,null,null,null,null,null,null,null,"Diana","Allanridge"]
[null,null,null,null,null,null,null,null,null,null,null,null,null,null,"Sava","Allansford"]
[null,null,null,null,null,null,null,null,null,null,null,null,null,null,"Analanjirofo","Allanton"]
[null,null,null,null,null,null,null,null,null,null,null,null,null,null,"Boeny","Allapalli"]
[null,null,null,null,null,null,null,null,null,null,null,null,null,null,"Betsiboka","Allapattah"]
[null,null,null,null,null,null,null,null,null,null,null,null,null,null,"Alaotra Mangoro","Allariz"]
[null,null,null,null,null,null,null,null,null,null,null,null,null,null,"Melaky","Allassac"]
[null,null,null,null,null,null,null,null,null,null,null,null,null,null,"Bongolava","Allauch"]
[null,null,null,null,null,null,null,null,null,null,null,null,null,null,"Vakinankaratra","Alle"]
[null,null,null,null,null,null,null,null,null,null,null,null,null,null,"Itasy","Allegan"]
[null,null,null,null,null,null,null,null,null,null,null,null,null,null,"Analamanga","Allegany"]
[null,null,null,null,null,null,null,null,null,null,null,null,null,null,"Atsinanana","Alleghenyville"]
[null,null,null,null,null,null,null,null,null,null,null,null,null,null,"Menabe","Allegre"]
[null,null,null,null,null,null,null,null,null,null,null,null,null,null,"Amoron'i Mania","Alleins"]
[null,null,null,null,null,null,null,null,null,null,null,null,null,null,"Upper Matsiatra","Allen"]
[null,null,null,null,null,null,null,null,null,null,null,null,null,null,"Vatovavy Fitovinany","Allen Park"]
[null,null,null,null,null,null,null,null,null,null,null,null,null,null,"Ihorombe","Allenby Gardens"]
[null,null,null,null,null,null,null,null,null,null,null,null,null,null,"Atsimo-Atsinanana","Allendale"]
[null,null,null,null,null,null,null,null,null,null,null,null,null,null,"Anosy","Allende"]
[null,null,null,null,null,null,null,null,null,null,null,null,null,null,"Androy","Allendorf"]
[null,null,null,null,null,null,null,null,null,null,null,null,null,null,"Atsimo-Andrefana","Allendorf an der Lahn"]
[null,null,null,null,null,null,null,null,null,null,null,null,null,null,"Ailinginae Atoll","Allennes-les-Marais"]
[null,null,null,null,null,null,null,null,null,null,null,null,null,null,"Ailinglaplap Atoll","Allensbach"]
[null,null,null,null,null,null,null,null,null,null,null,null,null,null,"Ailuk Atoll","Allentown"]
[null,null,null,null,null,null,null,null,null,null,null,null,null,null,"Arno Atoll","Alleppey"]
[null,null,null,null,null,null,null,null,null,null,null,null,null,null,"Aur Atoll","Alleroy"]
[null,null,null,null,null,null,null,null,null,null,null,null,null,null,"Bikar Atoll","Allersberg"]
[null,null,null,null,null,null,null,null,null,null,null,null,null,null,"Bikini Atoll","Allershausen"]
[null,null,null,null,null,null,null,null,null,null,null,null,null,null,"Ebon Atoll","Allevard"]
[null,null,null,null,null,null,null,null,null,null,null,null,null,null,"Enewetak Atoll","Allex"]
[null,null,null,null,null,null,null,null,null,null,null,null,null,null,"Erikub Atoll","Allhallows"]
[null,null,null,null,null,null,null,null,null,null,null,null,null,null,"Jaluit Atoll","Alli Meria"]
[null,null,null,null,null,null,null,null,null,null,null,null,null,null,"Kwajalein Atoll","Alliance"]
[null,null,null,null,null,null,null,null,null,null,null,null,null,null,"Lae Atoll","Allieres-et-Risset"]
[null,null,null,null,null,null,null,null,null,null,null,null,null,null,"Likiep Atoll","Alligator Pond"]
[null,null,null,null,null,null,null,null,null,null,null,null,null,null,"Majuro Atoll","Alling"]
[null,null,null,null,null,null,null,null,null,null,null,null,null,null,"Maloelap Atoll","Allingabro"]
[null,null,null,null,null,null,null,null,null,null,null,null,null,null,"Mili Atoll","Allinges"]
[null,null,null,null,null,null,null,null,null,null,null,null,null,null,"Namdrik Atoll","Allison"]
[null,null,null,null,null,null,null,null,null,null,null,null,null,null,"Namu Atoll","Allison Park"]
[null,null,null,null,null,null,null,null,null,null,null,null,null,null,"Rongelap Atoll","Alliste"]
[null,null,null,null,null,null,null,null,null,null,null,null,null,null,"Rongrik Atoll","Allmendingen"]
[null,null,null,null,null,null,null,null,null,null,null,null,null,null,"Taka Atoll","Allmersbach im Tal"]
[null,null,null,null,null,null,null,null,null,null,null,null,null,null,"Bokak Atoll","Allo"]
[null,null,null,null,null,null,null,null,null,null,null,null,null,null,"Ujae Atoll","Alloa"]
[null,null,null,null,null,null,null,null,null,null,null,null,null,null,"Ujelang","Allonne"]
[null,null,null,null,null,null,null,null,null,null,null,null,null,null,"Utrik Atoll","Allonnes"]
[null,null,null,null,null,null,null,null,null,null,null,null,null,null,"Wotho Atoll","Allonzier-la-Caille"]
[null,null,null,null,null,null,null,null,null,null,null,null,null,null,"Wotje Atoll","Allouagne"]
[null,null,null,null,null,null,null,null,null,null,null,null,null,null,"Jabat Island","Allouez"]
[null,null,null,null,null,null,null,null,null,null,null,null,null,null,"Jemo Island","Alloway"]
[null,null,null,null,null,null,null,null,null,null,null,null,null,null,"Kili Island","Allschwil"]
[null,null,null,null,null,null,null,null,null,null,null,null,null,null,"Lib Island","Allstedt"]
[null,null,null,null,null,null,null,null,null,null,null,null,null,null,"Mejit Island","Allumiere"]
[null,null,null,null,null,null,null,null,null,null,null,null,null,null,"Valandovo","Allyn"]
[null,null,null,null,null,null,null,null,null,null,null,null,null,null,"Resen","Alma"]
[null,null,null,null,null,null,null,null,null,null,null,null,null,null,"Kratovo","Almacelles"]
[null,null,null,null,null,null,null,null,null,null,null,null,null,null,"Pehcevo","Almachar"]
[null,null,null,null,null,null,null,null,null,null,null,null,null,null,"Novo Selo","Almada"]
[null,null,null,null,null,null,null,null,null,null,null,null,null,null,"Bosilovo","Almafuerte"]
[null,null,null,null,null,null,null,null,null,null,null,null,null,null,"Vasilevo","Almagres"]
[null,null,null,null,null,null,null,null,null,null,null,null,null,null,"Dojran","Almagro"]
[null,null,null,null,null,null,null,null,null,null,null,null,null,null,"Bogdanci","Almaguer"]
[null,null,null,null,null,null,null,null,null,null,null,null,null,null,"Konce","Almaguer North"]
[null,null,null,null,null,null,null,null,null,null,null,null,null,null,"Makedonska Kamenica","Almancil"]
[null,null,null,null,null,null,null,null,null,null,null,null,null,null,"Zrnovci","Almansa"]
[null,null,null,null,null,null,null,null,null,null,null,null,null,null,"Karbinci","Almaraz"]
[null,null,null,null,null,null,null,null,null,null,null,null,null,null,"Demir Kapija","Almargem"]
[null,null,null,null,null,null,null,null,null,null,null,null,null,null,"Rosoman","Almargen"]
[null,null,null,null,null,null,null,null,null,null,null,null,null,null,"Gradsko","Almas"]
[null,null,null,null,null,null,null,null,null,null,null,null,null,null,"Lozovo","Al-Masayel"]
[null,null,null,null,null,null,null,null,null,null,null,null,null,null,"Cesinovo-Oblesevo","Almasfuzito"]
[null,null,null,null,null,null,null,null,null,null,null,null,null,null,"Novaci","Almassora"]
[null,null,null,null,null,null,null,null,null,null,null,null,null,null,"Kisela Voda","Almirante Tamandare"]
[null,null,null,null,null,null,null,null,null,null,null,null,null,null,"Stip","Almunecar"]
[null,null,null,null,null,null,null,null,null,null,null,null,null,null,"Middle Govi","Alsdorf"]
[null,null,null,null,null,null,null,null,null,null,null,null,null,null,"Il-Qala","Altenkirchen"]
[null,null,null,null,null,null,null,null,null,null,null,null,null,null,"Iz-Zebbug","Altheim"]
[null,null,null,null,null,null,null,null,null,null,null,null,null,null,"Sinaloa","Altsasu"]
[null,null,null,null,null,null,null,null,null,null,null,null,null,null,"Niassa","Alvand"]
[null,null,null,null,null,null,null,null,null,null,null,null,null,null,"FCT","Amal"]
[null,null,null,null,null,null,null,null,null,null,null,null,null,null,"North Holland","Amasya"]
[null,null,null,null,null,null,null,null,null,null,null,null,null,null,"Anabar","Ambelokipoi"]
[null,null,null,null,null,null,null,null,null,null,null,null,null,null,"Ica","American Canyon"]
[null,null,null,null,null,null,null,null,null,null,null,null,null,null,"Gulf","Amguri"]
[null,null,null,null,null,null,null,null,null,null,null,null,null,null,"Barceloneta","Ampeleies"]
[null,null,null,null,null,null,null,null,null,null,null,null,null,null,"Loiza","Amulung"]
[null,null,null,null,null,null,null,null,null,null,null,null,null,null,"Porto","Anamas"]
[null,null,null,null,null,null,null,null,null,null,null,null,null,null,"Baladiyat ad Dawhah","Anchorage"]
[null,null,null,null,null,null,null,null,null,null,null,null,null,null,"Arges","Andeville"]
[null,null,null,null,null,null,null,null,null,null,null,null,null,null,"Ivanovo","Andreze"]
[null,null,null,null,null,null,null,null,null,null,null,null,null,null,"Khabarovsk","Angarsk"]
[null,null,null,null,null,null,null,null,null,null,null,null,null,null,"White Nile","Anguillara Veneta"]
[null,null,null,null,null,null,null,null,null,null,null,null,null,null,"Kronoberg","Anitrella-Chiaiamari"]
[null,null,null,null,null,null,null,null,null,null,null,null,null,null,"Crnomelj","Annino"]
[null,null,null,null,null,null,null,null,null,null,null,null,null,null,"Zrece","Anshun"]
[null,null,null,null,null,null,null,null,null,null,null,null,null,null,"Tabor","Antikyra"]
[null,null,null,null,null,null,null,null,null,null,null,null,null,null,"Salovci","Antunez (Morelos)"]
[null,null,null,null,null,null,null,null,null,null,null,null,null,null,"Gorje","Anza"]
[null,null,null,null,null,null,null,null,null,null,null,null,null,null,"Brokopondo","Apaxtla de Castrejon"]
[null,null,null,null,null,null,null,null,null,null,null,null,null,null,"Boma","Aplahoue"]
[null,null,null,null,null,null,null,null,null,null,null,null,null,null,"Iles Eparses","Aqsay"]
[null,null,null,null,null,null,null,null,null,null,null,null,null,null,"Nakhon Ratchasima","Arada"]
[null,null,null,null,null,null,null,null,null,null,null,null,null,null,"Viqueque","Aranda"]
[null,null,null,null,null,null,null,null,null,null,null,null,null,null,"'Eua","Aravissos"]
[null,null,null,null,null,null,null,null,null,null,null,null,null,null,"Adana","Arcadia"]
[null,null,null,null,null,null,null,null,null,null,null,null,null,null,"Tobago","Arcis-sur-Aube"]
[null,null,null,null,null,null,null,null,null,null,null,null,null,null,"Rivne","Areia"]
[null,null,null,null,null,null,null,null,null,null,null,null,null,null,"Cherkasy","Arenoso"]
[null,null,null,null,null,null,null,null,null,null,null,null,null,null,"Canelones","Arhus"]
[null,null,null,null,null,null,null,null,null,null,null,null,null,null,"Namangan","Aridaia"]
[null,null,null,null,null,null,null,null,null,null,null,null,null,null,"Ha Tinh","Arkhonskaya"]
[null,null,null,null,null,null,null,null,null,null,null,null,null,null,"Palauli","Armonk"]
[null,null,null,null,null,null,null,null,null,null,null,null,null,null,"Bandraboua","Arnschwang"]
[null,null,null,null,null,null,null,null,null,null,null,null,null,null,null,"Arrigorriaga"]
[null,null,null,null,null,null,null,null,null,null,null,null,null,null,null,"Arroyohondo"]
[null,null,null,null,null,null,null,null,null,null,null,null,null,null,null,"Arthon-en-Retz"]
[null,null,null,null,null,null,null,null,null,null,null,null,null,null,null,"Artsvaberd"]
[null,null,null,null,null,null,null,null,null,null,null,null,null,null,null,"As Suwayrah"]
[null,null,null,null,null,null,null,null,null,null,null,null,null,null,null,"Asele"]
[null,null,null,null,null,null,null,null,null,null,null,null,null,null,null,"Aseri"]
[null,null,null,null,null,null,null,null,null,null,null,null,null,null,null,"Asind"]
[null,null,null,null,null,null,null,null,null,null,null,null,null,null,null,"Askern"]
[null,null,null,null,null,null,null,null,null,null,null,null,null,null,null,"Assomada"]
[null,null,null,null,null,null,null,null,null,null,null,null,null,null,null,"Astigarraga"]
[null,null,null,null,null,null,null,null,null,null,null,null,null,null,null,"Atchison"]
[null,null,null,null,null,null,null,null,null,null,null,null,null,null,null,"Atimonan"]
[null,null,null,null,null,null,null,null,null,null,null,null,null,null,null,"Atop-atop"]
[null,null,null,null,null,null,null,null,null,null,null,null,null,null,null,"Attwood"]
[null,null,null,null,null,null,null,null,null,null,null,null,null,null,null,"Aubiet"]
[null,null,null,null,null,null,null,null,null,null,null,null,null,null,null,"Audlem"]
[null,null,null,null,null,null,null,null,null,null,null,null,null,null,null,"Aumsville"]
[null,null,null,null,null,null,null,null,null,null,null,null,null,null,null,"Aurillac"]
[null,null,null,null,null,null,null,null,null,null,null,null,null,null,null,"Auvernier"]
[null,null,null,null,null,null,null,null,null,null,null,null,null,null,null,"Avensan"]
[null,null,null,null,null,null,null,null,null,null,null,null,null,null,null,"Avion"]
[null,null,null,null,null,null,null,null,null,null,null,null,null,null,null,"Aweil"]
[null,null,null,null,null,null,null,null,null,null,null,null,null,null,null,"Aygestan"]
[null,null,null,null,null,null,null,null,null,null,null,null,null,null,null,"Az Zubaydat"]
[null,null,null,null,null,null,null,null,null,null,null,null,null,null,null,"Aze"]
[null,null,null,null,null,null,null,null,null,null,null,null,null,null,null,"Babatngon"]
[null,null,null,null,null,null,null,null,null,null,null,null,null,null,null,"Babice"]
[null,null,null,null,null,null,null,null,null,null,null,null,null,null,null,"Bacnotan"]
[null,null,null,null,null,null,null,null,null,null,null,null,null,null,null,"Bacon"]
[null,null,null,null,null,null,null,null,null,null,null,null,null,null,null,"Bad Ischl"]
[null,null,null,null,null,null,null,null,null,null,null,null,null,null,null,"Bad Rippoldsau-Schapbach"]
[null,null,null,null,null,null,null,null,null,null,null,null,null,null,null,"Bad Schussenried"]
[null,null,null,null,null,null,null,null,null,null,null,null,null,null,null,"Badia al Pino"]
[null,null,null,null,null,null,null,null,null,null,null,null,null,null,null,"Baduria"]
[null,null,null,null,null,null,null,null,null,null,null,null,null,null,null,"Bageshwar"]
[null,null,null,null,null,null,null,null,null,null,null,null,null,null,null,"Bagnara di Romagna"]
[null,null,null,null,null,null,null,null,null,null,null,null,null,null,null,"Bagroy"]
[null,null,null,null,null,null,null,null,null,null,null,null,null,null,null,"Baihar"]
[null,null,null,null,null,null,null,null,null,null,null,null,null,null,null,"Baikingon"]
[null,null,null,null,null,null,null,null,null,null,null,null,null,null,null,"Bajandas"]
[null,null,null,null,null,null,null,null,null,null,null,null,null,null,null,"Bakani"]
[null,null,null,null,null,null,null,null,null,null,null,null,null,null,null,"Balagon"]
[null,null,null,null,null,null,null,null,null,null,null,null,null,null,null,"Balanga"]
[null,null,null,null,null,null,null,null,null,null,null,null,null,null,null,"Balcik"]
[null,null,null,null,null,null,null,null,null,null,null,null,null,null,null,"Bali Chak"]
[null,null,null,null,null,null,null,null,null,null,null,null,null,null,null,"Balkh"]
[null,null,null,null,null,null,null,null,null,null,null,null,null,null,null,"Ballyconnell"]
[null,null,null,null,null,null,null,null,null,null,null,null,null,null,null,"Balnearia"]
[null,null,null,null,null,null,null,null,null,null,null,null,null,null,null,"Baluyot"]
[null,null,null,null,null,null,null,null,null,null,null,null,null,null,null,"Bamban"]
[null,null,null,null,null,null,null,null,null,null,null,null,null,null,null,"Ban Su-ngai Pa Di"]
[null,null,null,null,null,null,null,null,null,null,null,null,null,null,null,"Banbury"]
[null,null,null,null,null,null,null,null,null,null,null,null,null,null,null,"Baneh"]
[null,null,null,null,null,null,null,null,null,null,null,null,null,null,null,"Bangonay"]
[null,null,null,null,null,null,null,null,null,null,null,null,null,null,null,"Banka"]
[null,null,null,null,null,null,null,null,null,null,null,null,null,null,null,"Bansud"]
[null,null,null,null,null,null,null,null,null,null,null,null,null,null,null,"Barahona"]
[null,null,null,null,null,null,null,null,null,null,null,null,null,null,null,"Baranzate"]
[null,null,null,null,null,null,null,null,null,null,null,null,null,null,null,"Barbuletu"]
[null,null,null,null,null,null,null,null,null,null,null,null,null,null,null,"Bardowick"]
[null,null,null,null,null,null,null,null,null,null,null,null,null,null,null,"Bari Sardo"]
[null,null,null,null,null,null,null,null,null,null,null,null,null,null,null,"Bariswil"]
[null,null,null,null,null,null,null,null,null,null,null,null,null,null,null,"Barnesville"]
[null,null,null,null,null,null,null,null,null,null,null,null,null,null,null,"Barras"]
[null,null,null,null,null,null,null,null,null,null,null,null,null,null,null,"Barrie"]
[null,null,null,null,null,null,null,null,null,null,null,null,null,null,null,"Barsloev"]
[null,null,null,null,null,null,null,null,null,null,null,null,null,null,null,"Bartonsville"]
[null,null,null,null,null,null,null,null,null,null,null,null,null,null,null,"Basar"]
[null,null,null,null,null,null,null,null,null,null,null,null,null,null,null,"Basi"]
[null,null,null,null,null,null,null,null,null,null,null,null,null,null,null,"Bassendean"]
[null,null,null,null,null,null,null,null,null,null,null,null,null,null,null,"Batana"]
[null,null,null,null,null,null,null,null,null,null,null,null,null,null,null,"Batesville"]
[null,null,null,null,null,null,null,null,null,null,null,null,null,null,null,"Batuan"]
[null,null,null,null,null,null,null,null,null,null,null,null,null,null,null,"Baucina"]
[null,null,null,null,null,null,null,null,null,null,null,null,null,null,null,"Bay Shore"]
[null,null,null,null,null,null,null,null,null,null,null,null,null,null,null,"Bayganin"]
[null,null,null,null,null,null,null,null,null,null,null,null,null,null,null,"Bayt Hanun"]
[null,null,null,null,null,null,null,null,null,null,null,null,null,null,null,"Bazhovo"]
[null,null,null,null,null,null,null,null,null,null,null,null,null,null,null,"Bearsden"]
[null,null,null,null,null,null,null,null,null,null,null,null,null,null,null,"Beaune-la-Rolande"]
[null,null,null,null,null,null,null,null,null,null,null,null,null,null,null,"Beckenham"]
[null,null,null,null,null,null,null,null,null,null,null,null,null,null,null,"Bedford Park"]
[null,null,null,null,null,null,null,null,null,null,null,null,null,null,null,"Beetzendorf"]
[null,null,null,null,null,null,null,null,null,null,null,null,null,null,null,"Beicang"]
[null,null,null,null,null,null,null,null,null,null,null,null,null,null,null,"Bekes"]
[null,null,null,null,null,null,null,null,null,null,null,null,null,null,null,"Belchatow"]
[null,null,null,null,null,null,null,null,null,null,null,null,null,null,null,"Belfast"]
[null,null,null,null,null,null,null,null,null,null,null,null,null,null,null,"Bellaria-Igea Marina"]
[null,null,null,null,null,null,null,null,null,null,null,null,null,null,null,"Belleben"]
[null,null,null,null,null,null,null,null,null,null,null,null,null,null,null,"Bellver de Cerdanya"]
[null,null,null,null,null,null,null,null,null,null,null,null,null,null,null,"Belo sur Tsiribihina"]
[null,null,null,null,null,null,null,null,null,null,null,null,null,null,null,"Belur"]
[null,null,null,null,null,null,null,null,null,null,null,null,null,null,null,"Ben Gardane"]
[null,null,null,null,null,null,null,null,null,null,null,null,null,null,null,"Benemerito Juarez"]
[null,null,null,null,null,null,null,null,null,null,null,null,null,null,null,"Benito Soliven"]
[null,null,null,null,null,null,null,null,null,null,null,null,null,null,null,"Bennsville"]
[null,null,null,null,null,null,null,null,null,null,null,null,null,null,null,"Berchtesgaden"]
[null,null,null,null,null,null,null,null,null,null,null,null,null,null,null,"Beregazzo"]
[null,null,null,null,null,null,null,null,null,null,null,null,null,null,null,"Bergkirchen"]
[null,null,null,null,null,null,null,null,null,null,null,null,null,null,null,"Berlanga de Duero"]
[null,null,null,null,null,null,null,null,null,null,null,null,null,null,null,"Bern"]
[null,null,null,null,null,null,null,null,null,null,null,null,null,null,null,"Berrechid"]
[null,null,null,null,null,null,null,null,null,null,null,null,null,null,null,"Berthelsdorf"]
[null,null,null,null,null,null,null,null,null,null,null,null,null,null,null,"Besne"]
[null,null,null,null,null,null,null,null,null,null,null,null,null,null,null,"Besterd"]
[null,null,null,null,null,null,null,null,null,null,null,null,null,null,null,"Betz"]
[null,null,null,null,null,null,null,null,null,null,null,null,null,null,null,"Beynost"]
[null,null,null,null,null,null,null,null,null,null,null,null,null,null,null,"Bhamdoun"]
[null,null,null,null,null,null,null,null,null,null,null,null,null,null,null,"Bhilai"]
[null,null,null,null,null,null,null,null,null,null,null,null,null,null,null,"Bialosliwie"]
[null,null,null,null,null,null,null,null,null,null,null,null,null,null,null,"Bibbona"]
[null,null,null,null,null,null,null,null,null,null,null,null,null,null,null,"Bielawa"]
[null,null,null,null,null,null,null,null,null,null,null,null,null,null,null,"Biere"]
[null,null,null,null,null,null,null,null,null,null,null,null,null,null,null,"Biharnagybajom"]
[null,null,null,null,null,null,null,null,null,null,null,null,null,null,null,"Bilambil"]
[null,null,null,null,null,null,null,null,null,null,null,null,null,null,null,"Billere"]
[null,null,null,null,null,null,null,null,null,null,null,null,null,null,null,"Bilthra"]
[null,null,null,null,null,null,null,null,null,null,null,null,null,null,null,"Bindlach"]
[null,null,null,null,null,null,null,null,null,null,null,null,null,null,null,"Binzhou"]
[null,null,null,null,null,null,null,null,null,null,null,null,null,null,null,"Bircotes"]
[null,null,null,null,null,null,null,null,null,null,null,null,null,null,null,"Birlenbach"]
[null,null,null,null,null,null,null,null,null,null,null,null,null,null,null,"Bisenda Buzurg"]
[null,null,null,null,null,null,null,null,null,null,null,null,null,null,null,"Bisoca"]
[null,null,null,null,null,null,null,null,null,null,null,null,null,null,null,"Biu"]
[null,null,null,null,null,null,null,null,null,null,null,null,null,null,null,"Blace"]
[null,null,null,null,null,null,null,null,null,null,null,null,null,null,null,"Blakehurst"]
[null,null,null,null,null,null,null,null,null,null,null,null,null,null,null,"Blankenfelde"]
[null,null,null,null,null,null,null,null,null,null,null,null,null,null,null,"Blerancourt"]
[null,null,null,null,null,null,null,null,null,null,null,null,null,null,null,"Blijham"]
[null,null,null,null,null,null,null,null,null,null,null,null,null,null,null,"Blumberg"]
[null,null,null,null,null,null,null,null,null,null,null,null,null,null,null,"Bnei Ayish"]
[null,null,null,null,null,null,null,null,null,null,null,null,null,null,null,"Bochnia"]
[null,null,null,null,null,null,null,null,null,null,null,null,null,null,null,"Bodio"]
[null,null,null,null,null,null,null,null,null,null,null,null,null,null,null,"Bodrum"]
[null,null,null,null,null,null,null,null,null,null,null,null,null,null,null,"Bogorodskoye"]
[null,null,null,null,null,null,null,null,null,null,null,null,null,null,null,"Bohdalov"]
[null,null,null,null,null,null,null,null,null,null,null,null,null,null,null,"Boiu Mare"]
[null,null,null,null,null,null,null,null,null,null,null,null,null,null,null,"Bokkos"]
[null,null,null,null,null,null,null,null,null,null,null,null,null,null,null,"Bolintin Vale"]
[null,null,null,null,null,null,null,null,null,null,null,null,null,null,null,"Bolsterlang"]
[null,null,null,null,null,null,null,null,null,null,null,null,null,null,null,"Bonaberi"]
[null,null,null,null,null,null,null,null,null,null,null,null,null,null,null,"Bonea"]
[null,null,null,null,null,null,null,null,null,null,null,null,null,null,null,"Bonnigheim"]
[null,null,null,null,null,null,null,null,null,null,null,null,null,null,null,"Bood"]
[null,null,null,null,null,null,null,null,null,null,null,null,null,null,null,"Bordighera"]
[null,null,null,null,null,null,null,null,null,null,null,null,null,null,null,"Borgarello"]
[null,null,null,null,null,null,null,null,null,null,null,null,null,null,null,"Borgo Santa Maria"]
[null,null,null,null,null,null,null,null,null,null,null,null,null,null,null,"Bormujos"]
[null,null,null,null,null,null,null,null,null,null,null,null,null,null,null,"Borovsk"]
[null,null,null,null,null,null,null,null,null,null,null,null,null,null,null,"Borup"]
[null,null,null,null,null,null,null,null,null,null,null,null,null,null,null,"Bossier City"]
[null,null,null,null,null,null,null,null,null,null,null,null,null,null,null,"Bouake"]
[null,null,null,null,null,null,null,null,null,null,null,null,null,null,null,"Boughton"]
[null,null,null,null,null,null,null,null,null,null,null,null,null,null,null,"Boulleret"]
[null,null,null,null,null,null,null,null,null,null,null,null,null,null,null,"Bourg-Saint-Maurice"]
[null,null,null,null,null,null,null,null,null,null,null,null,null,null,null,"Bouza"]
[null,null,null,null,null,null,null,null,null,null,null,null,null,null,null,"Bozan"]
[null,null,null,null,null,null,null,null,null,null,null,null,null,null,null,"Bozdar Wada"]
[null,null,null,null,null,null,null,null,null,null,null,null,null,null,null,"Brahmapur"]
[null,null,null,null,null,null,null,null,null,null,null,null,null,null,null,"Bram"]
[null,null,null,null,null,null,null,null,null,null,null,null,null,null,null,"Brant"]
[null,null,null,null,null,null,null,null,null,null,null,null,null,null,null,"Bratila"]
[null,null,null,null,null,null,null,null,null,null,null,null,null,null,null,"Brea de Aragon"]
[null,null,null,null,null,null,null,null,null,null,null,null,null,null,null,"Bredon"]
[null,null,null,null,null,null,null,null,null,null,null,null,null,null,null,"Brejo Santo"]
[null,null,null,null,null,null,null,null,null,null,null,null,null,null,null,"Bretten"]
[null,null,null,null,null,null,null,null,null,null,null,null,null,null,null,"Breukelen"]
[null,null,null,null,null,null,null,null,null,null,null,null,null,null,null,"Bridegman Downs"]
[null,null,null,null,null,null,null,null,null,null,null,null,null,null,null,"Brie-Comte-Robert"]
[null,null,null,null,null,null,null,null,null,null,null,null,null,null,null,"Brinkmann"]
[null,null,null,null,null,null,null,null,null,null,null,null,null,null,null,"Brixworth"]
[null,null,null,null,null,null,null,null,null,null,null,null,null,null,null,"Brocton"]
[null,null,null,null,null,null,null,null,null,null,null,null,null,null,null,"Bronnitsy"]
[null,null,null,null,null,null,null,null,null,null,null,null,null,null,null,"Brookside Village"]
[null,null,null,null,null,null,null,null,null,null,null,null,null,null,null,"Broxburn"]
[null,null,null,null,null,null,null,null,null,null,null,null,null,null,null,"Brundidge"]
[null,null,null,null,null,null,null,null,null,null,null,null,null,null,null,"Brush Fork"]
[null,null,null,null,null,null,null,null,null,null,null,null,null,null,null,"Brzoza Stadnicka"]
[null,null,null,null,null,null,null,null,null,null,null,null,null,null,null,"Buba"]
[null,null,null,null,null,null,null,null,null,null,null,null,null,null,null,"Bucheres"]
[null,null,null,null,null,null,null,null,null,null,null,null,null,null,null,"Buckner"]
[null,null,null,null,null,null,null,null,null,null,null,null,null,null,null,"Budapest XXIII. keruelet"]
[null,null,null,null,null,null,null,null,null,null,null,null,null,null,null,"Buenavista Tetela"]
[null,null,null,null,null,null,null,null,null,null,null,null,null,null,null,"Bufleben"]
[null,null,null,null,null,null,null,null,null,null,null,null,null,null,null,"Buhlertann"]
[null,null,null,null,null,null,null,null,null,null,null,null,null,null,null,"Bukit Rambai"]
[null,null,null,null,null,null,null,null,null,null,null,null,null,null,null,"Bulgorello"]
[null,null,null,null,null,null,null,null,null,null,null,null,null,null,null,"Bulungu"]
[null,null,null,null,null,null,null,null,null,null,null,null,null,null,null,"Bungendore"]
[null,null,null,null,null,null,null,null,null,null,null,null,null,null,null,"Burdaard"]
[null,null,null,null,null,null,null,null,null,null,null,null,null,null,null,"Burgersdorp"]
[null,null,null,null,null,null,null,null,null,null,null,null,null,null,null,"Burkardroth"]
[null,null,null,null,null,null,null,null,null,null,null,null,null,null,null,"Burnhaupt-le-Bas"]
[null,null,null,null,null,null,null,null,null,null,null,null,null,null,null,"Burwell"]
[null,null,null,null,null,null,null,null,null,null,null,null,null,null,null,"Busilak"]
[null,null,null,null,null,null,null,null,null,null,null,null,null,null,null,"Butea"]
[null,null,null,null,null,null,null,null,null,null,null,null,null,null,null,"Buxted"]
[null,null,null,null,null,null,null,null,null,null,null,null,null,null,null,"Buznea"]
[null,null,null,null,null,null,null,null,null,null,null,null,null,null,null,"Byumba"]
[null,null,null,null,null,null,null,null,null,null,null,null,null,null,null,"Caapora"]
[null,null,null,null,null,null,null,null,null,null,null,null,null,null,null,"Cabog"]
[null,null,null,null,null,null,null,null,null,null,null,null,null,null,null,"Cacheu"]
[null,null,null,null,null,null,null,null,null,null,null,null,null,null,null,"Cade-Gaida"]
[null,null,null,null,null,null,null,null,null,null,null,null,null,null,null,"Cagayan"]
[null,null,null,null,null,null,null,null,null,null,null,null,null,null,null,"Cahaba Heights"]
[null,null,null,null,null,null,null,null,null,null,null,null,null,null,null,"Cajazeiras"]
[null,null,null,null,null,null,null,null,null,null,null,null,null,null,null,"Calabash"]
[null,null,null,null,null,null,null,null,null,null,null,null,null,null,null,"Calceranica al Lago"]
[null,null,null,null,null,null,null,null,null,null,null,null,null,null,null,"Cali"]
[null,null,null,null,null,null,null,null,null,null,null,null,null,null,null,"Callahan"]
[null,null,null,null,null,null,null,null,null,null,null,null,null,null,null,"Calp"]
[null,null,null,null,null,null,null,null,null,null,null,null,null,null,null,"Calxanqala"]
[null,null,null,null,null,null,null,null,null,null,null,null,null,null,null,"Camaret-sur-Aigues"]
[null,null,null,null,null,null,null,null,null,null,null,null,null,null,null,"Camden Town"]
[null,null,null,null,null,null,null,null,null,null,null,null,null,null,null,"Camilo Aldao"]
[null,null,null,null,null,null,null,null,null,null,null,null,null,null,null,"Campbellton"]
[null,null,null,null,null,null,null,null,null,null,null,null,null,null,null,"Campestre Villas del Alamo"]
[null,null,null,null,null,null,null,null,null,null,null,null,null,null,null,"Campodoro"]
[null,null,null,null,null,null,null,null,null,null,null,null,null,null,null,"Campuri"]
[null,null,null,null,null,null,null,null,null,null,null,null,null,null,null,"Cananea"]
[null,null,null,null,null,null,null,null,null,null,null,null,null,null,null,"Candi Prambanan"]
[null,null,null,null,null,null,null,null,null,null,null,null,null,null,null,"Canete"]
[null,null,null,null,null,null,null,null,null,null,null,null,null,null,null,"Canon City"]
[null,null,null,null,null,null,null,null,null,null,null,null,null,null,null,"Cansilayan"]
[null,null,null,null,null,null,null,null,null,null,null,null,null,null,null,"Capanne-Prato-Cinquale"]
[null,null,null,null,null,null,null,null,null,null,null,null,null,null,null,"Capao Bonito"]
[null,null,null,null,null,null,null,null,null,null,null,null,null,null,null,"Capoluca"]
[null,null,null,null,null,null,null,null,null,null,null,null,null,null,null,"Capu Codrului"]
[null,null,null,null,null,null,null,null,null,null,null,null,null,null,null,"Carapelle"]
[null,null,null,null,null,null,null,null,null,null,null,null,null,null,null,"Carbon-Blanc"]
[null,null,null,null,null,null,null,null,null,null,null,null,null,null,null,"Carcarana"]
[null,null,null,null,null,null,null,null,null,null,null,null,null,null,null,"Carira"]
[null,null,null,null,null,null,null,null,null,null,null,null,null,null,null,"Carmen de Carupa"]
[null,null,null,null,null,null,null,null,null,null,null,null,null,null,null,"Carnforth"]
[null,null,null,null,null,null,null,null,null,null,null,null,null,null,null,"Carpinis"]
[null,null,null,null,null,null,null,null,null,null,null,null,null,null,null,"Carracedelo"]
[null,null,null,null,null,null,null,null,null,null,null,null,null,null,null,"Carter Lake"]
[null,null,null,null,null,null,null,null,null,null,null,null,null,null,null,"Carugate"]
[null,null,null,null,null,null,null,null,null,null,null,null,null,null,null,"Casalnuovo Monterotaro"]
[null,null,null,null,null,null,null,null,null,null,null,null,null,null,null,"Casarrubios del Monte"]
[null,null,null,null,null,null,null,null,null,null,null,null,null,null,null,"Casey"]
[null,null,null,null,null,null,null,null,null,null,null,null,null,null,null,"Casoli"]
[null,null,null,null,null,null,null,null,null,null,null,null,null,null,null,"Castanar de Ibor"]
[null,null,null,null,null,null,null,null,null,null,null,null,null,null,null,"Castelfranco Veneto"]
[null,null,null,null,null,null,null,null,null,null,null,null,null,null,null,"Castelluccio Valmaggiore"]
[null,null,null,null,null,null,null,null,null,null,null,null,null,null,null,"Castelnuovo Rangone"]
[null,null,null,null,null,null,null,null,null,null,null,null,null,null,null,"Castillos"]
[null,null,null,null,null,null,null,null,null,null,null,null,null,null,null,"Castlebar"]
[null,null,null,null,null,null,null,null,null,null,null,null,null,null,null,"Castricum"]
[null,null,null,null,null,null,null,null,null,null,null,null,null,null,null,"Catalina"]
[null,null,null,null,null,null,null,null,null,null,null,null,null,null,null,"Catlin"]
[null,null,null,null,null,null,null,null,null,null,null,null,null,null,null,"Cavallina"]
[null,null,null,null,null,null,null,null,null,null,null,null,null,null,null,"Cavazzona"]
[null,null,null,null,null,null,null,null,null,null,null,null,null,null,null,"Cazes-Mondenard"]
[null,null,null,null,null,null,null,null,null,null,null,null,null,null,null,"Ceahlau"]
[null,null,null,null,null,null,null,null,null,null,null,null,null,null,null,"Cegani"]
[null,null,null,null,null,null,null,null,null,null,null,null,null,null,null,"Cekcyn"]
[null,null,null,null,null,null,null,null,null,null,null,null,null,null,null,"Centennial Park"]
[null,null,null,null,null,null,null,null,null,null,null,null,null,null,null,"Century"]
[null,null,null,null,null,null,null,null,null,null,null,null,null,null,null,"Ceptura de Jos"]
[null,null,null,null,null,null,null,null,null,null,null,null,null,null,null,"Cerkwica"]
[null,null,null,null,null,null,null,null,null,null,null,null,null,null,null,"Cernica"]
[null,null,null,null,null,null,null,null,null,null,null,null,null,null,null,"Cervasca"]
[null,null,null,null,null,null,null,null,null,null,null,null,null,null,null,"Cesar Chavez"]
[null,null,null,null,null,null,null,null,null,null,null,null,null,null,null,"Cevicos"]
[null,null,null,null,null,null,null,null,null,null,null,null,null,null,null,"Chachapoyas"]
[null,null,null,null,null,null,null,null,null,null,null,null,null,null,null,"Chaiyaphum"]
[null,null,null,null,null,null,null,null,null,null,null,null,null,null,null,"Chalgrove"]
[null,null,null,null,null,null,null,null,null,null,null,null,null,null,null,"Chamarandes-Choignes"]
[null,null,null,null,null,null,null,null,null,null,null,null,null,null,null,"Champier"]
[null,null,null,null,null,null,null,null,null,null,null,null,null,null,null,"Champua"]
[null,null,null,null,null,null,null,null,null,null,null,null,null,null,null,"Channahon"]
[null,null,null,null,null,null,null,null,null,null,null,null,null,null,null,"Chapayevsk"]
[null,null,null,null,null,null,null,null,null,null,null,null,null,null,null,"Charcas"]
[null,null,null,null,null,null,null,null,null,null,null,null,null,null,null,"Charly"]
[null,null,null,null,null,null,null,null,null,null,null,null,null,null,null,"Charvil"]
[null,null,null,null,null,null,null,null,null,null,null,null,null,null,null,"Chateauneuf-les-Martigues"]
[null,null,null,null,null,null,null,null,null,null,null,null,null,null,null,"Chaudfontaine"]
[null,null,null,null,null,null,null,null,null,null,null,null,null,null,null,"Chauve"]
[null,null,null,null,null,null,null,null,null,null,null,null,null,null,null,"Chefchaouene"]
[null,null,null,null,null,null,null,null,null,null,null,null,null,null,null,"Chemere"]
[null,null,null,null,null,null,null,null,null,null,null,null,null,null,null,"Cheongsong gun"]
[null,null,null,null,null,null,null,null,null,null,null,null,null,null,null,"Cherbourg-Octeville"]
[null,null,null,null,null,null,null,null,null,null,null,null,null,null,null,"Chernukha"]
[null,null,null,null,null,null,null,null,null,null,null,null,null,null,null,"Chesterville"]
[null,null,null,null,null,null,null,null,null,null,null,null,null,null,null,"Chevillon"]
[null,null,null,null,null,null,null,null,null,null,null,null,null,null,null,"Chiaravalle"]
[null,null,null,null,null,null,null,null,null,null,null,null,null,null,null,"Chichica"]
[null,null,null,null,null,null,null,null,null,null,null,null,null,null,null,"Chieti"]
[null,null,null,null,null,null,null,null,null,null,null,null,null,null,null,"Childress"]
[null,null,null,null,null,null,null,null,null,null,null,null,null,null,null,"Chimilin"]
[null,null,null,null,null,null,null,null,null,null,null,null,null,null,null,"Chinteni"]
[null,null,null,null,null,null,null,null,null,null,null,null,null,null,null,"Chiquimulilla"]
[null,null,null,null,null,null,null,null,null,null,null,null,null,null,null,"Chitradurga"]
[null,null,null,null,null,null,null,null,null,null,null,null,null,null,null,"Chitungwiza"]
[null,null,null,null,null,null,null,null,null,null,null,null,null,null,null,"Choctaw Lake"]
[null,null,null,null,null,null,null,null,null,null,null,null,null,null,null,"Chom Bueng"]
[null,null,null,null,null,null,null,null,null,null,null,null,null,null,null,"Chorzele"]
[null,null,null,null,null,null,null,null,null,null,null,null,null,null,null,"Chubbuck"]
[null,null,null,null,null,null,null,null,null,null,null,null,null,null,null,"Chuluota"]
[null,null,null,null,null,null,null,null,null,null,null,null,null,null,null,"Chyst'"]
[null,null,null,null,null,null,null,null,null,null,null,null,null,null,null,"Cicciano"]
[null,null,null,null,null,null,null,null,null,null,null,null,null,null,null,"Cimarron Hills"]
[null,null,null,null,null,null,null,null,null,null,null,null,null,null,null,"Ciortesti"]
[null,null,null,null,null,null,null,null,null,null,null,null,null,null,null,"Cisliano"]
[null,null,null,null,null,null,null,null,null,null,null,null,null,null,null,"Ciudad Altamirano"]
[null,null,null,null,null,null,null,null,null,null,null,null,null,null,null,"Ciudad Serdan"]
[null,null,null,null,null,null,null,null,null,null,null,null,null,null,null,"Civezzano"]
[null,null,null,null,null,null,null,null,null,null,null,null,null,null,null,"Clark"]
[null,null,null,null,null,null,null,null,null,null,null,null,null,null,null,"Clary"]
[null,null,null,null,null,null,null,null,null,null,null,null,null,null,null,"Cleobury Mortimer"]
[null,null,null,null,null,null,null,null,null,null,null,null,null,null,null,"Clinceni"]
[null,null,null,null,null,null,null,null,null,null,null,null,null,null,null,"Cloverport"]
[null,null,null,null,null,null,null,null,null,null,null,null,null,null,null,"Coalhurst"]
[null,null,null,null,null,null,null,null,null,null,null,null,null,null,null,"Cobb Island"]
[null,null,null,null,null,null,null,null,null,null,null,null,null,null,null,"Cocoyoc"]
[null,null,null,null,null,null,null,null,null,null,null,null,null,null,null,"Coendersborg"]
[null,null,null,null,null,null,null,null,null,null,null,null,null,null,null,"Colbert"]
[null,null,null,null,null,null,null,null,null,null,null,null,null,null,null,"Colegiales"]
[null,null,null,null,null,null,null,null,null,null,null,null,null,null,null,"Colle Mainello"]
[null,null,null,null,null,null,null,null,null,null,null,null,null,null,null,"Collio"]
[null,null,null,null,null,null,null,null,null,null,null,null,null,null,null,"Colonia 28 de Mayo (Santa Rosa)"]
[null,null,null,null,null,null,null,null,null,null,null,null,null,null,null,"Colonia Elia"]
[null,null,null,null,null,null,null,null,null,null,null,null,null,null,null,"Colonia los Angeles"]
[null,null,null,null,null,null,null,null,null,null,null,null,null,null,null,"Colonias Unidas"]
[null,null,null,null,null,null,null,null,null,null,null,null,null,null,null,"Colquitt"]
[null,null,null,null,null,null,null,null,null,null,null,null,null,null,null,"Combita"]
[null,null,null,null,null,null,null,null,null,null,null,null,null,null,null,"Comrat"]
[null,null,null,null,null,null,null,null,null,null,null,null,null,null,null,"Concepcion del Sur"]
[null,null,null,null,null,null,null,null,null,null,null,null,null,null,null,"Conduaga"]
[null,null,null,null,null,null,null,null,null,null,null,null,null,null,null,"Connellsville"]
[null,null,null,null,null,null,null,null,null,null,null,null,null,null,null,"Constantin Daicoviciu"]
[null,null,null,null,null,null,null,null,null,null,null,null,null,null,null,"Contra Costa Centre"]
[null,null,null,null,null,null,null,null,null,null,null,null,null,null,null,"Copaciu"]
[null,null,null,null,null,null,null,null,null,null,null,null,null,null,null,"Corbasca"]
[null,null,null,null,null,null,null,null,null,null,null,null,null,null,null,"Corcieux"]
[null,null,null,null,null,null,null,null,null,null,null,null,null,null,null,"Corlaer"]
[null,null,null,null,null,null,null,null,null,null,null,null,null,null,null,"Corneville-sur-Risle"]
[null,null,null,null,null,null,null,null,null,null,null,null,null,null,null,"Coron"]
[null,null,null,null,null,null,null,null,null,null,null,null,null,null,null,"Correzzana"]
[null,null,null,null,null,null,null,null,null,null,null,null,null,null,null,"Cortanovci"]
[null,null,null,null,null,null,null,null,null,null,null,null,null,null,null,"Cossato"]
[null,null,null,null,null,null,null,null,null,null,null,null,null,null,null,"Costache Negri"]
[null,null,null,null,null,null,null,null,null,null,null,null,null,null,null,"Coucy-le-Chateau-Auffrique"]
[null,null,null,null,null,null,null,null,null,null,null,null,null,null,null,"Couhe"]
[null,null,null,null,null,null,null,null,null,null,null,null,null,null,null,"Courlay"]
[null,null,null,null,null,null,null,null,null,null,null,null,null,null,null,"Coussac-Bonneval"]
[null,null,null,null,null,null,null,null,null,null,null,null,null,null,null,"Coyoles Central"]
[null,null,null,null,null,null,null,null,null,null,null,null,null,null,null,"Craponne"]
[null,null,null,null,null,null,null,null,null,null,null,null,null,null,null,"Crawfordville"]
[null,null,null,null,null,null,null,null,null,null,null,null,null,null,null,"Cremorne Point"]
[null,null,null,null,null,null,null,null,null,null,null,null,null,null,null,"Crevacuore"]
[null,null,null,null,null,null,null,null,null,null,null,null,null,null,null,"Criseni"]
[null,null,null,null,null,null,null,null,null,null,null,null,null,null,null,"Crossgates"]
[null,null,null,null,null,null,null,null,null,null,null,null,null,null,null,"Crostau"]
[null,null,null,null,null,null,null,null,null,null,null,null,null,null,null,"Csakvar"]
[null,null,null,null,null,null,null,null,null,null,null,null,null,null,null,"Cserkeszolo"]
[null,null,null,null,null,null,null,null,null,null,null,null,null,null,null,"Cucerdea"]
[null,null,null,null,null,null,null,null,null,null,null,null,null,null,null,"Cuerva"]
[null,null,null,null,null,null,null,null,null,null,null,null,null,null,null,"Cukurca"]
[null,null,null,null,null,null,null,null,null,null,null,null,null,null,null,"Cummins"]
[null,null,null,null,null,null,null,null,null,null,null,null,null,null,null,"Cunday"]
[null,null,null,null,null,null,null,null,null,null,null,null,null,null,null,"Cururupu"]
[null,null,null,null,null,null,null,null,null,null,null,null,null,null,null,"Cusseta"]
[null,null,null,null,null,null,null,null,null,null,null,null,null,null,null,"Czapury"]
[null,null,null,null,null,null,null,null,null,null,null,null,null,null,null,"Czermin"]
[null,null,null,null,null,null,null,null,null,null,null,null,null,null,null,"Dachau"]
[null,null,null,null,null,null,null,null,null,null,null,null,null,null,null,"Daet"]
[null,null,null,null,null,null,null,null,null,null,null,null,null,null,null,"Daitari"]
[null,null,null,null,null,null,null,null,null,null,null,null,null,null,null,"Dalipey"]
[null,null,null,null,null,null,null,null,null,null,null,null,null,null,null,"Dalry"]
[null,null,null,null,null,null,null,null,null,null,null,null,null,null,null,"Damnagar"]
[null,null,null,null,null,null,null,null,null,null,null,null,null,null,null,"Danja"]
[null,null,null,null,null,null,null,null,null,null,null,null,null,null,null,"Dannes"]
[null,null,null,null,null,null,null,null,null,null,null,null,null,null,null,"Daraga"]
[null,null,null,null,null,null,null,null,null,null,null,null,null,null,null,"Darlinghurst"]
[null,null,null,null,null,null,null,null,null,null,null,null,null,null,null,"Dascalesti"]
[null,null,null,null,null,null,null,null,null,null,null,null,null,null,null,"Datong"]
[null,null,null,null,null,null,null,null,null,null,null,null,null,null,null,"Davisboro"]
[null,null,null,null,null,null,null,null,null,null,null,null,null,null,null,"De Bilt"]
[null,null,null,null,null,null,null,null,null,null,null,null,null,null,null,"De Kieviet"]
[null,null,null,null,null,null,null,null,null,null,null,null,null,null,null,"Debno"]
[null,null,null,null,null,null,null,null,null,null,null,null,null,null,null,"Dedovsk"]
[null,null,null,null,null,null,null,null,null,null,null,null,null,null,null,"Dehu"]
[null,null,null,null,null,null,null,null,null,null,null,null,null,null,null,"Delahey"]
[null,null,null,null,null,null,null,null,null,null,null,null,null,null,null,"Delle"]
[null,null,null,null,null,null,null,null,null,null,null,null,null,null,null,"Den Burg"]
[null,null,null,null,null,null,null,null,null,null,null,null,null,null,null,"Denham Court"]
[null,null,null,null,null,null,null,null,null,null,null,null,null,null,null,"Dera Gopipur"]
[null,null,null,null,null,null,null,null,null,null,null,null,null,null,null,"Derrimut"]
[null,null,null,null,null,null,null,null,null,null,null,null,null,null,null,"DeSoto"]
[null,null,null,null,null,null,null,null,null,null,null,null,null,null,null,"Dettingen"]
[null,null,null,null,null,null,null,null,null,null,null,null,null,null,null,"Devon"]
[null,null,null,null,null,null,null,null,null,null,null,null,null,null,null,"Dharampuri"]
[null,null,null,null,null,null,null,null,null,null,null,null,null,null,null,"Dhuizon"]
[null,null,null,null,null,null,null,null,null,null,null,null,null,null,null,"Didyma"]
[null,null,null,null,null,null,null,null,null,null,null,null,null,null,null,"Dielheim"]
[null,null,null,null,null,null,null,null,null,null,null,null,null,null,null,"Digora"]
[null,null,null,null,null,null,null,null,null,null,null,null,null,null,null,"Dinagat"]
[null,null,null,null,null,null,null,null,null,null,null,null,null,null,null,"Dingalan"]
[null,null,null,null,null,null,null,null,null,null,null,null,null,null,null,"Dippach"]
[null,null,null,null,null,null,null,null,null,null,null,null,null,null,null,"District Heights"]
[null,null,null,null,null,null,null,null,null,null,null,null,null,null,null,"Djohong"]
[null,null,null,null,null,null,null,null,null,null,null,null,null,null,null,"Dobridor"]
[null,null,null,null,null,null,null,null,null,null,null,null,null,null,null,"Dobrotinet"]
[null,null,null,null,null,null,null,null,null,null,null,null,null,null,null,"Doembang Nangbuat"]
[null,null,null,null,null,null,null,null,null,null,null,null,null,null,null,"Dohar"]
[null,null,null,null,null,null,null,null,null,null,null,null,null,null,null,"Dollar Corner"]
[null,null,null,null,null,null,null,null,null,null,null,null,null,null,null,"Dolo"]
[null,null,null,null,null,null,null,null,null,null,null,null,null,null,null,"Domasnea"]
[null,null,null,null,null,null,null,null,null,null,null,null,null,null,null,"Domusnovas"]
[null,null,null,null,null,null,null,null,null,null,null,null,null,null,null,"Donauwoerth"]
[null,null,null,null,null,null,null,null,null,null,null,null,null,null,null,"Donje Ladanje"]
[null,null,null,null,null,null,null,null,null,null,null,null,null,null,null,"Doolittle"]
[null,null,null,null,null,null,null,null,null,null,null,null,null,null,null,"Dornbirn"]
[null,null,null,null,null,null,null,null,null,null,null,null,null,null,null,"Doruchow"]
[null,null,null,null,null,null,null,null,null,null,null,null,null,null,null,"Double Springs"]
[null,null,null,null,null,null,null,null,null,null,null,null,null,null,null,"Doveridge"]
[null,null,null,null,null,null,null,null,null,null,null,null,null,null,null,"Dracy-le-Fort"]
[null,null,null,null,null,null,null,null,null,null,null,null,null,null,null,"Dranic"]
[null,null,null,null,null,null,null,null,null,null,null,null,null,null,null,"Dreetz"]
[null,null,null,null,null,null,null,null,null,null,null,null,null,null,null,"Drovyanaya"]
[null,null,null,null,null,null,null,null,null,null,null,null,null,null,null,"Druebeck"]
[null,null,null,null,null,null,null,null,null,null,null,null,null,null,null,"Ducey"]
[null,null,null,null,null,null,null,null,null,null,null,null,null,null,null,"Duengenheim"]
[null,null,null,null,null,null,null,null,null,null,null,null,null,null,null,"Dugulubgey"]
[null,null,null,null,null,null,null,null,null,null,null,null,null,null,null,"Dumas"]
[null,null,null,null,null,null,null,null,null,null,null,null,null,null,null,"Dumont"]
[null,null,null,null,null,null,null,null,null,null,null,null,null,null,null,"Dunlop"]
[null,null,null,null,null,null,null,null,null,null,null,null,null,null,null,"Durg"]
[null,null,null,null,null,null,null,null,null,null,null,null,null,null,null,"Dutlwe"]
[null,null,null,null,null,null,null,null,null,null,null,null,null,null,null,"Dynnyrne"]
[null,null,null,null,null,null,null,null,null,null,null,null,null,null,null,"Dziemiany"]
[null,null,null,null,null,null,null,null,null,null,null,null,null,null,null,"Earby"]
[null,null,null,null,null,null,null,null,null,null,null,null,null,null,null,"East Albury"]
[null,null,null,null,null,null,null,null,null,null,null,null,null,null,null,"East Haddam"]
[null,null,null,null,null,null,null,null,null,null,null,null,null,null,null,"East Kingston"]
[null,null,null,null,null,null,null,null,null,null,null,null,null,null,null,"East Port Orchard"]
[null,null,null,null,null,null,null,null,null,null,null,null,null,null,null,"Eastover"]
[null,null,null,null,null,null,null,null,null,null,null,null,null,null,null,"Eberndorf"]
[null,null,null,null,null,null,null,null,null,null,null,null,null,null,null,"Echarri-Aranaz"]
[null,null,null,null,null,null,null,null,null,null,null,null,null,null,null,"Edam"]
[null,null,null,null,null,null,null,null,null,null,null,null,null,null,null,"Edenton"]
[null,null,null,null,null,null,null,null,null,null,null,null,null,null,null,"Eenrum"]
[null,null,null,null,null,null,null,null,null,null,null,null,null,null,null,"Eforie Sud"]
[null,null,null,null,null,null,null,null,null,null,null,null,null,null,null,"Ehningen"]
[null,null,null,null,null,null,null,null,null,null,null,null,null,null,null,"Eichenau"]
[null,null,null,null,null,null,null,null,null,null,null,null,null,null,null,"Eisenburg"]
[null,null,null,null,null,null,null,null,null,null,null,null,null,null,null,"El Achir"]
[null,null,null,null,null,null,null,null,null,null,null,null,null,null,null,"El Alamo"]
[null,null,null,null,null,null,null,null,null,null,null,null,null,null,null,"El Carmen de Bolivar"]
[null,null,null,null,null,null,null,null,null,null,null,null,null,null,null,"El Cerro Mission"]
[null,null,null,null,null,null,null,null,null,null,null,null,null,null,null,"El Fahs"]
[null,null,null,null,null,null,null,null,null,null,null,null,null,null,null,"El Gouna"]
[null,null,null,null,null,null,null,null,null,null,null,null,null,null,null,"El Negrito"]
[null,null,null,null,null,null,null,null,null,null,null,null,null,null,null,"El Pla de Santa Maria"]
[null,null,null,null,null,null,null,null,null,null,null,null,null,null,null,"El Rincon de San Felipe (Tercera Manzana San Felipe)"]
[null,null,null,null,null,null,null,null,null,null,null,null,null,null,null,"El Suyatal"]
[null,null,null,null,null,null,null,null,null,null,null,null,null,null,null,"El Triunfo"]
[null,null,null,null,null,null,null,null,null,null,null,null,null,null,null,"Eldersburg"]
[null,null,null,null,null,null,null,null,null,null,null,null,null,null,null,"Elesbao Veloso"]
[null,null,null,null,null,null,null,null,null,null,null,null,null,null,null,"Elkview"]
[null,null,null,null,null,null,null,null,null,null,null,null,null,null,null,"Elloes"]
[null,null,null,null,null,null,null,null,null,null,null,null,null,null,null,"Elorz"]
[null,null,null,null,null,null,null,null,null,null,null,null,null,null,null,"Embajador Martini"]
[null,null,null,null,null,null,null,null,null,null,null,null,null,null,null,"Emmering"]
[null,null,null,null,null,null,null,null,null,null,null,null,null,null,null,"Emporium"]
[null,null,null,null,null,null,null,null,null,null,null,null,null,null,null,"Enchanted Hills"]
[null,null,null,null,null,null,null,null,null,null,null,null,null,null,null,"Eningen unter Achalm"]
[null,null,null,null,null,null,null,null,null,null,null,null,null,null,null,"Enosburg Falls"]
[null,null,null,null,null,null,null,null,null,null,null,null,null,null,null,"Epehy"]
[null,null,null,null,null,null,null,null,null,null,null,null,null,null,null,"Erandio"]
[null,null,null,null,null,null,null,null,null,null,null,null,null,null,null,"Erdenet"]
[null,null,null,null,null,null,null,null,null,null,null,null,null,null,null,"Erlenbach / rechts des Dorfbachs oberhalb Bahnlinie"]
[null,null,null,null,null,null,null,null,null,null,null,null,null,null,null,"Esbjerg"]
[null,null,null,null,null,null,null,null,null,null,null,null,null,null,null,"Eschach"]
[null,null,null,null,null,null,null,null,null,null,null,null,null,null,null,"Esneux"]
[null,null,null,null,null,null,null,null,null,null,null,null,null,null,null,"Esperalvillo"]
[null,null,null,null,null,null,null,null,null,null,null,null,null,null,null,"Essau"]
[null,null,null,null,null,null,null,null,null,null,null,null,null,null,null,"Estacion Ruiz"]
[null,null,null,null,null,null,null,null,null,null,null,null,null,null,null,"Estoril"]
[null,null,null,null,null,null,null,null,null,null,null,null,null,null,null,"Etzbach"]
[null,null,null,null,null,null,null,null,null,null,null,null,null,null,null,"Euharlee"]
[null,null,null,null,null,null,null,null,null,null,null,null,null,null,null,"Evodoula"]
[null,null,null,null,null,null,null,null,null,null,null,null,null,null,null,"Exminster"]
[null,null,null,null,null,null,null,null,null,null,null,null,null,null,null,"Fabara"]
[null,null,null,null,null,null,null,null,null,null,null,null,null,null,null,"Fagetu"]
[null,null,null,null,null,null,null,null,null,null,null,null,null,null,null,"Fairfield Glade"]
[null,null,null,null,null,null,null,null,null,null,null,null,null,null,null,"Falces"]
[null,null,null,null,null,null,null,null,null,null,null,null,null,null,null,"Falkland"]
[null,null,null,null,null,null,null,null,null,null,null,null,null,null,null,"Fara Novarese"]
[null,null,null,null,null,null,null,null,null,null,null,null,null,null,null,"Farciennes"]
[null,null,null,null,null,null,null,null,null,null,null,null,null,null,null,"Farr West"]
[null,null,null,null,null,null,null,null,null,null,null,null,null,null,null,"Fatehpur Chaurasi"]
[null,null,null,null,null,null,null,null,null,null,null,null,null,null,null,"Feanwalden"]
[null,null,null,null,null,null,null,null,null,null,null,null,null,null,null,"Feldberg"]
[null,null,null,null,null,null,null,null,null,null,null,null,null,null,null,"Felsopakony"]
[null,null,null,null,null,null,null,null,null,null,null,null,null,null,null,"Fericanci"]
[null,null,null,null,null,null,null,null,null,null,null,null,null,null,null,"Fernana"]
[null,null,null,null,null,null,null,null,null,null,null,null,null,null,null,"Fetsund"]
[null,null,null,null,null,null,null,null,null,null,null,null,null,null,null,"Figueiro"]
[null,null,null,null,null,null,null,null,null,null,null,null,null,null,null,"Filippiada"]
[null,null,null,null,null,null,null,null,null,null,null,null,null,null,null,"Finschhafen"]
[null,null,null,null,null,null,null,null,null,null,null,null,null,null,null,"Firhouse"]
[null,null,null,null,null,null,null,null,null,null,null,null,null,null,null,"Fiumefreddo Sicilia"]
[null,null,null,null,null,null,null,null,null,null,null,null,null,null,null,"Fleurbaix"]
[null,null,null,null,null,null,null,null,null,null,null,null,null,null,null,"Flimby"]
[null,null,null,null,null,null,null,null,null,null,null,null,null,null,null,"Florida"]
[null,null,null,null,null,null,null,null,null,null,null,null,null,null,null,"Fluehli"]
[null,null,null,null,null,null,null,null,null,null,null,null,null,null,null,"Folschviller"]
[null,null,null,null,null,null,null,null,null,null,null,null,null,null,null,"Fontanella"]
[null,null,null,null,null,null,null,null,null,null,null,null,null,null,null,"Fonz"]
[null,null,null,null,null,null,null,null,null,null,null,null,null,null,null,"Forio"]
[null,null,null,null,null,null,null,null,null,null,null,null,null,null,null,"Fornase"]
[null,null,null,null,null,null,null,null,null,null,null,null,null,null,null,"Fort Hunt"]
[null,null,null,null,null,null,null,null,null,null,null,null,null,null,null,"Fort Mitchell"]
[null,null,null,null,null,null,null,null,null,null,null,null,null,null,null,"Foshan"]
[null,null,null,null,null,null,null,null,null,null,null,null,null,null,null,"Foulridge"]
[null,null,null,null,null,null,null,null,null,null,null,null,null,null,null,"Fox Point"]
[null,null,null,null,null,null,null,null,null,null,null,null,null,null,null,"Fraccionamiento Privadas del Sol"]
[null,null,null,null,null,null,null,null,null,null,null,null,null,null,null,"Franca"]
[null,null,null,null,null,null,null,null,null,null,null,null,null,null,null,"Franklin Center"]
[null,null,null,null,null,null,null,null,null,null,null,null,null,null,null,"Frassineto Po"]
[null,null,null,null,null,null,null,null,null,null,null,null,null,null,null,"Freienwill"]
[null,null,null,null,null,null,null,null,null,null,null,null,null,null,null,"Fressenneville"]
[null,null,null,null,null,null,null,null,null,null,null,null,null,null,null,"Friedrichsfelde"]
[null,null,null,null,null,null,null,null,null,null,null,null,null,null,null,"Frizington"]
[null,null,null,null,null,null,null,null,null,null,null,null,null,null,null,"Fruges"]
[null,null,null,null,null,null,null,null,null,null,null,null,null,null,null,"Frydrychowice"]
[null,null,null,null,null,null,null,null,null,null,null,null,null,null,null,"Fuenmayor"]
[null,null,null,null,null,null,null,null,null,null,null,null,null,null,null,"Fulenbach"]
[null,null,null,null,null,null,null,null,null,null,null,null,null,null,null,"Furthen"]
[null,null,null,null,null,null,null,null,null,null,null,null,null,null,null,"Fuzhou"]
[null,null,null,null,null,null,null,null,null,null,null,null,null,null,null,"Gadhinglaj"]
[null,null,null,null,null,null,null,null,null,null,null,null,null,null,null,"Gagliano del Capo"]
[null,null,null,null,null,null,null,null,null,null,null,null,null,null,null,"Gala"]
[null,null,null,null,null,null,null,null,null,null,null,null,null,null,null,"Galgagnano"]
[null,null,null,null,null,null,null,null,null,null,null,null,null,null,null,"Galliano"]
[null,null,null,null,null,null,null,null,null,null,null,null,null,null,null,"Gammad"]
[null,null,null,null,null,null,null,null,null,null,null,null,null,null,null,"Gamu"]
[null,null,null,null,null,null,null,null,null,null,null,null,null,null,null,"Gaojingzhuang"]
[null,null,null,null,null,null,null,null,null,null,null,null,null,null,null,"Gaoual"]
[null,null,null,null,null,null,null,null,null,null,null,null,null,null,null,"Garden City Park"]
[null,null,null,null,null,null,null,null,null,null,null,null,null,null,null,"Garhi Khairo"]
[null,null,null,null,null,null,null,null,null,null,null,null,null,null,null,"Garoafa"]
[null,null,null,null,null,null,null,null,null,null,null,null,null,null,null,"Gassville"]
[null,null,null,null,null,null,null,null,null,null,null,null,null,null,null,"Gatlinburg"]
[null,null,null,null,null,null,null,null,null,null,null,null,null,null,null,"Gavardo-Sopraponte"]
[null,null,null,null,null,null,null,null,null,null,null,null,null,null,null,"Gbewebu"]
[null,null,null,null,null,null,null,null,null,null,null,null,null,null,null,"Geghakert"]
[null,null,null,null,null,null,null,null,null,null,null,null,null,null,null,"Genaro Estrada"]
[null,null,null,null,null,null,null,null,null,null,null,null,null,null,null,"Genc"]
[null,null,null,null,null,null,null,null,null,null,null,null,null,null,null,"Genk"]
[null,null,null,null,null,null,null,null,null,null,null,null,null,null,null,"Genthin"]
[null,null,null,null,null,null,null,null,null,null,null,null,null,null,null,"Gerhardshofen"]
[null,null,null,null,null,null,null,null,null,null,null,null,null,null,null,"Geroldshausen"]
[null,null,null,null,null,null,null,null,null,null,null,null,null,null,null,"Ghanaur"]
[null,null,null,null,null,null,null,null,null,null,null,null,null,null,null,"Ghiffa"]
[null,null,null,null,null,null,null,null,null,null,null,null,null,null,null,"Giado"]
[null,null,null,null,null,null,null,null,null,null,null,null,null,null,null,"Giddarbaha"]
[null,null,null,null,null,null,null,null,null,null,null,null,null,null,null,"Gieres"]
[null,null,null,null,null,null,null,null,null,null,null,null,null,null,null,"Gilmanton"]
[null,null,null,null,null,null,null,null,null,null,null,null,null,null,null,"Gingee"]
[null,null,null,null,null,null,null,null,null,null,null,null,null,null,null,"Gissi"]
[null,null,null,null,null,null,null,null,null,null,null,null,null,null,null,"Givisiez"]
[null,null,null,null,null,null,null,null,null,null,null,null,null,null,null,"Glandorf"]
[null,null,null,null,null,null,null,null,null,null,null,null,null,null,null,"Glen Carbon"]
[null,null,null,null,null,null,null,null,null,null,null,null,null,null,null,"Glenns Ferry"]
[null,null,null,null,null,null,null,null,null,null,null,null,null,null,null,"Glotovka"]
[null,null,null,null,null,null,null,null,null,null,null,null,null,null,null,"Gobernador Ingeniero Valentin Virasoro"]
[null,null,null,null,null,null,null,null,null,null,null,null,null,null,null,"Goddard"]
[null,null,null,null,null,null,null,null,null,null,null,null,null,null,null,"Goiania"]
[null,null,null,null,null,null,null,null,null,null,null,null,null,null,null,"Gojra"]
[null,null,null,null,null,null,null,null,null,null,null,null,null,null,null,"Golden Point"]
[null,null,null,null,null,null,null,null,null,null,null,null,null,null,null,"Gologanu"]
[null,null,null,null,null,null,null,null,null,null,null,null,null,null,null,"Gondia"]
[null,null,null,null,null,null,null,null,null,null,null,null,null,null,null,"Gorazdze"]
[null,null,null,null,null,null,null,null,null,null,null,null,null,null,null,"Gordona"]
[null,null,null,null,null,null,null,null,null,null,null,null,null,null,null,"Gornje Mostre"]
[null,null,null,null,null,null,null,null,null,null,null,null,null,null,null,"Gorodoviki"]
[null,null,null,null,null,null,null,null,null,null,null,null,null,null,null,"Gosnells"]
[null,null,null,null,null,null,null,null,null,null,null,null,null,null,null,"Gourbeyre"]
[null,null,null,null,null,null,null,null,null,null,null,null,null,null,null,"Gozzano"]
[null,null,null,null,null,null,null,null,null,null,null,null,null,null,null,"Gradec"]
[null,null,null,null,null,null,null,null,null,null,null,null,null,null,null,"Gradoli"]
[null,null,null,null,null,null,null,null,null,null,null,null,null,null,null,"Grand Canyon"]
[null,null,null,null,null,null,null,null,null,null,null,null,null,null,null,"Grande Pointe aux Piments"]
[null,null,null,null,null,null,null,null,null,null,null,null,null,null,null,"Granja de Rocamora"]
[null,null,null,null,null,null,null,null,null,null,null,null,null,null,null,"Grasmere"]
[null,null,null,null,null,null,null,null,null,null,null,null,null,null,null,"Grays Point"]
[null,null,null,null,null,null,null,null,null,null,null,null,null,null,null,"Great Neck Estates"]
[null,null,null,null,null,null,null,null,null,null,null,null,null,null,null,"Greda"]
[null,null,null,null,null,null,null,null,null,null,null,null,null,null,null,"Greenup"]
[null,null,null,null,null,null,null,null,null,null,null,null,null,null,null,"Gremsdorf"]
[null,null,null,null,null,null,null,null,null,null,null,null,null,null,null,"Griffioen"]
[null,null,null,null,null,null,null,null,null,null,null,null,null,null,null,"Grimsley"]
[null,null,null,null,null,null,null,null,null,null,null,null,null,null,null,"Grojdibodu"]
[null,null,null,null,null,null,null,null,null,null,null,null,null,null,null,"Grosotto"]
[null,null,null,null,null,null,null,null,null,null,null,null,null,null,null,"Grosse Pointe Park"]
[null,null,null,null,null,null,null,null,null,null,null,null,null,null,null,"Grossrudestedt"]
[null,null,null,null,null,null,null,null,null,null,null,null,null,null,null,"Gruibingen"]
[null,null,null,null,null,null,null,null,null,null,null,null,null,null,null,"Grushevskaya"]
[null,null,null,null,null,null,null,null,null,null,null,null,null,null,null,"Guadamur"]
[null,null,null,null,null,null,null,null,null,null,null,null,null,null,null,"Guanagazapa"]
[null,null,null,null,null,null,null,null,null,null,null,null,null,null,null,"Guardea"]
[null,null,null,null,null,null,null,null,null,null,null,null,null,null,null,"Guayama"]
[null,null,null,null,null,null,null,null,null,null,null,null,null,null,null,"Gudo Visconti"]
[null,null,null,null,null,null,null,null,null,null,null,null,null,null,null,"Gueydan"]
[null,null,null,null,null,null,null,null,null,null,null,null,null,null,null,"Guichon"]
[null,null,null,null,null,null,null,null,null,null,null,null,null,null,null,"Guipel"]
[null,null,null,null,null,null,null,null,null,null,null,null,null,null,null,"Guiwanon"]
[null,null,null,null,null,null,null,null,null,null,null,null,null,null,null,"Gummidipundi"]
[null,null,null,null,null,null,null,null,null,null,null,null,null,null,null,"Gunyazi"]
[null,null,null,null,null,null,null,null,null,null,null,null,null,null,null,"Gurh"]
[null,null,null,null,null,null,null,null,null,null,null,null,null,null,null,"Gutenstetten"]
[null,null,null,null,null,null,null,null,null,null,null,null,null,null,null,"Gwandu"]
[null,null,null,null,null,null,null,null,null,null,null,null,null,null,null,"Haamstede"]
[null,null,null,null,null,null,null,null,null,null,null,null,null,null,null,"Haberfield"]
[null,null,null,null,null,null,null,null,null,null,null,null,null,null,null,"Hadyach"]
[null,null,null,null,null,null,null,null,null,null,null,null,null,null,null,"Haguenau"]
[null,null,null,null,null,null,null,null,null,null,null,null,null,null,null,"Haikuotiankong"]
[null,null,null,null,null,null,null,null,null,null,null,null,null,null,null,"Hajipur"]
[null,null,null,null,null,null,null,null,null,null,null,null,null,null,null,"Haldia"]
[null,null,null,null,null,null,null,null,null,null,null,null,null,null,null,"Hallennes-lez-Haubourdin"]
[null,null,null,null,null,null,null,null,null,null,null,null,null,null,null,"Halsua"]
[null,null,null,null,null,null,null,null,null,null,null,null,null,null,null,"Hammoor"]
[null,null,null,null,null,null,null,null,null,null,null,null,null,null,null,"Hanga Roa"]
[null,null,null,null,null,null,null,null,null,null,null,null,null,null,null,"Hansk"]
[null,null,null,null,null,null,null,null,null,null,null,null,null,null,null,"Harbin"]
[null,null,null,null,null,null,null,null,null,null,null,null,null,null,null,"Hari Bdr Tamang House"]
[null,null,null,null,null,null,null,null,null,null,null,null,null,null,null,"Harpalpur"]
[null,null,null,null,null,null,null,null,null,null,null,null,null,null,null,"Harta"]
[null,null,null,null,null,null,null,null,null,null,null,null,null,null,null,"Haru Zbad"]
[null,null,null,null,null,null,null,null,null,null,null,null,null,null,null,"Hassloe"]
[null,null,null,null,null,null,null,null,null,null,null,null,null,null,null,"Hatillo de Loba"]
[null,null,null,null,null,null,null,null,null,null,null,null,null,null,null,"Hautefort"]
[null,null,null,null,null,null,null,null,null,null,null,null,null,null,null,"Hawaiian Paradise Park"]
[null,null,null,null,null,null,null,null,null,null,null,null,null,null,null,"Hayes"]
[null,null,null,null,null,null,null,null,null,null,null,null,null,null,null,"Headlands"]
[null,null,null,null,null,null,null,null,null,null,null,null,null,null,null,"Heber-Overgaard"]
[null,null,null,null,null,null,null,null,null,null,null,null,null,null,null,"Hefei"]
[null,null,null,null,null,null,null,null,null,null,null,null,null,null,null,"Heidenau"]
[null,null,null,null,null,null,null,null,null,null,null,null,null,null,null,"Helena-West Helena"]
[null,null,null,null,null,null,null,null,null,null,null,null,null,null,null,"Hellenhahn-Schellenberg"]
[null,null,null,null,null,null,null,null,null,null,null,null,null,null,null,"Hengevelde"]
[null,null,null,null,null,null,null,null,null,null,null,null,null,null,null,"Herasti"]
[null,null,null,null,null,null,null,null,null,null,null,null,null,null,null,"Hercegszanto"]
[null,null,null,null,null,null,null,null,null,null,null,null,null,null,null,"Hermanville-sur-Mer"]
[null,null,null,null,null,null,null,null,null,null,null,null,null,null,null,"Herne Bay"]
[null,null,null,null,null,null,null,null,null,null,null,null,null,null,null,"Hespe"]
[null,null,null,null,null,null,null,null,null,null,null,null,null,null,null,"Hessisch Oldendorf"]
[null,null,null,null,null,null,null,null,null,null,null,null,null,null,null,"Hidden Valley Lake"]
[null,null,null,null,null,null,null,null,null,null,null,null,null,null,null,"Highland Falls"]
[null,null,null,null,null,null,null,null,null,null,null,null,null,null,null,"Hilders"]
[null,null,null,null,null,null,null,null,null,null,null,null,null,null,null,"Hillside"]
[null,null,null,null,null,null,null,null,null,null,null,null,null,null,null,"Hines"]
[null,null,null,null,null,null,null,null,null,null,null,null,null,null,null,"Hinthada"]
[null,null,null,null,null,null,null,null,null,null,null,null,null,null,null,"Hirschfelde"]
[null,null,null,null,null,null,null,null,null,null,null,null,null,null,null,"Hlobyne"]
[null,null,null,null,null,null,null,null,null,null,null,null,null,null,null,"Hockley"]
[null,null,null,null,null,null,null,null,null,null,null,null,null,null,null,"Hoekoepinge"]
[null,null,null,null,null,null,null,null,null,null,null,null,null,null,null,"Hohen Neuendorf"]
[null,null,null,null,null,null,null,null,null,null,null,null,null,null,null,"Holboca"]
[null,null,null,null,null,null,null,null,null,null,null,null,null,null,null,"Holiday Lakes"]
[null,null,null,null,null,null,null,null,null,null,null,null,null,null,null,"Hollister"]
[null,null,null,null,null,null,null,null,null,null,null,null,null,null,null,"Holzdorf"]
[null,null,null,null,null,null,null,null,null,null,null,null,null,null,null,"Homer City"]
[null,null,null,null,null,null,null,null,null,null,null,null,null,null,null,"Hongseong"]
[null,null,null,null,null,null,null,null,null,null,null,null,null,null,null,"Hoopers Creek"]
[null,null,null,null,null,null,null,null,null,null,null,null,null,null,null,"Horben"]
[null,null,null,null,null,null,null,null,null,null,null,null,null,null,null,"Horni Briza"]
[null,null,null,null,null,null,null,null,null,null,null,null,null,null,null,"Horstedt"]
[null,null,null,null,null,null,null,null,null,null,null,null,null,null,null,"Horwich"]
[null,null,null,null,null,null,null,null,null,null,null,null,null,null,null,"Hourtin"]
[null,null,null,null,null,null,null,null,null,null,null,null,null,null,null,"Hove"]
[null,null,null,null,null,null,null,null,null,null,null,null,null,null,null,"Hozat"]
[null,null,null,null,null,null,null,null,null,null,null,null,null,null,null,"Huangxikou"]
[null,null,null,null,null,null,null,null,null,null,null,null,null,null,null,"Huanta"]
[null,null,null,null,null,null,null,null,null,null,null,null,null,null,null,"Huenxe"]
[null,null,null,null,null,null,null,null,null,null,null,null,null,null,null,"Huete"]
[null,null,null,null,null,null,null,null,null,null,null,null,null,null,null,"Hukumati Azrah"]
[null,null,null,null,null,null,null,null,null,null,null,null,null,null,null,"Humanes de Madrid"]
[null,null,null,null,null,null,null,null,null,null,null,null,null,null,null,"Huntington Woods"]
[null,null,null,null,null,null,null,null,null,null,null,null,null,null,null,"Husbands Bosworth"]
[null,null,null,null,null,null,null,null,null,null,null,null,null,null,null,"Hveragerdi"]
[null,null,null,null,null,null,null,null,null,null,null,null,null,null,null,"Iazurile"]
[null,null,null,null,null,null,null,null,null,null,null,null,null,null,null,"Ibung"]
[null,null,null,null,null,null,null,null,null,null,null,null,null,null,null,"Icusesti"]
[null,null,null,null,null,null,null,null,null,null,null,null,null,null,null,"Idstein"]
[null,null,null,null,null,null,null,null,null,null,null,null,null,null,null,"Igdir"]
[null,null,null,null,null,null,null,null,null,null,null,null,null,null,null,"Igpit"]
[null,null,null,null,null,null,null,null,null,null,null,null,null,null,null,"IJzendijke"]
[null,null,null,null,null,null,null,null,null,null,null,null,null,null,null,"Ilaskhan-Yurt"]
[null,null,null,null,null,null,null,null,null,null,null,null,null,null,null,"Ilinden"]
[null,null,null,null,null,null,null,null,null,null,null,null,null,null,null,"Ilok"]
[null,null,null,null,null,null,null,null,null,null,null,null,null,null,null,"Imper"]
[null,null,null,null,null,null,null,null,null,null,null,null,null,null,null,"Inashiki"]
[null,null,null,null,null,null,null,null,null,null,null,null,null,null,null,"Indianapolis"]
[null,null,null,null,null,null,null,null,null,null,null,null,null,null,null,"Inegol"]
[null,null,null,null,null,null,null,null,null,null,null,null,null,null,null,"Ino"]
[null,null,null,null,null,null,null,null,null,null,null,null,null,null,null,"Inonu"]
[null,null,null,null,null,null,null,null,null,null,null,null,null,null,null,"Inyokern"]
[null,null,null,null,null,null,null,null,null,null,null,null,null,null,null,"Irahuan"]
[null,null,null,null,null,null,null,null,null,null,null,null,null,null,null,"Irbeyskoye"]
[null,null,null,null,null,null,null,null,null,null,null,null,null,null,null,"Irving"]
[null,null,null,null,null,null,null,null,null,null,null,null,null,null,null,"Iscar"]
[null,null,null,null,null,null,null,null,null,null,null,null,null,null,null,"Iskandar"]
[null,null,null,null,null,null,null,null,null,null,null,null,null,null,null,"Isle of Islay"]
[null,null,null,null,null,null,null,null,null,null,null,null,null,null,null,"Issa"]
[null,null,null,null,null,null,null,null,null,null,null,null,null,null,null,"Itai"]
[null,null,null,null,null,null,null,null,null,null,null,null,null,null,null,"Itapage"]
[null,null,null,null,null,null,null,null,null,null,null,null,null,null,null,"Itsandzeni"]
[null,null,null,null,null,null,null,null,null,null,null,null,null,null,null,"Itupiranga"]
[null,null,null,null,null,null,null,null,null,null,null,null,null,null,null,"Iwakura"]
[null,null,null,null,null,null,null,null,null,null,null,null,null,null,null,"Ixtlahuaca de Cuauhtemoc"]
[null,null,null,null,null,null,null,null,null,null,null,null,null,null,null,"Iznik"]
[null,null,null,null,null,null,null,null,null,null,null,null,null,null,null,"Jabbeke"]
[null,null,null,null,null,null,null,null,null,null,null,null,null,null,null,"Jacarilla"]
[null,null,null,null,null,null,null,null,null,null,null,null,null,null,null,"Jagdishpur"]
[null,null,null,null,null,null,null,null,null,null,null,null,null,null,null,"Jaguimitan"]
[null,null,null,null,null,null,null,null,null,null,null,null,null,null,null,"Jalingo"]
[null,null,null,null,null,null,null,null,null,null,null,null,null,null,null,"Jamul"]
[null,null,null,null,null,null,null,null,null,null,null,null,null,null,null,"Janovice"]
[null,null,null,null,null,null,null,null,null,null,null,null,null,null,null,"Jardim do Serido"]
[null,null,null,null,null,null,null,null,null,null,null,null,null,null,null,"Jarmina"]
[null,null,null,null,null,null,null,null,null,null,null,null,null,null,null,"Jaszszentandras"]
[null,null,null,null,null,null,null,null,null,null,null,null,null,null,null,"Jaunay-Clan"]
[null,null,null,null,null,null,null,null,null,null,null,null,null,null,null,"Jefferson Heights"]
[null,null,null,null,null,null,null,null,null,null,null,null,null,null,null,"Jequitinhonha"]
[null,null,null,null,null,null,null,null,null,null,null,null,null,null,null,"Jerusalen"]
[null,null,null,null,null,null,null,null,null,null,null,null,null,null,null,"Jeypore"]
[null,null,null,null,null,null,null,null,null,null,null,null,null,null,null,"Jiangshi"]
[null,null,null,null,null,null,null,null,null,null,null,null,null,null,null,"Jijel"]
[null,null,null,null,null,null,null,null,null,null,null,null,null,null,null,"Jinghong"]
[null,null,null,null,null,null,null,null,null,null,null,null,null,null,null,"Jirny"]
[null,null,null,null,null,null,null,null,null,null,null,null,null,null,null,"Joenkoeping"]
[null,null,null,null,null,null,null,null,null,null,null,null,null,null,null,"Johanngeorgenstadt"]
[null,null,null,null,null,null,null,null,null,null,null,null,null,null,null,"Joniskis"]
[null,null,null,null,null,null,null,null,null,null,null,null,null,null,null,"Jose Maria Morelos (La Yegueeria)"]
[null,null,null,null,null,null,null,null,null,null,null,null,null,null,null,"Jouy-le-Chatel"]
[null,null,null,null,null,null,null,null,null,null,null,null,null,null,null,"Jubbal"]
[null,null,null,null,null,null,null,null,null,null,null,null,null,null,null,"Jugureanu"]
[null,null,null,null,null,null,null,null,null,null,null,null,null,null,null,"Juntas"]
[null,null,null,null,null,null,null,null,null,null,null,null,null,null,null,"Juruti"]
[null,null,null,null,null,null,null,null,null,null,null,null,null,null,null,"Kabinda"]
[null,null,null,null,null,null,null,null,null,null,null,null,null,null,null,"Kacha"]
[null,null,null,null,null,null,null,null,null,null,null,null,null,null,null,"Kaedi"]
[null,null,null,null,null,null,null,null,null,null,null,null,null,null,null,"Kaikalur"]
[null,null,null,null,null,null,null,null,null,null,null,null,null,null,null,"Kaimori"]
[null,null,null,null,null,null,null,null,null,null,null,null,null,null,null,"Kalampaka"]
[null,null,null,null,null,null,null,null,null,null,null,null,null,null,null,"Kalavoor"]
[null,null,null,null,null,null,null,null,null,null,null,null,null,null,null,"Kall"]
[null,null,null,null,null,null,null,null,null,null,null,null,null,null,null,"Kalundri"]
[null,null,null,null,null,null,null,null,null,null,null,null,null,null,null,"Kamareddi"]
[null,null,null,null,null,null,null,null,null,null,null,null,null,null,null,"Kamianytsia"]
[null,null,null,null,null,null,null,null,null,null,null,null,null,null,null,"Kamperland"]
[null,null,null,null,null,null,null,null,null,null,null,null,null,null,null,"Kamuli"]
[null,null,null,null,null,null,null,null,null,null,null,null,null,null,null,"Kandila"]
[null,null,null,null,null,null,null,null,null,null,null,null,null,null,null,"Kangayam"]
[null,null,null,null,null,null,null,null,null,null,null,null,null,null,null,"Kanluran"]
[null,null,null,null,null,null,null,null,null,null,null,null,null,null,null,"Kapatagan"]
[null,null,null,null,null,null,null,null,null,null,null,null,null,null,null,"Kapurthala"]
[null,null,null,null,null,null,null,null,null,null,null,null,null,null,null,"Karalar"]
[null,null,null,null,null,null,null,null,null,null,null,null,null,null,null,"Kardonikskaya"]
[null,null,null,null,null,null,null,null,null,null,null,null,null,null,null,"Karlshuld"]
[null,null,null,null,null,null,null,null,null,null,null,null,null,null,null,"Karpathos"]
[null,null,null,null,null,null,null,null,null,null,null,null,null,null,null,"Kasganj"]
[null,null,null,null,null,null,null,null,null,null,null,null,null,null,null,"Kasina Wielka"]
[null,null,null,null,null,null,null,null,null,null,null,null,null,null,null,"Kathor"]
[null,null,null,null,null,null,null,null,null,null,null,null,null,null,null,"Katiola"]
[null,null,null,null,null,null,null,null,null,null,null,null,null,null,null,"Kavadarci"]
[null,null,null,null,null,null,null,null,null,null,null,null,null,null,null,"Kayanza"]
[null,null,null,null,null,null,null,null,null,null,null,null,null,null,null,"Kayna"]
[null,null,null,null,null,null,null,null,null,null,null,null,null,null,null,"Keedysville"]
[null,null,null,null,null,null,null,null,null,null,null,null,null,null,null,"Kefar Weradim"]
[null,null,null,null,null,null,null,null,null,null,null,null,null,null,null,"Kelowna"]
[null,null,null,null,null,null,null,null,null,null,null,null,null,null,null,"Kemecse"]
[null,null,null,null,null,null,null,null,null,null,null,null,null,null,null,"Kentfield"]
[null,null,null,null,null,null,null,null,null,null,null,null,null,null,null,"Kerhonkson"]
[null,null,null,null,null,null,null,null,null,null,null,null,null,null,null,"Keskastel"]
[null,null,null,null,null,null,null,null,null,null,null,null,null,null,null,"Kety"]
[null,null,null,null,null,null,null,null,null,null,null,null,null,null,null,"Kewdale"]
[null,null,null,null,null,null,null,null,null,null,null,null,null,null,null,"Khanapur"]
[null,null,null,null,null,null,null,null,null,null,null,null,null,null,null,"Khanu Woralaksaburi"]
[null,null,null,null,null,null,null,null,null,null,null,null,null,null,null,"Khenifra"]
[null,null,null,null,null,null,null,null,null,null,null,null,null,null,null,"Kholmsk"]
[null,null,null,null,null,null,null,null,null,null,null,null,null,null,null,"Khowai"]
[null,null,null,null,null,null,null,null,null,null,null,null,null,null,null,"Kiambu"]
[null,null,null,null,null,null,null,null,null,null,null,null,null,null,null,"Kidlington"]
[null,null,null,null,null,null,null,null,null,null,null,null,null,null,null,"Kilchberg"]
[null,null,null,null,null,null,null,null,null,null,null,null,null,null,null,"Kilkeel"]
[null,null,null,null,null,null,null,null,null,null,null,null,null,null,null,"Kimhae"]
[null,null,null,null,null,null,null,null,null,null,null,null,null,null,null,"Kinderbeuern"]
[null,null,null,null,null,null,null,null,null,null,null,null,null,null,null,"Kingscourt"]
[null,null,null,null,null,null,null,null,null,null,null,null,null,null,null,"Kinsale"]
[null,null,null,null,null,null,null,null,null,null,null,null,null,null,null,"Kirchberg"]
[null,null,null,null,null,null,null,null,null,null,null,null,null,null,null,"Kirikhan"]
[null,null,null,null,null,null,null,null,null,null,null,null,null,null,null,"Kisela Voda"]
[null,null,null,null,null,null,null,null,null,null,null,null,null,null,null,"Kiskunmajsa"]
[null,null,null,null,null,null,null,null,null,null,null,null,null,null,null,"Kitros"]
[null,null,null,null,null,null,null,null,null,null,null,null,null,null,null,"Kizema"]
[null,null,null,null,null,null,null,null,null,null,null,null,null,null,null,"Klecza Dolna"]
[null,null,null,null,null,null,null,null,null,null,null,null,null,null,null,"Kleinlangheim"]
[null,null,null,null,null,null,null,null,null,null,null,null,null,null,null,"Klintehamn"]
[null,null,null,null,null,null,null,null,null,null,null,null,null,null,null,"Knittelfeld"]
[null,null,null,null,null,null,null,null,null,null,null,null,null,null,null,"Knox City"]
[null,null,null,null,null,null,null,null,null,null,null,null,null,null,null,"Kocs"]
[null,null,null,null,null,null,null,null,null,null,null,null,null,null,null,"Koednitz"]
[null,null,null,null,null,null,null,null,null,null,null,null,null,null,null,"Kojetin"]
[null,null,null,null,null,null,null,null,null,null,null,null,null,null,null,"Koktal"]
[null,null,null,null,null,null,null,null,null,null,null,null,null,null,null,"Kollumerzwaag"]
[null,null,null,null,null,null,null,null,null,null,null,null,null,null,null,"Komatsu"]
[null,null,null,null,null,null,null,null,null,null,null,null,null,null,null,"Komsomolsk-on-Amur"]
[null,null,null,null,null,null,null,null,null,null,null,null,null,null,null,"Konigshain"]
[null,null,null,null,null,null,null,null,null,null,null,null,null,null,null,"Konopiska"]
[null,null,null,null,null,null,null,null,null,null,null,null,null,null,null,"Koppies"]
[null,null,null,null,null,null,null,null,null,null,null,null,null,null,null,"Korfantow"]
[null,null,null,null,null,null,null,null,null,null,null,null,null,null,null,"Korotych"]
[null,null,null,null,null,null,null,null,null,null,null,null,null,null,null,"Kosciusko"]
[null,null,null,null,null,null,null,null,null,null,null,null,null,null,null,"Kostakioi"]
[null,null,null,null,null,null,null,null,null,null,null,null,null,null,null,"Kotar"]
[null,null,null,null,null,null,null,null,null,null,null,null,null,null,null,"Kotolte"]
[null,null,null,null,null,null,null,null,null,null,null,null,null,null,null,"Kovarov"]
[null,null,null,null,null,null,null,null,null,null,null,null,null,null,null,"Kpandae"]
[null,null,null,null,null,null,null,null,null,null,null,null,null,null,null,"Kranjska Gora"]
[null,null,null,null,null,null,null,null,null,null,null,null,null,null,null,"Krasnogorskoye"]
[null,null,null,null,null,null,null,null,null,null,null,null,null,null,null,"Krasnyi Mak"]
[null,null,null,null,null,null,null,null,null,null,null,null,null,null,null,"Krautheim"]
[null,null,null,null,null,null,null,null,null,null,null,null,null,null,null,"Kristianstad"]
[null,null,null,null,null,null,null,null,null,null,null,null,null,null,null,"Krizova"]
[null,null,null,null,null,null,null,null,null,null,null,null,null,null,null,"Kruisberg"]
[null,null,null,null,null,null,null,null,null,null,null,null,null,null,null,"Krustpils"]
[null,null,null,null,null,null,null,null,null,null,null,null,null,null,null,"Ksar Hellal"]
[null,null,null,null,null,null,null,null,null,null,null,null,null,null,null,"Kubrat"]
[null,null,null,null,null,null,null,null,null,null,null,null,null,null,null,"Kuesnacht / Itschnach"]
[null,null,null,null,null,null,null,null,null,null,null,null,null,null,null,"Kullaa"]
[null,null,null,null,null,null,null,null,null,null,null,null,null,null,null,"Kumalarang"]
[null,null,null,null,null,null,null,null,null,null,null,null,null,null,null,"Kunjah"]
[null,null,null,null,null,null,null,null,null,null,null,null,null,null,null,"Kunting"]
[null,null,null,null,null,null,null,null,null,null,null,null,null,null,null,"Kurort Gohrisch"]
[null,null,null,null,null,null,null,null,null,null,null,null,null,null,null,"Kushiro"]
[null,null,null,null,null,null,null,null,null,null,null,null,null,null,null,"Kutiatodu"]
[null,null,null,null,null,null,null,null,null,null,null,null,null,null,null,"Kuznica"]
[null,null,null,null,null,null,null,null,null,null,null,null,null,null,null,"Kyakhta"]
[null,null,null,null,null,null,null,null,null,null,null,null,null,null,null,"Kyzyl-Oktyabr'skiy"]
[null,null,null,null,null,null,null,null,null,null,null,null,null,null,null,"La Azozuca"]
[null,null,null,null,null,null,null,null,null,null,null,null,null,null,null,"La Capelle-les-Boulogne"]
[null,null,null,null,null,null,null,null,null,null,null,null,null,null,null,"La Cocha"]
[null,null,null,null,null,null,null,null,null,null,null,null,null,null,null,"La Cuesta"]
[null,null,null,null,null,null,null,null,null,null,null,null,null,null,null,"La Ferriere-aux-Etangs"]
[null,null,null,null,null,null,null,null,null,null,null,null,null,null,null,"La Garrovilla"]
[null,null,null,null,null,null,null,null,null,null,null,null,null,null,null,"la Guineueta"]
[null,null,null,null,null,null,null,null,null,null,null,null,null,null,null,"La Lira"]
[null,null,null,null,null,null,null,null,null,null,null,null,null,null,null,"La Magdalena de los Reyes (La Magdalena)"]
[null,null,null,null,null,null,null,null,null,null,null,null,null,null,null,"la Nucia"]
[null,null,null,null,null,null,null,null,null,null,null,null,null,null,null,"La Pesga"]
[null,null,null,null,null,null,null,null,null,null,null,null,null,null,null,"La Pueblanueva"]
[null,null,null,null,null,null,null,null,null,null,null,null,null,null,null,"La Rochefoucauld"]
[null,null,null,null,null,null,null,null,null,null,null,null,null,null,null,"La Selva"]
[null,null,null,null,null,null,null,null,null,null,null,null,null,null,null,"La Trinite-sur-Mer"]
[null,null,null,null,null,null,null,null,null,null,null,null,null,null,null,"la Vila Olimpica del Poblenou"]
[null,null,null,null,null,null,null,null,null,null,null,null,null,null,null,"Laayoune Plage"]
[null,null,null,null,null,null,null,null,null,null,null,null,null,null,null,"Labytnangi"]
[null,null,null,null,null,null,null,null,null,null,null,null,null,null,null,"Lacin"]
[null,null,null,null,null,null,null,null,null,null,null,null,null,null,null,"Ladue"]
[null,null,null,null,null,null,null,null,null,null,null,null,null,null,null,"Laghouat"]
[null,null,null,null,null,null,null,null,null,null,null,null,null,null,null,"Lahti"]
[null,null,null,null,null,null,null,null,null,null,null,null,null,null,null,"Laixi"]
[null,null,null,null,null,null,null,null,null,null,null,null,null,null,null,"Lake in the Hills"]
[null,null,null,null,null,null,null,null,null,null,null,null,null,null,null,"Lake Michigan Beach"]
[null,null,null,null,null,null,null,null,null,null,null,null,null,null,null,"Lakeport"]
[null,null,null,null,null,null,null,null,null,null,null,null,null,null,null,"Lakeville"]
[null,null,null,null,null,null,null,null,null,null,null,null,null,null,null,"Lama dei Peligni"]
[null,null,null,null,null,null,null,null,null,null,null,null,null,null,null,"Lamesa"]
[null,null,null,null,null,null,null,null,null,null,null,null,null,null,null,"Laminusa"]
[null,null,null,null,null,null,null,null,null,null,null,null,null,null,null,"Landehen"]
[null,null,null,null,null,null,null,null,null,null,null,null,null,null,null,"Landmark"]
[null,null,null,null,null,null,null,null,null,null,null,null,null,null,null,"Langenneufnach"]
[null,null,null,null,null,null,null,null,null,null,null,null,null,null,null,"Langho"]
[null,null,null,null,null,null,null,null,null,null,null,null,null,null,null,"Lanja"]
[null,null,null,null,null,null,null,null,null,null,null,null,null,null,null,"Laocheng"]
[null,null,null,null,null,null,null,null,null,null,null,null,null,null,null,"Lapugiu de Jos"]
[null,null,null,null,null,null,null,null,null,null,null,null,null,null,null,"Lardirago"]
[null,null,null,null,null,null,null,null,null,null,null,null,null,null,null,"Las Animas"]
[null,null,null,null,null,null,null,null,null,null,null,null,null,null,null,"Las Juntas"]
[null,null,null,null,null,null,null,null,null,null,null,null,null,null,null,"Las Varas"]
[null,null,null,null,null,null,null,null,null,null,null,null,null,null,null,"Lasem"]
[null,null,null,null,null,null,null,null,null,null,null,null,null,null,null,"Latina"]
[null,null,null,null,null,null,null,null,null,null,null,null,null,null,null,"Laugar"]
[null,null,null,null,null,null,null,null,null,null,null,null,null,null,null,"Lauro de Freitas"]
[null,null,null,null,null,null,null,null,null,null,null,null,null,null,null,"Lavara"]
[null,null,null,null,null,null,null,null,null,null,null,null,null,null,null,"Lawtell"]
[null,null,null,null,null,null,null,null,null,null,null,null,null,null,null,"Le Breuil"]
[null,null,null,null,null,null,null,null,null,null,null,null,null,null,null,"Le Chatelet-en-Brie"]
[null,null,null,null,null,null,null,null,null,null,null,null,null,null,null,"Le Mars"]
[null,null,null,null,null,null,null,null,null,null,null,null,null,null,null,"Le Mesnil-le-Roi"]
[null,null,null,null,null,null,null,null,null,null,null,null,null,null,null,"Le Teich"]
[null,null,null,null,null,null,null,null,null,null,null,null,null,null,null,"Le Teil"]
[null,null,null,null,null,null,null,null,null,null,null,null,null,null,null,"Leanyfalu"]
[null,null,null,null,null,null,null,null,null,null,null,null,null,null,null,"Leers"]
[null,null,null,null,null,null,null,null,null,null,null,null,null,null,null,"Lefkada"]
[null,null,null,null,null,null,null,null,null,null,null,null,null,null,null,"Leimen"]
[null,null,null,null,null,null,null,null,null,null,null,null,null,null,null,"Leitzkau"]
[null,null,null,null,null,null,null,null,null,null,null,null,null,null,null,"Lemnia"]
[null,null,null,null,null,null,null,null,null,null,null,null,null,null,null,"Lenguazaque"]
[null,null,null,null,null,null,null,null,null,null,null,null,null,null,null,"Lenzburg"]
[null,null,null,null,null,null,null,null,null,null,null,null,null,null,null,"Lequile"]
[null,null,null,null,null,null,null,null,null,null,null,null,null,null,null,"Lerin"]
[null,null,null,null,null,null,null,null,null,null,null,null,null,null,null,"Les Lilas"]
[null,null,null,null,null,null,null,null,null,null,null,null,null,null,null,"les Planes d'Hostoles"]
[null,null,null,null,null,null,null,null,null,null,null,null,null,null,null,"Lestelle-Betharram"]
[null,null,null,null,null,null,null,null,null,null,null,null,null,null,null,"Letojanni"]
[null,null,null,null,null,null,null,null,null,null,null,null,null,null,null,"Levashevo"]
[null,null,null,null,null,null,null,null,null,null,null,null,null,null,null,"Lexington Hills"]
[null,null,null,null,null,null,null,null,null,null,null,null,null,null,null,"L'Hay-les-Roses"]
[null,null,null,null,null,null,null,null,null,null,null,null,null,null,null,"Libochovice"]
[null,null,null,null,null,null,null,null,null,null,null,null,null,null,null,"Lido di Ostia"]
[null,null,null,null,null,null,null,null,null,null,null,null,null,null,null,"Liergues"]
[null,null,null,null,null,null,null,null,null,null,null,null,null,null,null,"Liknes"]
[null,null,null,null,null,null,null,null,null,null,null,null,null,null,null,"Lillo"]
[null,null,null,null,null,null,null,null,null,null,null,null,null,null,null,"Limbuhan"]
[null,null,null,null,null,null,null,null,null,null,null,null,null,null,null,"Limoux"]
[null,null,null,null,null,null,null,null,null,null,null,null,null,null,null,"Linden Park"]
[null,null,null,null,null,null,null,null,null,null,null,null,null,null,null,"Lint"]
[null,null,null,null,null,null,null,null,null,null,null,null,null,null,null,"Liozon"]
[null,null,null,null,null,null,null,null,null,null,null,null,null,null,null,"Lisa"]
[null,null,null,null,null,null,null,null,null,null,null,null,null,null,null,"Lissendorf"]
[null,null,null,null,null,null,null,null,null,null,null,null,null,null,null,"Little Elm"]
[null,null,null,null,null,null,null,null,null,null,null,null,null,null,null,"Liupanshui"]
[null,null,null,null,null,null,null,null,null,null,null,null,null,null,null,"Livonia"]
[null,null,null,null,null,null,null,null,null,null,null,null,null,null,null,"Llanelli"]
[null,null,null,null,null,null,null,null,null,null,null,null,null,null,null,"Llansantffraid Glan Conwy"]
[null,null,null,null,null,null,null,null,null,null,null,null,null,null,null,"Loboc"]
[null,null,null,null,null,null,null,null,null,null,null,null,null,null,null,"Lochem"]
[null,null,null,null,null,null,null,null,null,null,null,null,null,null,null,"Lodygowice"]
[null,null,null,null,null,null,null,null,null,null,null,null,null,null,null,"Logan Lake"]
[null,null,null,null,null,null,null,null,null,null,null,null,null,null,null,"Lokbatan"]
[null,null,null,null,null,null,null,null,null,null,null,null,null,null,null,"Lomas de la Maestranza"]
[null,null,null,null,null,null,null,null,null,null,null,null,null,null,null,"Lominchar"]
[null,null,null,null,null,null,null,null,null,null,null,null,null,null,null,"Long Jetty"]
[null,null,null,null,null,null,null,null,null,null,null,null,null,null,null,"Longdendale"]
[null,null,null,null,null,null,null,null,null,null,null,null,null,null,null,"Lons"]
[null,null,null,null,null,null,null,null,null,null,null,null,null,null,null,"Loreggiola"]
[null,null,null,null,null,null,null,null,null,null,null,null,null,null,null,"Lorton"]
[null,null,null,null,null,null,null,null,null,null,null,null,null,null,null,"Los Dos Caminos"]
[null,null,null,null,null,null,null,null,null,null,null,null,null,null,null,"Los Lunas"]
[null,null,null,null,null,null,null,null,null,null,null,null,null,null,null,"Los Valles"]
[null,null,null,null,null,null,null,null,null,null,null,null,null,null,null,"Loten"]
[null,null,null,null,null,null,null,null,null,null,null,null,null,null,null,"Louvain-la-Neuve"]
[null,null,null,null,null,null,null,null,null,null,null,null,null,null,null,"Loxstedt"]
[null,null,null,null,null,null,null,null,null,null,null,null,null,null,null,"Lubao"]
[null,null,null,null,null,null,null,null,null,null,null,null,null,null,null,"Lubycza Krolewska"]
[null,null,null,null,null,null,null,null,null,null,null,null,null,null,null,"Lucieni"]
[null,null,null,null,null,null,null,null,null,null,null,null,null,null,null,"Ludington"]
[null,null,null,null,null,null,null,null,null,null,null,null,null,null,null,"Luganville"]
[null,null,null,null,null,null,null,null,null,null,null,null,null,null,null,"Luhans'ke"]
[null,null,null,null,null,null,null,null,null,null,null,null,null,null,null,"Lumbardhi"]
[null,null,null,null,null,null,null,null,null,null,null,null,null,null,null,"Lumil"]
[null,null,null,null,null,null,null,null,null,null,null,null,null,null,null,"Lungaog"]
[null,null,null,null,null,null,null,null,null,null,null,null,null,null,null,"Lupsa"]
[null,null,null,null,null,null,null,null,null,null,null,null,null,null,null,"Luterbach"]
[null,null,null,null,null,null,null,null,null,null,null,null,null,null,null,"Luxu"]
[null,null,null,null,null,null,null,null,null,null,null,null,null,null,null,"Lyangasovo"]
[null,null,null,null,null,null,null,null,null,null,null,null,null,null,null,"Lys-lez-Lannoy"]
[null,null,null,null,null,null,null,null,null,null,null,null,null,null,null,"Lytle"]
[null,null,null,null,null,null,null,null,null,null,null,null,null,null,null,"Mabua"]
[null,null,null,null,null,null,null,null,null,null,null,null,null,null,null,"Macae"]
[null,null,null,null,null,null,null,null,null,null,null,null,null,null,null,"Machinda"]
[null,null,null,null,null,null,null,null,null,null,null,null,null,null,null,"Macusani"]
[null,null,null,null,null,null,null,null,null,null,null,null,null,null,null,"Madifushi"]
[null,null,null,null,null,null,null,null,null,null,null,null,null,null,null,"Madruga"]
[null,null,null,null,null,null,null,null,null,null,null,null,null,null,null,"Mae Tha"]
[null,null,null,null,null,null,null,null,null,null,null,null,null,null,null,"Magelang"]
[null,null,null,null,null,null,null,null,null,null,null,null,null,null,null,"Magiresti"]
[null,null,null,null,null,null,null,null,null,null,null,null,null,null,null,"Magway"]
[null,null,null,null,null,null,null,null,null,null,null,null,null,null,null,"Mahlberg"]
[null,null,null,null,null,null,null,null,null,null,null,null,null,null,null,"Maillane"]
[null,null,null,null,null,null,null,null,null,null,null,null,null,null,null,"Mairana"]
[null,null,null,null,null,null,null,null,null,null,null,null,null,null,null,"Maisnil-les-Ruitz"]
[null,null,null,null,null,null,null,null,null,null,null,null,null,null,null,"Makhjan"]
[null,null,null,null,null,null,null,null,null,null,null,null,null,null,null,"Makrakomi"]
[null,null,null,null,null,null,null,null,null,null,null,null,null,null,null,"Malahide"]
[null,null,null,null,null,null,null,null,null,null,null,null,null,null,null,"Malansac"]
[null,null,null,null,null,null,null,null,null,null,null,null,null,null,null,"Maldyty"]
[null,null,null,null,null,null,null,null,null,null,null,null,null,null,null,"Malinovoye Ozero"]
[null,null,null,null,null,null,null,null,null,null,null,null,null,null,null,"Malnas"]
[null,null,null,null,null,null,null,null,null,null,null,null,null,null,null,"Malschwitz"]
[null,null,null,null,null,null,null,null,null,null,null,null,null,null,null,"Mamali"]
[null,null,null,null,null,null,null,null,null,null,null,null,null,null,null,"Mammola"]
[null,null,null,null,null,null,null,null,null,null,null,null,null,null,null,"Manaira"]
[null,null,null,null,null,null,null,null,null,null,null,null,null,null,null,"Manawa"]
[null,null,null,null,null,null,null,null,null,null,null,null,null,null,null,"Mandatoriccio"]
[null,null,null,null,null,null,null,null,null,null,null,null,null,null,null,"Mangualde"]
[null,null,null,null,null,null,null,null,null,null,null,null,null,null,null,"Manhattan"]
[null,null,null,null,null,null,null,null,null,null,null,null,null,null,null,"Manogpi"]
[null,null,null,null,null,null,null,null,null,null,null,null,null,null,null,"Manouba"]
[null,null,null,null,null,null,null,null,null,null,null,null,null,null,null,"Manuel Maria Contreras"]
[null,null,null,null,null,null,null,null,null,null,null,null,null,null,null,"Manyava"]
[null,null,null,null,null,null,null,null,null,null,null,null,null,null,null,"Maracaibo"]
[null,null,null,null,null,null,null,null,null,null,null,null,null,null,null,"Marat"]
[null,null,null,null,null,null,null,null,null,null,null,null,null,null,null,"Marcelli"]
[null,null,null,null,null,null,null,null,null,null,null,null,null,null,null,"Marcon-Gaggio-Colmello"]
[null,null,null,null,null,null,null,null,null,null,null,null,null,null,null,"Mardie"]
[null,null,null,null,null,null,null,null,null,null,null,null,null,null,null,"Margosatubig"]
[null,null,null,null,null,null,null,null,null,null,null,null,null,null,null,"Marianna"]
[null,null,null,null,null,null,null,null,null,null,null,null,null,null,null,"Marietta-Alderwood"]
[null,null,null,null,null,null,null,null,null,null,null,null,null,null,null,"Marina di Ginosa"]
[null,null,null,null,null,null,null,null,null,null,null,null,null,null,null,"Maritei"]
[null,null,null,null,null,null,null,null,null,null,null,null,null,null,null,"Markneukirchen"]
[null,null,null,null,null,null,null,null,null,null,null,null,null,null,null,"Markyate"]
[null,null,null,null,null,null,null,null,null,null,null,null,null,null,null,"Marondera"]
[null,null,null,null,null,null,null,null,null,null,null,null,null,null,null,"Marseille 09"]
[null,null,null,null,null,null,null,null,null,null,null,null,null,null,null,"Marsia"]
[null,null,null,null,null,null,null,null,null,null,null,null,null,null,null,"Martignat"]
[null,null,null,null,null,null,null,null,null,null,null,null,null,null,null,"Maru"]
[null,null,null,null,null,null,null,null,null,null,null,null,null,null,null,"Masaka"]
[null,null,null,null,null,null,null,null,null,null,null,null,null,null,null,"Masera di Padova"]
[null,null,null,null,null,null,null,null,null,null,null,null,null,null,null,"Maspeth"]
[null,null,null,null,null,null,null,null,null,null,null,null,null,null,null,"Matabhanga"]
[null,null,null,null,null,null,null,null,null,null,null,null,null,null,null,"Matamoras"]
[null,null,null,null,null,null,null,null,null,null,null,null,null,null,null,"Matiao"]
[null,null,null,null,null,null,null,null,null,null,null,null,null,null,null,"Matosinhos"]
[null,null,null,null,null,null,null,null,null,null,null,null,null,null,null,"Maua"]
[null,null,null,null,null,null,null,null,null,null,null,null,null,null,null,"Maugansville"]
[null,null,null,null,null,null,null,null,null,null,null,null,null,null,null,"Mauze-sur-le-Mignon"]
[null,null,null,null,null,null,null,null,null,null,null,null,null,null,null,"Mayodan"]
[null,null,null,null,null,null,null,null,null,null,null,null,null,null,null,"Mazamari"]
[null,null,null,null,null,null,null,null,null,null,null,null,null,null,null,"Mbeya"]
[null,null,null,null,null,null,null,null,null,null,null,null,null,null,null,"McConnellstown"]
[null,null,null,null,null,null,null,null,null,null,null,null,null,null,null,"Meadow Lakes"]
[null,null,null,null,null,null,null,null,null,null,null,null,null,null,null,"Mecitozu"]
[null,null,null,null,null,null,null,null,null,null,null,null,null,null,null,"Medina del Campo"]
[null,null,null,null,null,null,null,null,null,null,null,null,null,null,null,"Meerlo"]
[null,null,null,null,null,null,null,null,null,null,null,null,null,null,null,"Mehlbach"]
[null,null,null,null,null,null,null,null,null,null,null,null,null,null,null,"Melbach"]
[null,null,null,null,null,null,null,null,null,null,null,null,null,null,null,"Meldreth"]
[null,null,null,null,null,null,null,null,null,null,null,null,null,null,null,"Mel'nikovo"]
[null,null,null,null,null,null,null,null,null,null,null,null,null,null,null,"Membrilla"]
[null,null,null,null,null,null,null,null,null,null,null,null,null,null,null,"Mengen"]
[null,null,null,null,null,null,null,null,null,null,null,null,null,null,null,"Menznau"]
[null,null,null,null,null,null,null,null,null,null,null,null,null,null,null,"Merchtem"]
[null,null,null,null,null,null,null,null,null,null,null,null,null,null,null,"Merizo Village"]
[null,null,null,null,null,null,null,null,null,null,null,null,null,null,null,"Merricks"]
[null,null,null,null,null,null,null,null,null,null,null,null,null,null,null,"Mesenzana"]
[null,null,null,null,null,null,null,null,null,null,null,null,null,null,null,"Metairie Terrace"]
[null,null,null,null,null,null,null,null,null,null,null,null,null,null,null,"Metropolis"]
[null,null,null,null,null,null,null,null,null,null,null,null,null,null,null,"Mexico Beach"]
[null,null,null,null,null,null,null,null,null,null,null,null,null,null,null,"Mezokeresztes"]
[null,null,null,null,null,null,null,null,null,null,null,null,null,null,null,"Mhangura"]
[null,null,null,null,null,null,null,null,null,null,null,null,null,null,null,"Miami Lakes"]
[null,null,null,null,null,null,null,null,null,null,null,null,null,null,null,"Middelburg"]
[null,null,null,null,null,null,null,null,null,null,null,null,null,null,null,"Miedzyborz"]
[null,null,null,null,null,null,null,null,null,null,null,null,null,null,null,"Mifflinville"]
[null,null,null,null,null,null,null,null,null,null,null,null,null,null,null,"Mihintale"]
[null,null,null,null,null,null,null,null,null,null,null,null,null,null,null,"Mikun'"]
[null,null,null,null,null,null,null,null,null,null,null,null,null,null,null,"Milford Mill"]
[null,null,null,null,null,null,null,null,null,null,null,null,null,null,null,"Millet"]
[null,null,null,null,null,null,null,null,null,null,null,null,null,null,null,"Milomlyn"]
[null,null,null,null,null,null,null,null,null,null,null,null,null,null,null,"Minas de Matahambre"]
[null,null,null,null,null,null,null,null,null,null,null,null,null,null,null,"Mineola"]
[null,null,null,null,null,null,null,null,null,null,null,null,null,null,null,"Minjur"]
[null,null,null,null,null,null,null,null,null,null,null,null,null,null,null,"Miorcani"]
[null,null,null,null,null,null,null,null,null,null,null,null,null,null,null,"Mirebeau-sur-Beze"]
[null,null,null,null,null,null,null,null,null,null,null,null,null,null,null,"Mirovice"]
[null,null,null,null,null,null,null,null,null,null,null,null,null,null,null,"Mislea"]
[null,null,null,null,null,null,null,null,null,null,null,null,null,null,null,"Mittelschontal"]
[null,null,null,null,null,null,null,null,null,null,null,null,null,null,null,"Mixquiahuala de Juarez"]
[null,null,null,null,null,null,null,null,null,null,null,null,null,null,null,"Moalboal"]
[null,null,null,null,null,null,null,null,null,null,null,null,null,null,null,"Modesto"]
[null,null,null,null,null,null,null,null,null,null,null,null,null,null,null,"Moerai"]
[null,null,null,null,null,null,null,null,null,null,null,null,null,null,null,"Mogosesti"]
[null,null,null,null,null,null,null,null,null,null,null,null,null,null,null,"Moimacco"]
[null,null,null,null,null,null,null,null,null,null,null,null,null,null,null,"Mokokchung"]
[null,null,null,null,null,null,null,null,null,null,null,null,null,null,null,"Molalla"]
[null,null,null,null,null,null,null,null,null,null,null,null,null,null,null,"Molsheim"]
[null,null,null,null,null,null,null,null,null,null,null,null,null,null,null,"Monchegorsk"]
[null,null,null,null,null,null,null,null,null,null,null,null,null,null,null,"Mondlo"]
[null,null,null,null,null,null,null,null,null,null,null,null,null,null,null,"Monjaras"]
[null,null,null,null,null,null,null,null,null,null,null,null,null,null,null,"Mons-en-Pevele"]
[null,null,null,null,null,null,null,null,null,null,null,null,null,null,null,"Montalban"]
[null,null,null,null,null,null,null,null,null,null,null,null,null,null,null,"Mont-Bernanchon"]
[null,null,null,null,null,null,null,null,null,null,null,null,null,null,null,"Monte"]
[null,null,null,null,null,null,null,null,null,null,null,null,null,null,null,"Montecanal"]
[null,null,null,null,null,null,null,null,null,null,null,null,null,null,null,"Montecorvino Pugliano"]
[null,null,null,null,null,null,null,null,null,null,null,null,null,null,null,"Montepulciano"]
[null,null,null,null,null,null,null,null,null,null,null,null,null,null,null,"Monteroni d'Arbia"]
[null,null,null,null,null,null,null,null,null,null,null,null,null,null,null,"Montferrier-sur-Lez"]
[null,null,null,null,null,null,null,null,null,null,null,null,null,null,null,"Montierchaume"]
[null,null,null,null,null,null,null,null,null,null,null,null,null,null,null,"Montorio al Vomano"]
[null,null,null,null,null,null,null,null,null,null,null,null,null,null,null,"Montsegur-sur-Lauzon"]
[null,null,null,null,null,null,null,null,null,null,null,null,null,null,null,"Mooka"]
[null,null,null,null,null,null,null,null,null,null,null,null,null,null,null,"Morano Calabro"]
[null,null,null,null,null,null,null,null,null,null,null,null,null,null,null,"Moratuwa"]
[null,null,null,null,null,null,null,null,null,null,null,null,null,null,null,"Morgex"]
[null,null,null,null,null,null,null,null,null,null,null,null,null,null,null,"Mornico al Serio"]
[null,null,null,null,null,null,null,null,null,null,null,null,null,null,null,"Moro"]
[null,null,null,null,null,null,null,null,null,null,null,null,null,null,null,"Morvillars"]
[null,null,null,null,null,null,null,null,null,null,null,null,null,null,null,"Moscavide"]
[null,null,null,null,null,null,null,null,null,null,null,null,null,null,null,"Mostys'ka"]
[null,null,null,null,null,null,null,null,null,null,null,null,null,null,null,"Motta Visconti"]
[null,null,null,null,null,null,null,null,null,null,null,null,null,null,null,"Mount Arlington"]
[null,null,null,null,null,null,null,null,null,null,null,null,null,null,null,"Mount Pulaski"]
[null,null,null,null,null,null,null,null,null,null,null,null,null,null,null,"Mount Sterling"]
[null,null,null,null,null,null,null,null,null,null,null,null,null,null,null,"Moya"]
[null,null,null,null,null,null,null,null,null,null,null,null,null,null,null,"Moyotzingo"]
[null,null,null,null,null,null,null,null,null,null,null,null,null,null,null,"Mtama"]
[null,null,null,null,null,null,null,null,null,null,null,null,null,null,null,"Muar"]
[null,null,null,null,null,null,null,null,null,null,null,null,null,null,null,"Muenster-Sarmsheim"]
[null,null,null,null,null,null,null,null,null,null,null,null,null,null,null,"Muhlacker"]
[null,null,null,null,null,null,null,null,null,null,null,null,null,null,null,"Mulchen"]
[null,null,null,null,null,null,null,null,null,null,null,null,null,null,null,"Mumford"]
[null,null,null,null,null,null,null,null,null,null,null,null,null,null,null,"Mungia"]
[null,null,null,null,null,null,null,null,null,null,null,null,null,null,null,"Murat"]
[null,null,null,null,null,null,null,null,null,null,null,null,null,null,null,"Murguia"]
[null,null,null,null,null,null,null,null,null,null,null,null,null,null,null,"Murten/Morat"]
[null,null,null,null,null,null,null,null,null,null,null,null,null,null,null,"Muse"]
[null,null,null,null,null,null,null,null,null,null,null,null,null,null,null,"Muttersholtz"]
[null,null,null,null,null,null,null,null,null,null,null,null,null,null,null,"Mwaro"]
[null,null,null,null,null,null,null,null,null,null,null,null,null,null,null,"Myre"]
[null,null,null,null,null,null,null,null,null,null,null,null,null,null,null,"Naawan"]
[null,null,null,null,null,null,null,null,null,null,null,null,null,null,null,"Nagamangala"]
[null,null,null,null,null,null,null,null,null,null,null,null,null,null,null,"Nagbalaye"]
[null,null,null,null,null,null,null,null,null,null,null,null,null,null,null,"Nahiyat al Fuhud"]
[null,null,null,null,null,null,null,null,null,null,null,null,null,null,null,"Naja' Hammadi"]
[null,null,null,null,null,null,null,null,null,null,null,null,null,null,null,"Naleczow"]
[null,null,null,null,null,null,null,null,null,null,null,null,null,null,null,"Namli"]
[null,null,null,null,null,null,null,null,null,null,null,null,null,null,null,"Nandgaon"]
[null,null,null,null,null,null,null,null,null,null,null,null,null,null,null,"Nanton"]
[null,null,null,null,null,null,null,null,null,null,null,null,null,null,null,"Naolinco de Victoria"]
[null,null,null,null,null,null,null,null,null,null,null,null,null,null,null,"Narellan"]
[null,null,null,null,null,null,null,null,null,null,null,null,null,null,null,"Naron"]
[null,null,null,null,null,null,null,null,null,null,null,null,null,null,null,"Nasrullahganj"]
[null,null,null,null,null,null,null,null,null,null,null,null,null,null,null,"Natitingou"]
[null,null,null,null,null,null,null,null,null,null,null,null,null,null,null,"Navadwip"]
[null,null,null,null,null,null,null,null,null,null,null,null,null,null,null,"Navia"]
[null,null,null,null,null,null,null,null,null,null,null,null,null,null,null,"Nazca"]
[null,null,null,null,null,null,null,null,null,null,null,null,null,null,null,"Nea Santa"]
[null,null,null,null,null,null,null,null,null,null,null,null,null,null,null,"Nebelschuetz"]
[null,null,null,null,null,null,null,null,null,null,null,null,null,null,null,"Neftobod"]
[null,null,null,null,null,null,null,null,null,null,null,null,null,null,null,"Nekrasovo"]
[null,null,null,null,null,null,null,null,null,null,null,null,null,null,null,"Nelson"]
[null,null,null,null,null,null,null,null,null,null,null,null,null,null,null,"Neon Karlovasion"]
[null,null,null,null,null,null,null,null,null,null,null,null,null,null,null,"Nereta"]
[null,null,null,null,null,null,null,null,null,null,null,null,null,null,null,"Netivot"]
[null,null,null,null,null,null,null,null,null,null,null,null,null,null,null,"Neuburg"]
[null,null,null,null,null,null,null,null,null,null,null,null,null,null,null,"Neuilly-Plaisance"]
[null,null,null,null,null,null,null,null,null,null,null,null,null,null,null,"Neustadt/Sued"]
[null,null,null,null,null,null,null,null,null,null,null,null,null,null,null,"Neuvy-Pailloux"]
[null,null,null,null,null,null,null,null,null,null,null,null,null,null,null,"New Burlington"]
[null,null,null,null,null,null,null,null,null,null,null,null,null,null,null,"New Lagao"]
[null,null,null,null,null,null,null,null,null,null,null,null,null,null,null,"New Port Richey East"]
[null,null,null,null,null,null,null,null,null,null,null,null,null,null,null,"Newburgh Heights"]
[null,null,null,null,null,null,null,null,null,null,null,null,null,null,null,"Newnan"]
[null,null,null,null,null,null,null,null,null,null,null,null,null,null,null,"Ngaruawahia"]
[null,null,null,null,null,null,null,null,null,null,null,null,null,null,null,"Niagara Falls"]
[null,null,null,null,null,null,null,null,null,null,null,null,null,null,null,"Nidek"]
[null,null,null,null,null,null,null,null,null,null,null,null,null,null,null,"Niederglatt"]
[null,null,null,null,null,null,null,null,null,null,null,null,null,null,null,"Niederstriegis"]
[null,null,null,null,null,null,null,null,null,null,null,null,null,null,null,"Nieuw-Beijerland"]
[null,null,null,null,null,null,null,null,null,null,null,null,null,null,null,"Niihama"]
[null,null,null,null,null,null,null,null,null,null,null,null,null,null,null,"Nilvange"]
[null,null,null,null,null,null,null,null,null,null,null,null,null,null,null,"Nioki"]
[null,null,null,null,null,null,null,null,null,null,null,null,null,null,null,"Nizbor"]
[null,null,null,null,null,null,null,null,null,null,null,null,null,null,null,"Nizhnesortymskiy"]
[null,null,null,null,null,null,null,null,null,null,null,null,null,null,null,"Nocera Superiore"]
[null,null,null,null,null,null,null,null,null,null,null,null,null,null,null,"Nohanent"]
[null,null,null,null,null,null,null,null,null,null,null,null,null,null,null,"Noja"]
[null,null,null,null,null,null,null,null,null,null,null,null,null,null,null,"Noord-Hofland"]
[null,null,null,null,null,null,null,null,null,null,null,null,null,null,null,"Norbello"]
[null,null,null,null,null,null,null,null,null,null,null,null,null,null,null,"Norte 1ra. Seccion (San Julian)"]
[null,null,null,null,null,null,null,null,null,null,null,null,null,null,null,"North Chicopee"]
[null,null,null,null,null,null,null,null,null,null,null,null,null,null,null,"North Fremantle"]
[null,null,null,null,null,null,null,null,null,null,null,null,null,null,null,"North Newbald"]
[null,null,null,null,null,null,null,null,null,null,null,null,null,null,null,"North Sea"]
[null,null,null,null,null,null,null,null,null,null,null,null,null,null,null,"North Zanesville"]
[null,null,null,null,null,null,null,null,null,null,null,null,null,null,null,"Northfield"]
[null,null,null,null,null,null,null,null,null,null,null,null,null,null,null,"Notre-Dame-de-Monts"]
[null,null,null,null,null,null,null,null,null,null,null,null,null,null,null,"Nousty"]
[null,null,null,null,null,null,null,null,null,null,null,null,null,null,null,"Novallas"]
[null,null,null,null,null,null,null,null,null,null,null,null,null,null,null,"Novi Troyany"]
[null,null,null,null,null,null,null,null,null,null,null,null,null,null,null,"Novobureyskiy"]
[null,null,null,null,null,null,null,null,null,null,null,null,null,null,null,"Novolukoml'"]
[null,null,null,null,null,null,null,null,null,null,null,null,null,null,null,"Novoshakhtinskiy"]
[null,null,null,null,null,null,null,null,null,null,null,null,null,null,null,"Novovladykino"]
[null,null,null,null,null,null,null,null,null,null,null,null,null,null,null,"Nowa Slupia"]
[null,null,null,null,null,null,null,null,null,null,null,null,null,null,null,"Nowosielce"]
[null,null,null,null,null,null,null,null,null,null,null,null,null,null,null,"Nuembrecht"]
[null,null,null,null,null,null,null,null,null,null,null,null,null,null,null,"Nueva Granada"]
[null,null,null,null,null,null,null,null,null,null,null,null,null,null,null,"Nuevo Limar"]
[null,null,null,null,null,null,null,null,null,null,null,null,null,null,null,"Numancia de la Sagra"]
[null,null,null,null,null,null,null,null,null,null,null,null,null,null,null,"Nusa Dua"]
[null,null,null,null,null,null,null,null,null,null,null,null,null,null,null,"Nyirmihalydi"]
[null,null,null,null,null,null,null,null,null,null,null,null,null,null,null,"Nyrsko"]
[null,null,null,null,null,null,null,null,null,null,null,null,null,null,null,"Oakwood"]
[null,null,null,null,null,null,null,null,null,null,null,null,null,null,null,"Oasis"]
[null,null,null,null,null,null,null,null,null,null,null,null,null,null,null,"Oberlunkhofen"]
[null,null,null,null,null,null,null,null,null,null,null,null,null,null,null,"Oberschoena"]
[null,null,null,null,null,null,null,null,null,null,null,null,null,null,null,"Obiaruku"]
[null,null,null,null,null,null,null,null,null,null,null,null,null,null,null,"Obu"]
[null,null,null,null,null,null,null,null,null,null,null,null,null,null,null,"Ochota"]
[null,null,null,null,null,null,null,null,null,null,null,null,null,null,null,"Ocotequila"]
[null,null,null,null,null,null,null,null,null,null,null,null,null,null,null,"Odda"]
[null,null,null,null,null,null,null,null,null,null,null,null,null,null,null,"OEdeshoeg"]
[null,null,null,null,null,null,null,null,null,null,null,null,null,null,null,"OEsthammar"]
[null,null,null,null,null,null,null,null,null,null,null,null,null,null,null,"Ogawa"]
[null,null,null,null,null,null,null,null,null,null,null,null,null,null,null,"Oirlo"]
[null,null,null,null,null,null,null,null,null,null,null,null,null,null,null,"Okene"]
[null,null,null,null,null,null,null,null,null,null,null,null,null,null,null,"Oktisi"]
[null,null,null,null,null,null,null,null,null,null,null,null,null,null,null,"Oldbury"]
[null,null,null,null,null,null,null,null,null,null,null,null,null,null,null,"Olean"]
[null,null,null,null,null,null,null,null,null,null,null,null,null,null,null,"Oliver-Valdefierro"]
[null,null,null,null,null,null,null,null,null,null,null,null,null,null,null,"Ollioules"]
[null,null,null,null,null,null,null,null,null,null,null,null,null,null,null,"Oltenesti"]
[null,null,null,null,null,null,null,null,null,null,null,null,null,null,null,"Omak"]
[null,null,null,null,null,null,null,null,null,null,null,null,null,null,null,"Onderdijk"]
[null,null,null,null,null,null,null,null,null,null,null,null,null,null,null,"Oosterhout"]
[null,null,null,null,null,null,null,null,null,null,null,null,null,null,null,"Ooyerhoek"]
[null,null,null,null,null,null,null,null,null,null,null,null,null,null,null,"Oppurg"]
[null,null,null,null,null,null,null,null,null,null,null,null,null,null,null,"Orahovica"]
[null,null,null,null,null,null,null,null,null,null,null,null,null,null,null,"Orashac"]
[null,null,null,null,null,null,null,null,null,null,null,null,null,null,null,"Orcopampa"]
[null,null,null,null,null,null,null,null,null,null,null,null,null,null,null,"Oreye"]
[null,null,null,null,null,null,null,null,null,null,null,null,null,null,null,"Orlik"]
[null,null,null,null,null,null,null,null,null,null,null,null,null,null,null,"Orly"]
[null,null,null,null,null,null,null,null,null,null,null,null,null,null,null,"Orry-la-Ville"]
[null,null,null,null,null,null,null,null,null,null,null,null,null,null,null,"Ortenburg"]
[null,null,null,null,null,null,null,null,null,null,null,null,null,null,null,"Osceola"]
[null,null,null,null,null,null,null,null,null,null,null,null,null,null,null,"Osimo"]
[null,null,null,null,null,null,null,null,null,null,null,null,null,null,null,"Ospitaletto"]
[null,null,null,null,null,null,null,null,null,null,null,null,null,null,null,"Osternienburger Land"]
[null,null,null,null,null,null,null,null,null,null,null,null,null,null,null,"Ostrov"]
[null,null,null,null,null,null,null,null,null,null,null,null,null,null,null,"Otford"]
[null,null,null,null,null,null,null,null,null,null,null,null,null,null,null,"Otnice"]
[null,null,null,null,null,null,null,null,null,null,null,null,null,null,null,"Ottweiler"]
[null,null,null,null,null,null,null,null,null,null,null,null,null,null,null,"Oud-Caberg"]
[null,null,null,null,null,null,null,null,null,null,null,null,null,null,null,"Oum Hadjer"]
[null,null,null,null,null,null,null,null,null,null,null,null,null,null,null,"Ouzouer-sur-Loire"]
[null,null,null,null,null,null,null,null,null,null,null,null,null,null,null,"Owczarnia"]
[null,null,null,null,null,null,null,null,null,null,null,null,null,null,null,"Ozar"]
[null,null,null,null,null,null,null,null,null,null,null,null,null,null,null,"Ozone Park"]
[null,null,null,null,null,null,null,null,null,null,null,null,null,null,null,"Pacov"]
[null,null,null,null,null,null,null,null,null,null,null,null,null,null,null,"Padul"]
[null,null,null,null,null,null,null,null,null,null,null,null,null,null,null,"Pagegiai"]
[null,null,null,null,null,null,null,null,null,null,null,null,null,null,null,"Paimpol"]
[null,null,null,null,null,null,null,null,null,null,null,null,null,null,null,"Pajala"]
[null,null,null,null,null,null,null,null,null,null,null,null,null,null,null,"Palagiano"]
[null,null,null,null,null,null,null,null,null,null,null,null,null,null,null,"Palenstein"]
[null,null,null,null,null,null,null,null,null,null,null,null,null,null,null,"Pali"]
[null,null,null,null,null,null,null,null,null,null,null,null,null,null,null,"Palmar de Cuautla"]
[null,null,null,null,null,null,null,null,null,null,null,null,null,null,null,"Palmerston North"]
[null,null,null,null,null,null,null,null,null,null,null,null,null,null,null,"Paltan"]
[null,null,null,null,null,null,null,null,null,null,null,null,null,null,null,"Pamproux"]
[null,null,null,null,null,null,null,null,null,null,null,null,null,null,null,"Panazol"]
[null,null,null,null,null,null,null,null,null,null,null,null,null,null,null,"Pangbourne"]
[null,null,null,null,null,null,null,null,null,null,null,null,null,null,null,"Panipat"]
[null,null,null,null,null,null,null,null,null,null,null,null,null,null,null,"Pantelho"]
[null,null,null,null,null,null,null,null,null,null,null,null,null,null,null,"Panyam"]
[null,null,null,null,null,null,null,null,null,null,null,null,null,null,null,"Paracas"]
[null,null,null,null,null,null,null,null,null,null,null,null,null,null,null,"Paraje el Mirador"]
[null,null,null,null,null,null,null,null,null,null,null,null,null,null,null,"Paray-le-Monial"]
[null,null,null,null,null,null,null,null,null,null,null,null,null,null,null,"Pargolovo"]
[null,null,null,null,null,null,null,null,null,null,null,null,null,null,null,"Park View"]
[null,null,null,null,null,null,null,null,null,null,null,null,null,null,null,"Parque Industrial Ciudad Mitras"]
[null,null,null,null,null,null,null,null,null,null,null,null,null,null,null,"Partille"]
[null,null,null,null,null,null,null,null,null,null,null,null,null,null,null,"Pasibi West"]
[null,null,null,null,null,null,null,null,null,null,null,null,null,null,null,"Paskov"]
[null,null,null,null,null,null,null,null,null,null,null,null,null,null,null,"Patancheru"]
[null,null,null,null,null,null,null,null,null,null,null,null,null,null,null,"Patiya"]
[null,null,null,null,null,null,null,null,null,null,null,null,null,null,null,"Patulele"]
[null,null,null,null,null,null,null,null,null,null,null,null,null,null,null,"Paullo"]
[null,null,null,null,null,null,null,null,null,null,null,null,null,null,null,"Pavia di Udine"]
[null,null,null,null,null,null,null,null,null,null,null,null,null,null,null,"Payan"]
[null,null,null,null,null,null,null,null,null,null,null,null,null,null,null,"Pecan Grove"]
[null,null,null,null,null,null,null,null,null,null,null,null,null,null,null,"Pecky"]
[null,null,null,null,null,null,null,null,null,null,null,null,null,null,null,"Pedro Leopoldo"]
[null,null,null,null,null,null,null,null,null,null,null,null,null,null,null,"Peillac"]
[null,null,null,null,null,null,null,null,null,null,null,null,null,null,null,"Pellestrina"]
[null,null,null,null,null,null,null,null,null,null,null,null,null,null,null,"Pencin"]
[null,null,null,null,null,null,null,null,null,null,null,null,null,null,null,"Penja"]
[null,null,null,null,null,null,null,null,null,null,null,null,null,null,null,"Penzance"]
[null,null,null,null,null,null,null,null,null,null,null,null,null,null,null,"Pepper Pike"]
[null,null,null,null,null,null,null,null,null,null,null,null,null,null,null,"Perham"]
[null,null,null,null,null,null,null,null,null,null,null,null,null,null,null,"Peridot"]
[null,null,null,null,null,null,null,null,null,null,null,null,null,null,null,"Perre"]
[null,null,null,null,null,null,null,null,null,null,null,null,null,null,null,"Peruc"]
[null,null,null,null,null,null,null,null,null,null,null,null,null,null,null,"Pescate"]
[null,null,null,null,null,null,null,null,null,null,null,null,null,null,null,"Petaquillas"]
[null,null,null,null,null,null,null,null,null,null,null,null,null,null,null,"Petionville"]
[null,null,null,null,null,null,null,null,null,null,null,null,null,null,null,"Petropavlovsk-Kamchatsky"]
[null,null,null,null,null,null,null,null,null,null,null,null,null,null,null,"Petrovsk"]
[null,null,null,null,null,null,null,null,null,null,null,null,null,null,null,"Pforzheim"]
[null,null,null,null,null,null,null,null,null,null,null,null,null,null,null,"Phibun Mangsahan"]
[null,null,null,null,null,null,null,null,null,null,null,null,null,null,null,"Phil Campbell"]
[null,null,null,null,null,null,null,null,null,null,null,null,null,null,null,"Piangipane"]
[null,null,null,null,null,null,null,null,null,null,null,null,null,null,null,"Pianola"]
[null,null,null,null,null,null,null,null,null,null,null,null,null,null,null,"Pidhaytsi"]
[null,null,null,null,null,null,null,null,null,null,null,null,null,null,null,"Piediripa"]
[null,null,null,null,null,null,null,null,null,null,null,null,null,null,null,"Pietrafitta"]
[null,null,null,null,null,null,null,null,null,null,null,null,null,null,null,"Piglio"]
[null,null,null,null,null,null,null,null,null,null,null,null,null,null,null,"Pilcomay"]
[null,null,null,null,null,null,null,null,null,null,null,null,null,null,null,"Pimenteiras"]
[null,null,null,null,null,null,null,null,null,null,null,null,null,null,null,"Pinambaran"]
[null,null,null,null,null,null,null,null,null,null,null,null,null,null,null,"Pinega"]
[null,null,null,null,null,null,null,null,null,null,null,null,null,null,null,"Pingree Grove"]
[null,null,null,null,null,null,null,null,null,null,null,null,null,null,null,"Piombino"]
[null,null,null,null,null,null,null,null,null,null,null,null,null,null,null,"Piquillin"]
[null,null,null,null,null,null,null,null,null,null,null,null,null,null,null,"Pirogovskiy"]
[null,null,null,null,null,null,null,null,null,null,null,null,null,null,null,"Pissouri"]
[null,null,null,null,null,null,null,null,null,null,null,null,null,null,null,"Pitmedden"]
[null,null,null,null,null,null,null,null,null,null,null,null,null,null,null,"Plaine Magnien"]
[null,null,null,null,null,null,null,null,null,null,null,null,null,null,null,"Plast"]
[null,null,null,null,null,null,null,null,null,null,null,null,null,null,null,"Platteville"]
[null,null,null,null,null,null,null,null,null,null,null,null,null,null,null,"Plelo"]
[null,null,null,null,null,null,null,null,null,null,null,null,null,null,null,"Pleslin-Trigavou"]
[null,null,null,null,null,null,null,null,null,null,null,null,null,null,null,"Ploemeur"]
[null,null,null,null,null,null,null,null,null,null,null,null,null,null,null,"Plouagat"]
[null,null,null,null,null,null,null,null,null,null,null,null,null,null,null,"Plouzane"]
[null,null,null,null,null,null,null,null,null,null,null,null,null,null,null,"Poce-les-Bois"]
[null,null,null,null,null,null,null,null,null,null,null,null,null,null,null,"Pocinhos"]
[null,null,null,null,null,null,null,null,null,null,null,null,null,null,null,"Podsosnovo"]
[null,null,null,null,null,null,null,null,null,null,null,null,null,null,null,"Poggetto"]
[null,null,null,null,null,null,null,null,null,null,null,null,null,null,null,"Poienesti"]
[null,null,null,null,null,null,null,null,null,null,null,null,null,null,null,"Point Pedro"]
[null,null,null,null,null,null,null,null,null,null,null,null,null,null,null,"Polichni"]
[null,null,null,null,null,null,null,null,null,null,null,null,null,null,null,"Pollock Pines"]
[null,null,null,null,null,null,null,null,null,null,null,null,null,null,null,"Polyushko"]
[null,null,null,null,null,null,null,null,null,null,null,null,null,null,null,"Pommerit-le-Vicomte"]
[null,null,null,null,null,null,null,null,null,null,null,null,null,null,null,"Ponchatoula"]
[null,null,null,null,null,null,null,null,null,null,null,null,null,null,null,"Pontarlier"]
[null,null,null,null,null,null,null,null,null,null,null,null,null,null,null,"Ponte di Piave"]
[null,null,null,null,null,null,null,null,null,null,null,null,null,null,null,"Pontian"]
[null,null,null,null,null,null,null,null,null,null,null,null,null,null,null,"Pontyclun"]
[null,null,null,null,null,null,null,null,null,null,null,null,null,null,null,"Poppenbuettel"]
[null,null,null,null,null,null,null,null,null,null,null,null,null,null,null,"Poro"]
[null,null,null,null,null,null,null,null,null,null,null,null,null,null,null,"Port Aransas"]
[null,null,null,null,null,null,null,null,null,null,null,null,null,null,null,"Port Neches"]
[null,null,null,null,null,null,null,null,null,null,null,null,null,null,null,"Port Washington"]
[null,null,null,null,null,null,null,null,null,null,null,null,null,null,null,"Portillo"]
[null,null,null,null,null,null,null,null,null,null,null,null,null,null,null,"Porto Ercole"]
[null,null,null,null,null,null,null,null,null,null,null,null,null,null,null,"Port-Saint-Louis-du-Rhone"]
[null,null,null,null,null,null,null,null,null,null,null,null,null,null,null,"Posto Fiscal Rolim de Moura"]
[null,null,null,null,null,null,null,null,null,null,null,null,null,null,null,"Potigny"]
[null,null,null,null,null,null,null,null,null,null,null,null,null,null,null,"Poullaouen"]
[null,null,null,null,null,null,null,null,null,null,null,null,null,null,null,"Pozlovice"]
[null,null,null,null,null,null,null,null,null,null,null,null,null,null,null,"Pozzuoli"]
[null,null,null,null,null,null,null,null,null,null,null,null,null,null,null,"Prairie Village"]
[null,null,null,null,null,null,null,null,null,null,null,null,null,null,null,"Pratola Peligna"]
[null,null,null,null,null,null,null,null,null,null,null,null,null,null,null,"Preeceville"]
[null,null,null,null,null,null,null,null,null,null,null,null,null,null,null,"Presidente Prudente"]
[null,null,null,null,null,null,null,null,null,null,null,null,null,null,null,"Pressbaum"]
[null,null,null,null,null,null,null,null,null,null,null,null,null,null,null,"Prignano sulla Secchia"]
[null,null,null,null,null,null,null,null,null,null,null,null,null,null,null,"Primda"]
[null,null,null,null,null,null,null,null,null,null,null,null,null,null,null,"Priverno"]
[null,null,null,null,null,null,null,null,null,null,null,null,null,null,null,"Progreso de Juarez"]
[null,null,null,null,null,null,null,null,null,null,null,null,null,null,null,"Prosser"]
[null,null,null,null,null,null,null,null,null,null,null,null,null,null,null,"Pruille-le-Chetif"]
[null,null,null,null,null,null,null,null,null,null,null,null,null,null,null,"Przeciszow"]
[null,null,null,null,null,null,null,null,null,null,null,null,null,null,null,"Puchersreuth"]
[null,null,null,null,null,null,null,null,null,null,null,null,null,null,null,"Puebla"]
[null,null,null,null,null,null,null,null,null,null,null,null,null,null,null,"Puerto Cisnes"]
[null,null,null,null,null,null,null,null,null,null,null,null,null,null,null,"Puerto Triunfo"]
[null,null,null,null,null,null,null,null,null,null,null,null,null,null,null,"Puget-sur-Argens"]
[null,null,null,null,null,null,null,null,null,null,null,null,null,null,null,"Pukhivka"]
[null,null,null,null,null,null,null,null,null,null,null,null,null,null,null,"Pulung Santol"]
[null,null,null,null,null,null,null,null,null,null,null,null,null,null,null,"Punta de Burica"]
[null,null,null,null,null,null,null,null,null,null,null,null,null,null,null,"Purcellville"]
[null,null,null,null,null,null,null,null,null,null,null,null,null,null,null,"Putat"]
[null,null,null,null,null,null,null,null,null,null,null,null,null,null,null,"Pyatikhatka"]
[null,null,null,null,null,null,null,null,null,null,null,null,null,null,null,"Pyrzyce"]
[null,null,null,null,null,null,null,null,null,null,null,null,null,null,null,"Qarawul"]
[null,null,null,null,null,null,null,null,null,null,null,null,null,null,null,"Qingjiangqiao"]
[null,null,null,null,null,null,null,null,null,null,null,null,null,null,null,"Quaderni"]
[null,null,null,null,null,null,null,null,null,null,null,null,null,null,null,"Quatre Cocos"]
[null,null,null,null,null,null,null,null,null,null,null,null,null,null,null,"Queenborough"]
[null,null,null,null,null,null,null,null,null,null,null,null,null,null,null,"Quezailica"]
[null,null,null,null,null,null,null,null,null,null,null,null,null,null,null,"Quilali"]
[null,null,null,null,null,null,null,null,null,null,null,null,null,null,null,"Quinto Vicentino"]
[null,null,null,null,null,null,null,null,null,null,null,null,null,null,null,"Quorn"]
[null,null,null,null,null,null,null,null,null,null,null,null,null,null,null,"Racale"]
[null,null,null,null,null,null,null,null,null,null,null,null,null,null,null,"Radcliffe"]
[null,null,null,null,null,null,null,null,null,null,null,null,null,null,null,"Radizel"]
[null,null,null,null,null,null,null,null,null,null,null,null,null,null,null,"Radzyn Chelminski"]
[null,null,null,null,null,null,null,null,null,null,null,null,null,null,null,"Rafaela"]
[null,null,null,null,null,null,null,null,null,null,null,null,null,null,null,"Raiwala Bara"]
[null,null,null,null,null,null,null,null,null,null,null,null,null,null,null,"Rajapur"]
[null,null,null,null,null,null,null,null,null,null,null,null,null,null,null,"Ramat Gan"]
[null,null,null,null,null,null,null,null,null,null,null,null,null,null,null,"Ramonchamp"]
[null,null,null,null,null,null,null,null,null,null,null,null,null,null,null,"Ramsgate"]
[null,null,null,null,null,null,null,null,null,null,null,null,null,null,null,"Rand"]
[null,null,null,null,null,null,null,null,null,null,null,null,null,null,null,"Ranibennur"]
[null,null,null,null,null,null,null,null,null,null,null,null,null,null,null,"Rascafria"]
[null,null,null,null,null,null,null,null,null,null,null,null,null,null,null,"Raskovice"]
[null,null,null,null,null,null,null,null,null,null,null,null,null,null,null,"Raudales Malpaso"]
[null,null,null,null,null,null,null,null,null,null,null,null,null,null,null,"Rawalpindi"]
[null,null,null,null,null,null,null,null,null,null,null,null,null,null,null,"Razboieni-Cetate"]
[null,null,null,null,null,null,null,null,null,null,null,null,null,null,null,"Rebola"]
[null,null,null,null,null,null,null,null,null,null,null,null,null,null,null,"Red Lion"]
[null,null,null,null,null,null,null,null,null,null,null,null,null,null,null,"Redhill"]
[null,null,null,null,null,null,null,null,null,null,null,null,null,null,null,"Reggane"]
[null,null,null,null,null,null,null,null,null,null,null,null,null,null,null,"Regulice"]
[null,null,null,null,null,null,null,null,null,null,null,null,null,null,null,"Reinfeld"]
[null,null,null,null,null,null,null,null,null,null,null,null,null,null,null,"Remedello"]
[null,null,null,null,null,null,null,null,null,null,null,null,null,null,null,"Renescure"]
[null,null,null,null,null,null,null,null,null,null,null,null,null,null,null,"Rescaldina"]
[null,null,null,null,null,null,null,null,null,null,null,null,null,null,null,"Reston"]
[null,null,null,null,null,null,null,null,null,null,null,null,null,null,null,"Revuca"]
[null,null,null,null,null,null,null,null,null,null,null,null,null,null,null,"Reyrieux"]
[null,null,null,null,null,null,null,null,null,null,null,null,null,null,null,"Ria-Sirach"]
[null,null,null,null,null,null,null,null,null,null,null,null,null,null,null,"Ribaforada"]
[null,null,null,null,null,null,null,null,null,null,null,null,null,null,null,"Ricca"]
[null,null,null,null,null,null,null,null,null,null,null,null,null,null,null,"Rickert"]
[null,null,null,null,null,null,null,null,null,null,null,null,null,null,null,"Riesi"]
[null,null,null,null,null,null,null,null,null,null,null,null,null,null,null,"Rincon de la Victoria"]
[null,null,null,null,null,null,null,null,null,null,null,null,null,null,null,"Ringas"]
[null,null,null,null,null,null,null,null,null,null,null,null,null,null,null,"Rio Jordan"]
[null,null,null,null,null,null,null,null,null,null,null,null,null,null,null,"Rio Piracicaba"]
[null,null,null,null,null,null,null,null,null,null,null,null,null,null,null,"Rionegro"]
[null,null,null,null,null,null,null,null,null,null,null,null,null,null,null,"Rishton"]
[null,null,null,null,null,null,null,null,null,null,null,null,null,null,null,"River Oaks"]
[null,null,null,null,null,null,null,null,null,null,null,null,null,null,null,"Robecchetto Con Induno"]
[null,null,null,null,null,null,null,null,null,null,null,null,null,null,null,"Robertsfors"]
[null,null,null,null,null,null,null,null,null,null,null,null,null,null,null,"Rochelle Park"]
[null,null,null,null,null,null,null,null,null,null,null,null,null,null,null,"Rock Springs"]
[null,null,null,null,null,null,null,null,null,null,null,null,null,null,null,"Rodersdorf"]
[null,null,null,null,null,null,null,null,null,null,null,null,null,null,null,"Roedeby"]
[null,null,null,null,null,null,null,null,null,null,null,null,null,null,null,"Rogiet"]
[null,null,null,null,null,null,null,null,null,null,null,null,null,null,null,"Rokytnice v Orlickych Horach"]
[null,null,null,null,null,null,null,null,null,null,null,null,null,null,null,"Romanshorn"]
[null,null,null,null,null,null,null,null,null,null,null,null,null,null,null,"Romos"]
[null,null,null,null,null,null,null,null,null,null,null,null,null,null,null,"Ronchi di Campanile"]
[null,null,null,null,null,null,null,null,null,null,null,null,null,null,null,"Roquetoire"]
[null,null,null,null,null,null,null,null,null,null,null,null,null,null,null,"Rosche"]
[null,null,null,null,null,null,null,null,null,null,null,null,null,null,null,"Roseville Chase"]
[null,null,null,null,null,null,null,null,null,null,null,null,null,null,null,"Roslyakovo"]
[null,null,null,null,null,null,null,null,null,null,null,null,null,null,null,"Rosta"]
[null,null,null,null,null,null,null,null,null,null,null,null,null,null,null,"Rothlein"]
[null,null,null,null,null,null,null,null,null,null,null,null,null,null,null,"Rouxmesnil-Bouteilles"]
[null,null,null,null,null,null,null,null,null,null,null,null,null,null,null,"Rovnoye"]
[null,null,null,null,null,null,null,null,null,null,null,null,null,null,null,"Rozhdestveno"]
[null,null,null,null,null,null,null,null,null,null,null,null,null,null,null,"Rozsaszentmarton"]
[null,null,null,null,null,null,null,null,null,null,null,null,null,null,null,"Rudnyy"]
[null,null,null,null,null,null,null,null,null,null,null,null,null,null,null,"Rudraprayag"]
[null,null,null,null,null,null,null,null,null,null,null,null,null,null,null,"Ruille-sur-Loir"]
[null,null,null,null,null,null,null,null,null,null,null,null,null,null,null,"Ruppichteroth"]
[null,null,null,null,null,null,null,null,null,null,null,null,null,null,null,"Ruschlikon"]
[null,null,null,null,null,null,null,null,null,null,null,null,null,null,null,"Rutledge"]
[null,null,null,null,null,null,null,null,null,null,null,null,null,null,null,"Rybarzowice"]
[null,null,null,null,null,null,null,null,null,null,null,null,null,null,null,"Rzeczenica"]
[null,null,null,null,null,null,null,null,null,null,null,null,null,null,null,"Saanen"]
[null,null,null,null,null,null,null,null,null,null,null,null,null,null,null,"Sabbio Chiese"]
[null,null,null,null,null,null,null,null,null,null,null,null,null,null,null,"Sachse"]
[null,null,null,null,null,null,null,null,null,null,null,null,null,null,null,"Sadalgi"]
[null,null,null,null,null,null,null,null,null,null,null,null,null,null,null,"Safwa"]
[null,null,null,null,null,null,null,null,null,null,null,null,null,null,null,"Sagard"]
[null,null,null,null,null,null,null,null,null,null,null,null,null,null,null,"Sailly-Flibeaucourt"]
[null,null,null,null,null,null,null,null,null,null,null,null,null,null,null,"Saint Clair"]
[null,null,null,null,null,null,null,null,null,null,null,null,null,null,null,"Saint Martins"]
[null,null,null,null,null,null,null,null,null,null,null,null,null,null,null,"Saint-Amand"]
[null,null,null,null,null,null,null,null,null,null,null,null,null,null,null,"Saint-Apollinaire"]
[null,null,null,null,null,null,null,null,null,null,null,null,null,null,null,"Saint-Brice-Courcelles"]
[null,null,null,null,null,null,null,null,null,null,null,null,null,null,null,"Saint-Cheron"]
[null,null,null,null,null,null,null,null,null,null,null,null,null,null,null,"Saint-Didier-sous-Riverie"]
[null,null,null,null,null,null,null,null,null,null,null,null,null,null,null,"Sainte-Luce-sur-Loire"]
[null,null,null,null,null,null,null,null,null,null,null,null,null,null,null,"Sainte-Terre"]
[null,null,null,null,null,null,null,null,null,null,null,null,null,null,null,"Saint-Francois"]
[null,null,null,null,null,null,null,null,null,null,null,null,null,null,null,"Saint-Genies-de-Malgoires"]
[null,null,null,null,null,null,null,null,null,null,null,null,null,null,null,"Saint-Germain-du-Plain"]
[null,null,null,null,null,null,null,null,null,null,null,null,null,null,null,"Saint-Herblon"]
[null,null,null,null,null,null,null,null,null,null,null,null,null,null,null,"Saint-Jean-le-Vieux"]
[null,null,null,null,null,null,null,null,null,null,null,null,null,null,null,"Saint-Laurent-du-Pape"]
[null,null,null,null,null,null,null,null,null,null,null,null,null,null,null,"Saint-Loubes"]
[null,null,null,null,null,null,null,null,null,null,null,null,null,null,null,"Saint-Martin-de-Fontenay"]
[null,null,null,null,null,null,null,null,null,null,null,null,null,null,null,"Saint-Mathurin"]
[null,null,null,null,null,null,null,null,null,null,null,null,null,null,null,"Saint-Nauphary"]
[null,null,null,null,null,null,null,null,null,null,null,null,null,null,null,"Saint-Paul-de-Fenouillet"]
[null,null,null,null,null,null,null,null,null,null,null,null,null,null,null,"Saint-Pierre-des-Nids"]
[null,null,null,null,null,null,null,null,null,null,null,null,null,null,null,"Saint-Romain-de-Colbosc"]
[null,null,null,null,null,null,null,null,null,null,null,null,null,null,null,"Saint-Saturnin-sur-Loire"]
[null,null,null,null,null,null,null,null,null,null,null,null,null,null,null,"Saint-Tropez"]
[null,null,null,null,null,null,null,null,null,null,null,null,null,null,null,"Saint-Yrieix-sur-Charente"]
[null,null,null,null,null,null,null,null,null,null,null,null,null,null,null,"Sakhrah"]
[null,null,null,null,null,null,null,null,null,null,null,null,null,null,null,"Salapungan"]
[null,null,null,null,null,null,null,null,null,null,null,null,null,null,null,"Salcioara"]
[null,null,null,null,null,null,null,null,null,null,null,null,null,null,null,"Salinas"]
[null,null,null,null,null,null,null,null,null,null,null,null,null,null,null,"Salitto-Valle"]
[null,null,null,null,null,null,null,null,null,null,null,null,null,null,null,"Saltpond"]
[null,null,null,null,null,null,null,null,null,null,null,null,null,null,null,"Salvador"]
[null,null,null,null,null,null,null,null,null,null,null,null,null,null,null,"Sambek"]
[null,null,null,null,null,null,null,null,null,null,null,null,null,null,null,"Sampford Peverell"]
[null,null,null,null,null,null,null,null,null,null,null,null,null,null,null,"Samrala"]
[null,null,null,null,null,null,null,null,null,null,null,null,null,null,null,"San Antonio"]
[null,null,null,null,null,null,null,null,null,null,null,null,null,null,null,"San Antonio de los Cobres"]
[null,null,null,null,null,null,null,null,null,null,null,null,null,null,null,"San Basilio"]
[null,null,null,null,null,null,null,null,null,null,null,null,null,null,null,"San Bernardino Tlaxcalancingo"]
[null,null,null,null,null,null,null,null,null,null,null,null,null,null,null,"San Damaso"]
[null,null,null,null,null,null,null,null,null,null,null,null,null,null,null,"San Felipe los Alzati (Colonia Nueva)"]
[null,null,null,null,null,null,null,null,null,null,null,null,null,null,null,"San Francisco de Coray"]
[null,null,null,null,null,null,null,null,null,null,null,null,null,null,null,"San Gabriel Chilac"]
[null,null,null,null,null,null,null,null,null,null,null,null,null,null,null,"San Giovanni Ilarione"]
[null,null,null,null,null,null,null,null,null,null,null,null,null,null,null,"San Gustavo"]
[null,null,null,null,null,null,null,null,null,null,null,null,null,null,null,"San Jacinto"]
[null,null,null,null,null,null,null,null,null,null,null,null,null,null,null,"San Jose de Las Conchas"]
[null,null,null,null,null,null,null,null,null,null,null,null,null,null,null,"San Jose Guadalupe Otzacatipan"]
[null,null,null,null,null,null,null,null,null,null,null,null,null,null,null,"San Juan de Alicante"]
[null,null,null,null,null,null,null,null,null,null,null,null,null,null,null,"San Juan Tlacotompa (Tlacotompa)"]
[null,null,null,null,null,null,null,null,null,null,null,null,null,null,null,"San Lucas Pio"]
[null,null,null,null,null,null,null,null,null,null,null,null,null,null,null,"San Marco d'Alunzio"]
[null,null,null,null,null,null,null,null,null,null,null,null,null,null,null,"San Marzano di San Giuseppe"]
[null,null,null,null,null,null,null,null,null,null,null,null,null,null,null,"San Mauro a Mare"]
[null,null,null,null,null,null,null,null,null,null,null,null,null,null,null,"San Miguel Vindho"]
[null,null,null,null,null,null,null,null,null,null,null,null,null,null,null,"San Niccolo di Celle"]
[null,null,null,null,null,null,null,null,null,null,null,null,null,null,null,"San Pedro de Lloc"]
[null,null,null,null,null,null,null,null,null,null,null,null,null,null,null,"San Pedro Xalpa"]
[null,null,null,null,null,null,null,null,null,null,null,null,null,null,null,"San Pierino"]
[null,null,null,null,null,null,null,null,null,null,null,null,null,null,null,"San Salvador de Jujuy"]
[null,null,null,null,null,null,null,null,null,null,null,null,null,null,null,"San Sebastian Teitipac"]
[null,null,null,null,null,null,null,null,null,null,null,null,null,null,null,"San Zeno di Montagna"]
[null,null,null,null,null,null,null,null,null,null,null,null,null,null,null,"Sanatoga"]
[null,null,null,null,null,null,null,null,null,null,null,null,null,null,null,"Sanduleni"]
[null,null,null,null,null,null,null,null,null,null,null,null,null,null,null,"Sangkhom"]
[null,null,null,null,null,null,null,null,null,null,null,null,null,null,null,"Sankt Georgen am Walde"]
[null,null,null,null,null,null,null,null,null,null,null,null,null,null,null,"Sanlucar la Mayor"]
[null,null,null,null,null,null,null,null,null,null,null,null,null,null,null,"Sant Antoni de Portmany"]
[null,null,null,null,null,null,null,null,null,null,null,null,null,null,null,"Sant Pere de Ribes"]
[null,null,null,null,null,null,null,null,null,null,null,null,null,null,null,"Santa Catarina Roatina"]
[null,null,null,null,null,null,null,null,null,null,null,null,null,null,null,"Santa Cristina de la Polvorosa"]
[null,null,null,null,null,null,null,null,null,null,null,null,null,null,null,"Santa Cruz do Rio Pardo"]
[null,null,null,null,null,null,null,null,null,null,null,null,null,null,null,"Santa Gertrudis"]
[null,null,null,null,null,null,null,null,null,null,null,null,null,null,null,"Santa Maria Amajac"]
[null,null,null,null,null,null,null,null,null,null,null,null,null,null,null,"Santa Maria Hoe"]
[null,null,null,null,null,null,null,null,null,null,null,null,null,null,null,"Santa Ponsa"]
[null,null,null,null,null,null,null,null,null,null,null,null,null,null,null,"Santa Rosa de Lima"]
[null,null,null,null,null,null,null,null,null,null,null,null,null,null,null,"Santana"]
[null,null,null,null,null,null,null,null,null,null,null,null,null,null,null,"Sant'Angelo in Vado"]
[null,null,null,null,null,null,null,null,null,null,null,null,null,null,null,"Santiago Citendeje"]
[null,null,null,null,null,null,null,null,null,null,null,null,null,null,null,"Santiago Temple"]
[null,null,null,null,null,null,null,null,null,null,null,null,null,null,null,"Santo Cristo"]
[null,null,null,null,null,null,null,null,null,null,null,null,null,null,null,"Santo Tomas La Union"]
[null,null,null,null,null,null,null,null,null,null,null,null,null,null,null,"Sao Joao do Piaui"]
[null,null,null,null,null,null,null,null,null,null,null,null,null,null,null,"Sao Jose do Rio Preto"]
[null,null,null,null,null,null,null,null,null,null,null,null,null,null,null,"Sapanta"]
[null,null,null,null,null,null,null,null,null,null,null,null,null,null,null,"Sapulpa"]
[null,null,null,null,null,null,null,null,null,null,null,null,null,null,null,"Sarasota Springs"]
[null,null,null,null,null,null,null,null,null,null,null,null,null,null,null,"Sarbazan"]
[null,null,null,null,null,null,null,null,null,null,null,null,null,null,null,"Sarina"]
[null,null,null,null,null,null,null,null,null,null,null,null,null,null,null,"Sarti"]
[null,null,null,null,null,null,null,null,null,null,null,null,null,null,null,"Sarulesti-Gara"]
[null,null,null,null,null,null,null,null,null,null,null,null,null,null,null,"Satellite Beach"]
[null,null,null,null,null,null,null,null,null,null,null,null,null,null,null,"Satov"]
[null,null,null,null,null,null,null,null,null,null,null,null,null,null,null,"Saulgrub"]
[null,null,null,null,null,null,null,null,null,null,null,null,null,null,null,"Sauvagnon"]
[null,null,null,null,null,null,null,null,null,null,null,null,null,null,null,"Savigny-en-Sancerre"]
[null,null,null,null,null,null,null,null,null,null,null,null,null,null,null,"Say"]
[null,null,null,null,null,null,null,null,null,null,null,null,null,null,null,"Sbikha"]
[null,null,null,null,null,null,null,null,null,null,null,null,null,null,null,"Schafisheim"]
[null,null,null,null,null,null,null,null,null,null,null,null,null,null,null,"Schauenstein"]
[null,null,null,null,null,null,null,null,null,null,null,null,null,null,null,"Schillingen"]
[null,null,null,null,null,null,null,null,null,null,null,null,null,null,null,"Schlagsdorf"]
[null,null,null,null,null,null,null,null,null,null,null,null,null,null,null,"Schnaitsee"]
[null,null,null,null,null,null,null,null,null,null,null,null,null,null,null,"Schollkrippen"]
[null,null,null,null,null,null,null,null,null,null,null,null,null,null,null,"Schortens"]
[null,null,null,null,null,null,null,null,null,null,null,null,null,null,null,"Schwanebeck"]
[null,null,null,null,null,null,null,null,null,null,null,null,null,null,null,"Schwenksville"]
[null,null,null,null,null,null,null,null,null,null,null,null,null,null,null,"Scotter"]
[null,null,null,null,null,null,null,null,null,null,null,null,null,null,null,"Sebdou"]
[null,null,null,null,null,null,null,null,null,null,null,null,null,null,null,"Seclin"]
[null,null,null,null,null,null,null,null,null,null,null,null,null,null,null,"Sedrina"]
[null,null,null,null,null,null,null,null,null,null,null,null,null,null,null,"Sees"]
[null,null,null,null,null,null,null,null,null,null,null,null,null,null,null,"Segura"]
[null,null,null,null,null,null,null,null,null,null,null,null,null,null,null,"Seifhennersdorf"]
[null,null,null,null,null,null,null,null,null,null,null,null,null,null,null,"Seligenstadt"]
[null,null,null,null,null,null,null,null,null,null,null,null,null,null,null,"Sementina"]
[null,null,null,null,null,null,null,null,null,null,null,null,null,null,null,"Sempas"]
[null,null,null,null,null,null,null,null,null,null,null,null,null,null,null,"Senirkent"]
[null,null,null,null,null,null,null,null,null,null,null,null,null,null,null,"Sentjur"]
[null,null,null,null,null,null,null,null,null,null,null,null,null,null,null,"Serdobsk"]
[null,null,null,null,null,null,null,null,null,null,null,null,null,null,null,"Serifontaine"]
[null,null,null,null,null,null,null,null,null,null,null,null,null,null,null,"Serra"]
[null,null,null,null,null,null,null,null,null,null,null,null,null,null,null,"Sesslach"]
[null,null,null,null,null,null,null,null,null,null,null,null,null,null,null,"Seth"]
[null,null,null,null,null,null,null,null,null,null,null,null,null,null,null,"Seveso"]
[null,null,null,null,null,null,null,null,null,null,null,null,null,null,null,"Sevinc"]
[null,null,null,null,null,null,null,null,null,null,null,null,null,null,null,"Shache"]
[null,null,null,null,null,null,null,null,null,null,null,null,null,null,null,"Shahr Sultan"]
[null,null,null,null,null,null,null,null,null,null,null,null,null,null,null,"Shalqiya"]
[null,null,null,null,null,null,null,null,null,null,null,null,null,null,null,"Shantou"]
[null,null,null,null,null,null,null,null,null,null,null,null,null,null,null,"Sharpness"]
[null,null,null,null,null,null,null,null,null,null,null,null,null,null,null,"Sheepshead Bay"]
[null,null,null,null,null,null,null,null,null,null,null,null,null,null,null,"Shepherdswell"]
[null,null,null,null,null,null,null,null,null,null,null,null,null,null,null,"Sherwood Shores"]
[null,null,null,null,null,null,null,null,null,null,null,null,null,null,null,"Shillingstone"]
[null,null,null,null,null,null,null,null,null,null,null,null,null,null,null,"Shipley"]
[null,null,null,null,null,null,null,null,null,null,null,null,null,null,null,"Shirvan"]
[null,null,null,null,null,null,null,null,null,null,null,null,null,null,null,"Shorncliffe"]
[null,null,null,null,null,null,null,null,null,null,null,null,null,null,null,"Shtip"]
[null,null,null,null,null,null,null,null,null,null,null,null,null,null,null,"Si Racha"]
[null,null,null,null,null,null,null,null,null,null,null,null,null,null,null,"Sibenik"]
[null,null,null,null,null,null,null,null,null,null,null,null,null,null,null,"Sidi Akkacha"]
[null,null,null,null,null,null,null,null,null,null,null,null,null,null,null,"Sieci"]
[null,null,null,null,null,null,null,null,null,null,null,null,null,null,null,"Sierra de Fuentes"]
[null,null,null,null,null,null,null,null,null,null,null,null,null,null,null,"Sigmarszell"]
[null,null,null,null,null,null,null,null,null,null,null,null,null,null,null,"Sikyon"]
[null,null,null,null,null,null,null,null,null,null,null,null,null,null,null,"Siluko"]
[null,null,null,null,null,null,null,null,null,null,null,null,null,null,null,"Silver Hill"]
[null,null,null,null,null,null,null,null,null,null,null,null,null,null,null,"Simoes Filho"]
[null,null,null,null,null,null,null,null,null,null,null,null,null,null,null,"Simplicio Mendes"]
[null,null,null,null,null,null,null,null,null,null,null,null,null,null,null,"Sindangan"]
[null,null,null,null,null,null,null,null,null,null,null,null,null,null,null,"Sint Odilienberg"]
[null,null,null,null,null,null,null,null,null,null,null,null,null,null,null,"Sint-Michielsgestel"]
[null,null,null,null,null,null,null,null,null,null,null,null,null,null,null,"Siria"]
[null,null,null,null,null,null,null,null,null,null,null,null,null,null,null,"Sirte"]
[null,null,null,null,null,null,null,null,null,null,null,null,null,null,null,"Siukh"]
[null,null,null,null,null,null,null,null,null,null,null,null,null,null,null,"Sivers'k"]
[null,null,null,null,null,null,null,null,null,null,null,null,null,null,null,"Skelmorlie"]
[null,null,null,null,null,null,null,null,null,null,null,null,null,null,null,"Skopje"]
[null,null,null,null,null,null,null,null,null,null,null,null,null,null,null,"Skoroszyce"]
[null,null,null,null,null,null,null,null,null,null,null,null,null,null,null,"Slavonice"]
[null,null,null,null,null,null,null,null,null,null,null,null,null,null,null,"Slawi"]
[null,null,null,null,null,null,null,null,null,null,null,null,null,null,null,"Slupiec"]
[null,null,null,null,null,null,null,null,null,null,null,null,null,null,null,"Smecno"]
[null,null,null,null,null,null,null,null,null,null,null,null,null,null,null,"Snagov"]
[null,null,null,null,null,null,null,null,null,null,null,null,null,null,null,"Sochtenau"]
[null,null,null,null,null,null,null,null,null,null,null,null,null,null,null,"Soelden"]
[null,null,null,null,null,null,null,null,null,null,null,null,null,null,null,"Sohren"]
[null,null,null,null,null,null,null,null,null,null,null,null,null,null,null,"Solagna"]
[null,null,null,null,null,null,null,null,null,null,null,null,null,null,null,"Soledad"]
[null,null,null,null,null,null,null,null,null,null,null,null,null,null,null,"Soloma"]
[null,null,null,null,null,null,null,null,null,null,null,null,null,null,null,"Solsona"]
[null,null,null,null,null,null,null,null,null,null,null,null,null,null,null,"Somerset East"]
[null,null,null,null,null,null,null,null,null,null,null,null,null,null,null,"Sondalo"]
[null,null,null,null,null,null,null,null,null,null,null,null,null,null,null,"Sonora"]
[null,null,null,null,null,null,null,null,null,null,null,null,null,null,null,"Sorbhog"]
[null,null,null,null,null,null,null,null,null,null,null,null,null,null,null,"Sorup"]
[null,null,null,null,null,null,null,null,null,null,null,null,null,null,null,"Soultz-Haut-Rhin"]
[null,null,null,null,null,null,null,null,null,null,null,null,null,null,null,"Sours"]
[null,null,null,null,null,null,null,null,null,null,null,null,null,null,null,"South Greeley"]
[null,null,null,null,null,null,null,null,null,null,null,null,null,null,null,"South Highpoint"]
[null,null,null,null,null,null,null,null,null,null,null,null,null,null,null,"South Turramurra"]
[null,null,null,null,null,null,null,null,null,null,null,null,null,null,null,"South Valley"]
[null,null,null,null,null,null,null,null,null,null,null,null,null,null,null,"Soyalo"]
[null,null,null,null,null,null,null,null,null,null,null,null,null,null,null,"Sparta"]
[null,null,null,null,null,null,null,null,null,null,null,null,null,null,null,"Spaubeek"]
[null,null,null,null,null,null,null,null,null,null,null,null,null,null,null,"Spinimbecco"]
[null,null,null,null,null,null,null,null,null,null,null,null,null,null,null,"Spofforth"]
[null,null,null,null,null,null,null,null,null,null,null,null,null,null,null,"Springs"]
[null,null,null,null,null,null,null,null,null,null,null,null,null,null,null,"Srednebelaya"]
[null,null,null,null,null,null,null,null,null,null,null,null,null,null,null,"St Leonards"]
[null,null,null,null,null,null,null,null,null,null,null,null,null,null,null,"Stahnsdorf"]
[null,null,null,null,null,null,null,null,null,null,null,null,null,null,null,"Stains"]
[null,null,null,null,null,null,null,null,null,null,null,null,null,null,null,"Stanmore"]
[null,null,null,null,null,null,null,null,null,null,null,null,null,null,null,"Staphorst"]
[null,null,null,null,null,null,null,null,null,null,null,null,null,null,null,"Staric"]
[null,null,null,null,null,null,null,null,null,null,null,null,null,null,null,"Starokrzepice"]
[null,null,null,null,null,null,null,null,null,null,null,null,null,null,null,"Statham"]
[null,null,null,null,null,null,null,null,null,null,null,null,null,null,null,"Steeden"]
[null,null,null,null,null,null,null,null,null,null,null,null,null,null,null,"Steierdorf"]
[null,null,null,null,null,null,null,null,null,null,null,null,null,null,null,"Stelzenberg"]
[null,null,null,null,null,null,null,null,null,null,null,null,null,null,null,"Stepnica"]
[null,null,null,null,null,null,null,null,null,null,null,null,null,null,null,"Stijena"]
[null,null,null,null,null,null,null,null,null,null,null,null,null,null,null,"Stojakovo"]
[null,null,null,null,null,null,null,null,null,null,null,null,null,null,null,"Stollberg"]
[null,null,null,null,null,null,null,null,null,null,null,null,null,null,null,"Stora"]
[null,null,null,null,null,null,null,null,null,null,null,null,null,null,null,"Stowe"]
[null,null,null,null,null,null,null,null,null,null,null,null,null,null,null,"Straszydle"]
[null,null,null,null,null,null,null,null,null,null,null,null,null,null,null,"Stroemstad"]
[null,null,null,null,null,null,null,null,null,null,null,null,null,null,null,"Stromness"]
[null,null,null,null,null,null,null,null,null,null,null,null,null,null,null,"Stung Treng"]
[null,null,null,null,null,null,null,null,null,null,null,null,null,null,null,"Sua"]
[null,null,null,null,null,null,null,null,null,null,null,null,null,null,null,"Suchy Las"]
[null,null,null,null,null,null,null,null,null,null,null,null,null,null,null,"Suesel"]
[null,null,null,null,null,null,null,null,null,null,null,null,null,null,null,"Suihua"]
[null,null,null,null,null,null,null,null,null,null,null,null,null,null,null,"Sulejow"]
[null,null,null,null,null,null,null,null,null,null,null,null,null,null,null,"Sultepec de Pedro Ascencio de Alquisiras"]
[null,null,null,null,null,null,null,null,null,null,null,null,null,null,null,"Summit"]
[null,null,null,null,null,null,null,null,null,null,null,null,null,null,null,"Sun Lakes"]
[null,null,null,null,null,null,null,null,null,null,null,null,null,null,null,"Sunne"]
[null,null,null,null,null,null,null,null,null,null,null,null,null,null,null,"Suoyarvi"]
[null,null,null,null,null,null,null,null,null,null,null,null,null,null,null,"Surduk"]
[null,null,null,null,null,null,null,null,null,null,null,null,null,null,null,"Susanj"]
[null,null,null,null,null,null,null,null,null,null,null,null,null,null,null,"Sutjeska"]
[null,null,null,null,null,null,null,null,null,null,null,null,null,null,null,"Svalyava"]
[null,null,null,null,null,null,null,null,null,null,null,null,null,null,null,"Sveta Nedjelja"]
[null,null,null,null,null,null,null,null,null,null,null,null,null,null,null,"Swanville"]
[null,null,null,null,null,null,null,null,null,null,null,null,null,null,null,"Sycow"]
[null,null,null,null,null,null,null,null,null,null,null,null,null,null,null,"Syomkava"]
[null,null,null,null,null,null,null,null,null,null,null,null,null,null,null,"Szczytno"]
[null,null,null,null,null,null,null,null,null,null,null,null,null,null,null,"Szentmartonkata"]
[null,null,null,null,null,null,null,null,null,null,null,null,null,null,null,"Tabalosos"]
[null,null,null,null,null,null,null,null,null,null,null,null,null,null,null,"Taboao da Serra"]
[null,null,null,null,null,null,null,null,null,null,null,null,null,null,null,"Taden"]
[null,null,null,null,null,null,null,null,null,null,null,null,null,null,null,"Tagoytoy"]
[null,null,null,null,null,null,null,null,null,null,null,null,null,null,null,"Taillecourt"]
[null,null,null,null,null,null,null,null,null,null,null,null,null,null,null,"Takaoka"]
[null,null,null,null,null,null,null,null,null,null,null,null,null,null,null,"Talahiban I"]
[null,null,null,null,null,null,null,null,null,null,null,null,null,null,null,"Talence"]
[null,null,null,null,null,null,null,null,null,null,null,null,null,null,null,"Talmage"]
[null,null,null,null,null,null,null,null,null,null,null,null,null,null,null,"Talubatib"]
[null,null,null,null,null,null,null,null,null,null,null,null,null,null,null,"Tambau"]
[null,null,null,null,null,null,null,null,null,null,null,null,null,null,null,"Tamiyah"]
[null,null,null,null,null,null,null,null,null,null,null,null,null,null,null,"Tandzumadz"]
[null,null,null,null,null,null,null,null,null,null,null,null,null,null,null,"Tangmere"]
[null,null,null,null,null,null,null,null,null,null,null,null,null,null,null,"Tansa"]
[null,null,null,null,null,null,null,null,null,null,null,null,null,null,null,"Tapia"]
[null,null,null,null,null,null,null,null,null,null,null,null,null,null,null,"Tarakeswar"]
[null,null,null,null,null,null,null,null,null,null,null,null,null,null,null,"Tariba"]
[null,null,null,null,null,null,null,null,null,null,null,null,null,null,null,"Tarleton"]
[null,null,null,null,null,null,null,null,null,null,null,null,null,null,null,"Tarxien"]
[null,null,null,null,null,null,null,null,null,null,null,null,null,null,null,"Tash-Kumyr"]
[null,null,null,null,null,null,null,null,null,null,null,null,null,null,null,"Taupont"]
[null,null,null,null,null,null,null,null,null,null,null,null,null,null,null,"Taviran"]
[null,null,null,null,null,null,null,null,null,null,null,null,null,null,null,"Tayoltita"]
[null,null,null,null,null,null,null,null,null,null,null,null,null,null,null,"Teaca"]
[null,null,null,null,null,null,null,null,null,null,null,null,null,null,null,"Tebesbest"]
[null,null,null,null,null,null,null,null,null,null,null,null,null,null,null,"Teglio Veneto"]
[null,null,null,null,null,null,null,null,null,null,null,null,null,null,null,"Teisani"]
[null,null,null,null,null,null,null,null,null,null,null,null,null,null,null,"Tello"]
[null,null,null,null,null,null,null,null,null,null,null,null,null,null,null,"Temple Terrace"]
[null,null,null,null,null,null,null,null,null,null,null,null,null,null,null,"Ten'gushevo"]
[null,null,null,null,null,null,null,null,null,null,null,null,null,null,null,"Teor"]
[null,null,null,null,null,null,null,null,null,null,null,null,null,null,null,"Tequesta"]
[null,null,null,null,null,null,null,null,null,null,null,null,null,null,null,"Teresin"]
[null,null,null,null,null,null,null,null,null,null,null,null,null,null,null,"Terrarossa"]
[null,null,null,null,null,null,null,null,null,null,null,null,null,null,null,"Terrington Saint John"]
[null,null,null,null,null,null,null,null,null,null,null,null,null,null,null,"Tesalia"]
[null,null,null,null,null,null,null,null,null,null,null,null,null,null,null,"Tetti Neirotti"]
[null,null,null,null,null,null,null,null,null,null,null,null,null,null,null,"Tha Kham"]
[null,null,null,null,null,null,null,null,null,null,null,null,null,null,null,"Thanh Pho Ha Giang"]
[null,null,null,null,null,null,null,null,null,null,null,null,null,null,null,"Thayngen"]
[null,null,null,null,null,null,null,null,null,null,null,null,null,null,null,"Thermopolis"]
[null,null,null,null,null,null,null,null,null,null,null,null,null,null,null,"Thiersheim"]
[null,null,null,null,null,null,null,null,null,null,null,null,null,null,null,"Thizy-les-Bourgs"]
[null,null,null,null,null,null,null,null,null,null,null,null,null,null,null,"Thorntown"]
[null,null,null,null,null,null,null,null,null,null,null,null,null,null,null,"Thul"]
[null,null,null,null,null,null,null,null,null,null,null,null,null,null,null,"Tianguistengo (La Romera)"]
[null,null,null,null,null,null,null,null,null,null,null,null,null,null,null,"Tidjikja"]
[null,null,null,null,null,null,null,null,null,null,null,null,null,null,null,"Tijnje"]
[null,null,null,null,null,null,null,null,null,null,null,null,null,null,null,"Tikiw"]
[null,null,null,null,null,null,null,null,null,null,null,null,null,null,null,"Timoteo"]
[null,null,null,null,null,null,null,null,null,null,null,null,null,null,null,"Tinambacan"]
[null,null,null,null,null,null,null,null,null,null,null,null,null,null,null,"Tiptree"]
[null,null,null,null,null,null,null,null,null,null,null,null,null,null,null,"Tisdale"]
[null,null,null,null,null,null,null,null,null,null,null,null,null,null,null,"Titabar"]
[null,null,null,null,null,null,null,null,null,null,null,null,null,null,null,"Tlacojalpan"]
[null,null,null,null,null,null,null,null,null,null,null,null,null,null,null,"Tlahuelilpan"]
[null,null,null,null,null,null,null,null,null,null,null,null,null,null,null,"Tobercurry"]
[null,null,null,null,null,null,null,null,null,null,null,null,null,null,null,"Tochigi"]
[null,null,null,null,null,null,null,null,null,null,null,null,null,null,null,"Togur"]
[null,null,null,null,null,null,null,null,null,null,null,null,null,null,null,"Tokyo"]
[null,null,null,null,null,null,null,null,null,null,null,null,null,null,null,"Tomakivka"]
[null,null,null,null,null,null,null,null,null,null,null,null,null,null,null,"Tommerup"]
[null,null,null,null,null,null,null,null,null,null,null,null,null,null,null,"Tongelre"]
[null,null,null,null,null,null,null,null,null,null,null,null,null,null,null,"Topdac"]
[null,null,null,null,null,null,null,null,null,null,null,null,null,null,null,"Torfou"]
[null,null,null,null,null,null,null,null,null,null,null,null,null,null,null,"Tornillo"]
[null,null,null,null,null,null,null,null,null,null,null,null,null,null,null,"Torremaggiore"]
[null,null,null,null,null,null,null,null,null,null,null,null,null,null,null,"Torreselle"]
[null,null,null,null,null,null,null,null,null,null,null,null,null,null,null,"Toscanella"]
[null,null,null,null,null,null,null,null,null,null,null,null,null,null,null,"Tottori"]
[null,null,null,null,null,null,null,null,null,null,null,null,null,null,null,"Toussieu"]
[null,null,null,null,null,null,null,null,null,null,null,null,null,null,null,"Traian"]
[null,null,null,null,null,null,null,null,null,null,null,null,null,null,null,"Tral"]
[null,null,null,null,null,null,null,null,null,null,null,null,null,null,null,"Trbovlje"]
[null,null,null,null,null,null,null,null,null,null,null,null,null,null,null,"Trebukhiv"]
[null,null,null,null,null,null,null,null,null,null,null,null,null,null,null,"Trempealeau"]
[null,null,null,null,null,null,null,null,null,null,null,null,null,null,null,"Treorchy"]
[null,null,null,null,null,null,null,null,null,null,null,null,null,null,null,"Tretiy Severnyy"]
[null,null,null,null,null,null,null,null,null,null,null,null,null,null,null,"Trindade"]
[null,null,null,null,null,null,null,null,null,null,null,null,null,null,null,"Trip"]
[null,null,null,null,null,null,null,null,null,null,null,null,null,null,null,"Trophy Club"]
[null,null,null,null,null,null,null,null,null,null,null,null,null,null,null,"Troy"]
[null,null,null,null,null,null,null,null,null,null,null,null,null,null,null,"Trzebnica"]
[null,null,null,null,null,null,null,null,null,null,null,null,null,null,null,"Tsetserleg"]
[null,null,null,null,null,null,null,null,null,null,null,null,null,null,null,"Tsuruga"]
[null,null,null,null,null,null,null,null,null,null,null,null,null,null,null,"Tucepi"]
[null,null,null,null,null,null,null,null,null,null,null,null,null,null,null,"Tuessling"]
[null,null,null,null,null,null,null,null,null,null,null,null,null,null,null,"Tulau"]
[null,null,null,null,null,null,null,null,null,null,null,null,null,null,null,"Tultepec"]
[null,null,null,null,null,null,null,null,null,null,null,null,null,null,null,"Tuntum"]
[null,null,null,null,null,null,null,null,null,null,null,null,null,null,null,"Turaiyur"]
[null,null,null,null,null,null,null,null,null,null,null,null,null,null,null,"Turkmenbasy"]
[null,null,null,null,null,null,null,null,null,null,null,null,null,null,null,"Tusa"]
[null,null,null,null,null,null,null,null,null,null,null,null,null,null,null,"Tuusniemi"]
[null,null,null,null,null,null,null,null,null,null,null,null,null,null,null,"Twistringen"]
[null,null,null,null,null,null,null,null,null,null,null,null,null,null,null,"Tymbark"]
[null,null,null,null,null,null,null,null,null,null,null,null,null,null,null,"Uacon"]
[null,null,null,null,null,null,null,null,null,null,null,null,null,null,null,"Uda-Paciurea"]
[null,null,null,null,null,null,null,null,null,null,null,null,null,null,null,"Udupu"]
[null,null,null,null,null,null,null,null,null,null,null,null,null,null,null,"Uglekamensk"]
[null,null,null,null,null,null,null,null,null,null,null,null,null,null,null,"Ujhani"]
[null,null,null,null,null,null,null,null,null,null,null,null,null,null,null,"Ulefoss"]
[null,null,null,null,null,null,null,null,null,null,null,null,null,null,null,"Ullastrell"]
[null,null,null,null,null,null,null,null,null,null,null,null,null,null,null,"Umatilla"]
[null,null,null,null,null,null,null,null,null,null,null,null,null,null,null,"Unhel"]
[null,null,null,null,null,null,null,null,null,null,null,null,null,null,null,"Union City"]
[null,null,null,null,null,null,null,null,null,null,null,null,null,null,null,"Unterengstringen"]
[null,null,null,null,null,null,null,null,null,null,null,null,null,null,null,"Unzad"]
[null,null,null,null,null,null,null,null,null,null,null,null,null,null,null,"Upplands Vaesby"]
[null,null,null,null,null,null,null,null,null,null,null,null,null,null,null,"Urdorf / Moos"]
[null,null,null,null,null,null,null,null,null,null,null,null,null,null,null,"Urman"]
[null,null,null,null,null,null,null,null,null,null,null,null,null,null,null,"Urvan'"]
[null,null,null,null,null,null,null,null,null,null,null,null,null,null,null,"Usera"]
[null,null,null,null,null,null,null,null,null,null,null,null,null,null,null,"Ust'-Kulom"]
[null,null,null,null,null,null,null,null,null,null,null,null,null,null,null,"Ust-Nera"]
[null,null,null,null,null,null,null,null,null,null,null,null,null,null,null,"Uttukkuli"]
[null,null,null,null,null,null,null,null,null,null,null,null,null,null,null,"Uzdin"]
[null,null,null,null,null,null,null,null,null,null,null,null,null,null,null,"Vacqueyras"]
[null,null,null,null,null,null,null,null,null,null,null,null,null,null,null,"Vaglio Basilicata"]
[null,null,null,null,null,null,null,null,null,null,null,null,null,null,null,"Vailima"]
[null,null,null,null,null,null,null,null,null,null,null,null,null,null,null,"Valdeganga"]
[null,null,null,null,null,null,null,null,null,null,null,null,null,null,null,"Valdese"]
[null,null,null,null,null,null,null,null,null,null,null,null,null,null,null,"Valea Vinului"]
[null,null,null,null,null,null,null,null,null,null,null,null,null,null,null,"Valgatara"]
[null,null,null,null,null,null,null,null,null,null,null,null,null,null,null,"Valle de San Jose"]
[null,null,null,null,null,null,null,null,null,null,null,null,null,null,null,"Vallensbaek"]
[null,null,null,null,null,null,null,null,null,null,null,null,null,null,null,"Valley Green"]
[null,null,null,null,null,null,null,null,null,null,null,null,null,null,null,"Valvasone"]
[null,null,null,null,null,null,null,null,null,null,null,null,null,null,null,"Vangazi"]
[null,null,null,null,null,null,null,null,null,null,null,null,null,null,null,"Vaprio d'Adda"]
[null,null,null,null,null,null,null,null,null,null,null,null,null,null,null,"Vargata"]
[null,null,null,null,null,null,null,null,null,null,null,null,null,null,null,"Vartoapele de Jos"]
[null,null,null,null,null,null,null,null,null,null,null,null,null,null,null,"Vasles"]
[null,null,null,null,null,null,null,null,null,null,null,null,null,null,null,"Vaureal"]
[null,null,null,null,null,null,null,null,null,null,null,null,null,null,null,"Vechigen"]
[null,null,null,null,null,null,null,null,null,null,null,null,null,null,null,"Vejprty"]
[null,null,null,null,null,null,null,null,null,null,null,null,null,null,null,"Velehrad"]
[null,null,null,null,null,null,null,null,null,null,null,null,null,null,null,"Velke Prilepy"]
[null,null,null,null,null,null,null,null,null,null,null,null,null,null,null,"Vellmar"]
[null,null,null,null,null,null,null,null,null,null,null,null,null,null,null,"Venaria Reale"]
[null,null,null,null,null,null,null,null,null,null,null,null,null,null,null,"Venezzano"]
[null,null,null,null,null,null,null,null,null,null,null,null,null,null,null,"Verbita"]
[null,null,null,null,null,null,null,null,null,null,null,null,null,null,null,"Verin Dvin"]
[null,null,null,null,null,null,null,null,null,null,null,null,null,null,null,"Verkhniye Kayrakty"]
[null,null,null,null,null,null,null,null,null,null,null,null,null,null,null,"Vernon Valley"]
[null,null,null,null,null,null,null,null,null,null,null,null,null,null,null,"Veroia"]
[null,null,null,null,null,null,null,null,null,null,null,null,null,null,null,"Vestbjerg"]
[null,null,null,null,null,null,null,null,null,null,null,null,null,null,null,"Veydelevka"]
[null,null,null,null,null,null,null,null,null,null,null,null,null,null,null,"Vibo Valentia"]
[null,null,null,null,null,null,null,null,null,null,null,null,null,null,null,"Vicq-sur-Breuilh"]
[null,null,null,null,null,null,null,null,null,null,null,null,null,null,null,"Vieksniai"]
[null,null,null,null,null,null,null,null,null,null,null,null,null,null,null,"Vietri di Potenza"]
[null,null,null,null,null,null,null,null,null,null,null,null,null,null,null,"Viggiano"]
[null,null,null,null,null,null,null,null,null,null,null,null,null,null,null,"Vijlen"]
[null,null,null,null,null,null,null,null,null,null,null,null,null,null,null,"Vilaseca"]
[null,null,null,null,null,null,null,null,null,null,null,null,null,null,null,"Villa Atltzayanca de Hidalgo"]
[null,null,null,null,null,null,null,null,null,null,null,null,null,null,null,"Villa del Carmen"]
[null,null,null,null,null,null,null,null,null,null,null,null,null,null,null,"Villa di Serio"]
[null,null,null,null,null,null,null,null,null,null,null,null,null,null,null,"Villa Riva"]
[null,null,null,null,null,null,null,null,null,null,null,null,null,null,null,"Villa Tapia"]
[null,null,null,null,null,null,null,null,null,null,null,null,null,null,null,"Villaganzerla"]
[null,null,null,null,null,null,null,null,null,null,null,null,null,null,null,"Villalba de los Barros"]
[null,null,null,null,null,null,null,null,null,null,null,null,null,null,null,"Villanueva de la Torre"]
[null,null,null,null,null,null,null,null,null,null,null,null,null,null,null,"Villard-Bonnot"]
[null,null,null,null,null,null,null,null,null,null,null,null,null,null,null,"Villatobas"]
[null,null,null,null,null,null,null,null,null,null,null,null,null,null,null,"Villemur-sur-Tarn"]
[null,null,null,null,null,null,null,null,null,null,null,null,null,null,null,"Villeneuve-sur-Yonne"]
[null,null,null,null,null,null,null,null,null,null,null,null,null,null,null,"Villingen-Schwenningen"]
[null,null,null,null,null,null,null,null,null,null,null,null,null,null,null,"Vimmerby"]
[null,null,null,null,null,null,null,null,null,null,null,null,null,null,null,"Vinkeveen"]
[null,null,null,null,null,null,null,null,null,null,null,null,null,null,null,"Violet"]
[null,null,null,null,null,null,null,null,null,null,null,null,null,null,null,"Virton"]
[null,null,null,null,null,null,null,null,null,null,null,null,null,null,null,"Viso del Marques"]
[null,null,null,null,null,null,null,null,null,null,null,null,null,null,null,"Vizinga"]
[null,null,null,null,null,null,null,null,null,null,null,null,null,null,null,"Vlad Tepes"]
[null,null,null,null,null,null,null,null,null,null,null,null,null,null,null,"Vogar"]
[null,null,null,null,null,null,null,null,null,null,null,null,null,null,null,"Vohma"]
[null,null,null,null,null,null,null,null,null,null,null,null,null,null,null,"Volnovakha"]
[null,null,null,null,null,null,null,null,null,null,null,null,null,null,null,"Voluntari"]
[null,null,null,null,null,null,null,null,null,null,null,null,null,null,null,"Voroklini"]
[null,null,null,null,null,null,null,null,null,null,null,null,null,null,null,"Vouzon"]
[null,null,null,null,null,null,null,null,null,null,null,null,null,null,null,"Vozuca"]
[null,null,null,null,null,null,null,null,null,null,null,null,null,null,null,"Vrtojba"]
[null,null,null,null,null,null,null,null,null,null,null,null,null,null,null,"Vulcan"]
[null,null,null,null,null,null,null,null,null,null,null,null,null,null,null,"Vyshneye Dolgoye"]
[null,null,null,null,null,null,null,null,null,null,null,null,null,null,null,"Waalre"]
[null,null,null,null,null,null,null,null,null,null,null,null,null,null,null,"Wadhurst"]
[null,null,null,null,null,null,null,null,null,null,null,null,null,null,null,"Wagner"]
[null,null,null,null,null,null,null,null,null,null,null,null,null,null,null,"Wainaku"]
[null,null,null,null,null,null,null,null,null,null,null,null,null,null,null,"Waldheim"]
[null,null,null,null,null,null,null,null,null,null,null,null,null,null,null,"Waldthurn"]
[null,null,null,null,null,null,null,null,null,null,null,null,null,null,null,"Walnut Park"]
[null,null,null,null,null,null,null,null,null,null,null,null,null,null,null,"Wangaratta"]
[null,null,null,null,null,null,null,null,null,null,null,null,null,null,null,"Wankaner"]
[null,null,null,null,null,null,null,null,null,null,null,null,null,null,null,"Wardow"]
[null,null,null,null,null,null,null,null,null,null,null,null,null,null,null,"Warnemuende"]
[null,null,null,null,null,null,null,null,null,null,null,null,null,null,null,"Washingborough"]
[null,null,null,null,null,null,null,null,null,null,null,null,null,null,null,"Wasungen"]
[null,null,null,null,null,null,null,null,null,null,null,null,null,null,null,"Wattignies"]
[null,null,null,null,null,null,null,null,null,null,null,null,null,null,null,"Weatherford"]
[null,null,null,null,null,null,null,null,null,null,null,null,null,null,null,"Wedgewood"]
[null,null,null,null,null,null,null,null,null,null,null,null,null,null,null,"Weil"]
[null,null,null,null,null,null,null,null,null,null,null,null,null,null,null,"Weissenborn-Luederode"]
[null,null,null,null,null,null,null,null,null,null,null,null,null,null,null,"Weleri"]
[null,null,null,null,null,null,null,null,null,null,null,null,null,null,null,"Wembury"]
[null,null,null,null,null,null,null,null,null,null,null,null,null,null,null,"Wenshang"]
[null,null,null,null,null,null,null,null,null,null,null,null,null,null,null,"Wesley"]
[null,null,null,null,null,null,null,null,null,null,null,null,null,null,null,"West Bergholt"]
[null,null,null,null,null,null,null,null,null,null,null,null,null,null,null,"West Gate"]
[null,null,null,null,null,null,null,null,null,null,null,null,null,null,null,"West Kittanning"]
[null,null,null,null,null,null,null,null,null,null,null,null,null,null,null,"West Pensacola"]
[null,null,null,null,null,null,null,null,null,null,null,null,null,null,null,"West University Place"]
[null,null,null,null,null,null,null,null,null,null,null,null,null,null,null,"Westenenk"]
[null,null,null,null,null,null,null,null,null,null,null,null,null,null,null,"Westmere"]
[null,null,null,null,null,null,null,null,null,null,null,null,null,null,null,"Wetaskiwin"]
[null,null,null,null,null,null,null,null,null,null,null,null,null,null,null,"White Bluff"]
[null,null,null,null,null,null,null,null,null,null,null,null,null,null,null,"White House"]
[null,null,null,null,null,null,null,null,null,null,null,null,null,null,null,"Wickham"]
[null,null,null,null,null,null,null,null,null,null,null,null,null,null,null,"Wieruszow"]
[null,null,null,null,null,null,null,null,null,null,null,null,null,null,null,"Wiesenfelden"]
[null,null,null,null,null,null,null,null,null,null,null,null,null,null,null,"Wildenhain"]
[null,null,null,null,null,null,null,null,null,null,null,null,null,null,null,"Wilkie"]
[null,null,null,null,null,null,null,null,null,null,null,null,null,null,null,"Willows"]
[null,null,null,null,null,null,null,null,null,null,null,null,null,null,null,"Windberg"]
[null,null,null,null,null,null,null,null,null,null,null,null,null,null,null,"Wing"]
[null,null,null,null,null,null,null,null,null,null,null,null,null,null,null,"Winterbach"]
[null,null,null,null,null,null,null,null,null,null,null,null,null,null,null,"Wisconsin Dells"]
[null,null,null,null,null,null,null,null,null,null,null,null,null,null,null,"Wittering"]
[null,null,null,null,null,null,null,null,null,null,null,null,null,null,null,"Woippy"]
[null,null,null,null,null,null,null,null,null,null,null,null,null,null,null,"Woldegk"]
[null,null,null,null,null,null,null,null,null,null,null,null,null,null,null,"Wolpertswende"]
[null,null,null,null,null,null,null,null,null,null,null,null,null,null,null,"Wonfurt"]
[null,null,null,null,null,null,null,null,null,null,null,null,null,null,null,"Woodson Terrace"]
[null,null,null,null,null,null,null,null,null,null,null,null,null,null,null,"Workington"]
[null,null,null,null,null,null,null,null,null,null,null,null,null,null,null,"Wriedel"]
[null,null,null,null,null,null,null,null,null,null,null,null,null,null,null,"Wulkenzin"]
[null,null,null,null,null,null,null,null,null,null,null,null,null,null,null,"Wuyishan"]
[null,null,null,null,null,null,null,null,null,null,null,null,null,null,null,"Xankandi"]
[null,null,null,null,null,null,null,null,null,null,null,null,null,null,null,"Xiangxiang"]
[null,null,null,null,null,null,null,null,null,null,null,null,null,null,null,"Xinyang"]
[null,null,null,null,null,null,null,null,null,null,null,null,null,null,null,"Xixiang"]
[null,null,null,null,null,null,null,null,null,null,null,null,null,null,null,"Yabelo"]
[null,null,null,null,null,null,null,null,null,null,null,null,null,null,null,"Yakeshi"]
[null,null,null,null,null,null,null,null,null,null,null,null,null,null,null,"Yamkino"]
[null,null,null,null,null,null,null,null,null,null,null,null,null,null,null,"Yapeyu"]
[null,null,null,null,null,null,null,null,null,null,null,null,null,null,null,"Yaring"]
[null,null,null,null,null,null,null,null,null,null,null,null,null,null,null,"Yauya"]
[null,null,null,null,null,null,null,null,null,null,null,null,null,null,null,"Yayladagi"]
[null,null,null,null,null,null,null,null,null,null,null,null,null,null,null,"Yel'nya"]
[null,null,null,null,null,null,null,null,null,null,null,null,null,null,null,"Yerbabuena"]
[null,null,null,null,null,null,null,null,null,null,null,null,null,null,null,"Yffiniac"]
[null,null,null,null,null,null,null,null,null,null,null,null,null,null,null,"Yoichi"]
[null,null,null,null,null,null,null,null,null,null,null,null,null,null,null,"Yorketown"]
[null,null,null,null,null,null,null,null,null,null,null,null,null,null,null,"Yountville"]
[null,null,null,null,null,null,null,null,null,null,null,null,null,null,null,"Yuanping"]
[null,null,null,null,null,null,null,null,null,null,null,null,null,null,null,"Yurgamysh"]
[null,null,null,null,null,null,null,null,null,null,null,null,null,null,null,"Yuzha"]
[null,null,null,null,null,null,null,null,null,null,null,null,null,null,null,"Zabolotovka"]
[null,null,null,null,null,null,null,null,null,null,null,null,null,null,null,"Zagorze"]
[null,null,null,null,null,null,null,null,null,null,null,null,null,null,null,"Zakynthos"]
[null,null,null,null,null,null,null,null,null,null,null,null,null,null,null,"Zambana"]
[null,null,null,null,null,null,null,null,null,null,null,null,null,null,null,"Zaporizhia"]
[null,null,null,null,null,null,null,null,null,null,null,null,null,null,null,"Zarand"]
[null,null,null,null,null,null,null,null,null,null,null,null,null,null,null,"Zavet"]
[null,null,null,null,null,null,null,null,null,null,null,null,null,null,null,"Zavolzhsk"]
[null,null,null,null,null,null,null,null,null,null,null,null,null,null,null,"Zegge"]
[null,null,null,null,null,null,null,null,null,null,null,null,null,null,null,"Zeilarn"]
[null,null,null,null,null,null,null,null,null,null,null,null,null,null,null,"Zelow"]
[null,null,null,null,null,null,null,null,null,null,null,null,null,null,null,"Zgornji Duplek"]
[null,null,null,null,null,null,null,null,null,null,null,null,null,null,null,"Zhangjiajie"]
[null,null,null,null,null,null,null,null,null,null,null,null,null,null,null,"Zheleznovodsk"]
[null,null,null,null,null,null,null,null,null,null,null,null,null,null,null,"Zheleznyy Port"]
[null,null,null,null,null,null,null,null,null,null,null,null,null,null,null,"Zhelyabovka"]
[null,null,null,null,null,null,null,null,null,null,null,null,null,null,null,"Zhemchug"]
[null,null,null,null,null,null,null,null,null,null,null,null,null,null,null,"Zhemtala"]
[null,null,null,null,null,null,null,null,null,null,null,null,null,null,null,"Zhengjiatun"]
[null,null,null,null,null,null,null,null,null,null,null,null,null,null,null,"Zhengzhou"]
[null,null,null,null,null,null,null,null,null,null,null,null,null,null,null,"Zhenhai"]
[null,null,null,null,null,null,null,null,null,null,null,null,null,null,null,"Zhenjiang"]
[null,null,null,null,null,null,null,null,null,null,null,null,null,null,null,"Zhenlai"]
[null,null,null,null,null,null,null,null,null,null,null,null,null,null,null,"Zhenzhou"]
[null,null,null,null,null,null,null,null,null,null,null,null,null,null,null,"Zherdevka"]
[null,null,null,null,null,null,null,null,null,null,null,null,null,null,null,"Zheshart"]
[null,null,null,null,null,null,null,null,null,null,null,null,null,null,null,"Zhetibay"]
[null,null,null,null,null,null,null,null,null,null,null,null,null,null,null,"Zhezkent"]
[null,null,null,null,null,null,null,null,null,null,null,null,null,null,null,"Zhezqazghan"]
[null,null,null,null,null,null,null,null,null,null,null,null,null,null,null,"Zhicheng"]
[null,null,null,null,null,null,null,null,null,null,null,null,null,null,null,"Zhigalovo"]
[null,null,null,null,null,null,null,null,null,null,null,null,null,null,null,"Zhigansk"]
[null,null,null,null,null,null,null,null,null,null,null,null,null,null,null,"Zhigulevsk"]
[null,null,null,null,null,null,null,null,null,null,null,null,null,null,null,"Zhiguli"]
[null,null,null,null,null,null,null,null,null,null,null,null,null,null,null,"Zhijiang"]
[null,null,null,null,null,null,null,null,null,null,null,null,null,null,null,"Zhiletovo"]
[null,null,null,null,null,null,null,null,null,null,null,null,null,null,null,"Zhilevo"]
[null,null,null,null,null,null,null,null,null,null,null,null,null,null,null,"Zhinvali"]
[null,null,null,null,null,null,null,null,null,null,null,null,null,null,null,"Zhireken"]
[null,null,null,null,null,null,null,null,null,null,null,null,null,null,null,"Zhirnov"]
[null,null,null,null,null,null,null,null,null,null,null,null,null,null,null,"Zhirnovsk"]
[null,null,null,null,null,null,null,null,null,null,null,null,null,null,null,"Zhiryatino"]
[null,null,null,null,null,null,null,null,null,null,null,null,null,null,null,"Zhitnevo"]
[null,null,null,null,null,null,null,null,null,null,null,null,null,null,null,"Zhizdra"]
[null,null,null,null,null,null,null,null,null,null,null,null,null,null,null,"Zhlobin"]
[null,null,null,null,null,null,null,null,null,null,null,null,null,null,null,"Zhmerynka"]
[null,null,null,null,null,null,null,null,null,null,null,null,null,null,null,"Zhob"]
[null,null,null,null,null,null,null,null,null,null,null,null,null,null,null,"Zholymbet"]
[null,null,null,null,null,null,null,null,null,null,null,null,null,null,null,"Zhongchao"]
[null,null,null,null,null,null,null,null,null,null,null,null,null,null,null,"Zhongdeng"]
[null,null,null,null,null,null,null,null,null,null,null,null,null,null,null,"Zhongfang"]
[null,null,null,null,null,null,null,null,null,null,null,null,null,null,null,"Zhongshan"]
[null,null,null,null,null,null,null,null,null,null,null,null,null,null,null,"Zhongshu"]
[null,null,null,null,null,null,null,null,null,null,null,null,null,null,null,"Zhongxiang"]
[null,null,null,null,null,null,null,null,null,null,null,null,null,null,null,"Zhongxing"]
[null,null,null,null,null,null,null,null,null,null,null,null,null,null,null,"Zhongxing New Village"]
[null,null,null,null,null,null,null,null,null,null,null,null,null,null,null,"Zhongxinqiao"]
[null,null,null,null,null,null,null,null,null,null,null,null,null,null,null,"Zhongzhai"]
[null,null,null,null,null,null,null,null,null,null,null,null,null,null,null,"Zhosaly"]
[null,null,null,null,null,null,null,null,null,null,null,null,null,null,null,"Zhoucheng"]
[null,null,null,null,null,null,null,null,null,null,null,null,null,null,null,"Zhoucun"]
[null,null,null,null,null,null,null,null,null,null,null,null,null,null,null,"Zhoukou"]
[null,null,null,null,null,null,null,null,null,null,null,null,null,null,null,"Zhoushan"]
[null,null,null,null,null,null,null,null,null,null,null,null,null,null,null,"Zhouzhuang"]
[null,null,null,null,null,null,null,null,null,null,null,null,null,null,null,"Zhovkva"]
[null,null,null,null,null,null,null,null,null,null,null,null,null,null,null,"Zhovti Vody"]
[null,null,null,null,null,null,null,null,null,null,null,null,null,null,null,"Zhovtneve"]
[null,null,null,null,null,null,null,null,null,null,null,null,null,null,null,"Zhu Cheng City"]
[null,null,null,null,null,null,null,null,null,null,null,null,null,null,null,"Zhuanghe"]
[null,null,null,null,null,null,null,null,null,null,null,null,null,null,null,"Zhuangtou"]
[null,null,null,null,null,null,null,null,null,null,null,null,null,null,null,"Zhuangyuan"]
[null,null,null,null,null,null,null,null,null,null,null,null,null,null,null,"Zhuhai"]
[null,null,null,null,null,null,null,null,null,null,null,null,null,null,null,"Zhuji"]
[null,null,null,null,null,null,null,null,null,null,null,null,null,null,null,"Zhujiachang"]
[null,null,null,null,null,null,null,null,null,null,null,null,null,null,null,"Zhujiajiao"]
[null,null,null,null,null,null,null,null,null,null,null,null,null,null,null,"Zhukovka"]
[null,null,null,null,null,null,null,null,null,null,null,null,null,null,null,"Zhukovo"]
[null,null,null,null,null,null,null,null,null,null,null,null,null,null,null,"Zhukovskiy"]
[null,null,null,null,null,null,null,null,null,null,null,null,null,null,null,"Zhulebino"]
[null,null,null,null,null,null,null,null,null,null,null,null,null,null,null,"Zhumadian"]
[null,null,null,null,null,null,null,null,null,null,null,null,null,null,null,"Zhumysker"]
[null,null,null,null,null,null,null,null,null,null,null,null,null,null,null,"Zhuoyang"]
[null,null,null,null,null,null,null,null,null,null,null,null,null,null,null,"Zhuqi"]
[null,null,null,null,null,null,null,null,null,null,null,null,null,null,null,"Zhuravka"]
[null,null,null,null,null,null,null,null,null,null,null,null,null,null,null,"Zhuravki"]
[null,null,null,null,null,null,null,null,null,null,null,null,null,null,null,"Zhuravli"]
[null,null,null,null,null,null,null,null,null,null,null,null,null,null,null,"Zhuravlyovka"]
[null,null,null,null,null,null,null,null,null,null,null,null,null,null,null,"Zhushi"]
[null,null,null,null,null,null,null,null,null,null,null,null,null,null,null,"Zhuzhou"]
[null,null,null,null,null,null,null,null,null,null,null,null,null,null,null,"Zhuzhoujiang Miaozuxiang"]
[null,null,null,null,null,null,null,null,null,null,null,null,null,null,null,"Zhvanets"]
[null,null,null,null,null,null,null,null,null,null,null,null,null,null,null,"Zhyrovichy"]
[null,null,null,null,null,null,null,null,null,null,null,null,null,null,null,"Zhytkavichy"]
[null,null,null,null,null,null,null,null,null,null,null,null,null,null,null,"Zhytomyr"]
[null,null,null,null,null,null,null,null,null,null,null,null,null,null,null,"Ziabar (Gaskar)"]
[null,null,null,null,null,null,null,null,null,null,null,null,null,null,null,"Ziano di Fiemme"]
[null,null,null,null,null,null,null,null,null,null,null,null,null,null,null,"Ziar nad Hronom"]
[null,null,null,null,null,null,null,null,null,null,null,null,null,null,null,"Zibido San Giacomo"]
[null,null,null,null,null,null,null,null,null,null,null,null,null,null,null,"Zibo"]
[null,null,null,null,null,null,null,null,null,null,null,null,null,null,null,"Zidlochovice"]
[null,null,null,null,null,null,null,null,null,null,null,null,null,null,null,"Ziduri"]
[null,null,null,null,null,null,null,null,null,null,null,null,null,null,null,"Zidurile"]
[null,null,null,null,null,null,null,null,null,null,null,null,null,null,null,"Ziebice"]
[null,null,null,null,null,null,null,null,null,null,null,null,null,null,null,"Zielitz"]
[null,null,null,null,null,null,null,null,null,null,null,null,null,null,null,"Zielona Gora"]
[null,null,null,null,null,null,null,null,null,null,null,null,null,null,null,"Zielonka"]
[null,null,null,null,null,null,null,null,null,null,null,null,null,null,null,"Zielonki"]
[null,null,null,null,null,null,null,null,null,null,null,null,null,null,null,"Ziemetshausen"]
[null,null,null,null,null,null,null,null,null,null,null,null,null,null,null,"Zierbena"]
[null,null,null,null,null,null,null,null,null,null,null,null,null,null,null,"Zierenberg"]
[null,null,null,null,null,null,null,null,null,null,null,null,null,null,null,"Ziertheim"]
[null,null,null,null,null,null,null,null,null,null,null,null,null,null,null,"Ziesar"]
[null,null,null,null,null,null,null,null,null,null,null,null,null,null,null,"Ziesendorf"]
[null,null,null,null,null,null,null,null,null,null,null,null,null,null,null,"Ziezmariai"]
[null,null,null,null,null,null,null,null,null,null,null,null,null,null,null,"Zifta"]
[null,null,null,null,null,null,null,null,null,null,null,null,null,null,null,"Zigong"]
[null,null,null,null,null,null,null,null,null,null,null,null,null,null,null,"Ziguinchor"]
[null,null,null,null,null,null,null,null,null,null,null,null,null,null,null,"Zihle"]
[null,null,null,null,null,null,null,null,null,null,null,null,null,null,null,"Zijinglu"]
[null,null,null,null,null,null,null,null,null,null,null,null,null,null,null,"Zijtaart"]
[null,null,null,null,null,null,null,null,null,null,null,null,null,null,null,"Zilair"]
[null,null,null,null,null,null,null,null,null,null,null,null,null,null,null,"Zile"]
[null,null,null,null,null,null,null,null,null,null,null,null,null,null,null,"Zilina"]
[null,null,null,null,null,null,null,null,null,null,null,null,null,null,null,"Zillah"]
[null,null,null,null,null,null,null,null,null,null,null,null,null,null,null,"Zillingdorf"]
[null,null,null,null,null,null,null,null,null,null,null,null,null,null,null,"Zillisheim"]
[null,null,null,null,null,null,null,null,null,null,null,null,null,null,null,"Zillmere"]
[null,null,null,null,null,null,null,null,null,null,null,null,null,null,null,"Ziltendorf"]
[null,null,null,null,null,null,null,null,null,null,null,null,null,null,null,"Zilupe"]
[null,null,null,null,null,null,null,null,null,null,null,null,null,null,null,"Zilwaukee"]
[null,null,null,null,null,null,null,null,null,null,null,null,null,null,null,"Zima"]
[null,null,null,null,null,null,null,null,null,null,null,null,null,null,null,"Zimandu Nou"]
[null,null,null,null,null,null,null,null,null,null,null,null,null,null,null,"Zimapan"]
[null,null,null,null,null,null,null,null,null,null,null,null,null,null,null,"Zimatlan de Alvarez"]
[null,null,null,null,null,null,null,null,null,null,null,null,null,null,null,"Zimbor"]
[null,null,null,null,null,null,null,null,null,null,null,null,null,null,null,"Zimmerman"]
[null,null,null,null,null,null,null,null,null,null,null,null,null,null,null,"Zimmern ob Rottweil"]
[null,null,null,null,null,null,null,null,null,null,null,null,null,null,null,"Zimmersheim"]
[null,null,null,null,null,null,null,null,null,null,null,null,null,null,null,"Zimmi"]
[null,null,null,null,null,null,null,null,null,null,null,null,null,null,null,"Zimnicea"]
[null,null,null,null,null,null,null,null,null,null,null,null,null,null,null,"Zimnicele"]
[null,null,null,null,null,null,null,null,null,null,null,null,null,null,null,"Zimovniki"]
[null,null,null,null,null,null,null,null,null,null,null,null,null,null,null,"Zinacantan"]
[null,null,null,null,null,null,null,null,null,null,null,null,null,null,null,"Zinacatepec"]
[null,null,null,null,null,null,null,null,null,null,null,null,null,null,null,"Zinapecuaro"]
[null,null,null,null,null,null,null,null,null,null,null,null,null,null,null,"Zindah Jan"]
[null,null,null,null,null,null,null,null,null,null,null,null,null,null,null,"Zinder"]
[null,null,null,null,null,null,null,null,null,null,null,null,null,null,null,"Zingem"]
[null,null,null,null,null,null,null,null,null,null,null,null,null,null,null,"Zingst"]
[null,null,null,null,null,null,null,null,null,null,null,null,null,null,null,"Ziniare"]
[null,null,null,null,null,null,null,null,null,null,null,null,null,null,null,"Zinjibar"]
[null,null,null,null,null,null,null,null,null,null,null,null,null,null,null,"Zin'kiv"]
[null,null,null,null,null,null,null,null,null,null,null,null,null,null,null,"Zinna"]
[null,null,null,null,null,null,null,null,null,null,null,null,null,null,null,"Zintan"]
[null,null,null,null,null,null,null,null,null,null,null,null,null,null,null,"Zion"]
[null,null,null,null,null,null,null,null,null,null,null,null,null,null,null,"Zionsville"]
[null,null,null,null,null,null,null,null,null,null,null,null,null,null,null,"Zipacon"]
[null,null,null,null,null,null,null,null,null,null,null,null,null,null,null,"Zipaquira"]
[null,null,null,null,null,null,null,null,null,null,null,null,null,null,null,"Zipari"]
[null,null,null,null,null,null,null,null,null,null,null,null,null,null,null,"Zira"]
[null,null,null,null,null,null,null,null,null,null,null,null,null,null,null,"Zirandaro"]
[null,null,null,null,null,null,null,null,null,null,null,null,null,null,null,"Zirc"]
[null,null,null,null,null,null,null,null,null,null,null,null,null,null,null,"Zirgan"]
[null,null,null,null,null,null,null,null,null,null,null,null,null,null,null,"Ziri"]
[null,null,null,null,null,null,null,null,null,null,null,null,null,null,null,"Zirl"]
[null,null,null,null,null,null,null,null,null,null,null,null,null,null,null,"Zirndorf"]
[null,null,null,null,null,null,null,null,null,null,null,null,null,null,null,"Ziro"]
[null,null,null,null,null,null,null,null,null,null,null,null,null,null,null,"Ziroudani"]
[null,null,null,null,null,null,null,null,null,null,null,null,null,null,null,"Zirovnice"]
[null,null,null,null,null,null,null,null,null,null,null,null,null,null,null,"Zistersdorf"]
[null,null,null,null,null,null,null,null,null,null,null,null,null,null,null,"Zitenice"]
[null,null,null,null,null,null,null,null,null,null,null,null,null,null,null,"Zitiste"]
[null,null,null,null,null,null,null,null,null,null,null,null,null,null,null,"Zitlala"]
[null,null,null,null,null,null,null,null,null,null,null,null,null,null,null,"Zitlaltepec"]
[null,null,null,null,null,null,null,null,null,null,null,null,null,null,null,"Zitose"]
[null,null,null,null,null,null,null,null,null,null,null,null,null,null,null,"Zittau"]
[null,null,null,null,null,null,null,null,null,null,null,null,null,null,null,"Zivinice"]
[null,null,null,null,null,null,null,null,null,null,null,null,null,null,null,"Ziway"]
[null,null,null,null,null,null,null,null,null,null,null,null,null,null,null,"Zizelice"]
[null,null,null,null,null,null,null,null,null,null,null,null,null,null,null,"Zizers"]
[null,null,null,null,null,null,null,null,null,null,null,null,null,null,null,"Zizicazapa"]
[null,null,null,null,null,null,null,null,null,null,null,null,null,null,null,"Zizin"]
[null,null,null,null,null,null,null,null,null,null,null,null,null,null,null,"Zlatar"]
[null,null,null,null,null,null,null,null,null,null,null,null,null,null,null,"Zlatarei"]
[null,null,null,null,null,null,null,null,null,null,null,null,null,null,null,"Zlataritsa"]
[null,null,null,null,null,null,null,null,null,null,null,null,null,null,null,"Zlate Hory"]
[null,null,null,null,null,null,null,null,null,null,null,null,null,null,null,"Zlate Moravce"]
[null,null,null,null,null,null,null,null,null,null,null,null,null,null,null,"Zlatibor"]
[null,null,null,null,null,null,null,null,null,null,null,null,null,null,null,"Zlatitsa"]
[null,null,null,null,null,null,null,null,null,null,null,null,null,null,null,"Zlatna"]
[null,null,null,null,null,null,null,null,null,null,null,null,null,null,null,"Zlatni Pyasatsi"]
[null,null,null,null,null,null,null,null,null,null,null,null,null,null,null,"Zlatograd"]
[null,null,null,null,null,null,null,null,null,null,null,null,null,null,null,"Zlatoust"]
[null,null,null,null,null,null,null,null,null,null,null,null,null,null,null,"Zlatunoaia"]
[null,null,null,null,null,null,null,null,null,null,null,null,null,null,null,"Zleby"]
[null,null,null,null,null,null,null,null,null,null,null,null,null,null,null,"Zlechov"]
[null,null,null,null,null,null,null,null,null,null,null,null,null,null,null,"Zletovo"]
[null,null,null,null,null,null,null,null,null,null,null,null,null,null,null,"Zlin"]
[null,null,null,null,null,null,null,null,null,null,null,null,null,null,null,"Zliten"]
[null,null,null,null,null,null,null,null,null,null,null,null,null,null,null,"Zliv"]
[null,null,null,null,null,null,null,null,null,null,null,null,null,null,null,"Zlocieniec"]
[null,null,null,null,null,null,null,null,null,null,null,null,null,null,null,"Zloczew"]
[null,null,null,null,null,null,null,null,null,null,null,null,null,null,null,"Zlonice"]
[null,null,null,null,null,null,null,null,null,null,null,null,null,null,null,"Zlota"]
[null,null,null,null,null,null,null,null,null,null,null,null,null,null,null,"Zlotniki"]
[null,null,null,null,null,null,null,null,null,null,null,null,null,null,null,"Zlotniki Kujawskie"]
[null,null,null,null,null,null,null,null,null,null,null,null,null,null,null,"Zlotoryja"]
[null,null,null,null,null,null,null,null,null,null,null,null,null,null,null,"Zlotow"]
[null,null,null,null,null,null,null,null,null,null,null,null,null,null,null,"Zloty Stok"]
[null,null,null,null,null,null,null,null,null,null,null,null,null,null,null,"Zlutava"]
[null,null,null,null,null,null,null,null,null,null,null,null,null,null,null,"Zlutice"]
[null,null,null,null,null,null,null,null,null,null,null,null,null,null,null,"Zlynka"]
[null,null,null,null,null,null,null,null,null,null,null,null,null,null,null,"Zmajevo"]
[null,null,null,null,null,null,null,null,null,null,null,null,null,null,null,"Zmeinogorsk"]
[null,null,null,null,null,null,null,null,null,null,null,null,null,null,null,"Zmeu"]
[null,null,null,null,null,null,null,null,null,null,null,null,null,null,null,"Zmeyka"]
[null,null,null,null,null,null,null,null,null,null,null,null,null,null,null,"Zmeyskaya"]
[null,null,null,null,null,null,null,null,null,null,null,null,null,null,null,"Zmiennica"]
[null,null,null,null,null,null,null,null,null,null,null,null,null,null,null,"Zmigrod"]
[null,null,null,null,null,null,null,null,null,null,null,null,null,null,null,"Zmijavci"]
[null,null,null,null,null,null,null,null,null,null,null,null,null,null,null,"Zminjak"]
[null,null,null,null,null,null,null,null,null,null,null,null,null,null,null,"Zmiyevka"]
[null,null,null,null,null,null,null,null,null,null,null,null,null,null,null,"Zmiyiv"]
[null,null,null,null,null,null,null,null,null,null,null,null,null,null,null,"Znamenka"]
[null,null,null,null,null,null,null,null,null,null,null,null,null,null,null,"Znamensk"]
[null,null,null,null,null,null,null,null,null,null,null,null,null,null,null,"Znamenskoye"]
[null,null,null,null,null,null,null,null,null,null,null,null,null,null,null,"Znin"]
[null,null,null,null,null,null,null,null,null,null,null,null,null,null,null,"Znojmo"]
[null,null,null,null,null,null,null,null,null,null,null,null,null,null,null,"Znomenka"]
[null,null,null,null,null,null,null,null,null,null,null,null,null,null,null,"Zoagli"]
[null,null,null,null,null,null,null,null,null,null,null,null,null,null,null,"Zoar"]
[null,null,null,null,null,null,null,null,null,null,null,null,null,null,null,"Zoatecpan"]
[null,null,null,null,null,null,null,null,null,null,null,null,null,null,null,"Zocca"]
[null,null,null,null,null,null,null,null,null,null,null,null,null,null,null,"Zoccorino-Vergo"]
[null,null,null,null,null,null,null,null,null,null,null,null,null,null,null,"Zoeblitz"]
[null,null,null,null,null,null,null,null,null,null,null,null,null,null,null,"Zoelen"]
[null,null,null,null,null,null,null,null,null,null,null,null,null,null,null,"Zoerbig"]
[null,null,null,null,null,null,null,null,null,null,null,null,null,null,null,"Zoersel"]
[null,null,null,null,null,null,null,null,null,null,null,null,null,null,null,"Zoeschen"]
[null,null,null,null,null,null,null,null,null,null,null,null,null,null,null,"Zoetermeer"]
[null,null,null,null,null,null,null,null,null,null,null,null,null,null,null,"Zoeterwoude-Dorp"]
[null,null,null,null,null,null,null,null,null,null,null,null,null,null,null,"Zofingen"]
[null,null,null,null,null,null,null,null,null,null,null,null,null,null,null,"Zogno"]
[null,null,null,null,null,null,null,null,null,null,null,null,null,null,null,"Zografos"]
[null,null,null,null,null,null,null,null,null,null,null,null,null,null,null,"Zola Predosa"]
[null,null,null,null,null,null,null,null,null,null,null,null,null,null,null,"Zolfo Springs"]
[null,null,null,null,null,null,null,null,null,null,null,null,null,null,null,"Zoliborz"]
[null,null,null,null,null,null,null,null,null,null,null,null,null,null,null,"Zollikerberg"]
[null,null,null,null,null,null,null,null,null,null,null,null,null,null,null,"Zollikofen"]
[null,null,null,null,null,null,null,null,null,null,null,null,null,null,null,"Zollikon"]
[null,null,null,null,null,null,null,null,null,null,null,null,null,null,null,"Zolling"]
[null,null,null,null,null,null,null,null,null,null,null,null,null,null,null,"Zollino"]
[null,null,null,null,null,null,null,null,null,null,null,null,null,null,null,"Zol'noye"]
[null,null,null,null,null,null,null,null,null,null,null,null,null,null,null,"Zolochiv"]
[null,null,null,null,null,null,null,null,null,null,null,null,null,null,null,"Zolonquiapa"]
[null,null,null,null,null,null,null,null,null,null,null,null,null,null,null,"Zolotkovo"]
[null,null,null,null,null,null,null,null,null,null,null,null,null,null,null,"Zolotonosha"]
[null,null,null,null,null,null,null,null,null,null,null,null,null,null,null,"Zolotoye Pole"]
[null,null,null,null,null,null,null,null,null,null,null,null,null,null,null,"Zolotukhino"]
[null,null,null,null,null,null,null,null,null,null,null,null,null,null,null,"Zolotyy Potik"]
[null,null,null,null,null,null,null,null,null,null,null,null,null,null,null,"Zolynia"]
[null,null,null,null,null,null,null,null,null,null,null,null,null,null,null,"Zomba"]
[null,null,null,null,null,null,null,null,null,null,null,null,null,null,null,"Zomergem"]
[null,null,null,null,null,null,null,null,null,null,null,null,null,null,null,"Zomin"]
[null,null,null,null,null,null,null,null,null,null,null,null,null,null,null,"Zona 179"]
[null,null,null,null,null,null,null,null,null,null,null,null,null,null,null,"Zona Industriale"]
[null,null,null,null,null,null,null,null,null,null,null,null,null,null,null,"Zona Urbana Ejidal"]
[null,null,null,null,null,null,null,null,null,null,null,null,null,null,null,"Zona Urbana Ejido Isla Mujeres"]
[null,null,null,null,null,null,null,null,null,null,null,null,null,null,null,"Zonal'noye"]
[null,null,null,null,null,null,null,null,null,null,null,null,null,null,null,"Zonderwijk"]
[null,null,null,null,null,null,null,null,null,null,null,null,null,null,null,"Zongolica"]
[null,null,null,null,null,null,null,null,null,null,null,null,null,null,null,"Zongozotla"]
[null,null,null,null,null,null,null,null,null,null,null,null,null,null,null,"Zonguldak"]
[null,null,null,null,null,null,null,null,null,null,null,null,null,null,null,"Zonhoven"]
[null,null,null,null,null,null,null,null,null,null,null,null,null,null,null,"Zoniana"]
[null,null,null,null,null,null,null,null,null,null,null,null,null,null,null,"Zonnebeke"]
[null,null,null,null,null,null,null,null,null,null,null,null,null,null,null,"Zonnemaat"]
[null,null,null,null,null,null,null,null,null,null,null,null,null,null,null,"Zonza"]
[null,null,null,null,null,null,null,null,null,null,null,null,null,null,null,"Zopilotepe"]
[null,null,null,null,null,null,null,null,null,null,null,null,null,null,null,"Zopoco"]
[null,null,null,null,null,null,null,null,null,null,null,null,null,null,null,"Zoppola"]
[null,null,null,null,null,null,null,null,null,null,null,null,null,null,null,"Zoquiapa"]
[null,null,null,null,null,null,null,null,null,null,null,null,null,null,null,"Zoquitipan"]
[null,null,null,null,null,null,null,null,null,null,null,null,null,null,null,"Zoquitlan"]
[null,null,null,null,null,null,null,null,null,null,null,null,null,null,null,"Zorak"]
[null,null,null,null,null,null,null,null,null,null,null,null,null,null,null,"Zoravan"]
[null,null,null,null,null,null,null,null,null,null,null,null,null,null,null,"Zorawina"]
[null,null,null,null,null,null,null,null,null,null,null,null,null,null,null,"Zoresti"]
[null,null,null,null,null,null,null,null,null,null,null,null,null,null,null,"Zorge"]
[null,null,null,null,null,null,null,null,null,null,null,null,null,null,null,"Zorgo"]
[null,null,null,null,null,null,null,null,null,null,null,null,null,null,null,"Zorile"]
[null,null,null,null,null,null,null,null,null,null,null,null,null,null,null,"Zorita"]
[null,null,null,null,null,null,null,null,null,null,null,null,null,null,null,"Zorkino"]
[null,null,null,null,null,null,null,null,null,null,null,null,null,null,null,"Zorleni"]
[null,null,null,null,null,null,null,null,null,null,null,null,null,null,null,"Zorlentu Mare"]
[null,null,null,null,null,null,null,null,null,null,null,null,null,null,null,"Zorlesco"]
[null,null,null,null,null,null,null,null,null,null,null,null,null,null,null,"Zorneding"]
[null,null,null,null,null,null,null,null,null,null,null,null,null,null,null,"Zornheim"]
[null,null,null,null,null,null,null,null,null,null,null,null,null,null,null,"Zorritos"]
[null,null,null,null,null,null,null,null,null,null,null,null,null,null,null,"Zory"]
[null,null,null,null,null,null,null,null,null,null,null,null,null,null,null,"Zorya"]
[null,null,null,null,null,null,null,null,null,null,null,null,null,null,null,"Zoryns'k"]
[null,null,null,null,null,null,null,null,null,null,null,null,null,null,null,"Zossen"]
[null,null,null,null,null,null,null,null,null,null,null,null,null,null,null,"Zottegem"]
[null,null,null,null,null,null,null,null,null,null,null,null,null,null,null,"Zoucheng"]
[null,null,null,null,null,null,null,null,null,null,null,null,null,null,null,"Zouerate"]
[null,null,null,null,null,null,null,null,null,null,null,null,null,null,null,"Zouila"]
[null,null,null,null,null,null,null,null,null,null,null,null,null,null,null,"Zoutelande"]
[null,null,null,null,null,null,null,null,null,null,null,null,null,null,null,"Zoutkamp"]
[null,null,null,null,null,null,null,null,null,null,null,null,null,null,null,"Zoutleeuw"]
[null,null,null,null,null,null,null,null,null,null,null,null,null,null,null,"Zovaber"]
[null,null,null,null,null,null,null,null,null,null,null,null,null,null,null,"Zovuni"]
[null,null,null,null,null,null,null,null,null,null,null,null,null,null,null,"Zoyatitla"]
[null,null,null,null,null,null,null,null,null,null,null,null,null,null,null,"Zoyotla"]
[null,null,null,null,null,null,null,null,null,null,null,null,null,null,null,"Zozocolco de Hidalgo"]
[null,null,null,null,null,null,null,null,null,null,null,null,null,null,null,"Zrece"]
[null,null,null,null,null,null,null,null,null,null,null,null,null,null,null,"Zrenjanin"]
[null,null,null,null,null,null,null,null,null,null,null,null,null,null,null,"Zrnovci"]
[null,null,null,null,null,null,null,null,null,null,null,null,null,null,null,"Zrnovnica"]
[null,null,null,null,null,null,null,null,null,null,null,null,null,null,null,"Zrnovo"]
[null,null,null,null,null,null,null,null,null,null,null,null,null,null,null,"Zruc nad Sazavou"]
[null,null,null,null,null,null,null,null,null,null,null,null,null,null,null,"Zsambek"]
[null,null,null,null,null,null,null,null,null,null,null,null,null,null,null,"Zsambok"]
[null,null,null,null,null,null,null,null,null,null,null,null,null,null,null,"Zschadrass"]
[null,null,null,null,null,null,null,null,null,null,null,null,null,null,null,"Zschepplin"]
[null,null,null,null,null,null,null,null,null,null,null,null,null,null,null,"Zscherben"]
[null,null,null,null,null,null,null,null,null,null,null,null,null,null,null,"Zscherndorf"]
[null,null,null,null,null,null,null,null,null,null,null,null,null,null,null,"Zschopau"]
[null,null,null,null,null,null,null,null,null,null,null,null,null,null,null,"Zschorlau"]
[null,null,null,null,null,null,null,null,null,null,null,null,null,null,null,"Zschornewitz"]
[null,null,null,null,null,null,null,null,null,null,null,null,null,null,null,"Zschortau"]
[null,null,null,null,null,null,null,null,null,null,null,null,null,null,null,"Zsombo"]
[null,null,null,null,null,null,null,null,null,null,null,null,null,null,null,"Zubia"]
[null,null,null,null,null,null,null,null,null,null,null,null,null,null,null,"Zubin Potok"]
[null,null,null,null,null,null,null,null,null,null,null,null,null,null,null,"Zubova Polyana"]
[null,null,null,null,null,null,null,null,null,null,null,null,null,null,null,"Zubovo"]
[null,null,null,null,null,null,null,null,null,null,null,null,null,null,null,"Zubri"]
[null,null,null,null,null,null,null,null,null,null,null,null,null,null,null,"Zubrzyca Dolna"]
[null,null,null,null,null,null,null,null,null,null,null,null,null,null,null,"Zubrzyca Gorna"]
[null,null,null,null,null,null,null,null,null,null,null,null,null,null,null,"Zubtsov"]
[null,null,null,null,null,null,null,null,null,null,null,null,null,null,null,"Zububah"]
[null,null,null,null,null,null,null,null,null,null,null,null,null,null,null,"Zubutli-Miatli"]
[null,null,null,null,null,null,null,null,null,null,null,null,null,null,null,"Zuchwil"]
[null,null,null,null,null,null,null,null,null,null,null,null,null,null,null,"Zudilovo"]
[null,null,null,null,null,null,null,null,null,null,null,null,null,null,null,"Zuenoula"]
[null,null,null,null,null,null,null,null,null,null,null,null,null,null,null,"Zuera"]
[null,null,null,null,null,null,null,null,null,null,null,null,null,null,null,"Zuerich (Kreis 1)"]
[null,null,null,null,null,null,null,null,null,null,null,null,null,null,null,"Zuerich (Kreis 1) / City"]
[null,null,null,null,null,null,null,null,null,null,null,null,null,null,null,"Zuerich (Kreis 1) / Lindenhof"]
[null,null,null,null,null,null,null,null,null,null,null,null,null,null,null,"Zuerich (Kreis 1) / Rathaus"]
[null,null,null,null,null,null,null,null,null,null,null,null,null,null,null,"Zuerich (Kreis 10)"]
[null,null,null,null,null,null,null,null,null,null,null,null,null,null,null,"Zuerich (Kreis 10) / Hoengg"]
[null,null,null,null,null,null,null,null,null,null,null,null,null,null,null,"Zuerich (Kreis 10) / Ruetihof"]
[null,null,null,null,null,null,null,null,null,null,null,null,null,null,null,"Zuerich (Kreis 10) / Wipkingen"]
[null,null,null,null,null,null,null,null,null,null,null,null,null,null,null,"Zuerich (Kreis 11)"]
[null,null,null,null,null,null,null,null,null,null,null,null,null,null,null,"Zuerich (Kreis 11) / Affoltern"]
[null,null,null,null,null,null,null,null,null,null,null,null,null,null,null,"Zuerich (Kreis 11) / Oerlikon"]
[null,null,null,null,null,null,null,null,null,null,null,null,null,null,null,"Zuerich (Kreis 11) / Schwandenholz"]
[null,null,null,null,null,null,null,null,null,null,null,null,null,null,null,"Zuerich (Kreis 11) / Seebach"]
[null,null,null,null,null,null,null,null,null,null,null,null,null,null,null,"Zuerich (Kreis 12)"]
[null,null,null,null,null,null,null,null,null,null,null,null,null,null,null,"Zuerich (Kreis 12) / Auzelg"]
[null,null,null,null,null,null,null,null,null,null,null,null,null,null,null,"Zuerich (Kreis 12) / Hirzenbach"]
[null,null,null,null,null,null,null,null,null,null,null,null,null,null,null,"Zuerich (Kreis 12) / Saatlen"]
[null,null,null,null,null,null,null,null,null,null,null,null,null,null,null,"Zuerich (Kreis 12) / Schwamendingen-Mitte"]
[null,null,null,null,null,null,null,null,null,null,null,null,null,null,null,"Zuerich (Kreis 2)"]
[null,null,null,null,null,null,null,null,null,null,null,null,null,null,null,"Zuerich (Kreis 2) / Enge"]
[null,null,null,null,null,null,null,null,null,null,null,null,null,null,null,"Zuerich (Kreis 2) / Mittel-Leimbach"]
[null,null,null,null,null,null,null,null,null,null,null,null,null,null,null,"Zuerich (Kreis 2) / Unter-Leimbach"]
[null,null,null,null,null,null,null,null,null,null,null,null,null,null,null,"Zuerich (Kreis 2) / Wollishofen"]
[null,null,null,null,null,null,null,null,null,null,null,null,null,null,null,"Zuerich (Kreis 3)"]
[null,null,null,null,null,null,null,null,null,null,null,null,null,null,null,"Zuerich (Kreis 3) / Alt-Wiedikon"]
[null,null,null,null,null,null,null,null,null,null,null,null,null,null,null,"Zuerich (Kreis 3) / Friesenberg"]
[null,null,null,null,null,null,null,null,null,null,null,null,null,null,null,"Zuerich (Kreis 3) / Sihlfeld"]
[null,null,null,null,null,null,null,null,null,null,null,null,null,null,null,"Zuerich (Kreis 4) / Aussersihl"]
[null,null,null,null,null,null,null,null,null,null,null,null,null,null,null,"Zuerich (Kreis 4) / Hard"]
[null,null,null,null,null,null,null,null,null,null,null,null,null,null,null,"Zuerich (Kreis 4) / Langstrasse"]
[null,null,null,null,null,null,null,null,null,null,null,null,null,null,null,"Zuerich (Kreis 4) / Werd"]
[null,null,null,null,null,null,null,null,null,null,null,null,null,null,null,"Zuerich (Kreis 5)"]
[null,null,null,null,null,null,null,null,null,null,null,null,null,null,null,"Zuerich (Kreis 5) / Escher-Wyss"]
[null,null,null,null,null,null,null,null,null,null,null,null,null,null,null,"Zuerich (Kreis 5) / Gewerbeschule"]
[null,null,null,null,null,null,null,null,null,null,null,null,null,null,null,"Zuerich (Kreis 6)"]
[null,null,null,null,null,null,null,null,null,null,null,null,null,null,null,"Zuerich (Kreis 6) / Oberstrass"]
[null,null,null,null,null,null,null,null,null,null,null,null,null,null,null,"Zuerich (Kreis 6) / Unterstrass"]
[null,null,null,null,null,null,null,null,null,null,null,null,null,null,null,"Zuerich (Kreis 7)"]
[null,null,null,null,null,null,null,null,null,null,null,null,null,null,null,"Zuerich (Kreis 7) / Fluntern"]
[null,null,null,null,null,null,null,null,null,null,null,null,null,null,null,"Zuerich (Kreis 7) / Hirslanden"]
[null,null,null,null,null,null,null,null,null,null,null,null,null,null,null,"Zuerich (Kreis 7) / Hottingen"]
[null,null,null,null,null,null,null,null,null,null,null,null,null,null,null,"Zuerich (Kreis 7) / Witikon"]
[null,null,null,null,null,null,null,null,null,null,null,null,null,null,null,"Zuerich (Kreis 8)"]
[null,null,null,null,null,null,null,null,null,null,null,null,null,null,null,"Zuerich (Kreis 8) / Muehlebach"]
[null,null,null,null,null,null,null,null,null,null,null,null,null,null,null,"Zuerich (Kreis 8) / Seefeld"]
[null,null,null,null,null,null,null,null,null,null,null,null,null,null,null,"Zuerich (Kreis 8) / Weinegg"]
[null,null,null,null,null,null,null,null,null,null,null,null,null,null,null,"Zuerich (Kreis 9)"]
[null,null,null,null,null,null,null,null,null,null,null,null,null,null,null,"Zuerich (Kreis 9) / Albisrieden"]
[null,null,null,null,null,null,null,null,null,null,null,null,null,null,null,"Zuerich (Kreis 9) / Altstetten"]
[null,null,null,null,null,null,null,null,null,null,null,null,null,null,null,"Zuessow"]
[null,null,null,null,null,null,null,null,null,null,null,null,null,null,null,"Zug"]
[null,null,null,null,null,null,null,null,null,null,null,null,null,null,null,"Zugdidi"]
[null,null,null,null,null,null,null,null,null,null,null,null,null,null,null,"Zugliano"]
[null,null,null,null,null,null,null,null,null,null,null,null,null,null,null,"Zugliano-Terenzano-Cargnacco"]
[null,null,null,null,null,null,null,null,null,null,null,null,null,null,null,"Zuhres"]
[null,null,null,null,null,null,null,null,null,null,null,null,null,null,null,"Zuid-Beijerland"]
[null,null,null,null,null,null,null,null,null,null,null,null,null,null,null,"Zuid-Berghuizen"]
[null,null,null,null,null,null,null,null,null,null,null,null,null,null,null,"Zuidbroek"]
[null,null,null,null,null,null,null,null,null,null,null,null,null,null,null,"Zuiderburen"]
[null,null,null,null,null,null,null,null,null,null,null,null,null,null,null,"Zuidhorn"]
[null,null,null,null,null,null,null,null,null,null,null,null,null,null,null,"Zuidlaren"]
[null,null,null,null,null,null,null,null,null,null,null,null,null,null,null,"Zuid-Scharwoude"]
[null,null,null,null,null,null,null,null,null,null,null,null,null,null,null,"Zuidwijk"]
[null,null,null,null,null,null,null,null,null,null,null,null,null,null,null,"Zuienkerke"]
[null,null,null,null,null,null,null,null,null,null,null,null,null,null,null,"Zuilichem"]
[null,null,null,null,null,null,null,null,null,null,null,null,null,null,null,"Zujar"]
[null,null,null,null,null,null,null,null,null,null,null,null,null,null,null,"Zujince"]
[null,null,null,null,null,null,null,null,null,null,null,null,null,null,null,"Zukowo"]
[null,null,null,null,null,null,null,null,null,null,null,null,null,null,null,"Zulova"]
[null,null,null,null,null,null,null,null,null,null,null,null,null,null,null,"Zulpich"]
[null,null,null,null,null,null,null,null,null,null,null,null,null,null,null,"Zulte"]
[null,null,null,null,null,null,null,null,null,null,null,null,null,null,null,"Zumaia"]
[null,null,null,null,null,null,null,null,null,null,null,null,null,null,null,"Zumarraga"]
[null,null,null,null,null,null,null,null,null,null,null,null,null,null,null,"Zumbrota"]
[null,null,null,null,null,null,null,null,null,null,null,null,null,null,null,"Zumikon"]
[null,null,null,null,null,null,null,null,null,null,null,null,null,null,null,"Zumpahuacan"]
[null,null,null,null,null,null,null,null,null,null,null,null,null,null,null,"Zumpango"]
[null,null,null,null,null,null,null,null,null,null,null,null,null,null,null,"Zumpango del Rio"]
[null,null,null,null,null,null,null,null,null,null,null,null,null,null,null,"Zundert"]
[null,null,null,null,null,null,null,null,null,null,null,null,null,null,null,"Zungeru"]
[null,null,null,null,null,null,null,null,null,null,null,null,null,null,null,"Zungri"]
[null,null,null,null,null,null,null,null,null,null,null,null,null,null,null,"Zunheboto"]
[null,null,null,null,null,null,null,null,null,null,null,null,null,null,null,"Zuni"]
[null,null,null,null,null,null,null,null,null,null,null,null,null,null,null,"Zuni Pueblo"]
[null,null,null,null,null,null,null,null,null,null,null,null,null,null,null,"Zunil"]
[null,null,null,null,null,null,null,null,null,null,null,null,null,null,null,"Zunilito"]
[null,null,null,null,null,null,null,null,null,null,null,null,null,null,null,"Zunyi"]
[null,null,null,null,null,null,null,null,null,null,null,null,null,null,null,"Zunzgen"]
[null,null,null,null,null,null,null,null,null,null,null,null,null,null,null,"Zuoz"]
[null,null,null,null,null,null,null,null,null,null,null,null,null,null,null,"Zupanja"]
[null,null,null,null,null,null,null,null,null,null,null,null,null,null,null,"Zur Hadassa"]
[null,null,null,null,null,null,null,null,null,null,null,null,null,null,null,"Zur Moshe"]
[null,null,null,null,null,null,null,null,null,null,null,null,null,null,null,"Zurawica"]
[null,null,null,null,null,null,null,null,null,null,null,null,null,null,null,"Zurawiczki"]
[null,null,null,null,null,null,null,null,null,null,null,null,null,null,null,"Zurgena"]
[null,null,null,null,null,null,null,null,null,null,null,null,null,null,null,"Zurich"]
[null,null,null,null,null,null,null,null,null,null,null,null,null,null,null,"Zuromin"]
[null,null,null,null,null,null,null,null,null,null,null,null,null,null,null,"Zurow"]
[null,null,null,null,null,null,null,null,null,null,null,null,null,null,null,"Zurowa"]
[null,null,null,null,null,null,null,null,null,null,null,null,null,null,null,"Zurrieq"]
[null,null,null,null,null,null,null,null,null,null,null,null,null,null,null,"Zuru"]
[null,null,null,null,null,null,null,null,null,null,null,null,null,null,null,"Zusamaltheim"]
[null,null,null,null,null,null,null,null,null,null,null,null,null,null,null,"Zushi"]
[null,null,null,null,null,null,null,null,null,null,null,null,null,null,null,"Zusmarshausen"]
[null,null,null,null,null,null,null,null,null,null,null,null,null,null,null,"Zutendaal"]
[null,null,null,null,null,null,null,null,null,null,null,null,null,null,null,"Zutkerque"]
[null,null,null,null,null,null,null,null,null,null,null,null,null,null,null,"Zutphen"]
[null,null,null,null,null,null,null,null,null,null,null,null,null,null,null,"Zuunmod"]
[null,null,null,null,null,null,null,null,null,null,null,null,null,null,null,"Zuwarah"]
[null,null,null,null,null,null,null,null,null,null,null,null,null,null,null,"Zuya"]
[null,null,null,null,null,null,null,null,null,null,null,null,null,null,null,"Zuydcoote"]
[null,null,null,null,null,null,null,null,null,null,null,null,null,null,null,"Zuyevka"]
[null,null,null,null,null,null,null,null,null,null,null,null,null,null,null,"Zuzemberk"]
[null,null,null,null,null,null,null,null,null,null,null,null,null,null,null,"Zuzenhausen"]
[null,null,null,null,null,null,null,null,null,null,null,null,null,null,null,"Zuzwil"]
[null,null,null,null,null,null,null,null,null,null,null,null,null,null,null,"Zvecan"]
[null,null,null,null,null,null,null,null,null,null,null,null,null,null,null,"Zvecka"]
[null,null,null,null,null,null,null,null,null,null,null,null,null,null,null,"Zvenigorod"]
[null,null,null,null,null,null,null,null,null,null,null,null,null,null,null,"Zvenigovo"]
[null,null,null,null,null,null,null,null,null,null,null,null,null,null,null,"Zvenyhorodka"]
[null,null,null,null,null,null,null,null,null,null,null,null,null,null,null,"Zverevo"]
[null,null,null,null,null,null,null,null,null,null,null,null,null,null,null,"Zverinogolovskoye"]
[null,null,null,null,null,null,null,null,null,null,null,null,null,null,null,"Zvezdnyy"]
[null,null,null,null,null,null,null,null,null,null,null,null,null,null,null,"Zvishavane"]
[null,null,null,null,null,null,null,null,null,null,null,null,null,null,null,"Zvole"]
[null,null,null,null,null,null,null,null,null,null,null,null,null,null,null,"Zvolen"]
[null,null,null,null,null,null,null,null,null,null,null,null,null,null,null,"Zvoristea"]
[null,null,null,null,null,null,null,null,null,null,null,null,null,null,null,"Zvornik"]
[null,null,null,null,null,null,null,null,null,null,null,null,null,null,null,"Zwaagdijk-Oost"]
[null,null,null,null,null,null,null,null,null,null,null,null,null,null,null,"Zwaanshoek"]
[null,null,null,null,null,null,null,null,null,null,null,null,null,null,null,"Zwedru"]
[null,null,null,null,null,null,null,null,null,null,null,null,null,null,null,"Zweibruecken"]
[null,null,null,null,null,null,null,null,null,null,null,null,null,null,null,"Zweiflingen"]
[null,null,null,null,null,null,null,null,null,null,null,null,null,null,null,"Zweisimmen"]
[null,null,null,null,null,null,null,null,null,null,null,null,null,null,null,"Zwenkau"]
[null,null,null,null,null,null,null,null,null,null,null,null,null,null,null,"Zwettl Stift"]
[null,null,null,null,null,null,null,null,null,null,null,null,null,null,null,"Zwevegem"]
[null,null,null,null,null,null,null,null,null,null,null,null,null,null,null,"Zwickau"]
[null,null,null,null,null,null,null,null,null,null,null,null,null,null,null,"Zwiefalten"]
[null,null,null,null,null,null,null,null,null,null,null,null,null,null,null,"Zwierzyn"]
[null,null,null,null,null,null,null,null,null,null,null,null,null,null,null,"Zwierzyniec"]
[null,null,null,null,null,null,null,null,null,null,null,null,null,null,null,"Zwiesel"]
[null,null,null,null,null,null,null,null,null,null,null,null,null,null,null,"Zwijndrecht"]
[null,null,null,null,null,null,null,null,null,null,null,null,null,null,null,"Zwingen"]
[null,null,null,null,null,null,null,null,null,null,null,null,null,null,null,"Zwingenberg"]
[null,null,null,null,null,null,null,null,null,null,null,null,null,null,null,"Zwochau"]
[null,null,null,null,null,null,null,null,null,null,null,null,null,null,null,"Zwoenitz"]
[null,null,null,null,null,null,null,null,null,null,null,null,null,null,null,"Zwolen"]
[null,null,null,null,null,null,null,null,null,null,null,null,null,null,null,"Zwolle"]
[null,null,null,null,null,null,null,null,null,null,null,null,null,null,null,"Zwota"]
[null,null,null,null,null,null,null,null,null,null,null,null,null,null,null,"Zyablikovo"]
[null,null,null,null,null,null,null,null,null,null,null,null,null,null,null,"Zybiny"]
[null,null,null,null,null,null,null,null,null,null,null,null,null,null,null,"Zychlin"]
[null,null,null,null,null,null,null,null,null,null,null,null,null,null,null,"Zyembin"]
[null,null,null,null,null,null,null,null,null,null,null,null,null,null,null,"Zygos"]
[null,null,null,null,null,null,null,null,null,null,null,null,null,null,null,"Zykovo"]
[null,null,null,null,null,null,null,null,null,null,null,null,null,null,null,"Zyrakow"]
[null,null,null,null,null,null,null,null,null,null,null,null,null,null,null,"Zyrardow"]
[null,null,null,null,null,null,null,null,null,null,null,null,null,null,null,"Zyrya"]
[null,null,null,null,null,null,null,null,null,null,null,null,null,null,null,"Zyryanka"]
[null,null,null,null,null,null,null,null,null,null,null,null,null,null,null,"Zyryanovsk"]
[null,null,null,null,null,null,null,null,null,null,null,null,null,null,null,"Zyryanskoye"]
[null,null,null,null,null,null,null,null,null,null,null,null,null,null,null,"Zyrzyn"]
[null,null,null,null,null,null,null,null,null,null,null,null,null,null,null,"Zyukayka"]
[null,null,null,null,null,null,null,null,null,null,null,null,null,null,null,"Zyuzel'skiy"]
[null,null,null,null,null,null,null,null,null,null,null,null,null,null,null,"Zyuzino"]
[null,null,null,null,null,null,null,null,null,null,null,null,null,null,null,"Zywiec"]

{"sheet":"BlankRows","index":7,"n_rows":9,"n_cols":160,"rows_kept":9,"cut":false,"hidden":true,"merged":[]}
["LeaseDetails"]
[null,"SBITA",null,null,null,"YES",null,null,null,null,null,null,null,"NO","UPLOAD TEMPLATE",null,null,null,null,null,null,null,null,null,null,null,null,"NO",null,null,null,"NO",null,null,"NO","NO",null,0,"NO",null,null,"NO",null,null,null,null,null,null,null,null,null,null,"NO",0,"NO",0,"NO",0,0,"NO",0,"NO",0,"NO","NO",null,null,null,null,"NO","NO","NO",null,null,null,null,null,null,null,null,null,"NO",null,null,"NO","NO",null,"NO",null,null,"NO",null,"NO",null,null,null,null,null,null,null,null,null,null,null,null,null,null,null,null,null,null,null,null,null,null,null,null,null,null,null,null,null,null,null,null,null,null,null,null,null,null,null,null,null,null,null,null,null,null,null,null,null,null,null,null,null,null,null,null,null,"NO","NO",null,null,"NO",null,null,"NO",null,"NO"]
["PaymentSchedule"]
[]
["RenewalOptions"]
[null,null,null,null,"NO","NO"]
["NonIndexEscalation"]
[]
["IndexEscalation"]

{"sheet":"Release Notes","index":8,"n_rows":30,"n_cols":3,"rows_kept":30,"cut":false,"hidden":true,"merged":[]}
["Updated On:","Version","Notes"]
["2018-05-01","7.0.04","Updated Export to check for and strip away non-printable characters"]
["2018-05-01","7.0.04","Updated Export to allow for foreign characters"]
["2018-05-03","7.0.05","Validation updated to check that Lease Agreement/Start/End Dates are entered correctly"]
["2018-05-03","7.0.05","Validation checks that all dates are >= '1/1/1753' to conform to SQL DateTime datatype"]
["2018-05-03","7.0.05","Validation updated to check for Excel Errors: #Ref!, #NA, #NULL!, #NUM!, #VALUE!, etc."]
["2018-05-11","7.0.06","Validation updated to check Duplicate LeaseIDs in LeaseDetails"]
["2018-05-11","7.0.06","Export Function Updated for Speed"]
["2018-05-18","7.0.07","Corrected Date Validation Bug and Sheet Locking"]
["2018-06-11","7.0.08","Enhanced function to strip out non-printable characters when exporting to text files"]
["2018-07-02","7.0.09","Updated all required questions (parent and children) with * to denote thier required status"]
["2018-09-12","7.0.10","Enable autofilter on locked sheets. Added 'Other' to Lease Language Dropdown"]
["2018-09-25","7.0.11","Enhanced validation on Payment Schedule dates, general date validation and general error handling on LeaseDetails"]
["2018-10-30","7.0.12","Fixed validation on renewal options. Export function replaces single quotes with double single quotes."]
["2018-11-05","7.0.13","Added Attribute 11 -25 in the dropdown tab"]
["2018-11-19","7.0.14","Fixed Type Mismatch error. Fixed date validation. Updated instructions and created release notes tab. All rows deletion after validation."]
["2018-11-30","7.0.15","Type mismatch fixed on comparing numeric lease ids. Performance improvements."]
["2018-12-06","7.0.16","Removed additional special characters"]
["2019-03-07","7.0.16.2","Source System column is defaulted to \"Upload Template\" instead of \"Manual\". Single quotes are removed from Lease ID values upon text file export."]
["2019-04-17","7.0.17","Change default date format to YYYY-MM-DD. Lease end date only checked against Minimum Lease Payments. Performance improvements. "]
["2019-07-03","7.0.18","Allow start and end date to be the same on payment stream"]
["2020-02-24","8.0.00","Removed RUL questions. Rounded ELOA months"]
["2020-10-14","8.0.08","Changed columns on the dropdown tab to text type"]
["2020-12-18","8.1.00","EarlyTermLessorOnlyDate - Updated text to match UI"]
["2020-12-18","8.1.00","EarlyTermLessorOnlyPayment  - Updated text to match UI"]
["2020-12-18","8.1.00","EarlyTermLessorOnlyReasonableGASB87 - New Field"]
["2020-12-18","8.1.00","EarlyTermLessorOnlyProbableSFFAS54 - New Field"]
["2020-12-18","8.1.00","ASC840DC - Updated text to match UI"]
["2020-12-18","8.1.00","ASC842DC - Updated text to match UI"]
["2020-12-18","8.1.00","FavUnFavAmt - Updated text to match UI"]